Workbook

Sheet Leaderboard
A2: No. | B2: Name | C2: Team Name | D2: 2020-09-01 | E2: 2020-10-01 | F2: 2020-11-01 | G2: 2020-12-01 | H2: 2021-01-01 | I2: 2021-02-01 | J2: 2021-03-01 | K2: 2021-04-01 | L2: 2021-05-01 | M2: Total
A3: 1 | B3: Eamon Fox | C3: Goals Very Important In Life | D3: =HLOOKUP(B3,September!$I$1:$CE$78,78,FALSE) -> 91 | E3: =HLOOKUP(B3,October!$I$1:$CE$84,84,FALSE) -> 119 | F3: =HLOOKUP(B3,November!$I$1:$CE$86,86,FALSE) -> 110 | G3: =HLOOKUP(B3,December!$I$1:$CE$107,107,FALSE) -> 190 | H3: =HLOOKUP(B3,January!$I$1:$CE$78,78,FALSE) -> 162 | I3: =HLOOKUP(B3,February!$I$1:$CE$80,80,FALSE) -> 192 | J3: =HLOOKUP(B3,March!$I$1:$CE$61,61,FALSE) -> 105 | K3: =HLOOKUP(B3,April!$I$1:$CE$67,67,FALSE) -> 135 | L3: =HLOOKUP(B3,May!$I$1:$CE$82,82,FALSE) -> 59 | M3: =SUM(D3:L3) -> 1163
A4: 2 | B4: David Lavelle | C4: Gers Abu | D4: =HLOOKUP(B4,September!$I$1:$CE$78,78,FALSE) -> 100 | E4: =HLOOKUP(B4,October!$I$1:$CE$84,84,FALSE) -> 120 | F4: =HLOOKUP(B4,November!$I$1:$CE$86,86,FALSE) -> 115 | G4: =HLOOKUP(B4,December!$I$1:$CE$107,107,FALSE) -> 174 | H4: =HLOOKUP(B4,January!$I$1:$CE$78,78,FALSE) -> 179 | I4: =HLOOKUP(B4,February!$I$1:$CE$80,80,FALSE) -> 145 | J4: =HLOOKUP(B4,March!$I$1:$CE$61,61,FALSE) -> 110 | K4: =HLOOKUP(B4,April!$I$1:$CE$67,67,FALSE) -> 124 | L4: =HLOOKUP(B4,May!$I$1:$CE$82,82,FALSE) -> 79 | M4: =SUM(D4:L4) -> 1146
A5: 3 | B5: Jonathan Fox | C5: Kilppety Klopp All The Way To The Top | D5: =HLOOKUP(B5,September!$I$1:$CE$78,78,FALSE) -> 115 | E5: =HLOOKUP(B5,October!$I$1:$CE$84,84,FALSE) -> 88 | F5: =HLOOKUP(B5,November!$I$1:$CE$86,86,FALSE) -> 126 | G5: =HLOOKUP(B5,December!$I$1:$CE$107,107,FALSE) -> 181 | H5: =HLOOKUP(B5,January!$I$1:$CE$78,78,FALSE) -> 150 | I5: =HLOOKUP(B5,February!$I$1:$CE$80,80,FALSE) -> 165 | J5: =HLOOKUP(B5,March!$I$1:$CE$61,61,FALSE) -> 151 | K5: =HLOOKUP(B5,April!$I$1:$CE$67,67,FALSE) -> 108 | L5: =HLOOKUP(B5,May!$I$1:$CE$82,82,FALSE) -> 56 | M5: =SUM(D5:L5) -> 1140
A6: 4 | B6: Alan White | C6: Al White XI | D6: =HLOOKUP(B6,September!$I$1:$CE$78,78,FALSE) -> 95 | E6: =HLOOKUP(B6,October!$I$1:$CE$84,84,FALSE) -> 138 | F6: =HLOOKUP(B6,November!$I$1:$CE$86,86,FALSE) -> 97 | G6: =HLOOKUP(B6,December!$I$1:$CE$107,107,FALSE) -> 194 | H6: =HLOOKUP(B6,January!$I$1:$CE$78,78,FALSE) -> 167 | I6: =HLOOKUP(B6,February!$I$1:$CE$80,80,FALSE) -> 155 | J6: =HLOOKUP(B6,March!$I$1:$CE$61,61,FALSE) -> 123 | K6: =HLOOKUP(B6,April!$I$1:$CE$67,67,FALSE) -> 116 | L6: =HLOOKUP(B6,May!$I$1:$CE$82,82,FALSE) -> 47 | M6: =SUM(D6:L6) -> 1132
A7: 5 | B7: Victoria Reid | C7: Tristan's Titans | D7: =HLOOKUP(B7,September!$I$1:$CE$78,78,FALSE) -> 95 | E7: =HLOOKUP(B7,October!$I$1:$CE$84,84,FALSE) -> 84 | F7: =HLOOKUP(B7,November!$I$1:$CE$86,86,FALSE) -> 110 | G7: =HLOOKUP(B7,December!$I$1:$CE$107,107,FALSE) -> 166 | H7: =HLOOKUP(B7,January!$I$1:$CE$78,78,FALSE) -> 202 | I7: =HLOOKUP(B7,February!$I$1:$CE$80,80,FALSE) -> 153 | J7: =HLOOKUP(B7,March!$I$1:$CE$61,61,FALSE) -> 125 | K7: =HLOOKUP(B7,April!$I$1:$CE$67,67,FALSE) -> 137 | L7: =HLOOKUP(B7,May!$I$1:$CE$82,82,FALSE) -> 54 | M7: =SUM(D7:L7) -> 1126
A8: 6 | B8: Brian Haughton | C8: Klopp's Achievers | D8: =HLOOKUP(B8,September!$I$1:$CE$78,78,FALSE) -> 92 | E8: =HLOOKUP(B8,October!$I$1:$CE$84,84,FALSE) -> 101 | F8: =HLOOKUP(B8,November!$I$1:$CE$86,86,FALSE) -> 135 | G8: =HLOOKUP(B8,December!$I$1:$CE$107,107,FALSE) -> 190 | H8: =HLOOKUP(B8,January!$I$1:$CE$78,78,FALSE) -> 161 | I8: =HLOOKUP(B8,February!$I$1:$CE$80,80,FALSE) -> 174 | J8: =HLOOKUP(B8,March!$I$1:$CE$61,61,FALSE) -> 100 | K8: =HLOOKUP(B8,April!$I$1:$CE$67,67,FALSE) -> 119 | L8: =HLOOKUP(B8,May!$I$1:$CE$82,82,FALSE) -> 44 | M8: =SUM(D8:L8) -> 1116
A9: 7 | B9: Gavin Goodwin | C9: Gorey United | D9: =HLOOKUP(B9,September!$I$1:$CE$78,78,FALSE) -> 89 | E9: =HLOOKUP(B9,October!$I$1:$CE$84,84,FALSE) -> 122 | F9: =HLOOKUP(B9,November!$I$1:$CE$86,86,FALSE) -> 102 | G9: =HLOOKUP(B9,December!$I$1:$CE$107,107,FALSE) -> 166 | H9: =HLOOKUP(B9,January!$I$1:$CE$78,78,FALSE) -> 181 | I9: =HLOOKUP(B9,February!$I$1:$CE$80,80,FALSE) -> 196 | J9: =HLOOKUP(B9,March!$I$1:$CE$61,61,FALSE) -> 98 | K9: =HLOOKUP(B9,April!$I$1:$CE$67,67,FALSE) -> 98 | L9: =HLOOKUP(B9,May!$I$1:$CE$82,82,FALSE) -> 62 | M9: =SUM(D9:L9) -> 1114
A10: 8 | B10: Wayne Donovan | C10: Sixth Senseless | D10: =HLOOKUP(B10,September!$I$1:$CE$78,78,FALSE) -> 70 | E10: =HLOOKUP(B10,October!$I$1:$CE$84,84,FALSE) -> 132 | F10: =HLOOKUP(B10,November!$I$1:$CE$86,86,FALSE) -> 91 | G10: =HLOOKUP(B10,December!$I$1:$CE$107,107,FALSE) -> 190 | H10: =HLOOKUP(B10,January!$I$1:$CE$78,78,FALSE) -> 164 | I10: =HLOOKUP(B10,February!$I$1:$CE$80,80,FALSE) -> 166 | J10: =HLOOKUP(B10,March!$I$1:$CE$61,61,FALSE) -> 114 | K10: =HLOOKUP(B10,April!$I$1:$CE$67,67,FALSE) -> 138 | L10: =HLOOKUP(B10,May!$I$1:$CE$82,82,FALSE) -> 46 | M10: =SUM(D10:L10) -> 1111
A11: 9 | B11: Derek Brady | C11: Liverpool | D11: =HLOOKUP(B11,September!$I$1:$CE$78,78,FALSE) -> 117 | E11: =HLOOKUP(B11,October!$I$1:$CE$84,84,FALSE) -> 115 | F11: =HLOOKUP(B11,November!$I$1:$CE$86,86,FALSE) -> 118 | G11: =HLOOKUP(B11,December!$I$1:$CE$107,107,FALSE) -> 169 | H11: =HLOOKUP(B11,January!$I$1:$CE$78,78,FALSE) -> 194 | I11: =HLOOKUP(B11,February!$I$1:$CE$80,80,FALSE) -> 130 | J11: =HLOOKUP(B11,March!$I$1:$CE$61,61,FALSE) -> 105 | K11: =HLOOKUP(B11,April!$I$1:$CE$67,67,FALSE) -> 115 | L11: =HLOOKUP(B11,May!$I$1:$CE$82,82,FALSE) -> 36 | M11: =SUM(D11:L11) -> 1099
A12: 10 | B12: Bobby Hynes | C12: Born To Run | D12: =HLOOKUP(B12,September!$I$1:$CE$78,78,FALSE) -> 82 | E12: =HLOOKUP(B12,October!$I$1:$CE$84,84,FALSE) -> 121 | F12: =HLOOKUP(B12,November!$I$1:$CE$86,86,FALSE) -> 90 | G12: =HLOOKUP(B12,December!$I$1:$CE$107,107,FALSE) -> 230 | H12: =HLOOKUP(B12,January!$I$1:$CE$78,78,FALSE) -> 141 | I12: =HLOOKUP(B12,February!$I$1:$CE$80,80,FALSE) -> 174 | J12: =HLOOKUP(B12,March!$I$1:$CE$61,61,FALSE) -> 85 | K12: =HLOOKUP(B12,April!$I$1:$CE$67,67,FALSE) -> 119 | L12: =HLOOKUP(B12,May!$I$1:$CE$82,82,FALSE) -> 54 | M12: =SUM(D12:L12) -> 1096
A13: 11 | B13: Joe Turner | C13: #blocklivesmatter | D13: =HLOOKUP(B13,September!$I$1:$CE$78,78,FALSE) -> 87 | E13: =HLOOKUP(B13,October!$I$1:$CE$84,84,FALSE) -> 106 | F13: =HLOOKUP(B13,November!$I$1:$CE$86,86,FALSE) -> 95 | G13: =HLOOKUP(B13,December!$I$1:$CE$107,107,FALSE) -> 170 | H13: =HLOOKUP(B13,January!$I$1:$CE$78,78,FALSE) -> 176 | I13: =HLOOKUP(B13,February!$I$1:$CE$80,80,FALSE) -> 164 | J13: =HLOOKUP(B13,March!$I$1:$CE$61,61,FALSE) -> 145 | K13: =HLOOKUP(B13,April!$I$1:$CE$67,67,FALSE) -> 119 | L13: =HLOOKUP(B13,May!$I$1:$CE$82,82,FALSE) -> 34 | M13: =SUM(D13:L13) -> 1096
A14: 12 | B14: Anastas Popov | C14: Strong Saints | D14: =HLOOKUP(B14,September!$I$1:$CE$78,78,FALSE) -> 97 | E14: =HLOOKUP(B14,October!$I$1:$CE$84,84,FALSE) -> 121 | F14: =HLOOKUP(B14,November!$I$1:$CE$86,86,FALSE) -> 95 | G14: =HLOOKUP(B14,December!$I$1:$CE$107,107,FALSE) -> 165 | H14: =HLOOKUP(B14,January!$I$1:$CE$78,78,FALSE) -> 161 | I14: =HLOOKUP(B14,February!$I$1:$CE$80,80,FALSE) -> 169 | J14: =HLOOKUP(B14,March!$I$1:$CE$61,61,FALSE) -> 110 | K14: =HLOOKUP(B14,April!$I$1:$CE$67,67,FALSE) -> 99 | L14: =HLOOKUP(B14,May!$I$1:$CE$82,82,FALSE) -> 74 | M14: =SUM(D14:L14) -> 1091
A15: 13 | B15: Brian Prendergast | C15: Mista Dobalina | D15: =HLOOKUP(B15,September!$I$1:$CE$78,78,FALSE) -> 85 | E15: =HLOOKUP(B15,October!$I$1:$CE$84,84,FALSE) -> 110 | F15: =HLOOKUP(B15,November!$I$1:$CE$86,86,FALSE) -> 85 | G15: =HLOOKUP(B15,December!$I$1:$CE$107,107,FALSE) -> 214 | H15: =HLOOKUP(B15,January!$I$1:$CE$78,78,FALSE) -> 169 | I15: =HLOOKUP(B15,February!$I$1:$CE$80,80,FALSE) -> 165 | J15: =HLOOKUP(B15,March!$I$1:$CE$61,61,FALSE) -> 120 | K15: =HLOOKUP(B15,April!$I$1:$CE$67,67,FALSE) -> 109 | L15: =HLOOKUP(B15,May!$I$1:$CE$82,82,FALSE) -> 34 | M15: =SUM(D15:L15) -> 1091
A16: 14 | B16: Paul Prendergast | C16: The Untouchables | D16: =HLOOKUP(B16,September!$I$1:$CE$78,78,FALSE) -> 72 | E16: =HLOOKUP(B16,October!$I$1:$CE$84,84,FALSE) -> 106 | F16: =HLOOKUP(B16,November!$I$1:$CE$86,86,FALSE) -> 120 | G16: =HLOOKUP(B16,December!$I$1:$CE$107,107,FALSE) -> 180 | H16: =HLOOKUP(B16,January!$I$1:$CE$78,78,FALSE) -> 161 | I16: =HLOOKUP(B16,February!$I$1:$CE$80,80,FALSE) -> 169 | J16: =HLOOKUP(B16,March!$I$1:$CE$61,61,FALSE) -> 100 | K16: =HLOOKUP(B16,April!$I$1:$CE$67,67,FALSE) -> 124 | L16: =HLOOKUP(B16,May!$I$1:$CE$82,82,FALSE) -> 59 | M16: =SUM(D16:L16) -> 1091
A17: 15 | B17: Davy Doyle | C17: FC Twente Benson | D17: =HLOOKUP(B17,September!$I$1:$CE$78,78,FALSE) -> 76 | E17: =HLOOKUP(B17,October!$I$1:$CE$84,84,FALSE) -> 124 | F17: =HLOOKUP(B17,November!$I$1:$CE$86,86,FALSE) -> 75 | G17: =HLOOKUP(B17,December!$I$1:$CE$107,107,FALSE) -> 175 | H17: =HLOOKUP(B17,January!$I$1:$CE$78,78,FALSE) -> 167 | I17: =HLOOKUP(B17,February!$I$1:$CE$80,80,FALSE) -> 162 | J17: =HLOOKUP(B17,March!$I$1:$CE$61,61,FALSE) -> 110 | K17: =HLOOKUP(B17,April!$I$1:$CE$67,67,FALSE) -> 130 | L17: =HLOOKUP(B17,May!$I$1:$CE$82,82,FALSE) -> 64 | M17: =SUM(D17:L17) -> 1083
A18: 16 | B18: Kevin Philpott | C18: Phillys Phylers | D18: =HLOOKUP(B18,September!$I$1:$CE$78,78,FALSE) -> 87 | E18: =HLOOKUP(B18,October!$I$1:$CE$84,84,FALSE) -> 107 | F18: =HLOOKUP(B18,November!$I$1:$CE$86,86,FALSE) -> 88 | G18: =HLOOKUP(B18,December!$I$1:$CE$107,107,FALSE) -> 156 | H18: =HLOOKUP(B18,January!$I$1:$CE$78,78,FALSE) -> 175 | I18: =HLOOKUP(B18,February!$I$1:$CE$80,80,FALSE) -> 163 | J18: =HLOOKUP(B18,March!$I$1:$CE$61,61,FALSE) -> 98 | K18: =HLOOKUP(B18,April!$I$1:$CE$67,67,FALSE) -> 120 | L18: =HLOOKUP(B18,May!$I$1:$CE$82,82,FALSE) -> 84 | M18: =SUM(D18:L18) -> 1078
A19: 17 | B19: Joseph Kavanagh | C19: Joey's Invincibles | D19: =HLOOKUP(B19,September!$I$1:$CE$78,78,FALSE) -> 92 | E19: =HLOOKUP(B19,October!$I$1:$CE$84,84,FALSE) -> 116 | F19: =HLOOKUP(B19,November!$I$1:$CE$86,86,FALSE) -> 75 | G19: =HLOOKUP(B19,December!$I$1:$CE$107,107,FALSE) -> 185 | H19: =HLOOKUP(B19,January!$I$1:$CE$78,78,FALSE) -> 196 | I19: =HLOOKUP(B19,February!$I$1:$CE$80,80,FALSE) -> 154 | J19: =HLOOKUP(B19,March!$I$1:$CE$61,61,FALSE) -> 100 | K19: =HLOOKUP(B19,April!$I$1:$CE$67,67,FALSE) -> 109 | L19: =HLOOKUP(B19,May!$I$1:$CE$82,82,FALSE) -> 44 | M19: =SUM(D19:L19) -> 1071
A20: 18 | B20: George McGettigan | C20: Right Up The Jimmy | D20: =HLOOKUP(B20,September!$I$1:$CE$78,78,FALSE) -> 101 | E20: =HLOOKUP(B20,October!$I$1:$CE$84,84,FALSE) -> 100 | F20: =HLOOKUP(B20,November!$I$1:$CE$86,86,FALSE) -> 98 | G20: =HLOOKUP(B20,December!$I$1:$CE$107,107,FALSE) -> 186 | H20: =HLOOKUP(B20,January!$I$1:$CE$78,78,FALSE) -> 139 | I20: =HLOOKUP(B20,February!$I$1:$CE$80,80,FALSE) -> 189 | J20: =HLOOKUP(B20,March!$I$1:$CE$61,61,FALSE) -> 94 | K20: =HLOOKUP(B20,April!$I$1:$CE$67,67,FALSE) -> 114 | L20: =HLOOKUP(B20,May!$I$1:$CE$82,82,FALSE) -> 49 | M20: =SUM(D20:L20) -> 1070
A21: 19 | B21: David McGinley | C21: Reservoir Dubs | D21: =HLOOKUP(B21,September!$I$1:$CE$78,78,FALSE) -> 58 | E21: =HLOOKUP(B21,October!$I$1:$CE$84,84,FALSE) -> 110 | F21: =HLOOKUP(B21,November!$I$1:$CE$86,86,FALSE) -> 103 | G21: =HLOOKUP(B21,December!$I$1:$CE$107,107,FALSE) -> 194 | H21: =HLOOKUP(B21,January!$I$1:$CE$78,78,FALSE) -> 157 | I21: =HLOOKUP(B21,February!$I$1:$CE$80,80,FALSE) -> 193 | J21: =HLOOKUP(B21,March!$I$1:$CE$61,61,FALSE) -> 108 | K21: =HLOOKUP(B21,April!$I$1:$CE$67,67,FALSE) -> 109 | L21: =HLOOKUP(B21,May!$I$1:$CE$82,82,FALSE) -> 37 | M21: =SUM(D21:L21) -> 1069
A22: 20 | B22: Con McSweeney | C22: Dowtcha_Boys | D22: =HLOOKUP(B22,September!$I$1:$CE$78,78,FALSE) -> 92 | E22: =HLOOKUP(B22,October!$I$1:$CE$84,84,FALSE) -> 94 | F22: =HLOOKUP(B22,November!$I$1:$CE$86,86,FALSE) -> 76 | G22: =HLOOKUP(B22,December!$I$1:$CE$107,107,FALSE) -> 169 | H22: =HLOOKUP(B22,January!$I$1:$CE$78,78,FALSE) -> 163 | I22: =HLOOKUP(B22,February!$I$1:$CE$80,80,FALSE) -> 185 | J22: =HLOOKUP(B22,March!$I$1:$CE$61,61,FALSE) -> 109 | K22: =HLOOKUP(B22,April!$I$1:$CE$67,67,FALSE) -> 109 | L22: =HLOOKUP(B22,May!$I$1:$CE$82,82,FALSE) -> 71 | M22: =SUM(D22:L22) -> 1068
A23: 21 | B23: Richard Johnston | C23: The Corporation Lads FC | D23: =HLOOKUP(B23,September!$I$1:$CE$78,78,FALSE) -> 110 | E23: =HLOOKUP(B23,October!$I$1:$CE$84,84,FALSE) -> 83 | F23: =HLOOKUP(B23,November!$I$1:$CE$86,86,FALSE) -> 107 | G23: =HLOOKUP(B23,December!$I$1:$CE$107,107,FALSE) -> 179 | H23: =HLOOKUP(B23,January!$I$1:$CE$78,78,FALSE) -> 182 | I23: =HLOOKUP(B23,February!$I$1:$CE$80,80,FALSE) -> 150 | J23: =HLOOKUP(B23,March!$I$1:$CE$61,61,FALSE) -> 93 | K23: =HLOOKUP(B23,April!$I$1:$CE$67,67,FALSE) -> 126 | L23: =HLOOKUP(B23,May!$I$1:$CE$82,82,FALSE) -> 37 | M23: =SUM(D23:L23) -> 1067
A24: 22 | B24: David Cooney | C24: Frank's Silvalinings | D24: =HLOOKUP(B24,September!$I$1:$CE$78,78,FALSE) -> 74 | E24: =HLOOKUP(B24,October!$I$1:$CE$84,84,FALSE) -> 96 | F24: =HLOOKUP(B24,November!$I$1:$CE$86,86,FALSE) -> 82 | G24: =HLOOKUP(B24,December!$I$1:$CE$107,107,FALSE) -> 179 | H24: =HLOOKUP(B24,January!$I$1:$CE$78,78,FALSE) -> 158 | I24: =HLOOKUP(B24,February!$I$1:$CE$80,80,FALSE) -> 198 | J24: =HLOOKUP(B24,March!$I$1:$CE$61,61,FALSE) -> 88 | K24: =HLOOKUP(B24,April!$I$1:$CE$67,67,FALSE) -> 127 | L24: =HLOOKUP(B24,May!$I$1:$CE$82,82,FALSE) -> 62 | M24: =SUM(D24:L24) -> 1064
A25: 23 | B25: Ciaran Nelson | C25: Nelson Utd | D25: =HLOOKUP(B25,September!$I$1:$CE$78,78,FALSE) -> 90 | E25: =HLOOKUP(B25,October!$I$1:$CE$84,84,FALSE) -> 117 | F25: =HLOOKUP(B25,November!$I$1:$CE$86,86,FALSE) -> 80 | G25: =HLOOKUP(B25,December!$I$1:$CE$107,107,FALSE) -> 173 | H25: =HLOOKUP(B25,January!$I$1:$CE$78,78,FALSE) -> 157 | I25: =HLOOKUP(B25,February!$I$1:$CE$80,80,FALSE) -> 160 | J25: =HLOOKUP(B25,March!$I$1:$CE$61,61,FALSE) -> 88 | K25: =HLOOKUP(B25,April!$I$1:$CE$67,67,FALSE) -> 131 | L25: =HLOOKUP(B25,May!$I$1:$CE$82,82,FALSE) -> 67 | M25: =SUM(D25:L25) -> 1063
A26: 24 | B26: Robert Manley | C26: Alisson Wonderland | D26: =HLOOKUP(B26,September!$I$1:$CE$78,78,FALSE) -> 65 | E26: =HLOOKUP(B26,October!$I$1:$CE$84,84,FALSE) -> 84 | F26: =HLOOKUP(B26,November!$I$1:$CE$86,86,FALSE) -> 123 | G26: =HLOOKUP(B26,December!$I$1:$CE$107,107,FALSE) -> 171 | H26: =HLOOKUP(B26,January!$I$1:$CE$78,78,FALSE) -> 150 | I26: =HLOOKUP(B26,February!$I$1:$CE$80,80,FALSE) -> 187 | J26: =HLOOKUP(B26,March!$I$1:$CE$61,61,FALSE) -> 119 | K26: =HLOOKUP(B26,April!$I$1:$CE$67,67,FALSE) -> 110 | L26: =HLOOKUP(B26,May!$I$1:$CE$82,82,FALSE) -> 54 | M26: =SUM(D26:L26) -> 1063
A27: 25 | B27: Ralph Goodwin | C27: Sky Blue Champions | D27: =HLOOKUP(B27,September!$I$1:$CE$78,78,FALSE) -> 100 | E27: =HLOOKUP(B27,October!$I$1:$CE$84,84,FALSE) -> 95 | F27: =HLOOKUP(B27,November!$I$1:$CE$86,86,FALSE) -> 120 | G27: =HLOOKUP(B27,December!$I$1:$CE$107,107,FALSE) -> 182 | H27: =HLOOKUP(B27,January!$I$1:$CE$78,78,FALSE) -> 160 | I27: =HLOOKUP(B27,February!$I$1:$CE$80,80,FALSE) -> 137 | J27: =HLOOKUP(B27,March!$I$1:$CE$61,61,FALSE) -> 119 | K27: =HLOOKUP(B27,April!$I$1:$CE$67,67,FALSE) -> 110 | L27: =HLOOKUP(B27,May!$I$1:$CE$82,82,FALSE) -> 39 | M27: =SUM(D27:L27) -> 1062
A28: 26 | B28: Phil Doyle | C28: FC Muertos Errantes | D28: =HLOOKUP(B28,September!$I$1:$CE$78,78,FALSE) -> 96 | E28: =HLOOKUP(B28,October!$I$1:$CE$84,84,FALSE) -> 90 | F28: =HLOOKUP(B28,November!$I$1:$CE$86,86,FALSE) -> 84 | G28: =HLOOKUP(B28,December!$I$1:$CE$107,107,FALSE) -> 166 | H28: =HLOOKUP(B28,January!$I$1:$CE$78,78,FALSE) -> 162 | I28: =HLOOKUP(B28,February!$I$1:$CE$80,80,FALSE) -> 162 | J28: =HLOOKUP(B28,March!$I$1:$CE$61,61,FALSE) -> 92 | K28: =HLOOKUP(B28,April!$I$1:$CE$67,67,FALSE) -> 111 | L28: =HLOOKUP(B28,May!$I$1:$CE$82,82,FALSE) -> 97 | M28: =SUM(D28:L28) -> 1060
A29: 27 | B29: Cathal Thornton | C29: Horse's Heroes | D29: =HLOOKUP(B29,September!$I$1:$CE$78,78,FALSE) -> 71 | E29: =HLOOKUP(B29,October!$I$1:$CE$84,84,FALSE) -> 89 | F29: =HLOOKUP(B29,November!$I$1:$CE$86,86,FALSE) -> 85 | G29: =HLOOKUP(B29,December!$I$1:$CE$107,107,FALSE) -> 195 | H29: =HLOOKUP(B29,January!$I$1:$CE$78,78,FALSE) -> 147 | I29: =HLOOKUP(B29,February!$I$1:$CE$80,80,FALSE) -> 177 | J29: =HLOOKUP(B29,March!$I$1:$CE$61,61,FALSE) -> 125 | K29: =HLOOKUP(B29,April!$I$1:$CE$67,67,FALSE) -> 100 | L29: =HLOOKUP(B29,May!$I$1:$CE$82,82,FALSE) -> 69 | M29: =SUM(D29:L29) -> 1058
A30: 28 | B30: Frank McSweeney | C30: Poolabu | D30: =HLOOKUP(B30,September!$I$1:$CE$78,78,FALSE) -> 86 | E30: =HLOOKUP(B30,October!$I$1:$CE$84,84,FALSE) -> 114 | F30: =HLOOKUP(B30,November!$I$1:$CE$86,86,FALSE) -> 90 | G30: =HLOOKUP(B30,December!$I$1:$CE$107,107,FALSE) -> 175 | H30: =HLOOKUP(B30,January!$I$1:$CE$78,78,FALSE) -> 167 | I30: =HLOOKUP(B30,February!$I$1:$CE$80,80,FALSE) -> 137 | J30: =HLOOKUP(B30,March!$I$1:$CE$61,61,FALSE) -> 110 | K30: =HLOOKUP(B30,April!$I$1:$CE$67,67,FALSE) -> 105 | L30: =HLOOKUP(B30,May!$I$1:$CE$82,82,FALSE) -> 74 | M30: =SUM(D30:L30) -> 1058
A31: 29 | B31: Gary Fitzpatrick | C31: Timo Werner Is A Hurensohn | D31: =HLOOKUP(B31,September!$I$1:$CE$78,78,FALSE) -> 77 | E31: =HLOOKUP(B31,October!$I$1:$CE$84,84,FALSE) -> 116 | F31: =HLOOKUP(B31,November!$I$1:$CE$86,86,FALSE) -> 95 | G31: =HLOOKUP(B31,December!$I$1:$CE$107,107,FALSE) -> 170 | H31: =HLOOKUP(B31,January!$I$1:$CE$78,78,FALSE) -> 166 | I31: =HLOOKUP(B31,February!$I$1:$CE$80,80,FALSE) -> 174 | J31: =HLOOKUP(B31,March!$I$1:$CE$61,61,FALSE) -> 90 | K31: =HLOOKUP(B31,April!$I$1:$CE$67,67,FALSE) -> 109 | L31: =HLOOKUP(B31,May!$I$1:$CE$82,82,FALSE) -> 54 | M31: =SUM(D31:L31) -> 1051
A32: 30 | B32: Gerry Draper | C32: Everton10 | D32: =HLOOKUP(B32,September!$I$1:$CE$78,78,FALSE) -> 79 | E32: =HLOOKUP(B32,October!$I$1:$CE$84,84,FALSE) -> 79 | F32: =HLOOKUP(B32,November!$I$1:$CE$86,86,FALSE) -> 92 | G32: =HLOOKUP(B32,December!$I$1:$CE$107,107,FALSE) -> 145 | H32: =HLOOKUP(B32,January!$I$1:$CE$78,78,FALSE) -> 205 | I32: =HLOOKUP(B32,February!$I$1:$CE$80,80,FALSE) -> 183 | J32: =HLOOKUP(B32,March!$I$1:$CE$61,61,FALSE) -> 95 | K32: =HLOOKUP(B32,April!$I$1:$CE$67,67,FALSE) -> 115 | L32: =HLOOKUP(B32,May!$I$1:$CE$82,82,FALSE) -> 54 | M32: =SUM(D32:L32) -> 1047
A33: 31 | B33: Philip Jordan | C33: Frankie's Army | D33: =HLOOKUP(B33,September!$I$1:$CE$78,78,FALSE) -> 89 | E33: =HLOOKUP(B33,October!$I$1:$CE$84,84,FALSE) -> 94 | F33: =HLOOKUP(B33,November!$I$1:$CE$86,86,FALSE) -> 78 | G33: =HLOOKUP(B33,December!$I$1:$CE$107,107,FALSE) -> 152 | H33: =HLOOKUP(B33,January!$I$1:$CE$78,78,FALSE) -> 155 | I33: =HLOOKUP(B33,February!$I$1:$CE$80,80,FALSE) -> 193 | J33: =HLOOKUP(B33,March!$I$1:$CE$61,61,FALSE) -> 99 | K33: =HLOOKUP(B33,April!$I$1:$CE$67,67,FALSE) -> 117 | L33: =HLOOKUP(B33,May!$I$1:$CE$82,82,FALSE) -> 69 | M33: =SUM(D33:L33) -> 1046
A34: 32 | B34: Liam Keohan | C34: Invincibles | D34: =HLOOKUP(B34,September!$I$1:$CE$78,78,FALSE) -> 104 | E34: =HLOOKUP(B34,October!$I$1:$CE$84,84,FALSE) -> 95 | F34: =HLOOKUP(B34,November!$I$1:$CE$86,86,FALSE) -> 96 | G34: =HLOOKUP(B34,December!$I$1:$CE$107,107,FALSE) -> 155 | H34: =HLOOKUP(B34,January!$I$1:$CE$78,78,FALSE) -> 160 | I34: =HLOOKUP(B34,February!$I$1:$CE$80,80,FALSE) -> 164 | J34: =HLOOKUP(B34,March!$I$1:$CE$61,61,FALSE) -> 84 | K34: =HLOOKUP(B34,April!$I$1:$CE$67,67,FALSE) -> 109 | L34: =HLOOKUP(B34,May!$I$1:$CE$82,82,FALSE) -> 76 | M34: =SUM(D34:L34) -> 1043
A35: 33 | B35: Gareth Pierpoint | C35: Alisson Wonderland | D35: =HLOOKUP(B35,September!$I$1:$CE$78,78,FALSE) -> 90 | E35: =HLOOKUP(B35,October!$I$1:$CE$84,84,FALSE) -> 109 | F35: =HLOOKUP(B35,November!$I$1:$CE$86,86,FALSE) -> 88 | G35: =HLOOKUP(B35,December!$I$1:$CE$107,107,FALSE) -> 201 | H35: =HLOOKUP(B35,January!$I$1:$CE$78,78,FALSE) -> 155 | I35: =HLOOKUP(B35,February!$I$1:$CE$80,80,FALSE) -> 152 | J35: =HLOOKUP(B35,March!$I$1:$CE$61,61,FALSE) -> 99 | K35: =HLOOKUP(B35,April!$I$1:$CE$67,67,FALSE) -> 95 | L35: =HLOOKUP(B35,May!$I$1:$CE$82,82,FALSE) -> 49 | M35: =SUM(D35:L35) -> 1038
A36: 34 | B36: Ciaran O'Hart | C36: Riverchapel Plate | D36: =HLOOKUP(B36,September!$I$1:$CE$78,78,FALSE) -> 64 | E36: =HLOOKUP(B36,October!$I$1:$CE$84,84,FALSE) -> 106 | F36: =HLOOKUP(B36,November!$I$1:$CE$86,86,FALSE) -> 102 | G36: =HLOOKUP(B36,December!$I$1:$CE$107,107,FALSE) -> 164 | H36: =HLOOKUP(B36,January!$I$1:$CE$78,78,FALSE) -> 188 | I36: =HLOOKUP(B36,February!$I$1:$CE$80,80,FALSE) -> 168 | J36: =HLOOKUP(B36,March!$I$1:$CE$61,61,FALSE) -> 83 | K36: =HLOOKUP(B36,April!$I$1:$CE$67,67,FALSE) -> 117 | L36: =HLOOKUP(B36,May!$I$1:$CE$82,82,FALSE) -> 42 | M36: =SUM(D36:L36) -> 1034
A37: 35 | B37: Dean White | C37: Armchair 11 | D37: =HLOOKUP(B37,September!$I$1:$CE$78,78,FALSE) -> 95 | E37: =HLOOKUP(B37,October!$I$1:$CE$84,84,FALSE) -> 109 | F37: =HLOOKUP(B37,November!$I$1:$CE$86,86,FALSE) -> 91 | G37: =HLOOKUP(B37,December!$I$1:$CE$107,107,FALSE) -> 166 | H37: =HLOOKUP(B37,January!$I$1:$CE$78,78,FALSE) -> 169 | I37: =HLOOKUP(B37,February!$I$1:$CE$80,80,FALSE) -> 145 | J37: =HLOOKUP(B37,March!$I$1:$CE$61,61,FALSE) -> 98 | K37: =HLOOKUP(B37,April!$I$1:$CE$67,67,FALSE) -> 110 | L37: =HLOOKUP(B37,May!$I$1:$CE$82,82,FALSE) -> 51 | M37: =SUM(D37:L37) -> 1034
A38: 36 | B38: Brendan Maguire | C38: Cantthinkofone | D38: =HLOOKUP(B38,September!$I$1:$CE$78,78,FALSE) -> 72 | E38: =HLOOKUP(B38,October!$I$1:$CE$84,84,FALSE) -> 99 | F38: =HLOOKUP(B38,November!$I$1:$CE$86,86,FALSE) -> 114 | G38: =HLOOKUP(B38,December!$I$1:$CE$107,107,FALSE) -> 160 | H38: =HLOOKUP(B38,January!$I$1:$CE$78,78,FALSE) -> 133 | I38: =HLOOKUP(B38,February!$I$1:$CE$80,80,FALSE) -> 180 | J38: =HLOOKUP(B38,March!$I$1:$CE$61,61,FALSE) -> 114 | K38: =HLOOKUP(B38,April!$I$1:$CE$67,67,FALSE) -> 101 | L38: =HLOOKUP(B38,May!$I$1:$CE$82,82,FALSE) -> 56 | M38: =SUM(D38:L38) -> 1029
A39: 37 | B39: Craig Calvert | C39: Proper FC | D39: =HLOOKUP(B39,September!$I$1:$CE$78,78,FALSE) -> 80 | E39: =HLOOKUP(B39,October!$I$1:$CE$84,84,FALSE) -> 108 | F39: =HLOOKUP(B39,November!$I$1:$CE$86,86,FALSE) -> 106 | G39: =HLOOKUP(B39,December!$I$1:$CE$107,107,FALSE) -> 178 | H39: =HLOOKUP(B39,January!$I$1:$CE$78,78,FALSE) -> 152 | I39: =HLOOKUP(B39,February!$I$1:$CE$80,80,FALSE) -> 164 | J39: =HLOOKUP(B39,March!$I$1:$CE$61,61,FALSE) -> 89 | K39: =HLOOKUP(B39,April!$I$1:$CE$67,67,FALSE) -> 108 | L39: =HLOOKUP(B39,May!$I$1:$CE$82,82,FALSE) -> 44 | M39: =SUM(D39:L39) -> 1029
A40: 38 | B40: Kev Dalton | C40: Show Me De Mane | D40: =HLOOKUP(B40,September!$I$1:$CE$78,78,FALSE) -> 100 | E40: =HLOOKUP(B40,October!$I$1:$CE$84,84,FALSE) -> 123 | F40: =HLOOKUP(B40,November!$I$1:$CE$86,86,FALSE) -> 82 | G40: =HLOOKUP(B40,December!$I$1:$CE$107,107,FALSE) -> 177 | H40: =HLOOKUP(B40,January!$I$1:$CE$78,78,FALSE) -> 133 | I40: =HLOOKUP(B40,February!$I$1:$CE$80,80,FALSE) -> 170 | J40: =HLOOKUP(B40,March!$I$1:$CE$61,61,FALSE) -> 102 | K40: =HLOOKUP(B40,April!$I$1:$CE$67,67,FALSE) -> 91 | L40: =HLOOKUP(B40,May!$I$1:$CE$82,82,FALSE) -> 51 | M40: =SUM(D40:L40) -> 1029
A41: 39 | B41: Aidan White | C41: Saved By A Goalline Technology Failure | D41: =HLOOKUP(B41,September!$I$1:$CE$78,78,FALSE) -> 70 | E41: =HLOOKUP(B41,October!$I$1:$CE$84,84,FALSE) -> 100 | F41: =HLOOKUP(B41,November!$I$1:$CE$86,86,FALSE) -> 116 | G41: =HLOOKUP(B41,December!$I$1:$CE$107,107,FALSE) -> 152 | H41: =HLOOKUP(B41,January!$I$1:$CE$78,78,FALSE) -> 180 | I41: =HLOOKUP(B41,February!$I$1:$CE$80,80,FALSE) -> 144 | J41: =HLOOKUP(B41,March!$I$1:$CE$61,61,FALSE) -> 85 | K41: =HLOOKUP(B41,April!$I$1:$CE$67,67,FALSE) -> 110 | L41: =HLOOKUP(B41,May!$I$1:$CE$82,82,FALSE) -> 71 | M41: =SUM(D41:L41) -> 1028
A42: 40 | B42: Kris Stainton | C42: Da Love Be Beek | D42: =HLOOKUP(B42,September!$I$1:$CE$78,78,FALSE) -> 91 | E42: =HLOOKUP(B42,October!$I$1:$CE$84,84,FALSE) -> 100 | F42: =HLOOKUP(B42,November!$I$1:$CE$86,86,FALSE) -> 66 | G42: =HLOOKUP(B42,December!$I$1:$CE$107,107,FALSE) -> 185 | H42: =HLOOKUP(B42,January!$I$1:$CE$78,78,FALSE) -> 135 | I42: =HLOOKUP(B42,February!$I$1:$CE$80,80,FALSE) -> 182 | J42: =HLOOKUP(B42,March!$I$1:$CE$61,61,FALSE) -> 108 | K42: =HLOOKUP(B42,April!$I$1:$CE$67,67,FALSE) -> 120 | L42: =HLOOKUP(B42,May!$I$1:$CE$82,82,FALSE) -> 32 | M42: =SUM(D42:L42) -> 1019
A43: 41 | B43: Niall Carroll | C43: 19 | D43: =HLOOKUP(B43,September!$I$1:$CE$78,78,FALSE) -> 90 | E43: =HLOOKUP(B43,October!$I$1:$CE$84,84,FALSE) -> 86 | F43: =HLOOKUP(B43,November!$I$1:$CE$86,86,FALSE) -> 114 | G43: =HLOOKUP(B43,December!$I$1:$CE$107,107,FALSE) -> 149 | H43: =HLOOKUP(B43,January!$I$1:$CE$78,78,FALSE) -> 167 | I43: =HLOOKUP(B43,February!$I$1:$CE$80,80,FALSE) -> 177 | J43: =HLOOKUP(B43,March!$I$1:$CE$61,61,FALSE) -> 79 | K43: =HLOOKUP(B43,April!$I$1:$CE$67,67,FALSE) -> 114 | L43: =HLOOKUP(B43,May!$I$1:$CE$82,82,FALSE) -> 43 | M43: =SUM(D43:L43) -> 1019
A44: 42 | B44: Eoghan Farrelly | C44: Last Chance Saloon | D44: =HLOOKUP(B44,September!$I$1:$CE$78,78,FALSE) -> 74 | E44: =HLOOKUP(B44,October!$I$1:$CE$84,84,FALSE) -> 74 | F44: =HLOOKUP(B44,November!$I$1:$CE$86,86,FALSE) -> 93 | G44: =HLOOKUP(B44,December!$I$1:$CE$107,107,FALSE) -> 128 | H44: =HLOOKUP(B44,January!$I$1:$CE$78,78,FALSE) -> 193 | I44: =HLOOKUP(B44,February!$I$1:$CE$80,80,FALSE) -> 151 | J44: =HLOOKUP(B44,March!$I$1:$CE$61,61,FALSE) -> 110 | K44: =HLOOKUP(B44,April!$I$1:$CE$67,67,FALSE) -> 120 | L44: =HLOOKUP(B44,May!$I$1:$CE$82,82,FALSE) -> 69 | M44: =SUM(D44:L44) -> 1012
A45: 43 | B45: Sean O'Mairtin | C45: Creweless | D45: =HLOOKUP(B45,September!$I$1:$CE$78,78,FALSE) -> 94 | E45: =HLOOKUP(B45,October!$I$1:$CE$84,84,FALSE) -> 98 | F45: =HLOOKUP(B45,November!$I$1:$CE$86,86,FALSE) -> 90 | G45: =HLOOKUP(B45,December!$I$1:$CE$107,107,FALSE) -> 177 | H45: =HLOOKUP(B45,January!$I$1:$CE$78,78,FALSE) -> 146 | I45: =HLOOKUP(B45,February!$I$1:$CE$80,80,FALSE) -> 135 | J45: =HLOOKUP(B45,March!$I$1:$CE$61,61,FALSE) -> 124 | K45: =HLOOKUP(B45,April!$I$1:$CE$67,67,FALSE) -> 91 | L45: =HLOOKUP(B45,May!$I$1:$CE$82,82,FALSE) -> 54 | M45: =SUM(D45:L45) -> 1009
A46: 44 | B46: Andy Dunne | C46: Peter Crouch Rangers | D46: =HLOOKUP(B46,September!$I$1:$CE$78,78,FALSE) -> 70 | E46: =HLOOKUP(B46,October!$I$1:$CE$84,84,FALSE) -> 96 | F46: =HLOOKUP(B46,November!$I$1:$CE$86,86,FALSE) -> 88 | G46: =HLOOKUP(B46,December!$I$1:$CE$107,107,FALSE) -> 172 | H46: =HLOOKUP(B46,January!$I$1:$CE$78,78,FALSE) -> 145 | I46: =HLOOKUP(B46,February!$I$1:$CE$80,80,FALSE) -> 141 | J46: =HLOOKUP(B46,March!$I$1:$CE$61,61,FALSE) -> 128 | K46: =HLOOKUP(B46,April!$I$1:$CE$67,67,FALSE) -> 117 | L46: =HLOOKUP(B46,May!$I$1:$CE$82,82,FALSE) -> 49 | M46: =SUM(D46:L46) -> 1006
A47: 45 | B47: Darragh Kenny | C47: The Sporting Wing | D47: =HLOOKUP(B47,September!$I$1:$CE$78,78,FALSE) -> 59 | E47: =HLOOKUP(B47,October!$I$1:$CE$84,84,FALSE) -> 101 | F47: =HLOOKUP(B47,November!$I$1:$CE$86,86,FALSE) -> 108 | G47: =HLOOKUP(B47,December!$I$1:$CE$107,107,FALSE) -> 148 | H47: =HLOOKUP(B47,January!$I$1:$CE$78,78,FALSE) -> 189 | I47: =HLOOKUP(B47,February!$I$1:$CE$80,80,FALSE) -> 187 | J47: =HLOOKUP(B47,March!$I$1:$CE$61,61,FALSE) -> 80 | K47: =HLOOKUP(B47,April!$I$1:$CE$67,67,FALSE) -> 88 | L47: =HLOOKUP(B47,May!$I$1:$CE$82,82,FALSE) -> 46 | M47: =SUM(D47:L47) -> 1006
A48: 46 | B48: Javier Suarez | C48: Hendo's Boys | D48: =HLOOKUP(B48,September!$I$1:$CE$78,78,FALSE) -> 95 | E48: =HLOOKUP(B48,October!$I$1:$CE$84,84,FALSE) -> 111 | F48: =HLOOKUP(B48,November!$I$1:$CE$86,86,FALSE) -> 73 | G48: =HLOOKUP(B48,December!$I$1:$CE$107,107,FALSE) -> 157 | H48: =HLOOKUP(B48,January!$I$1:$CE$78,78,FALSE) -> 175 | I48: =HLOOKUP(B48,February!$I$1:$CE$80,80,FALSE) -> 101 | J48: =HLOOKUP(B48,March!$I$1:$CE$61,61,FALSE) -> 113 | K48: =HLOOKUP(B48,April!$I$1:$CE$67,67,FALSE) -> 117 | L48: =HLOOKUP(B48,May!$I$1:$CE$82,82,FALSE) -> 59 | M48: =SUM(D48:L48) -> 1001
A49: 47 | B49: Brian Mullen | C49: Mothers Milk | D49: =HLOOKUP(B49,September!$I$1:$CE$78,78,FALSE) -> 80 | E49: =HLOOKUP(B49,October!$I$1:$CE$84,84,FALSE) -> 95 | F49: =HLOOKUP(B49,November!$I$1:$CE$86,86,FALSE) -> 95 | G49: =HLOOKUP(B49,December!$I$1:$CE$107,107,FALSE) -> 157 | H49: =HLOOKUP(B49,January!$I$1:$CE$78,78,FALSE) -> 150 | I49: =HLOOKUP(B49,February!$I$1:$CE$80,80,FALSE) -> 167 | J49: =HLOOKUP(B49,March!$I$1:$CE$61,61,FALSE) -> 94 | K49: =HLOOKUP(B49,April!$I$1:$CE$67,67,FALSE) -> 100 | L49: =HLOOKUP(B49,May!$I$1:$CE$82,82,FALSE) -> 59 | M49: =SUM(D49:L49) -> 997
A50: 48 | B50: Liam Geraghty | C50: Is There Any Hope? | D50: =HLOOKUP(B50,September!$I$1:$CE$78,78,FALSE) -> 108 | E50: =HLOOKUP(B50,October!$I$1:$CE$84,84,FALSE) -> 129 | F50: =HLOOKUP(B50,November!$I$1:$CE$86,86,FALSE) -> 68 | G50: =HLOOKUP(B50,December!$I$1:$CE$107,107,FALSE) -> 159 | H50: =HLOOKUP(B50,January!$I$1:$CE$78,78,FALSE) -> 160 | I50: =HLOOKUP(B50,February!$I$1:$CE$80,80,FALSE) -> 127 | J50: =HLOOKUP(B50,March!$I$1:$CE$61,61,FALSE) -> 92 | K50: =HLOOKUP(B50,April!$I$1:$CE$67,67,FALSE) -> 95 | L50: =HLOOKUP(B50,May!$I$1:$CE$82,82,FALSE) -> 54 | M50: =SUM(D50:L50) -> 992
A51: 49 | B51: Niall Murray | C51: Book Ake | D51: =HLOOKUP(B51,September!$I$1:$CE$78,78,FALSE) -> 70 | E51: =HLOOKUP(B51,October!$I$1:$CE$84,84,FALSE) -> 109 | F51: =HLOOKUP(B51,November!$I$1:$CE$86,86,FALSE) -> 97 | G51: =HLOOKUP(B51,December!$I$1:$CE$107,107,FALSE) -> 127 | H51: =HLOOKUP(B51,January!$I$1:$CE$78,78,FALSE) -> 136 | I51: =HLOOKUP(B51,February!$I$1:$CE$80,80,FALSE) -> 184 | J51: =HLOOKUP(B51,March!$I$1:$CE$61,61,FALSE) -> 109 | K51: =HLOOKUP(B51,April!$I$1:$CE$67,67,FALSE) -> 134 | L51: =HLOOKUP(B51,May!$I$1:$CE$82,82,FALSE) -> 24 | M51: =SUM(D51:L51) -> 990
A52: 50 | B52: Robert Hynes | C52: Charlton | D52: =HLOOKUP(B52,September!$I$1:$CE$78,78,FALSE) -> 74 | E52: =HLOOKUP(B52,October!$I$1:$CE$84,84,FALSE) -> 111 | F52: =HLOOKUP(B52,November!$I$1:$CE$86,86,FALSE) -> 101 | G52: =HLOOKUP(B52,December!$I$1:$CE$107,107,FALSE) -> 186 | H52: =HLOOKUP(B52,January!$I$1:$CE$78,78,FALSE) -> 126 | I52: =HLOOKUP(B52,February!$I$1:$CE$80,80,FALSE) -> 133 | J52: =HLOOKUP(B52,March!$I$1:$CE$61,61,FALSE) -> 101 | K52: =HLOOKUP(B52,April!$I$1:$CE$67,67,FALSE) -> 84 | L52: =HLOOKUP(B52,May!$I$1:$CE$82,82,FALSE) -> 66 | M52: =SUM(D52:L52) -> 982
A53: 51 | B53: Gary McGurk | C53: This Is Our Year | D53: =HLOOKUP(B53,September!$I$1:$CE$78,78,FALSE) -> 101 | E53: =HLOOKUP(B53,October!$I$1:$CE$84,84,FALSE) -> 114 | F53: =HLOOKUP(B53,November!$I$1:$CE$86,86,FALSE) -> 90 | G53: =HLOOKUP(B53,December!$I$1:$CE$107,107,FALSE) -> 145 | H53: =HLOOKUP(B53,January!$I$1:$CE$78,78,FALSE) -> 152 | I53: =HLOOKUP(B53,February!$I$1:$CE$80,80,FALSE) -> 127 | J53: =HLOOKUP(B53,March!$I$1:$CE$61,61,FALSE) -> 110 | K53: =HLOOKUP(B53,April!$I$1:$CE$67,67,FALSE) -> 90 | L53: =HLOOKUP(B53,May!$I$1:$CE$82,82,FALSE) -> 49 | M53: =SUM(D53:L53) -> 978
A54: 52 | B54: Gavin Morgan | C54: Bristol Fashion | D54: =HLOOKUP(B54,September!$I$1:$CE$78,78,FALSE) -> 80 | E54: =HLOOKUP(B54,October!$I$1:$CE$84,84,FALSE) -> 80 | F54: =HLOOKUP(B54,November!$I$1:$CE$86,86,FALSE) -> 111 | G54: =HLOOKUP(B54,December!$I$1:$CE$107,107,FALSE) -> 132 | H54: =HLOOKUP(B54,January!$I$1:$CE$78,78,FALSE) -> 180 | I54: =HLOOKUP(B54,February!$I$1:$CE$80,80,FALSE) -> 164 | J54: =HLOOKUP(B54,March!$I$1:$CE$61,61,FALSE) -> 100 | K54: =HLOOKUP(B54,April!$I$1:$CE$67,67,FALSE) -> 85 | L54: =HLOOKUP(B54,May!$I$1:$CE$82,82,FALSE) -> 46 | M54: =SUM(D54:L54) -> 978
A55: 53 | B55: Gerard McCluskey | C55: Breffni Blues | D55: =HLOOKUP(B55,September!$I$1:$CE$78,78,FALSE) -> 75 | E55: =HLOOKUP(B55,October!$I$1:$CE$84,84,FALSE) -> 90 | F55: =HLOOKUP(B55,November!$I$1:$CE$86,86,FALSE) -> 85 | G55: =HLOOKUP(B55,December!$I$1:$CE$107,107,FALSE) -> 172 | H55: =HLOOKUP(B55,January!$I$1:$CE$78,78,FALSE) -> 150 | I55: =HLOOKUP(B55,February!$I$1:$CE$80,80,FALSE) -> 142 | J55: =HLOOKUP(B55,March!$I$1:$CE$61,61,FALSE) -> 134 | K55: =HLOOKUP(B55,April!$I$1:$CE$67,67,FALSE) -> 110 | L55: =HLOOKUP(B55,May!$I$1:$CE$82,82,FALSE) -> 19 | M55: =SUM(D55:L55) -> 977
A56: 54 | B56: Caroline Carroll | C56: Prince | D56: =HLOOKUP(B56,September!$I$1:$CE$78,78,FALSE) -> 96 | E56: =HLOOKUP(B56,October!$I$1:$CE$84,84,FALSE) -> 80 | F56: =HLOOKUP(B56,November!$I$1:$CE$86,86,FALSE) -> 101 | G56: =HLOOKUP(B56,December!$I$1:$CE$107,107,FALSE) -> 145 | H56: =HLOOKUP(B56,January!$I$1:$CE$78,78,FALSE) -> 162 | I56: =HLOOKUP(B56,February!$I$1:$CE$80,80,FALSE) -> 135 | J56: =HLOOKUP(B56,March!$I$1:$CE$61,61,FALSE) -> 104 | K56: =HLOOKUP(B56,April!$I$1:$CE$67,67,FALSE) -> 90 | L56: =HLOOKUP(B56,May!$I$1:$CE$82,82,FALSE) -> 51 | M56: =SUM(D56:L56) -> 964
A57: 55 | B57: Lionel Knott | C57: Red Abbey Reds | D57: =HLOOKUP(B57,September!$I$1:$CE$78,78,FALSE) -> 101 | E57: =HLOOKUP(B57,October!$I$1:$CE$84,84,FALSE) -> 85 | F57: =HLOOKUP(B57,November!$I$1:$CE$86,86,FALSE) -> 81 | G57: =HLOOKUP(B57,December!$I$1:$CE$107,107,FALSE) -> 175 | H57: =HLOOKUP(B57,January!$I$1:$CE$78,78,FALSE) -> 137 | I57: =HLOOKUP(B57,February!$I$1:$CE$80,80,FALSE) -> 135 | J57: =HLOOKUP(B57,March!$I$1:$CE$61,61,FALSE) -> 84 | K57: =HLOOKUP(B57,April!$I$1:$CE$67,67,FALSE) -> 120 | L57: =HLOOKUP(B57,May!$I$1:$CE$82,82,FALSE) -> 46 | M57: =SUM(D57:L57) -> 964
A58: 56 | B58: Aidan Scanlon | C58: Kilflynn Santos | D58: =HLOOKUP(B58,September!$I$1:$CE$78,78,FALSE) -> 89 | E58: =HLOOKUP(B58,October!$I$1:$CE$84,84,FALSE) -> 108 | F58: =HLOOKUP(B58,November!$I$1:$CE$86,86,FALSE) -> 73 | G58: =HLOOKUP(B58,December!$I$1:$CE$107,107,FALSE) -> 134 | H58: =HLOOKUP(B58,January!$I$1:$CE$78,78,FALSE) -> 171 | I58: =HLOOKUP(B58,February!$I$1:$CE$80,80,FALSE) -> 179 | J58: =HLOOKUP(B58,March!$I$1:$CE$61,61,FALSE) -> 75 | K58: =HLOOKUP(B58,April!$I$1:$CE$67,67,FALSE) -> 87 | L58: =HLOOKUP(B58,May!$I$1:$CE$82,82,FALSE) -> 47 | M58: =SUM(D58:L58) -> 963
A59: 57 | B59: Graham Goodwin | C59: 2021 Pls | D59: =HLOOKUP(B59,September!$I$1:$CE$78,78,FALSE) -> 91 | E59: =HLOOKUP(B59,October!$I$1:$CE$84,84,FALSE) -> 95 | F59: =HLOOKUP(B59,November!$I$1:$CE$86,86,FALSE) -> 122 | G59: =HLOOKUP(B59,December!$I$1:$CE$107,107,FALSE) -> 151 | H59: =HLOOKUP(B59,January!$I$1:$CE$78,78,FALSE) -> 147 | I59: =HLOOKUP(B59,February!$I$1:$CE$80,80,FALSE) -> 137 | J59: =HLOOKUP(B59,March!$I$1:$CE$61,61,FALSE) -> 80 | K59: =HLOOKUP(B59,April!$I$1:$CE$67,67,FALSE) -> 110 | L59: =HLOOKUP(B59,May!$I$1:$CE$82,82,FALSE) -> 29 | M59: =SUM(D59:L59) -> 962
A60: 58 | B60: Christina Morgan | C60: Return of the Red Dwarf | D60: =HLOOKUP(B60,September!$I$1:$CE$78,78,FALSE) -> 90 | E60: =HLOOKUP(B60,October!$I$1:$CE$84,84,FALSE) -> 105 | F60: =HLOOKUP(B60,November!$I$1:$CE$86,86,FALSE) -> 103 | G60: =HLOOKUP(B60,December!$I$1:$CE$107,107,FALSE) -> 182 | H60: =HLOOKUP(B60,January!$I$1:$CE$78,78,FALSE) -> 126 | I60: =HLOOKUP(B60,February!$I$1:$CE$80,80,FALSE) -> 144 | J60: =HLOOKUP(B60,March!$I$1:$CE$61,61,FALSE) -> 98 | K60: =HLOOKUP(B60,April!$I$1:$CE$67,67,FALSE) -> 54 | L60: =HLOOKUP(B60,May!$I$1:$CE$82,82,FALSE) -> 59 | M60: =SUM(D60:L60) -> 961
A61: 59 | B61: Micheal Joyce | C61: Pure Whites | D61: =HLOOKUP(B61,September!$I$1:$CE$78,78,FALSE) -> 89 | E61: =HLOOKUP(B61,October!$I$1:$CE$84,84,FALSE) -> 82 | F61: =HLOOKUP(B61,November!$I$1:$CE$86,86,FALSE) -> 73 | G61: =HLOOKUP(B61,December!$I$1:$CE$107,107,FALSE) -> 189 | H61: =HLOOKUP(B61,January!$I$1:$CE$78,78,FALSE) -> 118 | I61: =HLOOKUP(B61,February!$I$1:$CE$80,80,FALSE) -> 157 | J61: =HLOOKUP(B61,March!$I$1:$CE$61,61,FALSE) -> 104 | K61: =HLOOKUP(B61,April!$I$1:$CE$67,67,FALSE) -> 94 | L61: =HLOOKUP(B61,May!$I$1:$CE$82,82,FALSE) -> 49 | M61: =SUM(D61:L61) -> 955
A62: 60 | B62: Joe Behan | C62: MT-09 | D62: =HLOOKUP(B62,September!$I$1:$CE$78,78,FALSE) -> 81 | E62: =HLOOKUP(B62,October!$I$1:$CE$84,84,FALSE) -> 82 | F62: =HLOOKUP(B62,November!$I$1:$CE$86,86,FALSE) -> 70 | G62: =HLOOKUP(B62,December!$I$1:$CE$107,107,FALSE) -> 129 | H62: =HLOOKUP(B62,January!$I$1:$CE$78,78,FALSE) -> 198 | I62: =HLOOKUP(B62,February!$I$1:$CE$80,80,FALSE) -> 120 | J62: =HLOOKUP(B62,March!$I$1:$CE$61,61,FALSE) -> 103 | K62: =HLOOKUP(B62,April!$I$1:$CE$67,67,FALSE) -> 122 | L62: =HLOOKUP(B62,May!$I$1:$CE$82,82,FALSE) -> 47 | M62: =SUM(D62:L62) -> 952
A63: 61 | B63: Roisin Joyce | C63: Roisin Joyce | D63: =HLOOKUP(B63,September!$I$1:$CE$78,78,FALSE) -> 60 | E63: =HLOOKUP(B63,October!$I$1:$CE$84,84,FALSE) -> 97 | F63: =HLOOKUP(B63,November!$I$1:$CE$86,86,FALSE) -> 68 | G63: =HLOOKUP(B63,December!$I$1:$CE$107,107,FALSE) -> 155 | H63: =HLOOKUP(B63,January!$I$1:$CE$78,78,FALSE) -> 141 | I63: =HLOOKUP(B63,February!$I$1:$CE$80,80,FALSE) -> 175 | J63: =HLOOKUP(B63,March!$I$1:$CE$61,61,FALSE) -> 82 | K63: =HLOOKUP(B63,April!$I$1:$CE$67,67,FALSE) -> 122 | L63: =HLOOKUP(B63,May!$I$1:$CE$82,82,FALSE) -> 52 | M63: =SUM(D63:L63) -> 952
A64: 62 | B64: Fiachra O'Brolachain | C64: Tallacticos | D64: =HLOOKUP(B64,September!$I$1:$CE$78,78,FALSE) -> 83 | E64: =HLOOKUP(B64,October!$I$1:$CE$84,84,FALSE) -> 120 | F64: =HLOOKUP(B64,November!$I$1:$CE$86,86,FALSE) -> 103 | G64: =HLOOKUP(B64,December!$I$1:$CE$107,107,FALSE) -> 149 | H64: =HLOOKUP(B64,January!$I$1:$CE$78,78,FALSE) -> 157 | I64: =HLOOKUP(B64,February!$I$1:$CE$80,80,FALSE) -> 128 | J64: =HLOOKUP(B64,March!$I$1:$CE$61,61,FALSE) -> 53 | K64: =HLOOKUP(B64,April!$I$1:$CE$67,67,FALSE) -> 114 | L64: =HLOOKUP(B64,May!$I$1:$CE$82,82,FALSE) -> 32 | M64: =SUM(D64:L64) -> 939
A65: 63 | B65: Paul Moore | C65: Bobby Dazzler | D65: =HLOOKUP(B65,September!$I$1:$CE$78,78,FALSE) -> 85 | E65: =HLOOKUP(B65,October!$I$1:$CE$84,84,FALSE) -> 85 | F65: =HLOOKUP(B65,November!$I$1:$CE$86,86,FALSE) -> 103 | G65: =HLOOKUP(B65,December!$I$1:$CE$107,107,FALSE) -> 167 | H65: =HLOOKUP(B65,January!$I$1:$CE$78,78,FALSE) -> 131 | I65: =HLOOKUP(B65,February!$I$1:$CE$80,80,FALSE) -> 129 | J65: =HLOOKUP(B65,March!$I$1:$CE$61,61,FALSE) -> 93 | K65: =HLOOKUP(B65,April!$I$1:$CE$67,67,FALSE) -> 84 | L65: =HLOOKUP(B65,May!$I$1:$CE$82,82,FALSE) -> 49 | M65: =SUM(D65:L65) -> 926
A66: 64 | B66: Gerry Moore | C66: Mikel's Maestros | D66: =HLOOKUP(B66,September!$I$1:$CE$78,78,FALSE) -> 90 | E66: =HLOOKUP(B66,October!$I$1:$CE$84,84,FALSE) -> 90 | F66: =HLOOKUP(B66,November!$I$1:$CE$86,86,FALSE) -> 105 | G66: =HLOOKUP(B66,December!$I$1:$CE$107,107,FALSE) -> 157 | H66: =HLOOKUP(B66,January!$I$1:$CE$78,78,FALSE) -> 110 | I66: =HLOOKUP(B66,February!$I$1:$CE$80,80,FALSE) -> 132 | J66: =HLOOKUP(B66,March!$I$1:$CE$61,61,FALSE) -> 84 | K66: =HLOOKUP(B66,April!$I$1:$CE$67,67,FALSE) -> 75 | L66: =HLOOKUP(B66,May!$I$1:$CE$82,82,FALSE) -> 59 | M66: =SUM(D66:L66) -> 902
A67: 65 | B67: Trevor Byrne | C67: Noddy's 11 | D67: =HLOOKUP(B67,September!$I$1:$CE$78,78,FALSE) -> 87 | E67: =HLOOKUP(B67,October!$I$1:$CE$84,84,FALSE) -> 74 | F67: =HLOOKUP(B67,November!$I$1:$CE$86,86,FALSE) -> 89 | G67: =HLOOKUP(B67,December!$I$1:$CE$107,107,FALSE) -> 115 | H67: =HLOOKUP(B67,January!$I$1:$CE$78,78,FALSE) -> 153 | I67: =HLOOKUP(B67,February!$I$1:$CE$80,80,FALSE) -> 125 | J67: =HLOOKUP(B67,March!$I$1:$CE$61,61,FALSE) -> 119 | K67: =HLOOKUP(B67,April!$I$1:$CE$67,67,FALSE) -> 71 | L67: =HLOOKUP(B67,May!$I$1:$CE$82,82,FALSE) -> 66 | M67: =SUM(D67:L67) -> 899
A68: 66 | B68: John Brophy | C68: Carrig United | D68: =HLOOKUP(B68,September!$I$1:$CE$78,78,FALSE) -> 48 | E68: =HLOOKUP(B68,October!$I$1:$CE$84,84,FALSE) -> 98 | F68: =HLOOKUP(B68,November!$I$1:$CE$86,86,FALSE) -> 93 | G68: =HLOOKUP(B68,December!$I$1:$CE$107,107,FALSE) -> 160 | H68: =HLOOKUP(B68,January!$I$1:$CE$78,78,FALSE) -> 113 | I68: =HLOOKUP(B68,February!$I$1:$CE$80,80,FALSE) -> 148 | J68: =HLOOKUP(B68,March!$I$1:$CE$61,61,FALSE) -> 74 | K68: =HLOOKUP(B68,April!$I$1:$CE$67,67,FALSE) -> 100 | L68: =HLOOKUP(B68,May!$I$1:$CE$82,82,FALSE) -> 44 | M68: =SUM(D68:L68) -> 878
A69: 67 | B69: Niall Cannon | C69: TAA Very Much | D69: =HLOOKUP(B69,September!$I$1:$CE$78,78,FALSE) -> 99 | E69: =HLOOKUP(B69,October!$I$1:$CE$84,84,FALSE) -> 111 | F69: =HLOOKUP(B69,November!$I$1:$CE$86,86,FALSE) -> 103 | G69: =HLOOKUP(B69,December!$I$1:$CE$107,107,FALSE) -> 186 | H69: =HLOOKUP(B69,January!$I$1:$CE$78,78,FALSE) -> 133 | I69: =HLOOKUP(B69,February!$I$1:$CE$80,80,FALSE) -> 108 | J69: =HLOOKUP(B69,March!$I$1:$CE$61,61,FALSE) -> 37 | K69: =HLOOKUP(B69,April!$I$1:$CE$67,67,FALSE) -> 14 | L69: =HLOOKUP(B69,May!$I$1:$CE$82,82,FALSE) -> 2 | M69: =SUM(D69:L69) -> 793
A70: 68 | B70: Calvin McGettigan | C70: Average Joe 1.0 | D70: =HLOOKUP(B70,September!$I$1:$CE$78,78,FALSE) -> 93 | E70: =HLOOKUP(B70,October!$I$1:$CE$84,84,FALSE) -> 102 | F70: =HLOOKUP(B70,November!$I$1:$CE$86,86,FALSE) -> 111 | G70: =HLOOKUP(B70,December!$I$1:$CE$107,107,FALSE) -> 172 | H70: =HLOOKUP(B70,January!$I$1:$CE$78,78,FALSE) -> 150 | I70: =HLOOKUP(B70,February!$I$1:$CE$80,80,FALSE) -> 125 | J70: =HLOOKUP(B70,March!$I$1:$CE$61,61,FALSE) -> 24 | K70: =HLOOKUP(B70,April!$I$1:$CE$67,67,FALSE) -> 8 | L70: =HLOOKUP(B70,May!$I$1:$CE$82,82,FALSE) -> 4 | M70: =SUM(D70:L70) -> 789
A71: 69 | B71: John O'Driscoll | C71: The Botchments | D71: =HLOOKUP(B71,September!$I$1:$CE$78,78,FALSE) -> 65 | E71: =HLOOKUP(B71,October!$I$1:$CE$84,84,FALSE) -> 131 | F71: =HLOOKUP(B71,November!$I$1:$CE$86,86,FALSE) -> 108 | G71: =HLOOKUP(B71,December!$I$1:$CE$107,107,FALSE) -> 140 | H71: =HLOOKUP(B71,January!$I$1:$CE$78,78,FALSE) -> 109 | I71: =HLOOKUP(B71,February!$I$1:$CE$80,80,FALSE) -> 37 | J71: =HLOOKUP(B71,March!$I$1:$CE$61,61,FALSE) -> 8 | K71: =HLOOKUP(B71,April!$I$1:$CE$67,67,FALSE) -> 14 | L71: =HLOOKUP(B71,May!$I$1:$CE$82,82,FALSE) -> 2 | M71: =SUM(D71:L71) -> 614
A72: 70 | B72: Patrick Mifsud | C72: Red & Black Brigade | D72: =HLOOKUP(B72,September!$I$1:$CE$78,78,FALSE) -> 108 | E72: =HLOOKUP(B72,October!$I$1:$CE$84,84,FALSE) -> 95 | F72: =HLOOKUP(B72,November!$I$1:$CE$86,86,FALSE) -> 100 | G72: =HLOOKUP(B72,December!$I$1:$CE$107,107,FALSE) -> 177 | H72: =HLOOKUP(B72,January!$I$1:$CE$78,78,FALSE) -> 89 | I72: =HLOOKUP(B72,February!$I$1:$CE$80,80,FALSE) -> 6 | J72: =HLOOKUP(B72,March!$I$1:$CE$61,61,FALSE) -> 2 | K72: =HLOOKUP(B72,April!$I$1:$CE$67,67,FALSE) -> 10 | L72: =HLOOKUP(B72,May!$I$1:$CE$82,82,FALSE) -> 2 | M72: =SUM(D72:L72) -> 589
A73: 71 | B73: Callum Dunne | C73: The Keita Success | D73: =HLOOKUP(B73,September!$I$1:$CE$78,78,FALSE) -> 89 | E73: =HLOOKUP(B73,October!$I$1:$CE$84,84,FALSE) -> 95 | F73: =HLOOKUP(B73,November!$I$1:$CE$86,86,FALSE) -> 91 | G73: =HLOOKUP(B73,December!$I$1:$CE$107,107,FALSE) -> 141 | H73: =HLOOKUP(B73,January!$I$1:$CE$78,78,FALSE) -> 63 | I73: =HLOOKUP(B73,February!$I$1:$CE$80,80,FALSE) -> 41 | J73: =HLOOKUP(B73,March!$I$1:$CE$61,61,FALSE) -> 4 | K73: =HLOOKUP(B73,April!$I$1:$CE$67,67,FALSE) -> 12 | L73: =HLOOKUP(B73,May!$I$1:$CE$82,82,FALSE) -> 4 | M73: =SUM(D73:L73) -> 540
A74: 72 | B74: Gary Donnelly | C74: Audrey's + 1 | D74: =HLOOKUP(B74,September!$I$1:$CE$78,78,FALSE) -> 65 | E74: =HLOOKUP(B74,October!$I$1:$CE$84,84,FALSE) -> 100 | F74: =HLOOKUP(B74,November!$I$1:$CE$86,86,FALSE) -> 68 | G74: =HLOOKUP(B74,December!$I$1:$CE$107,107,FALSE) -> 115 | H74: =HLOOKUP(B74,January!$I$1:$CE$78,78,FALSE) -> 10 | I74: =HLOOKUP(B74,February!$I$1:$CE$80,80,FALSE) -> 6 | J74: =HLOOKUP(B74,March!$I$1:$CE$61,61,FALSE) -> 10 | K74: =HLOOKUP(B74,April!$I$1:$CE$67,67,FALSE) -> 12 | L74: =HLOOKUP(B74,May!$I$1:$CE$82,82,FALSE) -> 4 | M74: =SUM(D74:L74) -> 390
A75: 73 | B75: Ben Creasey | C75: #1 | D75: =HLOOKUP(B75,September!$I$1:$CE$78,78,FALSE) -> 79 | E75: =HLOOKUP(B75,October!$I$1:$CE$84,84,FALSE) -> 101 | F75: =HLOOKUP(B75,November!$I$1:$CE$86,86,FALSE) -> 80 | G75: =HLOOKUP(B75,December!$I$1:$CE$107,107,FALSE) -> 40 | H75: =HLOOKUP(B75,January!$I$1:$CE$78,78,FALSE) -> 16 | I75: =HLOOKUP(B75,February!$I$1:$CE$80,80,FALSE) -> 16 | J75: =HLOOKUP(B75,March!$I$1:$CE$61,61,FALSE) -> 8 | K75: =HLOOKUP(B75,April!$I$1:$CE$67,67,FALSE) -> 8 | L75: =HLOOKUP(B75,May!$I$1:$CE$82,82,FALSE) -> 2 | M75: =SUM(D75:L75) -> 350
A76: 74 | B76: Michael Kenaney | C76: Expected Toulouse | D76: =HLOOKUP(B76,September!$I$1:$CE$78,78,FALSE) -> 84 | E76: =HLOOKUP(B76,October!$I$1:$CE$84,84,FALSE) -> 92 | F76: =HLOOKUP(B76,November!$I$1:$CE$86,86,FALSE) -> 86 | G76: =HLOOKUP(B76,December!$I$1:$CE$107,107,FALSE) -> 12 | H76: =HLOOKUP(B76,January!$I$1:$CE$78,78,FALSE) -> 12 | I76: =HLOOKUP(B76,February!$I$1:$CE$80,80,FALSE) -> 10 | J76: =HLOOKUP(B76,March!$I$1:$CE$61,61,FALSE) -> 10 | K76: =HLOOKUP(B76,April!$I$1:$CE$67,67,FALSE) -> 8 | L76: =HLOOKUP(B76,May!$I$1:$CE$82,82,FALSE) -> 6 | M76: =SUM(D76:L76) -> 320
A77: 75 | B77: Drew Armstrong | C77: Army's All Stars | D77: =HLOOKUP(B77,September!$I$1:$CE$78,78,FALSE) -> 51 | E77: =HLOOKUP(B77,October!$I$1:$CE$84,84,FALSE) -> 102 | F77: =HLOOKUP(B77,November!$I$1:$CE$86,86,FALSE) -> 8 | G77: =HLOOKUP(B77,December!$I$1:$CE$107,107,FALSE) -> 14 | H77: =HLOOKUP(B77,January!$I$1:$CE$78,78,FALSE) -> 16 | I77: =HLOOKUP(B77,February!$I$1:$CE$80,80,FALSE) -> 16 | J77: =HLOOKUP(B77,March!$I$1:$CE$61,61,FALSE) -> 10 | K77: =HLOOKUP(B77,April!$I$1:$CE$67,67,FALSE) -> 8 | L77: =HLOOKUP(B77,May!$I$1:$CE$82,82,FALSE) -> 6 | M77: =SUM(D77:L77) -> 231

Sheet September
I1: Aidan Scanlon | J1: Aidan White | K1: Alan White | L1: Anastas Popov | M1: Andy Dunne | N1: Ben Creasey | O1: Bobby Hynes | P1: Brendan Maguire | Q1: Brian Prendergast | R1: Brian Haughton | S1: Brian Mullen | T1: Callum Dunne | U1: Calvin McGettigan | V1: Caroline Carroll | W1: Cathal Thornton | X1: Christina Morgan | Y1: Ciaran Nelson | Z1: Ciaran O'Hart | AA1: Con McSweeney | AB1: Craig Calvert | AC1: Darragh Kenny | AD1: David Cooney | AE1: David Lavelle | AF1: David McGinley | AG1: Davy Doyle | AH1: Dean White | AI1: Derek Brady | AJ1: Drew Armstrong | AK1: Eamon Fox | AL1: Eoghan Farrelly | AM1: Fiachra O'Brolachain | AN1: Frank McSweeney | AO1: Gareth Pierpoint | AP1: Gary Donnelly | AQ1: Gary Fitzpatrick | AR1: Gary McGurk | AS1: Gavin Goodwin | AT1: Gavin Morgan | AU1: George McGettigan | AV1: Gerard McCluskey | AW1: Gerry Draper | AX1: Gerry Moore | AY1: Graham Goodwin | AZ1: Javier Suarez | BA1: Joe Behan | BB1: Joe Turner | BC1: John Brophy | BD1: John O'Driscoll | BE1: Jonathan Fox | BF1: Joseph Kavanagh | BG1: Kev Dalton | BH1: Kevin Philpott | BI1: Kris Stainton | BJ1: Liam Geraghty | BK1: Liam Keohan | BL1: Lionel Knott | BM1: Michael Kenaney | BN1: Micheal Joyce | BO1: Niall Cannon | BP1: Niall Carroll | BQ1: Niall Murray | BR1: Patrick Mifsud | BS1: Paul Moore | BT1: Paul Prendergast | BU1: Phil Doyle | BV1: Philip Jordan | BW1: Ralph Goodwin | BX1: Richard Johnston | BY1: Robert Hynes | BZ1: Robert Manley | CA1: Roisin Joyce | CB1: Sean O'Mairtin | CC1: Trevor Byrne | CD1: Victoria Reid | CE1: Wayne Donovan
A2: Day | B2: Date | C2: Teams | G2: Time
A3: Sat | B3: 2020-09-12 | C3: Fulham | D3: 0 | E3: 3 | F3: Arsenal | G3: 12:30:00 | I3: 5 | J3: 5 | K3: 5 | L3: 5 | M3: 5 | N3: 5 | O3: 5 | P3: 5 | Q3: 5 | R3: 10 | S3: 5 | T3: 5 | U3: 5 | V3: 5 | W3: 5 | X3: 0 | Y3: 5 | Z3: 5 | AA3: 5 | AB3: 5 | AC3: 5 | AD3: 5 | AE3: 5 | AF3: 5 | AG3: 5 | AH3: 5 | AI3: 5 | AJ3: 5 | AK3: 5 | AL3: 0 | AM3: 5 | AN3: 5 | AO3: 5 | AP3: 5 | AQ3: 5 | AR3: 10 | AS3: 5 | AT3: 5 | AU3: 10 | AV3: - | AW3: 5 | AX3: 5 | AY3: 5 | AZ3: 5 | BA3: 5 | BB3: 5 | BC3: 0 | BD3: 5 | BE3: 5 | BF3: 5 | BG3: 5 | BH3: 5 | BI3: 5 | BJ3: 0 | BK3: 10 | BL3: 5 | BM3: 5 | BN3: 5 | BO3: 5 | BP3: 10 | BQ3: 5 | BR3: 5 | BS3: 10 | BT3: 5 | BU3: 5 | BV3: 5 | BW3: 5 | BX3: 5 | BY3: 5 | BZ3: 5 | CA3: 5 | CB3: 5 | CC3: 5 | CD3: 5 | CE3: 0
A4: Sat | B4: 2020-09-12 | C4: Crystal Palace | D4: 1 | E4: 0 | F4: Southampton | G4: 15:00:00 | I4: 5 | J4: 0 | K4: 0 | L4: 0 | M4: 0 | N4: 0 | O4: 0 | P4: 0 | Q4: 5 | R4: 0 | S4: 0 | T4: 0 | U4: 0 | V4: 0 | W4: 0 | X4: 10 | Y4: 0 | Z4: 0 | AA4: 0 | AB4: 0 | AC4: 0 | AD4: 0 | AE4: 0 | AF4: 0 | AG4: 0 | AH4: 0 | AI4: 0 | AJ4: 0 | AK4: 0 | AL4: 5 | AM4: 0 | AN4: 0 | AO4: 0 | AP4: 0 | AQ4: 0 | AR4: 10 | AS4: 0 | AT4: 10 | AU4: 0 | AV4: - | AW4: 0 | AX4: 0 | AY4: 0 | AZ4: 0 | BA4: 0 | BB4: 5 | BC4: 0 | BD4: 0 | BE4: 0 | BF4: 0 | BG4: 0 | BH4: 0 | BI4: 5 | BJ4: 5 | BK4: 0 | BL4: 0 | BM4: 10 | BN4: 0 | BO4: 0 | BP4: 0 | BQ4: 0 | BR4: 0 | BS4: 0 | BT4: 0 | BU4: 5 | BV4: 0 | BW4: 5 | BX4: 0 | BY4: 0 | BZ4: 0 | CA4: 0 | CB4: 0 | CC4: 0 | CD4: 0 | CE4: 0
A5: Sat | B5: 2020-09-12 | C5: Liverpool | D5: 4 | E5: 3 | F5: Leeds United | G5: 17:30:00 | I5: 5 | J5: 5 | K5: 5 | L5: 5 | M5: 5 | N5: 5 | O5: 5 | P5: 5 | Q5: 5 | R5: 5 | S5: 5 | T5: 5 | U5: 0 | V5: 5 | W5: 5 | X5: 5 | Y5: 5 | Z5: 5 | AA5: 5 | AB5: 5 | AC5: 5 | AD5: 5 | AE5: 5 | AF5: 5 | AG5: 5 | AH5: 5 | AI5: 5 | AJ5: 5 | AK5: 5 | AL5: 5 | AM5: 5 | AN5: 5 | AO5: 5 | AP5: 5 | AQ5: 5 | AR5: 5 | AS5: 5 | AT5: 5 | AU5: 5 | AV5: 5 | AW5: 5 | AX5: 5 | AY5: 5 | AZ5: 5 | BA5: 5 | BB5: 5 | BC5: 5 | BD5: 5 | BE5: 5 | BF5: 5 | BG5: 5 | BH5: 5 | BI5: 0 | BJ5: 5 | BK5: 5 | BL5: 5 | BM5: 5 | BN5: 5 | BO5: 5 | BP5: 5 | BQ5: 5 | BR5: 5 | BS5: 5 | BT5: 5 | BU5: 5 | BV5: 5 | BW5: 5 | BX5: 5 | BY5: 5 | BZ5: 5 | CA5: 5 | CB5: 5 | CC5: 5 | CD5: 5 | CE5: 5
A6: Sat | B6: 2020-09-12 | C6: West Ham | D6: 0 | E6: 2 | F6: Newcastle | G6: 20:00:00 | I6: 5 | J6: 0 | K6: 0 | L6: 0 | M6: 0 | N6: 0 | O6: 0 | P6: 0 | Q6: 0 | R6: 0 | S6: 0 | T6: 0 | U6: 5 | V6: 10 | W6: 0 | X6: 5 | Y6: 5 | Z6: 0 | AA6: 0 | AB6: 0 | AC6: 0 | AD6: 0 | AE6: 0 | AF6: 0 | AG6: 0 | AH6: 5 | AI6: 5 | AJ6: 0 | AK6: 0 | AL6: 0 | AM6: 0 | AN6: 0 | AO6: 0 | AP6: 0 | AQ6: 0 | AR6: 0 | AS6: 0 | AT6: 0 | AU6: 10 | AV6: 0 | AW6: 0 | AX6: 5 | AY6: 10 | AZ6: 0 | BA6: 0 | BB6: 0 | BC6: 0 | BD6: 0 | BE6: 0 | BF6: 0 | BG6: 0 | BH6: 0 | BI6: 5 | BJ6: 0 | BK6: 5 | BL6: 5 | BM6: 0 | BN6: 0 | BO6: 5 | BP6: 10 | BQ6: 0 | BR6: 0 | BS6: 0 | BT6: 0 | BU6: 0 | BV6: 5 | BW6: 0 | BX6: 0 | BY6: 0 | BZ6: 0 | CA6: 0 | CB6: 0 | CC6: 5 | CD6: 0 | CE6: 0
A7: Sun | B7: 2020-09-13 | C7: West Brom | D7: 0 | E7: 3 | F7: Leicester | G7: 14:00:00 | I7: 5 | J7: 0 | K7: 5 | L7: 5 | M7: 5 | N7: 5 | O7: 5 | P7: 5 | Q7: 10 | R7: 5 | S7: 5 | T7: 0 | U7: 5 | V7: 0 | W7: 0 | X7: 0 | Y7: 5 | Z7: 5 | AA7: 5 | AB7: 5 | AC7: 0 | AD7: 5 | AE7: 5 | AF7: 0 | AG7: 5 | AH7: 5 | AI7: 5 | AJ7: 5 | AK7: 5 | AL7: 5 | AM7: 0 | AN7: 5 | AO7: 5 | AP7: 5 | AQ7: 5 | AR7: 0 | AS7: 5 | AT7: 5 | AU7: 10 | AV7: 0 | AW7: 5 | AX7: 5 | AY7: 5 | AZ7: 5 | BA7: 0 | BB7: 0 | BC7: 0 | BD7: 5 | BE7: 5 | BF7: 5 | BG7: 5 | BH7: 5 | BI7: 5 | BJ7: 5 | BK7: 5 | BL7: 5 | BM7: 5 | BN7: 0 | BO7: 0 | BP7: 5 | BQ7: 5 | BR7: 5 | BS7: 5 | BT7: 0 | BU7: 5 | BV7: 5 | BW7: 5 | BX7: 5 | BY7: 5 | BZ7: 0 | CA7: 0 | CB7: 0 | CC7: 0 | CD7: 10 | CE7: 5
A8: Sun | B8: 2020-09-13 | C8: Tottenham | D8: 0 | E8: 1 | F8: Everton | G8: 16:30:00 | I8: 0 | J8: 0 | K8: 0 | L8: 0 | M8: 0 | N8: 0 | O8: 0 | P8: 0 | Q8: 0 | R8: 0 | S8: 0 | T8: 0 | U8: 0 | V8: 0 | W8: 0 | X8: 0 | Y8: 0 | Z8: 0 | AA8: 0 | AB8: 0 | AC8: 0 | AD8: 0 | AE8: 0 | AF8: 0 | AG8: 0 | AH8: 0 | AI8: 0 | AJ8: 0 | AK8: 0 | AL8: 0 | AM8: 0 | AN8: 0 | AO8: 0 | AP8: 0 | AQ8: 0 | AR8: 0 | AS8: 0 | AT8: 0 | AU8: 0 | AV8: 0 | AW8: 0 | AX8: 0 | AY8: 0 | AZ8: 0 | BA8: 0 | BB8: 0 | BC8: 0 | BD8: 0 | BE8: 0 | BF8: 0 | BG8: 0 | BH8: 0 | BI8: 5 | BJ8: 5 | BK8: 0 | BL8: 0 | BM8: 0 | BN8: 0 | BO8: 0 | BP8: 0 | BQ8: 0 | BR8: 0 | BS8: 0 | BT8: 0 | BU8: 0 | BV8: 0 | BW8: 0 | BX8: 0 | BY8: 0 | BZ8: 0 | CA8: 0 | CB8: 0 | CC8: 0 | CD8: 0 | CE8: 0
A9: Mon | B9: 2020-09-14 | C9: Sheffield United | D9: 0 | E9: 2 | F9: Wolves | G9: 18:00:00 | I9: 0 | J9: 0 | K9: 0 | L9: 0 | M9: 0 | N9: 5 | O9: 5 | P9: 0 | Q9: 0 | R9: 0 | S9: 0 | T9: 0 | U9: 0 | V9: 0 | W9: 5 | X9: 5 | Y9: 0 | Z9: 0 | AA9: 5 | AB9: 0 | AC9: 0 | AD9: 0 | AE9: 5 | AF9: 0 | AG9: 0 | AH9: 0 | AI9: 10 | AJ9: 5 | AK9: 5 | AL9: 0 | AM9: 5 | AN9: 0 | AO9: 0 | AP9: 0 | AQ9: 5 | AR9: 0 | AS9: 0 | AT9: 0 | AU9: 5 | AV9: 0 | AW9: 0 | AX9: 0 | AY9: 0 | AZ9: 5 | BA9: 0 | BB9: 0 | BC9: 0 | BD9: 0 | BE9: 5 | BF9: 5 | BG9: 5 | BH9: 5 | BI9: 0 | BJ9: 5 | BK9: 10 | BL9: 0 | BM9: 0 | BN9: 5 | BO9: 0 | BP9: 0 | BQ9: 5 | BR9: 0 | BS9: 0 | BT9: 0 | BU9: 0 | BV9: 0 | BW9: 5 | BX9: 5 | BY9: 0 | BZ9: 0 | CA9: 0 | CB9: 0 | CC9: 0 | CD9: 5 | CE9: 0
A10: Mon | B10: 2020-09-14 | C10: Brighton | D10: 1 | E10: 3 | F10: Chelsea | G10: 20:00:00 | I10: 10 | J10: 5 | K10: 5 | L10: 5 | M10: 5 | N10: 10 | O10: 5 | P10: 5 | Q10: 5 | R10: 5 | S10: 5 | T10: 5 | U10: 10 | V10: 5 | W10: 5 | X10: 5 | Y10: 5 | Z10: 5 | AA10: 5 | AB10: 5 | AC10: 5 | AD10: 5 | AE10: 5 | AF10: 5 | AG10: 5 | AH10: 5 | AI10: 5 | AJ10: 5 | AK10: 5 | AL10: 5 | AM10: 5 | AN10: 5 | AO10: 5 | AP10: 5 | AQ10: 5 | AR10: 5 | AS10: 5 | AT10: 5 | AU10: 5 | AV10: 5 | AW10: 5 | AX10: 5 | AY10: 5 | AZ10: 10 | BA10: 5 | BB10: 5 | BC10: 5 | BD10: 5 | BE10: 5 | BF10: 5 | BG10: 5 | BH10: 5 | BI10: 5 | BJ10: 5 | BK10: 5 | BL10: 10 | BM10: 10 | BN10: 10 | BO10: 10 | BP10: 5 | BQ10: 10 | BR10: 10 | BS10: 5 | BT10: 5 | BU10: 5 | BV10: 5 | BW10: 5 | BX10: 5 | BY10: 10 | BZ10: 5 | CA10: 5 | CB10: 10 | CC10: 10 | CD10: 5 | CE10: 5
A11: Sat | B11: 2020-09-19 | C11: Everton | D11: 5 | E11: 2 | F11: West Brom | G11: 12:30:00 | I11: 5 | J11: 5 | K11: 5 | L11: 5 | M11: 5 | N11: 5 | O11: 5 | P11: 5 | Q11: 5 | R11: 5 | S11: 5 | T11: 5 | U11: 5 | V11: 5 | W11: 5 | X11: 5 | Y11: 5 | Z11: 5 | AA11: 5 | AB11: 5 | AC11: 5 | AD11: 5 | AE11: 5 | AF11: 5 | AG11: 5 | AH11: 5 | AI11: 5 | AJ11: 0 | AK11: 5 | AL11: 5 | AM11: 5 | AN11: 5 | AO11: 5 | AP11: 5 | AQ11: 5 | AR11: 5 | AS11: 5 | AT11: 5 | AU11: 5 | AV11: 5 | AW11: 5 | AX11: 5 | AY11: 5 | AZ11: 5 | BA11: 5 | BB11: 5 | BC11: 5 | BD11: 5 | BE11: 5 | BF11: 5 | BG11: 5 | BH11: 5 | BI11: 5 | BJ11: 5 | BK11: 5 | BL11: 5 | BM11: 5 | BN11: 5 | BO11: 5 | BP11: 5 | BQ11: 5 | BR11: 5 | BS11: 5 | BT11: 5 | BU11: 5 | BV11: 5 | BW11: 5 | BX11: 5 | BY11: 5 | BZ11: 5 | CA11: 0 | CB11: 5 | CC11: 5 | CD11: 5 | CE11: 5
A12: Sat | B12: 2020-09-19 | C12: Leeds | D12: 4 | E12: 3 | F12: Fulham | G12: 15:00:00 | I12: 5 | J12: 5 | K12: 5 | L12: 5 | M12: 5 | N12: 5 | O12: 5 | P12: 5 | Q12: 5 | R12: 5 | S12: 5 | T12: 5 | U12: 5 | V12: 5 | W12: 5 | X12: 5 | Y12: 5 | Z12: 0 | AA12: 5 | AB12: 5 | AC12: 5 | AD12: 5 | AE12: 5 | AF12: 5 | AG12: 0 | AH12: 5 | AI12: 5 | AJ12: 0 | AK12: 5 | AL12: 5 | AM12: 5 | AN12: 5 | AO12: 5 | AP12: 0 | AQ12: 5 | AR12: 5 | AS12: 5 | AT12: 5 | AU12: 5 | AV12: 0 | AW12: 5 | AX12: 0 | AY12: 5 | AZ12: 5 | BA12: 5 | BB12: 5 | BC12: 5 | BD12: 0 | BE12: 5 | BF12: 5 | BG12: 5 | BH12: 5 | BI12: 5 | BJ12: 5 | BK12: 5 | BL12: 5 | BM12: 0 | BN12: 5 | BO12: 5 | BP12: 0 | BQ12: 5 | BR12: 5 | BS12: 5 | BT12: 5 | BU12: 5 | BV12: 5 | BW12: 5 | BX12: 5 | BY12: 5 | BZ12: 5 | CA12: 0 | CB12: 5 | CC12: 5 | CD12: 5 | CE12: 5
A13: Sat | B13: 2020-09-19 | C13: Man United | D13: 1 | E13: 3 | F13: Crystal Palace | G13: 17:30:00 | I13: 0 | J13: 0 | K13: 0 | L13: 0 | M13: 0 | N13: 0 | O13: 0 | P13: 0 | Q13: 0 | R13: 0 | S13: 0 | T13: 0 | U13: 0 | V13: 0 | W13: 0 | X13: 0 | Y13: 0 | Z13: 0 | AA13: 0 | AB13: 0 | AC13: 0 | AD13: 0 | AE13: 0 | AF13: 0 | AG13: 0 | AH13: 0 | AI13: 0 | AJ13: 0 | AK13: 0 | AL13: 0 | AM13: 0 | AN13: 0 | AO13: 0 | AP13: 0 | AQ13: 0 | AR13: 0 | AS13: 0 | AT13: 0 | AU13: 0 | AV13: 0 | AW13: 0 | AX13: 0 | AY13: 0 | AZ13: 0 | BA13: 0 | BB13: 0 | BC13: 0 | BD13: 0 | BE13: 0 | BF13: 0 | BG13: 0 | BH13: 0 | BI13: 0 | BJ13: 0 | BK13: 0 | BL13: 0 | BM13: 0 | BN13: 0 | BO13: 0 | BP13: 0 | BQ13: 0 | BR13: 0 | BS13: 0 | BT13: 0 | BU13: 0 | BV13: 0 | BW13: 0 | BX13: 0 | BY13: 0 | BZ13: 0 | CA13: 0 | CB13: 0 | CC13: 0 | CD13: 0 | CE13: 0
A14: Sat | B14: 2020-09-19 | C14: Arsenal | D14: 2 | E14: 1 | F14: West Ham | G14: 20:00:00 | I14: 5 | J14: 0 | K14: 5 | L14: 5 | M14: 5 | N14: 5 | O14: 5 | P14: 5 | Q14: 5 | R14: 5 | S14: 5 | T14: 5 | U14: 5 | V14: 5 | W14: 5 | X14: 5 | Y14: 5 | Z14: 5 | AA14: 10 | AB14: 10 | AC14: 5 | AD14: 5 | AE14: 5 | AF14: 5 | AG14: 5 | AH14: 5 | AI14: 5 | AJ14: 0 | AK14: 5 | AL14: 10 | AM14: 5 | AN14: 5 | AO14: 5 | AP14: 5 | AQ14: 5 | AR14: 5 | AS14: 5 | AT14: 5 | AU14: 5 | AV14: 5 | AW14: 5 | AX14: 5 | AY14: 5 | AZ14: 5 | BA14: 5 | BB14: 5 | BC14: 5 | BD14: 5 | BE14: 5 | BF14: 5 | BG14: 5 | BH14: 5 | BI14: 10 | BJ14: 10 | BK14: 5 | BL14: 5 | BM14: 5 | BN14: 5 | BO14: 5 | BP14: 5 | BQ14: 5 | BR14: 5 | BS14: 5 | BT14: 5 | BU14: 10 | BV14: 5 | BW14: 5 | BX14: 10 | BY14: 5 | BZ14: 5 | CA14: 5 | CB14: 10 | CC14: 5 | CD14: 10 | CE14: 10
A15: Sun | B15: 2020-09-20 | C15: Southampton | D15: 2 | E15: 5 | F15: Tottenham | G15: 12:00:00 | I15: 5 | J15: 5 | K15: 5 | L15: 0 | M15: 0 | N15: 5 | O15: 0 | P15: 0 | Q15: 5 | R15: 0 | S15: 5 | T15: 5 | U15: 5 | V15: 0 | W15: 0 | X15: 0 | Y15: 5 | Z15: 0 | AA15: 5 | AB15: 0 | AC15: 0 | AD15: 0 | AE15: 5 | AF15: 0 | AG15: 0 | AH15: 5 | AI15: 0 | AJ15: 0 | AK15: 5 | AL15: 5 | AM15: 5 | AN15: 0 | AO15: 5 | AP15: 5 | AQ15: 0 | AR15: 0 | AS15: 0 | AT15: 0 | AU15: 0 | AV15: 5 | AW15: 0 | AX15: 5 | AY15: 5 | AZ15: 0 | BA15: 5 | BB15: 0 | BC15: 0 | BD15: 0 | BE15: 5 | BF15: 5 | BG15: 5 | BH15: 5 | BI15: 5 | BJ15: 5 | BK15: 5 | BL15: 0 | BM15: 5 | BN15: 5 | BO15: 0 | BP15: 5 | BQ15: 0 | BR15: 5 | BS15: 0 | BT15: 0 | BU15: 5 | BV15: 5 | BW15: 5 | BX15: 5 | BY15: 5 | BZ15: 0 | CA15: 0 | CB15: 0 | CC15: 5 | CD15: 5 | CE15: 0
A16: Sun | B16: 2020-09-20 | C16: Newcastle | D16: 0 | E16: 3 | F16: Brighton | G16: 14:00:00 | I16: 0 | J16: 0 | K16: 0 | L16: 0 | M16: 0 | N16: 0 | O16: 0 | P16: 0 | Q16: 0 | R16: 0 | S16: 0 | T16: 0 | U16: 0 | V16: 0 | W16: 0 | X16: 0 | Y16: 0 | Z16: 0 | AA16: 0 | AB16: 0 | AC16: 0 | AD16: 0 | AE16: 0 | AF16: 0 | AG16: 0 | AH16: 0 | AI16: 0 | AJ16: 0 | AK16: 0 | AL16: 5 | AM16: 0 | AN16: 0 | AO16: 0 | AP16: 0 | AQ16: 0 | AR16: 0 | AS16: 0 | AT16: 0 | AU16: 0 | AV16: 0 | AW16: 0 | AX16: 0 | AY16: 0 | AZ16: 0 | BA16: 0 | BB16: 0 | BC16: 0 | BD16: 0 | BE16: 0 | BF16: 0 | BG16: 5 | BH16: 0 | BI16: 0 | BJ16: 5 | BK16: 0 | BL16: 0 | BM16: 0 | BN16: 0 | BO16: 0 | BP16: 0 | BQ16: 0 | BR16: 0 | BS16: 0 | BT16: 0 | BU16: 0 | BV16: 0 | BW16: 0 | BX16: 0 | BY16: 0 | BZ16: 0 | CA16: 0 | CB16: 0 | CC16: 0 | CD16: 0 | CE16: 0
A17: Sun | B17: 2020-09-20 | C17: Chelsea | D17: 0 | E17: 2 | F17: Liverpool | G17: 16:30:00 | I17: 0 | J17: 0 | K17: 0 | L17: 0 | M17: 5 | N17: 0 | O17: 5 | P17: 0 | Q17: 0 | R17: 5 | S17: 0 | T17: 5 | U17: 0 | V17: 5 | W17: 0 | X17: 5 | Y17: 0 | Z17: 0 | AA17: 0 | AB17: 0 | AC17: 0 | AD17: 0 | AE17: 5 | AF17: 0 | AG17: 5 | AH17: 0 | AI17: 5 | AJ17: 0 | AK17: 0 | AL17: 0 | AM17: 5 | AN17: 5 | AO17: 5 | AP17: 0 | AQ17: 5 | AR17: 10 | AS17: 0 | AT17: 0 | AU17: 0 | AV17: 5 | AW17: 0 | AX17: 0 | AY17: 0 | AZ17: 0 | BA17: 0 | BB17: 5 | BC17: 0 | BD17: 0 | BE17: 5 | BF17: 5 | BG17: 0 | BH17: 0 | BI17: 0 | BJ17: 0 | BK17: 5 | BL17: 5 | BM17: 0 | BN17: 0 | BO17: 0 | BP17: 0 | BQ17: 0 | BR17: 5 | BS17: 5 | BT17: 5 | BU17: 0 | BV17: 0 | BW17: 5 | BX17: 5 | BY17: 0 | BZ17: 5 | CA17: 0 | CB17: 5 | CC17: 5 | CD17: 5 | CE17: 0
A18: Sun | B18: 2020-09-20 | C18: Leicester | D18: 4 | E18: 2 | F18: Burnley | G18: 19:00:00 | I18: 5 | J18: 5 | K18: 5 | L18: 5 | M18: 5 | N18: 5 | O18: 5 | P18: 5 | Q18: 5 | R18: 5 | S18: 5 | T18: 5 | U18: 0 | V18: 5 | W18: 5 | X18: 5 | Y18: 5 | Z18: 5 | AA18: 5 | AB18: 5 | AC18: 5 | AD18: 5 | AE18: 5 | AF18: 5 | AG18: 5 | AH18: 5 | AI18: 5 | AJ18: 0 | AK18: 5 | AL18: 5 | AM18: 5 | AN18: 5 | AO18: 5 | AP18: 5 | AQ18: 5 | AR18: 5 | AS18: 5 | AT18: 5 | AU18: 5 | AV18: 5 | AW18: 5 | AX18: 5 | AY18: 5 | AZ18: 5 | BA18: 5 | BB18: 5 | BC18: 5 | BD18: 5 | BE18: 5 | BF18: 5 | BG18: 5 | BH18: 5 | BI18: 5 | BJ18: 5 | BK18: 5 | BL18: 5 | BM18: 5 | BN18: 5 | BO18: 5 | BP18: 5 | BQ18: 0 | BR18: 5 | BS18: 0 | BT18: 5 | BU18: 5 | BV18: 5 | BW18: 5 | BX18: 5 | BY18: 5 | BZ18: 5 | CA18: 5 | CB18: 5 | CC18: 5 | CD18: 5 | CE18: 5
A19: Mon | B19: 2020-09-21 | C19: Aston Villa | D19: 1 | E19: 0 | F19: Sheffield United | G19: 18:00:00 | I19: 0 | J19: 5 | K19: 10 | L19: 10 | M19: 0 | N19: 0 | O19: 0 | P19: 5 | Q19: 0 | R19: 0 | S19: 0 | T19: 0 | U19: 0 | V19: 5 | W19: 0 | X19: 10 | Y19: 0 | Z19: 0 | AA19: 0 | AB19: 0 | AC19: 10 | AD19: 10 | AE19: 0 | AF19: 0 | AG19: 0 | AH19: 0 | AI19: 0 | AJ19: 0 | AK19: 0 | AL19: 0 | AM19: 0 | AN19: 5 | AO19: 0 | AP19: 0 | AQ19: 0 | AR19: 10 | AS19: 5 | AT19: 5 | AU19: 0 | AV19: 0 | AW19: 0 | AX19: 10 | AY19: 0 | AZ19: 10 | BA19: 0 | BB19: 10 | BC19: 0 | BD19: 0 | BE19: 10 | BF19: 0 | BG19: 0 | BH19: 5 | BI19: 0 | BJ19: 0 | BK19: 0 | BL19: 5 | BM19: 0 | BN19: 5 | BO19: 0 | BP19: 10 | BQ19: 0 | BR19: 10 | BS19: 10 | BT19: 10 | BU19: 10 | BV19: 0 | BW19: 0 | BX19: 0 | BY19: 0 | BZ19: 0 | CA19: 0 | CB19: 5 | CC19: 0 | CD19: 0 | CE19: 0
A20: Mon | B20: 2020-09-21 | C20: Wolves | D20: 1 | E20: 3 | F20: Man City | G20: 20:00:00 | I20: 5 | J20: 5 | K20: 5 | L20: 5 | M20: 0 | N20: 10 | O20: 5 | P20: 10 | Q20: 10 | R20: 5 | S20: 5 | T20: 5 | U20: 10 | V20: 0 | W20: 5 | X20: 0 | Y20: 5 | Z20: 5 | AA20: 5 | AB20: 5 | AC20: 0 | AD20: 0 | AE20: 0 | AF20: 5 | AG20: 5 | AH20: 10 | AI20: 10 | AJ20: 0 | AK20: 5 | AL20: 10 | AM20: 0 | AN20: 10 | AO20: 5 | AP20: 0 | AQ20: 0 | AR20: 5 | AS20: 0 | AT20: 5 | AU20: 5 | AV20: 5 | AW20: 5 | AX20: 0 | AY20: 0 | AZ20: 0 | BA20: 10 | BB20: 0 | BC20: 0 | BD20: 0 | BE20: 5 | BF20: 10 | BG20: 10 | BH20: 5 | BI20: 5 | BJ20: 0 | BK20: 5 | BL20: 10 | BM20: 10 | BN20: 10 | BO20: 10 | BP20: 5 | BQ20: 5 | BR20: 5 | BS20: 5 | BT20: 0 | BU20: 5 | BV20: 5 | BW20: 5 | BX20: 5 | BY20: 0 | BZ20: 0 | CA20: 5 | CB20: 0 | CC20: 10 | CD20: 5 | CE20: 5
A21: Sat | B21: 2020-09-26 | C21: Brighton | D21: 2 | E21: 3 | F21: Man United | G21: 12:30:00 | I21: 5 | J21: 5 | K21: 5 | L21: 5 | M21: 5 | N21: 0 | O21: 5 | P21: 5 | Q21: 5 | R21: 5 | S21: 0 | T21: 0 | U21: 5 | V21: 5 | W21: 0 | X21: 5 | Y21: 5 | Z21: 5 | AA21: 5 | AB21: 5 | AC21: 0 | AD21: 0 | AE21: 5 | AF21: 5 | AG21: 5 | AH21: 5 | AI21: 5 | AJ21: 5 | AK21: 5 | AL21: 0 | AM21: 0 | AN21: 5 | AO21: 5 | AP21: 5 | AQ21: 0 | AR21: 5 | AS21: 5 | AT21: 0 | AU21: 0 | AV21: 5 | AW21: 5 | AX21: 0 | AY21: 5 | AZ21: 5 | BA21: 0 | BB21: 5 | BC21: 0 | BD21: 5 | BE21: 5 | BF21: 5 | BG21: 5 | BH21: 5 | BI21: 5 | BJ21: 5 | BK21: 5 | BL21: 0 | BM21: 5 | BN21: 0 | BO21: 5 | BP21: 5 | BQ21: 5 | BR21: 5 | BS21: 0 | BT21: 0 | BU21: 5 | BV21: 5 | BW21: 5 | BX21: 0 | BY21: 5 | BZ21: 5 | CA21: 5 | CB21: 5 | CC21: 0 | CD21: 5 | CE21: 5
A22: Sat | B22: 2020-09-26 | C22: Crystal Palace | D22: 1 | E22: 2 | F22: Everton | G22: 15:00:00 | I22: 5 | J22: 0 | K22: 10 | L22: 5 | M22: 5 | N22: 0 | O22: 0 | P22: 0 | Q22: 0 | R22: 10 | S22: 0 | T22: 5 | U22: 10 | V22: 10 | W22: 10 | X22: 5 | Y22: 5 | Z22: 0 | AA22: 10 | AB22: 0 | AC22: 0 | AD22: 0 | AE22: 0 | AF22: 0 | AG22: 10 | AH22: 10 | AI22: 5 | AJ22: 0 | AK22: 10 | AL22: 0 | AM22: 0 | AN22: 0 | AO22: 0 | AP22: 0 | AQ22: 0 | AR22: 10 | AS22: 10 | AT22: 5 | AU22: 0 | AV22: 0 | AW22: 0 | AX22: 0 | AY22: 0 | AZ22: 5 | BA22: 0 | BB22: 5 | BC22: 0 | BD22: 0 | BE22: 5 | BF22: 0 | BG22: 0 | BH22: 10 | BI22: 5 | BJ22: 5 | BK22: 5 | BL22: 0 | BM22: 0 | BN22: 5 | BO22: 0 | BP22: 0 | BQ22: 0 | BR22: 0 | BS22: 5 | BT22: 0 | BU22: 10 | BV22: 5 | BW22: 0 | BX22: 10 | BY22: 10 | BZ22: 0 | CA22: 0 | CB22: 0 | CC22: 0 | CD22: 0 | CE22: 0
A23: Sat | B23: 2020-09-26 | C23: West Brom | D23: 3 | E23: 3 | F23: Chelsea | G23: 17:30:00 | I23: 0 | J23: 0 | K23: 0 | L23: 0 | M23: 0 | N23: 0 | O23: 0 | P23: 0 | Q23: 0 | R23: 0 | S23: 0 | T23: 0 | U23: 0 | V23: 0 | W23: 0 | X23: 0 | Y23: 0 | Z23: 0 | AA23: 0 | AB23: 0 | AC23: 0 | AD23: 0 | AE23: 0 | AF23: 0 | AG23: 0 | AH23: 0 | AI23: 0 | AJ23: 0 | AK23: 0 | AL23: 0 | AM23: 0 | AN23: 0 | AO23: 0 | AP23: 0 | AQ23: 0 | AR23: 0 | AS23: 0 | AT23: 0 | AU23: 0 | AV23: 0 | AW23: 0 | AX23: 0 | AY23: 0 | AZ23: 0 | BA23: 0 | BB23: 0 | BC23: 0 | BD23: 0 | BE23: 0 | BF23: 0 | BG23: 0 | BH23: 0 | BI23: 0 | BJ23: 0 | BK23: 0 | BL23: 0 | BM23: 0 | BN23: 0 | BO23: 0 | BP23: 0 | BQ23: 0 | BR23: 0 | BS23: 0 | BT23: 0 | BU23: 0 | BV23: 0 | BW23: 0 | BX23: 0 | BY23: 0 | BZ23: 0 | CA23: 0 | CB23: 0 | CC23: 0 | CD23: 0 | CE23: 0
A24: Sat | B24: 2020-09-26 | C24: Burnley | D24: 0 | E24: 1 | F24: Southampton | G24: 20:00:00 | I24: 0 | J24: 0 | K24: 0 | L24: 0 | M24: 0 | N24: 0 | O24: 0 | P24: 0 | Q24: 0 | R24: 0 | S24: 0 | T24: 5 | U24: 0 | V24: 0 | W24: 0 | X24: 0 | Y24: 0 | Z24: 0 | AA24: 0 | AB24: 0 | AC24: 0 | AD24: 0 | AE24: 10 | AF24: 0 | AG24: 0 | AH24: 0 | AI24: 10 | AJ24: 0 | AK24: 0 | AL24: 0 | AM24: 5 | AN24: 0 | AO24: 5 | AP24: 0 | AQ24: 5 | AR24: 0 | AS24: 0 | AT24: 0 | AU24: 0 | AV24: 0 | AW24: 5 | AX24: 0 | AY24: 0 | AZ24: 0 | BA24: 0 | BB24: 0 | BC24: 0 | BD24: 0 | BE24: 10 | BF24: 0 | BG24: 0 | BH24: 0 | BI24: 0 | BJ24: 0 | BK24: 5 | BL24: 0 | BM24: 0 | BN24: 0 | BO24: 10 | BP24: 0 | BQ24: 0 | BR24: 0 | BS24: 0 | BT24: 0 | BU24: 0 | BV24: 0 | BW24: 0 | BX24: 5 | BY24: 0 | BZ24: 0 | CA24: 0 | CB24: 5 | CC24: 0 | CD24: 0 | CE24: 0
A25: Sun | B25: 2020-09-27 | C25: Sheffield United | D25: 0 | E25: 1 | F25: Leeds | G25: 12:00:00 | I25: 5 | J25: 5 | K25: 0 | L25: 5 | M25: 0 | N25: 0 | O25: 0 | P25: 0 | Q25: 0 | R25: 0 | S25: 0 | T25: 0 | U25: 5 | V25: 0 | W25: 5 | X25: 0 | Y25: 5 | Z25: 0 | AA25: 5 | AB25: 5 | AC25: 5 | AD25: 0 | AE25: 5 | AF25: 0 | AG25: 5 | AH25: 0 | AI25: 5 | AJ25: 5 | AK25: 5 | AL25: 5 | AM25: 5 | AN25: 0 | AO25: 5 | AP25: 0 | AQ25: 0 | AR25: 0 | AS25: 5 | AT25: 0 | AU25: 5 | AV25: 0 | AW25: 5 | AX25: 5 | AY25: 5 | AZ25: 5 | BA25: 5 | BB25: 0 | BC25: 5 | BD25: 5 | BE25: 10 | BF25: 0 | BG25: 5 | BH25: 0 | BI25: 5 | BJ25: 5 | BK25: 0 | BL25: 5 | BM25: 5 | BN25: 5 | BO25: 0 | BP25: 0 | BQ25: 5 | BR25: 5 | BS25: 0 | BT25: 0 | BU25: 5 | BV25: 5 | BW25: 5 | BX25: 5 | BY25: 0 | BZ25: 0 | CA25: 0 | CB25: 0 | CC25: 0 | CD25: 5 | CE25: 0
A26: Sun | B26: 2020-09-27 | C26: Tottenham | D26: 1 | E26: 1 | F26: Newcastle | G26: 14:00:00 | I26: 0 | J26: 0 | K26: 0 | L26: 0 | M26: 0 | N26: 0 | O26: 0 | P26: 0 | Q26: 0 | R26: 0 | S26: 0 | T26: 0 | U26: 0 | V26: 0 | W26: 0 | X26: 0 | Y26: 5 | Z26: 0 | AA26: 0 | AB26: 0 | AC26: 0 | AD26: 0 | AE26: 0 | AF26: 0 | AG26: 0 | AH26: 0 | AI26: 0 | AJ26: 0 | AK26: 0 | AL26: 0 | AM26: 0 | AN26: 0 | AO26: 0 | AP26: 0 | AQ26: 0 | AR26: 0 | AS26: 0 | AT26: 0 | AU26: 0 | AV26: 0 | AW26: 0 | AX26: 10 | AY26: 0 | AZ26: 0 | BA26: 0 | BB26: 0 | BC26: 0 | BD26: 0 | BE26: 0 | BF26: 0 | BG26: 0 | BH26: 0 | BI26: 0 | BJ26: 0 | BK26: 0 | BL26: 0 | BM26: 0 | BN26: 0 | BO26: 10 | BP26: 0 | BQ26: 0 | BR26: 0 | BS26: 0 | BT26: 0 | BU26: 0 | BV26: 0 | BW26: 0 | BX26: 0 | BY26: 0 | BZ26: 0 | CA26: 0 | CB26: 0 | CC26: 0 | CD26: 0 | CE26: 0
A27: Sun | B27: 2020-09-27 | C27: Man City | D27: 2 | E27: 5 | F27: Leicester | G27: 16:30:00 | I27: 0 | J27: 0 | K27: 0 | L27: 0 | M27: 0 | N27: 0 | O27: 0 | P27: 0 | Q27: 0 | R27: 0 | S27: 0 | T27: 0 | U27: 0 | V27: 0 | W27: 0 | X27: 0 | Y27: 0 | Z27: 0 | AA27: 0 | AB27: 0 | AC27: 0 | AD27: 0 | AE27: 0 | AF27: 0 | AG27: 0 | AH27: 0 | AI27: 0 | AJ27: 0 | AK27: 0 | AL27: 0 | AM27: 0 | AN27: 0 | AO27: 0 | AP27: 0 | AQ27: 0 | AR27: 0 | AS27: 0 | AT27: 0 | AU27: 0 | AV27: 0 | AW27: 0 | AX27: 0 | AY27: 0 | AZ27: 0 | BA27: 0 | BB27: 0 | BC27: 0 | BD27: 0 | BE27: 0 | BF27: 0 | BG27: 0 | BH27: 0 | BI27: 0 | BJ27: 5 | BK27: 0 | BL27: 0 | BM27: 0 | BN27: 0 | BO27: 0 | BP27: 0 | BQ27: 0 | BR27: 0 | BS27: 0 | BT27: 0 | BU27: 0 | BV27: 0 | BW27: 0 | BX27: 0 | BY27: 0 | BZ27: 0 | CA27: 0 | CB27: 0 | CC27: 0 | CD27: 0 | CE27: 0
A28: Sun | B28: 2020-09-27 | C28: West Ham | D28: 4 | E28: 0 | F28: Wolves | G28: 19:00:00 | I28: 0 | J28: 0 | K28: 0 | L28: 0 | M28: 0 | N28: 5 | O28: 0 | P28: 0 | Q28: 0 | R28: 0 | S28: 5 | T28: 0 | U28: 0 | V28: 0 | W28: 0 | X28: 0 | Y28: 0 | Z28: 5 | AA28: 0 | AB28: 0 | AC28: 0 | AD28: 0 | AE28: 0 | AF28: 0 | AG28: 0 | AH28: 0 | AI28: 0 | AJ28: 0 | AK28: 0 | AL28: 0 | AM28: 0 | AN28: 0 | AO28: 0 | AP28: 0 | AQ28: 0 | AR28: 0 | AS28: 5 | AT28: 0 | AU28: 0 | AV28: 0 | AW28: 0 | AX28: 0 | AY28: 0 | AZ28: 0 | BA28: 0 | BB28: 0 | BC28: 0 | BD28: 0 | BE28: 0 | BF28: 0 | BG28: 5 | BH28: 0 | BI28: 0 | BJ28: 0 | BK28: 0 | BL28: 0 | BM28: 0 | BN28: 0 | BO28: 0 | BP28: 0 | BQ28: 0 | BR28: 0 | BS28: 0 | BT28: 5 | BU28: 0 | BV28: 0 | BW28: 0 | BX28: 0 | BY28: 0 | BZ28: 0 | CA28: 0 | CB28: 0 | CC28: 5 | CD28: 0 | CE28: 0
A29: Mon | B29: 2020-09-28 | C29: Fulham | D29: 0 | E29: 3 | F29: Aston Villa | G29: 17:45:00 | I29: 5 | J29: 0 | K29: 0 | L29: 5 | M29: 0 | N29: 0 | O29: 0 | P29: 0 | Q29: 0 | R29: 5 | S29: 0 | T29: 5 | U29: 5 | V29: 5 | W29: 5 | X29: 0 | Y29: 0 | Z29: 0 | AA29: 5 | AB29: 0 | AC29: 5 | AD29: 5 | AE29: 5 | AF29: 0 | AG29: 5 | AH29: 5 | AI29: 0 | AJ29: 0 | AK29: 5 | AL29: 0 | AM29: 5 | AN29: 5 | AO29: 5 | AP29: 5 | AQ29: 0 | AR29: 0 | AS29: 0 | AT29: 0 | AU29: 0 | AV29: 0 | AW29: 0 | AX29: 0 | AY29: 5 | AZ29: 5 | BA29: 5 | BB29: 0 | BC29: 0 | BD29: 5 | BE29: 0 | BF29: 5 | BG29: 5 | BH29: 5 | BI29: 0 | BJ29: 0 | BK29: 5 | BL29: 5 | BM29: 0 | BN29: 0 | BO29: 0 | BP29: 0 | BQ29: 0 | BR29: 0 | BS29: 0 | BT29: 0 | BU29: 0 | BV29: 0 | BW29: 0 | BX29: 0 | BY29: 0 | BZ29: 5 | CA29: 0 | CB29: 5 | CC29: 0 | CD29: 0 | CE29: 0
A30: Mon | B30: 2020-09-28 | C30: Liverpool | D30: 3 | E30: 1 | F30: Arsenal | G30: 20:00:00 | I30: 0 | J30: 5 | K30: 0 | L30: 10 | M30: 5 | N30: 5 | O30: 10 | P30: 0 | Q30: 5 | R30: 5 | S30: 5 | T30: 10 | U30: 5 | V30: 5 | W30: 0 | X30: 5 | Y30: 5 | Z30: 0 | AA30: 5 | AB30: 10 | AC30: 0 | AD30: 5 | AE30: 10 | AF30: 5 | AG30: 0 | AH30: 5 | AI30: 10 | AJ30: 10 | AK30: 5 | AL30: 0 | AM30: 10 | AN30: 10 | AO30: 5 | AP30: 5 | AQ30: 10 | AR30: 5 | AS30: 5 | AT30: 5 | AU30: 10 | AV30: 10 | AW30: 5 | AX30: 0 | AY30: 5 | AZ30: 5 | BA30: 5 | BB30: 10 | BC30: 5 | BD30: 5 | BE30: 5 | BF30: 5 | BG30: 5 | BH30: 5 | BI30: 5 | BJ30: 5 | BK30: 5 | BL30: 5 | BM30: 5 | BN30: 0 | BO30: 5 | BP30: 5 | BQ30: 0 | BR30: 10 | BS30: 10 | BT30: 5 | BU30: 0 | BV30: 5 | BW30: 5 | BX30: 5 | BY30: 5 | BZ30: 5 | CA30: 5 | CB30: 10 | CC30: 5 | CD30: 5 | CE30: 10
A32: Golden Boots
A33: Anthony Martial - Man United | D33: =COUNT(I33:CE33) -> 8 | E33: =0+0 -> 0 | U33: =$E33*2 -> 0 | AB33: =$E33*2 -> 0 | AF33: =$E33*2 -> 0 | AM33: =$E33*2 -> 0 | BD33: =$E33*2 -> 0 | BI33: =$E33*2 -> 0 | BN33: =$E33*2 -> 0 | BU33: =$E33*2 -> 0
A34: Chris Wood - Burnley | D34: 0 | E34: =1+0 -> 1
A35: Danny Ings - Southampton | D35: 6 | E35: =0+2+1 -> 3 | T35: =$E35*2 -> 6 | AP35: =$E35*2 -> 6 | BO35: =$E35*2 -> 6 | BR35: =$E35*2 -> 6 | BV35: =$E35*2 -> 6 | CD35: =$E35*2 -> 6
A36: Harry Kane - Tottenham Hotspur | D36: 44 | E36: =0+1+0 -> 1 | I36: =$E36*2 -> 2 | J36: 2 | K36: 2 | L36: 2 | M36: 2 | N36: 2 | O36: 2 | Q36: =$E36*2 -> 2 | R36: =$E36*2 -> 2 | W36: =$E36*2 -> 2 | X36: =$E36*2 -> 2 | Y36: =$E36*2 -> 2 | Z36: =$E36*2 -> 2 | AC36: =$E36*2 -> 2 | AD36: 2 | AE36: 2 | AF36: 2 | AG36: 2 | AH36: 2 | AI36: 2 | AJ36: =$E36*2 -> 2 | AK36: =$E36*2 -> 2 | AL36: =$E36*2 -> 2 | AM36: =$E36*2 -> 2 | AN36: =$E36*2 -> 2 | AP36: =$E36*2 -> 2 | AQ36: =$E36*2 -> 2 | AR36: =$E36*2 -> 2 | AS36: =$E36*2 -> 2 | AT36: =$E36*2 -> 2 | AW36: =$E36*2 -> 2 | AY36: =$E36*2 -> 2 | AZ36: =$E36*2 -> 2 | BA36: =$E36*2 -> 2 | BB36: =$E36*2 -> 2 | BD36: =$E36*2 -> 2 | BF36: =$E36*2 -> 2 | BH36: =$E36*2 -> 2 | BI36: =$E36*2 -> 2 | BM36: =$E36*2 -> 2 | BS36: =$E36*2 -> 2 | BT36: =$E36*2 -> 2 | BX36: =$E36*2 -> 2 | CD36: =$E36*2 -> 2
A37: Jamie Vardy - Leicester City | D37: 19 | E37: =2+0+3 -> 5 | K37: =$E37*2 -> 10 | S37: =$E37*2 -> 10 | Z37: =$E37*2 -> 10 | AD37: =$E37*2 -> 10 | AS37: =$E37*2 -> 10 | AU37: =$E37*2 -> 10 | AV37: =$E37*2 -> 10 | AW37: =$E37*2 -> 10 | AX37: =$E37*2 -> 10 | AY37: =$E37*2 -> 10 | BA37: =$E37*2 -> 10 | BJ37: =$E37*2 -> 10 | BN37: =$E37*2 -> 10 | BQ37: =$E37*2 -> 10 | BR37: =$E37*2 -> 10 | BW37: =$E37*2 -> 10 | BX37: =$E37*2 -> 10 | CA37: =$E37*2 -> 10 | CB37: =$E37*2 -> 10
A38: Marcus Rashford - Man United | D38: 6 | E38: =0+1 -> 1 | P38: =$E38*2 -> 2 | BA38: =$E38*2 -> 2 | BG38: =$E38*2 -> 2 | BI38: =$E38*2 -> 2 | CA38: =$E38*2 -> 2 | CC38: =$E38*2 -> 2
A39: Mohamed Salah - Liverpool | D39: 36 | E39: =3+0+0 -> 3 | K39: =$E39*2 -> 6 | L39: =$E39*2 -> 6 | O39: =$E39*2 -> 6 | Q39: =$E39*2 -> 6 | R39: 6 | S39: 6 | T39: 6 | U39: 6 | V39: 6 | X39: =$E39*2 -> 6 | Y39: =$E39*2 -> 6 | AB39: =$E39*2 -> 6 | AE39: =$E39*2 -> 6 | AF39: =$E39*2 -> 6 | AM39: =$E39*2 -> 6 | AO39: =$E39*2 -> 6 | AQ39: =$E39*2 -> 6 | AV39: =$E39*2 -> 6 | AX39: =$E39*2 -> 6 | BB39: =$E39*2 -> 6 | BC39: =$E39*2 -> 6 | BD39: =$E39*2 -> 6 | BE39: =$E39*2 -> 6 | BF39: =$E39*2 -> 6 | BJ39: =$E39*2 -> 6 | BL39: =$E39*2 -> 6 | BO39: =$E39*2 -> 6 | BS39: =$E39*2 -> 6 | BT39: 6 | BU39: 6 | BV39: 6 | BW39: 6 | BX39: =$E39*2 -> 6 | BZ39: =$E39*2 -> 6 | CA39: 6 | CE39: =$E39*2 -> 6
A40: Pierre Emerick Aubameyang - Arsenal | D40: 45 | E40: =1+0 -> 1 | L40: =$E40*2 -> 2 | N40: =$E40*2 -> 2 | O40: =$E40*2 -> 2 | P40: =$E40*2 -> 2 | Q40: =$E40*2 -> 2 | R40: =$E40*2 -> 2 | S40: =$E40*2 -> 2 | U40: =$E40*2 -> 2 | V40: =$E40*2 -> 2 | W40: =$E40*2 -> 2 | AA40: =$E40*2 -> 2 | AB40: =$E40*2 -> 2 | AC40: =$E40*2 -> 2 | AE40: =$E40*2 -> 2 | AG40: =$E40*2 -> 2 | AI40: =$E40*2 -> 2 | AJ40: =$E40*2 -> 2 | AK40: =$E40*2 -> 2 | AN40: =$E40*2 -> 2 | AO40: =$E40*2 -> 2 | AQ40: =$E40*2 -> 2 | AR40: =$E40*2 -> 2 | AS40: =$E40*2 -> 2 | AU40: =$E40*2 -> 2 | AV40: =$E40*2 -> 2 | AW40: =$E40*2 -> 2 | AX40: =$E40*2 -> 2 | AY40: =$E40*2 -> 2 | BB40: =$E40*2 -> 2 | BC40: =$E40*2 -> 2 | BE40: =$E40*2 -> 2 | BF40: =$E40*2 -> 2 | BK40: =$E40*2 -> 2 | BL40: =$E40*2 -> 2 | BN40: =$E40*2 -> 2 | BP40: =$E40*2 -> 2 | BT40: =$E40*2 -> 2 | BV40: =$E40*2 -> 2 | BW40: =$E40*2 -> 2 | BY40: =$E40*2 -> 2 | BZ40: =$E40*2 -> 2 | CB40: =$E40*2 -> 2 | CC40: =$E40*2 -> 2 | CD40: =$E40*2 -> 2 | CE40: =$E40*2 -> 2
A41: Raheem Sterling - Man City | D41: 14 | E41: =0+0 -> 0 | X41: =$E41*2 -> 0 | AA41: =$E41*2 -> 0 | AC41: =$E41*2 -> 0 | AH41: =$E41*2 -> 0 | AJ41: =$E41*2 -> 0 | BG41: =$E41*2 -> 0 | BH41: =$E41*2 -> 0 | BJ41: =$E41*2 -> 0 | BK41: =$E41*2 -> 0 | BM41: =$E41*2 -> 0 | BP41: =$E41*2 -> 0 | BQ41: =$E41*2 -> 0 | BS41: =$E41*2 -> 0 | CE41: =$E41*2 -> 0
A42: Raul Jiminez - Wolves | D42: 1 | E42: =1+1+0 -> 2 | AU42: =$E42*2 -> 4
A43: Richarlison - Everton | D43: 1 | E43: =0+0+1 -> 1 | I43: =$E43*2 -> 2
A44: Sadio Mane - Liverpool | D44: 12 | E44: =0+2+1 -> 3 | J44: =$E44*2 -> 6 | M44: =$E44*2 -> 6 | P44: =$E44*2 -> 6 | V44: =$E44*2 -> 6 | AH44: =$E44*2 -> 6 | AI44: =$E44*2 -> 6 | AT44: =$E44*2 -> 6 | AZ44: =$E44*2 -> 6 | BG44: =$E44*2 -> 6 | BL44: =$E44*2 -> 6 | BP44: =$E44*2 -> 6 | CC44: =$E44*2 -> 6
A45: Sergio Aguero - Man City | D45: 9 | E45: =0+0 -> 0 | J45: =$E45*2 -> 0 | T45: =$E45*2 -> 0 | AL45: =$E45*2 -> 0 | AP45: =$E45*2 -> 0 | AT45: =$E45*2 -> 0 | BE45: =$E45*2 -> 0 | BM45: =$E45*2 -> 0 | BU45: =$E45*2 -> 0 | BY45: =$E45*2 -> 0
A46: Tammy Abraham - Chelsea | D46: 0 | E46: =0+0+1 -> 1
A47: Timo Werner - Chelsea | D47: 24 | E47: =0+0+0 -> 0 | I47: =$E47*2 -> 0 | M47: =$E47*2 -> 0 | N47: =$E47*2 -> 0 | W47: =$E47*2 -> 0 | Y47: =$E47*2 -> 0 | Z47: =$E47*2 -> 0 | AA47: =$E47*2 -> 0 | AD47: =$E47*2 -> 0 | AG47: =$E47*2 -> 0 | AK47: =$E47*2 -> 0 | AL47: =$E47*2 -> 0 | AN47: =$E47*2 -> 0 | AO47: =$E47*2 -> 0 | AR47: =$E47*2 -> 0 | AZ47: =$E47*2 -> 0 | BC47: =$E47*2 -> 0 | BH47: =$E47*2 -> 0 | BK47: =$E47*2 -> 0 | BO47: =$E47*2 -> 0 | BQ47: =$E47*2 -> 0 | BR47: =$E47*2 -> 0 | BY47: =$E47*2 -> 0 | BZ47: =$E47*2 -> 0 | CB47: =$E47*2 -> 0
A49: Golden Gloves
A50: Alisson Becker - Liverpool | D50: =COUNT(I50:CE50) -> 57 | E50: =0+1+0 -> 1 | J50: =$E50*2 -> 2 | K50: =$E50*2 -> 2 | L50: =$E50*2 -> 2 | M50: =$E50*2 -> 2 | O50: =$E50*2 -> 2 | P50: =$E50*2 -> 2 | R50: =$E50*2 -> 2 | S50: =$E50*2 -> 2 | T50: =$E50*2 -> 2 | V50: =$E50*2 -> 2 | W50: =$E50*2 -> 2 | X50: =$E50*2 -> 2 | Y50: =$E50*2 -> 2 | Z50: =$E50*2 -> 2 | AB50: =$E50*2 -> 2 | AD50: =$E50*2 -> 2 | AG50: =$E50*2 -> 2 | AH50: 2 | AI50: 2 | AJ50: 2 | AK50: 2 | AL50: 2 | AN50: =$E50*2 -> 2 | AO50: =$E50*2 -> 2 | AP50: =$E50*2 -> 2 | AQ50: =$E50*2 -> 2 | AR50: =$E50*2 -> 2 | AT50: =$E50*2 -> 2 | AV50: =$E50*2 -> 2 | AX50: =$E50*2 -> 2 | AY50: =$E50*2 -> 2 | AZ50: =$E50*2 -> 2 | BA50: =$E50*2 -> 2 | BB50: =$E50*2 -> 2 | BD50: =$E50*2 -> 2 | BE50: =$E50*2 -> 2 | BF50: =$E50*2 -> 2 | BG50: =$E50*2 -> 2 | BI50: =$E50*2 -> 2 | BJ50: =$E50*2 -> 2 | BK50: 2 | BL50: =$E50*2 -> 2 | BM50: 2 | BN50: 2 | BO50: =$E50*2 -> 2 | BP50: 2 | BR50: =$E50*2 -> 2 | BS50: 2 | BT50: 2 | BW50: =$E50*2 -> 2 | BX50: 2 | BY50: 2 | BZ50: =$E50*2 -> 2 | CA50: 2 | CB50: 2 | CC50: 2 | CE50: =$E50*2 -> 2
A51: Ederson - Man City | D51: =COUNT(I51:CE51) -> 14 | E51: =0+0 -> 0 | I51: =$E51*2 -> 0 | Q51: =$E51*2 -> 0 | U51: =$E51*2 -> 0 | AA51: =$E51*2 -> 0 | AC51: =$E51*2 -> 0 | AE51: =$E51*2 -> 0 | AF51: =$E51*2 -> 0 | AM51: =$E51*2 -> 0 | AU51: =$E51*2 -> 0 | AW51: =$E51*2 -> 0 | BC51: =$E51*2 -> 0 | BH51: =$E51*2 -> 0 | BV51: =$E51*2 -> 0 | CD51: =$E51*2 -> 0
A52: David de Gea - Man United | D52: =COUNT(I52:CE52) -> 3 | E52: =0+0 -> 0 | N52: =$E52*2 -> 0 | AS52: =$E52*2 -> 0 | BU52: =$E52*2 -> 0
A53: Hugo Lloris - Tottenham Hotspur | D53: =COUNT(I53:CE53) -> 1 | E53: =0+0+0 -> 0 | BQ53: =$E53*2 -> 0
A54: Nick Pope - Burnley | D54: =COUNT(I54:CE54) -> 0 | E54: =0+0 -> 0
A56: Sack Race
A57: Brendan Rodgers - Leicester City | D57: =COUNT(I57:CE57) -> 1 | BP57: =$E57*15 -> 0
A58: Carlo Ancelotti - Everton | D58: 0
A59: Chris Wilder - Sheffield United | D59: 0
A60: David Moyes - West Ham United | D60: 14 | M60: =$E60*15 -> 0 | P60: =$E60*15 -> 0 | Y60: =$E60*15 -> 0 | AB60: =$E60*15 -> 0 | AC60: =$E60*15 -> 0 | AI60: =$E60*15 -> 0 | AJ60: =$E60*15 -> 0 | AK60: =$E60*15 -> 0 | AR60: =$E60*15 -> 0 | AS60: =$E60*15 -> 0 | BA60: =$E60*15 -> 0 | BB60: =$E60*15 -> 0 | BE60: =$E60*15 -> 0 | BO60: =$E60*15 -> 0
A61: Dean Smith - Aston Villa | D61: 16 | N61: =$E61*15 -> 0 | O61: =$E61*15 -> 0 | W61: =$E61*15 -> 0 | AM61: =$E61*15 -> 0 | AN61: =$E61*15 -> 0 | AQ61: =$E61*15 -> 0 | AT61: =$E61*15 -> 0 | AU61: =$E61*15 -> 0 | AX61: =$E61*15 -> 0 | AZ61: =$E61*15 -> 0 | BG61: =$E61*15 -> 0 | BK61: =$E61*15 -> 0 | BM61: =$E61*15 -> 0 | BN61: =$E61*15 -> 0 | BQ61: =$E61*15 -> 0 | BT61: =$E61*15 -> 0
A62: Frank Lampard - Chelsea | D62: 0
A63: Graham Potter - Brighton | D63: 6 | I63: =$E63*15 -> 0 | T63: =$E63*15 -> 0 | V63: =$E63*15 -> 0 | AA63: =$E63*15 -> 0 | AF63: =$E63*15 -> 0 | CC63: =$E63*15 -> 0
A64: Jose Mourinho - Tottenham Hotspur | D64: 4 | AE64: =$E64*15 -> 0 | BJ64: =$E64*15 -> 0 | BU64: =$E64*15 -> 0 | CE64: =$E64*15 -> 0
A65: Jurgen Klopp - Liverpool | D65: 0
A66: Marco Bielsa - Leeds United | D66: 1 | BZ66: =$E66*15 -> 0
A67: Mikel Arteta - Arsenal | D67: 0
A68: Nuno Espirito Santo - Wolves | D68: 0
A69: Ole Gunnar Solskjaer - Manchester United | D69: 1 | AL69: =$E69*15 -> 0
A70: Pep Guardiola - Manchester City | D70: 1 | AV70: =$E70*15 -> 0
A71: Ralph Hassenhuttl - Southampton | D71: 2 | K71: =$E71*15 -> 0 | AH71: =$E71*15 -> 0
A72: Roy Hodgson - Crystal Palace | D72: 8 | J72: =$E72*15 -> 0 | L72: =$E72*15 -> 0 | AD72: =$E72*15 -> 0 | AP72: =$E72*15 -> 0 | BF72: =$E72*15 -> 0 | BS72: =$E72*15 -> 0 | BV72: =$E72*15 -> 0 | BY72: =$E72*15 -> 0
A73: Scott Parker - Fulham | D73: 3 | R73: =$E73*15 -> 0 | Z73: =$E73*15 -> 0 | BC73: =$E73*15 -> 0
A74: Sean Dyche - Burnley | D74: 1 | S74: =$E74*15 -> 0
A75: Slaven Bilic - West Brom | D75: 4 | U75: =$E75*15 -> 0 | AO75: =$E75*15 -> 0 | BI75: =$E75*15 -> 0 | BL75: =$E75*15 -> 0
A76: Steve Bruce - Newcastle United | D76: 13 | Q76: =$E76*15 -> 0 | X76: =$E76*15 -> 0 | AG76: =$E76*15 -> 0 | AW76: =$E76*15 -> 0 | AY76: =$E76*15 -> 0 | BD76: =$E76*15 -> 0 | BH76: =$E76*15 -> 0 | BR76: =$E76*15 -> 0 | BW76: =$E76*15 -> 0 | BX76: =$E76*15 -> 0 | CA76: =$E76*15 -> 0 | CB76: =$E76*15 -> 0 | CD76: =$E76*15 -> 0
A78: Grand Total - September | I78: =SUM(I$3:I77) -> 89 | J78: =SUM(J$3:J77) -> 70 | K78: =SUM(K$3:K77) -> 95 | L78: =SUM(L$3:L77) -> 97 | M78: =SUM(M$3:M77) -> 70 | N78: =SUM(N$3:N77) -> 79 | O78: =SUM(O$3:O77) -> 82 | P78: =SUM(P$3:P77) -> 72 | Q78: =SUM(Q$3:Q77) -> 85 | R78: =SUM(R$3:R77) -> 92 | S78: =SUM(S$3:S77) -> 80 | T78: =SUM(T$3:T77) -> 89 | U78: =SUM(U$3:U77) -> 93 | V78: =SUM(V$3:V77) -> 96 | W78: =SUM(W$3:W77) -> 71 | X78: =SUM(X$3:X77) -> 90 | Y78: =SUM(Y$3:Y77) -> 90 | Z78: =SUM(Z$3:Z77) -> 64 | AA78: =SUM(AA$3:AA77) -> 92 | AB78: =SUM(AB$3:AB77) -> 80 | AC78: =SUM(AC$3:AC77) -> 59 | AD78: =SUM(AD$3:AD77) -> 74 | AE78: =SUM(AE$3:AE77) -> 100 | AF78: =SUM(AF$3:AF77) -> 58 | AG78: =SUM(AG$3:AG77) -> 76 | AH78: =SUM(AH$3:AH77) -> 95 | AI78: =SUM(AI$3:AI77) -> 117 | AJ78: =SUM(AJ$3:AJ77) -> 51 | AK78: =SUM(AK$3:AK77) -> 91 | AL78: =SUM(AL$3:AL77) -> 74 | AM78: =SUM(AM$3:AM77) -> 83 | AN78: =SUM(AN$3:AN77) -> 86 | AO78: =SUM(AO$3:AO77) -> 90 | AP78: =SUM(AP$3:AP77) -> 65 | AQ78: =SUM(AQ$3:AQ77) -> 77 | AR78: =SUM(AR$3:AR77) -> 101 | AS78: =SUM(AS$3:AS77) -> 89 | AT78: =SUM(AT$3:AT77) -> 80 | AU78: =SUM(AU$3:AU77) -> 101 | AV78: =SUM(AV$3:AV77) -> 75 | AW78: =SUM(AW$3:AW77) -> 79 | AX78: =SUM(AX$3:AX77) -> 90 | AY78: =SUM(AY$3:AY77) -> 91 | AZ78: =SUM(AZ$3:AZ77) -> 95 | BA78: =SUM(BA$3:BA77) -> 81 | BB78: =SUM(BB$3:BB77) -> 87 | BC78: =SUM(BC$3:BC77) -> 48 | BD78: =SUM(BD$3:BD77) -> 65 | BE78: =SUM(BE$3:BE77) -> 115 | BF78: =SUM(BF$3:BF77) -> 92 | BG78: =SUM(BG$3:BG77) -> 100 | BH78: =SUM(BH$3:BH77) -> 87 | BI78: =SUM(BI$3:BI77) -> 91 | BJ78: =SUM(BJ$3:BJ77) -> 108 | BK78: =SUM(BK$3:BK77) -> 104 | BL78: =SUM(BL$3:BL77) -> 101 | BM78: =SUM(BM$3:BM77) -> 84 | BN78: =SUM(BN$3:BN77) -> 89 | BO78: =SUM(BO$3:BO77) -> 99 | BP78: =SUM(BP$3:BP77) -> 90 | BQ78: =SUM(BQ$3:BQ77) -> 70 | BR78: =SUM(BR$3:BR77) -> 108 | BS78: =SUM(BS$3:BS77) -> 85 | BT78: =SUM(BT$3:BT77) -> 72 | BU78: =SUM(BU$3:BU77) -> 96 | BV78: =SUM(BV$3:BV77) -> 89 | BW78: =SUM(BW$3:BW77) -> 100 | BX78: =SUM(BX$3:BX77) -> 110 | BY78: =SUM(BY$3:BY77) -> 74 | BZ78: =SUM(BZ$3:BZ77) -> 65 | CA78: =SUM(CA$3:CA77) -> 60 | CB78: =SUM(CB$3:CB77) -> 94 | CC78: =SUM(CC$3:CC77) -> 87 | CD78: =SUM(CD$3:CD77) -> 95 | CE78: =SUM(CE$3:CE77) -> 70
A80: Ten Pointers | I80: =COUNTIF(I$3:I30,"10") -> 1 | J80: =COUNTIF(J3:J30,"10") -> 0 | K80: 2 | L80: 2 | M80: 0 | N80: 2 | O80: 1 | P80: 1 | Q80: 2 | R80: 2 | S80: 0 | T80: 1 | U80: 3 | V80: 2 | W80: 1 | X80: 2 | Y80: 0 | Z80: 0 | AA80: 2 | AB80: 2 | AC80: 1 | AD80: 1 | AE80: 2 | AF80: 0 | AG80: 1 | AH80: 2 | AI80: 4 | AJ80: 1 | AK80: =COUNTIF(AK3:AK30,"10") -> 1 | AL80: =COUNTIF(AL3:AL30,"10") -> 2 | AM80: 1 | AN80: 2 | AO80: 0 | AP80: 0 | AQ80: 1 | AR80: 5 | AS80: 1 | AT80: 1 | AU80: 4 | AV80: 1 | AW80: 0 | AX80: 2 | AY80: 1 | AZ80: 2 | BA80: 1 | BB80: 2 | BC80: 0 | BD80: 0 | BE80: 3 | BF80: 1 | BG80: 1 | BH80: 1 | BI80: 1 | BJ80: 1 | BK80: 2 | BL80: 2 | BM80: 3 | BN80: 2 | BO80: 4 | BP80: 3 | BQ80: 1 | BR80: 3 | BS80: 3 | BT80: 1 | BU80: 3 | BV80: 0 | BW80: 0 | BX80: 2 | BY80: 2 | BZ80: 0 | CA80: 0 | CB80: 3 | CC80: 2 | CD80: 2 | CE80: 2

Sheet October
I1: Aidan Scanlon | J1: Aidan White | K1: Alan White | L1: Anastas Popov | M1: Andy Dunne | N1: Ben Creasey | O1: Bobby Hynes | P1: Brendan Maguire | Q1: Brian Prendergast | R1: Brian Haughton | S1: Brian Mullen | T1: Callum Dunne | U1: Calvin McGettigan | V1: Caroline Carroll | W1: Cathal Thornton | X1: Christina Morgan | Y1: Ciaran Nelson | Z1: Ciaran O'Hart | AA1: Con McSweeney | AB1: Craig Calvert | AC1: Darragh Kenny | AD1: David Cooney | AE1: David Lavelle | AF1: David McGinley | AG1: Davy Doyle | AH1: Dean White | AI1: Derek Brady | AJ1: Drew Armstrong | AK1: Eamon Fox | AL1: Eoghan Farrelly | AM1: Fiachra O'Brolachain | AN1: Frank McSweeney | AO1: Gareth Pierpoint | AP1: Gary Donnelly | AQ1: Gary Fitzpatrick | AR1: Gary McGurk | AS1: Gavin Goodwin | AT1: Gavin Morgan | AU1: George McGettigan | AV1: Gerard McCluskey | AW1: Gerry Draper | AX1: Gerry Moore | AY1: Graham Goodwin | AZ1: Javier Suarez | BA1: Joe Behan | BB1: Joe Turner | BC1: John Brophy | BD1: John O'Driscoll | BE1: Jonathan Fox | BF1: Joseph Kavanagh | BG1: Kev Dalton | BH1: Kevin Philpott | BI1: Kris Stainton | BJ1: Liam Geraghty | BK1: Liam Keohan | BL1: Lionel Knott | BM1: Michael Kenaney | BN1: Micheal Joyce | BO1: Niall Cannon | BP1: Niall Carroll | BQ1: Niall Murray | BR1: Patrick Mifsud | BS1: Paul Moore | BT1: Paul Prendergast | BU1: Phil Doyle | BV1: Philip Jordan | BW1: Ralph Goodwin | BX1: Richard Johnston | BY1: Robert Hynes | BZ1: Robert Manley | CA1: Roisin Joyce | CB1: Sean O'Mairtin | CC1: Trevor Byrne | CD1: Victoria Reid | CE1: Wayne Donovan
A2: Day | B2: Date | C2: Teams | G2: Time
A3: Sat | B3: 2020-10-03 | C3: Chelsea | D3: 4 | E3: 0 | F3: Crystal Palace | G3: 12:30:00 | I3: 5 | J3: 5 | K3: 5 | L3: 5 | M3: 5 | N3: 5 | O3: 5 | P3: 5 | Q3: 5 | R3: 5 | S3: 5 | T3: 0 | U3: 5 | V3: 0 | W3: 5 | X3: 5 | Y3: 5 | Z3: 5 | AA3: 5 | AB3: 5 | AC3: 5 | AD3: 5 | AE3: 0 | AF3: 5 | AG3: 0 | AH3: 5 | AI3: 5 | AJ3: 5 | AK3: 5 | AL3: 5 | AM3: 5 | AN3: 5 | AO3: 5 | AP3: 5 | AQ3: 5 | AR3: 5 | AS3: 5 | AT3: 5 | AU3: 0 | AV3: 5 | AW3: 5 | AX3: 0 | AY3: 5 | AZ3: 5 | BA3: 5 | BB3: 5 | BC3: 5 | BD3: 5 | BE3: 5 | BF3: 5 | BG3: 5 | BH3: 5 | BI3: 5 | BJ3: 5 | BK3: 5 | BL3: 5 | BM3: 5 | BN3: 5 | BO3: 5 | BP3: 5 | BQ3: 5 | BR3: 5 | BS3: 5 | BT3: 5 | BU3: 5 | BV3: 5 | BW3: 5 | BX3: 5 | BY3: 5 | BZ3: 5 | CA3: 5 | CB3: 5 | CC3: 5 | CD3: 5 | CE3: 5
A4: Sat | B4: 2020-10-03 | C4: Everton | D4: 4 | E4: 2 | F4: Brighton | G4: 15:00:00 | I4: 5 | J4: 5 | K4: 5 | L4: 5 | M4: 5 | N4: 5 | O4: 5 | P4: 5 | Q4: 5 | R4: 5 | S4: 5 | T4: 5 | U4: 5 | V4: 5 | W4: 5 | X4: 5 | Y4: 5 | Z4: 5 | AA4: 5 | AB4: 5 | AC4: 5 | AD4: 5 | AE4: 5 | AF4: 5 | AG4: 5 | AH4: 5 | AI4: 5 | AJ4: 5 | AK4: 5 | AL4: 0 | AM4: 5 | AN4: 5 | AO4: 5 | AP4: 5 | AQ4: 5 | AR4: 5 | AS4: 0 | AT4: 5 | AU4: 5 | AV4: 0 | AW4: 5 | AX4: 5 | AY4: 5 | AZ4: 5 | BA4: 5 | BB4: 5 | BC4: 5 | BD4: 5 | BE4: 5 | BF4: 5 | BG4: 5 | BH4: 5 | BI4: 5 | BJ4: 5 | BK4: 5 | BL4: 0 | BM4: 5 | BN4: 5 | BO4: 5 | BP4: 5 | BQ4: 0 | BR4: 5 | BS4: 0 | BT4: 5 | BU4: 5 | BV4: 5 | BW4: 5 | BX4: 5 | BY4: 5 | BZ4: 5 | CA4: 5 | CB4: 5 | CC4: 5 | CD4: 5 | CE4: 5
A5: Sat | B5: 2020-10-03 | C5: Leeds | D5: 1 | E5: 1 | F5: Man City | G5: 17:30:00 | I5: 0 | J5: 0 | K5: 0 | L5: 0 | M5: 0 | N5: 0 | O5: 0 | P5: 0 | Q5: 0 | R5: 0 | S5: 0 | T5: 0 | U5: 0 | V5: 0 | W5: 0 | X5: 0 | Y5: 0 | Z5: 0 | AA5: 0 | AB5: 0 | AC5: 0 | AD5: 0 | AE5: 0 | AF5: 0 | AG5: 0 | AH5: 0 | AI5: 0 | AJ5: 0 | AK5: 0 | AL5: 0 | AM5: 0 | AN5: 5 | AO5: 0 | AP5: 0 | AQ5: 0 | AR5: 0 | AS5: 0 | AT5: 0 | AU5: 0 | AV5: 0 | AW5: 0 | AX5: 5 | AY5: 0 | AZ5: 0 | BA5: 5 | BB5: 0 | BC5: 0 | BD5: 0 | BE5: 0 | BF5: 0 | BG5: 0 | BH5: 0 | BI5: 0 | BJ5: 5 | BK5: 0 | BL5: 0 | BM5: 5 | BN5: 0 | BO5: 5 | BP5: 0 | BQ5: 0 | BR5: 0 | BS5: 0 | BT5: 0 | BU5: 0 | BV5: 0 | BW5: 0 | BX5: 0 | BY5: 0 | BZ5: 0 | CA5: 0 | CB5: 0 | CC5: 0 | CD5: 0 | CE5: 0
A6: Sat | B6: 2020-10-03 | C6: Newcastle | D6: 3 | E6: 1 | F6: Burnley | G6: 20:00:00 | I6: 5 | J6: 5 | K6: 5 | L6: 5 | M6: 5 | N6: 0 | O6: 5 | P6: 0 | Q6: 5 | R6: 5 | S6: 0 | T6: 0 | U6: 0 | V6: 0 | W6: 0 | X6: 10 | Y6: 0 | Z6: 5 | AA6: 0 | AB6: 5 | AC6: 5 | AD6: 5 | AE6: 0 | AF6: 5 | AG6: 0 | AH6: 0 | AI6: 5 | AJ6: 0 | AK6: 5 | AL6: 5 | AM6: 5 | AN6: 5 | AO6: 5 | AP6: 0 | AQ6: 0 | AR6: 5 | AS6: 0 | AT6: 0 | AU6: 5 | AV6: 5 | AW6: 5 | AX6: 5 | AY6: 0 | AZ6: 5 | BA6: 0 | BB6: 5 | BC6: 5 | BD6: 5 | BE6: 5 | BF6: 0 | BG6: 5 | BH6: 5 | BI6: 5 | BJ6: 5 | BK6: 5 | BL6: 0 | BM6: 0 | BN6: 0 | BO6: 5 | BP6: 0 | BQ6: 0 | BR6: 5 | BS6: 0 | BT6: 5 | BU6: 5 | BV6: 0 | BW6: 5 | BX6: 5 | BY6: 5 | BZ6: 0 | CA6: 5 | CB6: 5 | CC6: 5 | CD6: 5 | CE6: 5
A7: Sun | B7: 2020-10-04 | C7: Leicester City | D7: 0 | E7: 3 | F7: West Ham | G7: 12:00:00 | I7: 0 | J7: 0 | K7: 0 | L7: 0 | M7: 0 | N7: 0 | O7: 0 | P7: 0 | Q7: 0 | R7: 0 | S7: 0 | T7: 0 | U7: 0 | V7: 0 | W7: 0 | X7: 0 | Y7: 0 | Z7: 0 | AA7: 0 | AB7: 0 | AC7: 0 | AD7: 0 | AE7: 0 | AF7: 0 | AG7: 0 | AH7: 0 | AI7: 0 | AJ7: 0 | AK7: 0 | AL7: 0 | AM7: 0 | AN7: 0 | AO7: 0 | AP7: 0 | AQ7: 0 | AR7: 0 | AS7: 0 | AT7: 0 | AU7: 0 | AV7: 0 | AW7: 0 | AX7: 0 | AY7: 0 | AZ7: 0 | BA7: 0 | BB7: 0 | BC7: 0 | BD7: 0 | BE7: 0 | BF7: 0 | BG7: 0 | BH7: 0 | BI7: 0 | BJ7: 0 | BK7: 0 | BL7: 0 | BM7: 0 | BN7: 0 | BO7: 0 | BP7: 0 | BQ7: 0 | BR7: 0 | BS7: 0 | BT7: 0 | BU7: 0 | BV7: 0 | BW7: 0 | BX7: 0 | BY7: 0 | BZ7: 0 | CA7: 0 | CB7: 0 | CC7: 0 | CD7: 0 | CE7: 0
A8: Sun | B8: 2020-10-04 | C8: Southampton | D8: 2 | E8: 0 | F8: West Brom | G8: 12:00:00 | I8: 5 | J8: 0 | K8: 0 | L8: 5 | M8: 10 | N8: 0 | O8: 10 | P8: 10 | Q8: 10 | R8: 5 | S8: 5 | T8: 5 | U8: 5 | V8: 5 | W8: 5 | X8: 0 | Y8: 5 | Z8: 0 | AA8: 5 | AB8: 10 | AC8: 5 | AD8: 10 | AE8: 0 | AF8: 5 | AG8: 5 | AH8: 0 | AI8: 5 | AJ8: 10 | AK8: 10 | AL8: 5 | AM8: 5 | AN8: 10 | AO8: 5 | AP8: 5 | AQ8: 10 | AR8: 5 | AS8: 10 | AT8: 5 | AU8: 0 | AV8: 5 | AW8: 5 | AX8: 5 | AY8: 5 | AZ8: 0 | BA8: 0 | BB8: 10 | BC8: 0 | BD8: 5 | BE8: 5 | BF8: 5 | BG8: 5 | BH8: 0 | BI8: 5 | BJ8: 5 | BK8: 10 | BL8: 0 | BM8: 5 | BN8: 0 | BO8: 5 | BP8: 5 | BQ8: 5 | BR8: 0 | BS8: 5 | BT8: 0 | BU8: 0 | BV8: 5 | BW8: 5 | BX8: 0 | BY8: 0 | BZ8: 10 | CA8: 5 | CB8: 5 | CC8: 5 | CD8: 5 | CE8: 5
A9: Sun | B9: 2020-10-04 | C9: Arsenal | D9: 2 | E9: 1 | F9: Sheffield United | G9: 14:00:00 | I9: 5 | J9: 10 | K9: 5 | L9: 5 | M9: 0 | N9: 5 | O9: 5 | P9: 5 | Q9: 10 | R9: 5 | S9: 5 | T9: 10 | U9: 5 | V9: 5 | W9: 5 | X9: 10 | Y9: 10 | Z9: 5 | AA9: 5 | AB9: 5 | AC9: 5 | AD9: 5 | AE9: 5 | AF9: 5 | AG9: 5 | AH9: 5 | AI9: 5 | AJ9: 5 | AK9: 5 | AL9: 0 | AM9: 5 | AN9: 10 | AO9: 5 | AP9: 10 | AQ9: 5 | AR9: 5 | AS9: 5 | AT9: 5 | AU9: 5 | AV9: 5 | AW9: 5 | AX9: 5 | AY9: 5 | AZ9: 10 | BA9: 5 | BB9: 5 | BC9: 5 | BD9: 10 | BE9: 5 | BF9: 5 | BG9: 5 | BH9: 5 | BI9: 5 | BJ9: 5 | BK9: 5 | BL9: 5 | BM9: 5 | BN9: 10 | BO9: 5 | BP9: 5 | BQ9: 5 | BR9: 5 | BS9: 0 | BT9: 5 | BU9: 5 | BV9: 5 | BW9: 5 | BX9: 5 | BY9: 5 | BZ9: 5 | CA9: 5 | CB9: 5 | CC9: 5 | CD9: 5 | CE9: 10
A10: Sun | B10: 2020-10-04 | C10: Wolves | D10: 1 | E10: 0 | F10: Fulham | G10: 14:00:00 | I10: 5 | J10: 10 | K10: 5 | L10: 5 | M10: 5 | N10: 5 | O10: 5 | P10: 5 | Q10: 5 | R10: 5 | S10: 5 | T10: 5 | U10: 5 | V10: 5 | W10: 5 | X10: 5 | Y10: 5 | Z10: 10 | AA10: 5 | AB10: 5 | AC10: 5 | AD10: 5 | AE10: 5 | AF10: 5 | AG10: 10 | AH10: 5 | AI10: 5 | AJ10: 5 | AK10: 5 | AL10: 5 | AM10: 5 | AN10: 5 | AO10: 5 | AP10: 5 | AQ10: 5 | AR10: 5 | AS10: 5 | AT10: 5 | AU10: 5 | AV10: 5 | AW10: 5 | AX10: 5 | AY10: 5 | AZ10: 5 | BA10: 10 | BB10: 5 | BC10: 5 | BD10: 5 | BE10: 5 | BF10: 5 | BG10: 5 | BH10: 5 | BI10: 5 | BJ10: 5 | BK10: 5 | BL10: 5 | BM10: 5 | BN10: 5 | BO10: 0 | BP10: 5 | BQ10: 5 | BR10: 5 | BS10: 5 | BT10: 5 | BU10: 5 | BV10: 5 | BW10: 5 | BX10: 5 | BY10: 5 | BZ10: 5 | CA10: 5 | CB10: 5 | CC10: 5 | CD10: 5 | CE10: 5
A11: Sun | B11: 2020-10-04 | C11: Manchester United | D11: 1 | E11: 6 | F11: Tottenham | G11: 16:30:00 | I11: 5 | J11: 0 | K11: 0 | L11: 0 | M11: 0 | N11: 0 | O11: 0 | P11: 0 | Q11: 0 | R11: 0 | S11: 0 | T11: 5 | U11: 0 | V11: 0 | W11: 0 | X11: 0 | Y11: 0 | Z11: 0 | AA11: 0 | AB11: 0 | AC11: 0 | AD11: 0 | AE11: 5 | AF11: 0 | AG11: 5 | AH11: 0 | AI11: 5 | AJ11: 0 | AK11: 0 | AL11: 5 | AM11: 5 | AN11: 0 | AO11: 5 | AP11: 5 | AQ11: 5 | AR11: 0 | AS11: 0 | AT11: 0 | AU11: 0 | AV11: 0 | AW11: 0 | AX11: 0 | AY11: 0 | AZ11: 0 | BA11: 0 | BB11: 0 | BC11: 0 | BD11: 0 | BE11: 0 | BF11: 0 | BG11: 0 | BH11: 0 | BI11: 0 | BJ11: 0 | BK11: 5 | BL11: 0 | BM11: 0 | BN11: 5 | BO11: 0 | BP11: 5 | BQ11: 0 | BR11: 0 | BS11: 0 | BT11: 0 | BU11: 0 | BV11: 0 | BW11: 5 | BX11: 0 | BY11: 5 | BZ11: 0 | CA11: 0 | CB11: 5 | CC11: 0 | CD11: 0 | CE11: 5
A12: Sun | B12: 2020-10-04 | C12: Aston Villa | D12: 7 | E12: 2 | F12: Liverpool | G12: 19:15:00 | I12: 0 | J12: 0 | K12: 0 | L12: 0 | M12: 0 | N12: 0 | O12: 0 | P12: 0 | Q12: 0 | R12: 0 | S12: 0 | T12: 0 | U12: 0 | V12: 0 | W12: 0 | X12: 0 | Y12: 0 | Z12: 0 | AA12: 0 | AB12: 0 | AC12: 0 | AD12: 0 | AE12: 0 | AF12: 0 | AG12: 0 | AH12: 0 | AI12: 0 | AJ12: 0 | AK12: 5 | AL12: 0 | AM12: 0 | AN12: 0 | AO12: 0 | AP12: 0 | AQ12: 0 | AR12: 0 | AS12: 0 | AT12: 0 | AU12: 0 | AV12: 0 | AW12: 0 | AX12: 0 | AY12: 0 | AZ12: 0 | BA12: 0 | BB12: 0 | BC12: 0 | BD12: 5 | BE12: 0 | BF12: 0 | BG12: 0 | BH12: 0 | BI12: 0 | BJ12: 0 | BK12: 0 | BL12: 0 | BM12: 0 | BN12: 0 | BO12: 0 | BP12: 0 | BQ12: 0 | BR12: 0 | BS12: 0 | BT12: 0 | BU12: 0 | BV12: 0 | BW12: 0 | BX12: 0 | BY12: 0 | BZ12: 0 | CA12: 0 | CB12: 0 | CC12: 0 | CD12: 0 | CE12: 0
A13: Sat | B13: 2010-10-17 | C13: Everton | D13: 2 | E13: 2 | F13: Liverpool | G13: 12:30:00 | I13: 0 | J13: 0 | K13: 10 | L13: 0 | M13: 0 | N13: 0 | O13: 0 | P13: 0 | Q13: 0 | R13: 0 | S13: 0 | T13: 0 | U13: 10 | V13: 0 | W13: 0 | X13: 0 | Y13: 0 | Z13: 5 | AA13: 0 | AB13: 10 | AC13: 10 | AD13: 10 | AE13: 5 | AF13: 5 | AG13: 10 | AH13: 10 | AI13: 0 | AJ13: 5 | AK13: 5 | AL13: 0 | AM13: 0 | AN13: 0 | AO13: 0 | AP13: 0 | AQ13: 10 | AR13: 0 | AS13: 10 | AT13: 0 | AU13: 0 | AV13: 10 | AW13: 0 | AX13: 5 | AY13: 5 | AZ13: 0 | BA13: 5 | BB13: 10 | BC13: 0 | BD13: 5 | BE13: 0 | BF13: 0 | BG13: 5 | BH13: 10 | BI13: 0 | BJ13: 0 | BK13: 0 | BL13: 0 | BM13: 0 | BN13: 5 | BO13: 0 | BP13: 0 | BQ13: 0 | BR13: 0 | BS13: 0 | BT13: 0 | BU13: 0 | BV13: 0 | BW13: 0 | BX13: 0 | BY13: 5 | BZ13: 0 | CA13: 0 | CB13: 0 | CC13: 0 | CD13: 0 | CE13: 5
A14: Sat | B14: 2010-10-17 | C14: Chelsea | D14: 3 | E14: 3 | F14: Southampton | G14: 15:00:00 | I14: 0 | J14: 0 | K14: 0 | L14: 0 | M14: 0 | N14: 0 | O14: 0 | P14: 0 | Q14: 0 | R14: 0 | S14: 0 | T14: 0 | U14: 0 | V14: 0 | W14: 0 | X14: 0 | Y14: 0 | Z14: 0 | AA14: 0 | AB14: 0 | AC14: 0 | AD14: 0 | AE14: 0 | AF14: 0 | AG14: 0 | AH14: 0 | AI14: 0 | AJ14: 5 | AK14: 0 | AL14: 0 | AM14: 0 | AN14: 0 | AO14: 0 | AP14: 0 | AQ14: 0 | AR14: 0 | AS14: 0 | AT14: 0 | AU14: 0 | AV14: 0 | AW14: 0 | AX14: 0 | AY14: 0 | AZ14: 0 | BA14: 0 | BB14: 0 | BC14: 0 | BD14: 0 | BE14: 0 | BF14: 0 | BG14: 0 | BH14: 0 | BI14: 0 | BJ14: 0 | BK14: 0 | BL14: 0 | BM14: 0 | BN14: 0 | BO14: 0 | BP14: 0 | BQ14: 0 | BR14: 0 | BS14: 0 | BT14: 0 | BU14: 0 | BV14: 0 | BW14: 0 | BX14: 0 | BY14: 0 | BZ14: 0 | CA14: 0 | CB14: 0 | CC14: 0 | CD14: 0 | CE14: 0
A15: Sat | B15: 2010-10-17 | C15: Man City | D15: 1 | E15: 0 | F15: Arsenal | G15: 17:30:00 | I15: 5 | J15: 10 | K15: 5 | L15: 5 | M15: 5 | N15: 5 | O15: 5 | P15: 5 | Q15: 5 | R15: 5 | S15: 0 | T15: 0 | U15: 5 | V15: 5 | W15: 5 | X15: 5 | Y15: 5 | Z15: 5 | AA15: 5 | AB15: 5 | AC15: 5 | AD15: 5 | AE15: 5 | AF15: 5 | AG15: 0 | AH15: 5 | AI15: 0 | AJ15: 10 | AK15: 5 | AL15: 5 | AM15: 5 | AN15: 5 | AO15: 5 | AP15: 0 | AQ15: 5 | AR15: 5 | AS15: 5 | AT15: 5 | AU15: 0 | AV15: 5 | AW15: 5 | AX15: 0 | AY15: 5 | AZ15: 0 | BA15: 0 | BB15: 5 | BC15: 0 | BD15: 5 | BE15: 5 | BF15: 5 | BG15: 5 | BH15: 5 | BI15: 0 | BJ15: 5 | BK15: 0 | BL15: 0 | BM15: 5 | BN15: 0 | BO15: 0 | BP15: 0 | BQ15: 0 | BR15: 5 | BS15: 5 | BT15: 10 | BU15: 5 | BV15: 5 | BW15: 5 | BX15: 0 | BY15: 5 | BZ15: 0 | CA15: 5 | CB15: 5 | CC15: 5 | CD15: 0 | CE15: 5
A16: Sat | B16: 2010-10-17 | C16: Newcastle | D16: 1 | E16: 4 | F16: Manchester United | G16: 19:45:00 | I16: 5 | J16: 0 | K16: 0 | L16: 5 | M16: 0 | N16: 5 | O16: 5 | P16: 5 | Q16: 5 | R16: 5 | S16: 5 | T16: 0 | U16: 5 | V16: 0 | W16: 0 | X16: 5 | Y16: 5 | Z16: 5 | AA16: 5 | AB16: 5 | AC16: 0 | AD16: 0 | AE16: 0 | AF16: 0 | AG16: 5 | AH16: 5 | AI16: 5 | AJ16: 0 | AK16: 5 | AL16: 0 | AM16: 0 | AN16: 5 | AO16: 0 | AP16: 5 | AQ16: 0 | AR16: 0 | AS16: 5 | AT16: 0 | AU16: 0 | AV16: 5 | AW16: 0 | AX16: 0 | AY16: 0 | AZ16: 5 | BA16: 0 | BB16: 5 | BC16: 0 | BD16: 5 | BE16: 5 | BF16: 5 | BG16: 5 | BH16: 5 | BI16: 5 | BJ16: 5 | BK16: 5 | BL16: 5 | BM16: 0 | BN16: 0 | BO16: 5 | BP16: 0 | BQ16: 5 | BR16: 5 | BS16: 0 | BT16: 5 | BU16: 5 | BV16: 5 | BW16: 5 | BX16: 5 | BY16: 0 | BZ16: 5 | CA16: 0 | CB16: 5 | CC16: 0 | CD16: 5 | CE16: 0
A17: Sun | B17: 2020-10-18 | C17: Sheffield United | D17: 1 | E17: 1 | F17: Fulham | G17: 12:00:00 | I17: 0 | J17: 0 | K17: 10 | L17: 0 | M17: 0 | N17: 10 | O17: 0 | P17: 0 | Q17: 0 | R17: 5 | S17: 0 | T17: 10 | U17: 5 | V17: 0 | W17: 0 | X17: 0 | Y17: 0 | Z17: 0 | AA17: 0 | AB17: 0 | AC17: 0 | AD17: 0 | AE17: 0 | AF17: 0 | AG17: 0 | AH17: 0 | AI17: 10 | AJ17: 5 | AK17: 0 | AL17: 0 | AM17: 0 | AN17: 0 | AO17: 0 | AP17: 0 | AQ17: 0 | AR17: 0 | AS17: 0 | AT17: 0 | AU17: 10 | AV17: 0 | AW17: 0 | AX17: 0 | AY17: 0 | AZ17: 0 | BA17: 0 | BB17: 0 | BC17: 0 | BD17: 0 | BE17: 0 | BF17: 0 | BG17: 0 | BH17: 0 | BI17: 0 | BJ17: 10 | BK17: 0 | BL17: 10 | BM17: 0 | BN17: 0 | BO17: 10 | BP17: 0 | BQ17: 10 | BR17: 5 | BS17: 0 | BT17: 0 | BU17: 0 | BV17: 0 | BW17: 0 | BX17: 0 | BY17: 0 | BZ17: 0 | CA17: 0 | CB17: 0 | CC17: 0 | CD17: 0 | CE17: 0
A18: Sun | B18: 2020-10-18 | C18: Crystal Palace | D18: 1 | E18: 1 | F18: Brighton | G18: 14:00:00 | I18: 0 | J18: 10 | K18: 0 | L18: 10 | M18: 0 | N18: 0 | O18: 10 | P18: 10 | Q18: 0 | R18: 0 | S18: 5 | T18: 0 | U18: 10 | V18: 0 | W18: 0 | X18: 0 | Y18: 10 | Z18: 0 | AA18: 0 | AB18: 10 | AC18: 0 | AD18: 0 | AE18: 5 | AF18: 10 | AG18: 0 | AH18: 10 | AI18: 0 | AJ18: 5 | AK18: 10 | AL18: 0 | AM18: 10 | AN18: 10 | AO18: 10 | AP18: 0 | AQ18: 0 | AR18: 0 | AS18: 10 | AT18: 0 | AU18: 0 | AV18: 0 | AW18: 0 | AX18: 5 | AY18: 0 | AZ18: 5 | BA18: 5 | BB18: 0 | BC18: 0 | BD18: 10 | BE18: 0 | BF18: 10 | BG18: 5 | BH18: 0 | BI18: 0 | BJ18: 10 | BK18: 0 | BL18: 0 | BM18: 0 | BN18: 0 | BO18: 0 | BP18: 10 | BQ18: 0 | BR18: 0 | BS18: 0 | BT18: 0 | BU18: 10 | BV18: 10 | BW18: 0 | BX18: 0 | BY18: 10 | BZ18: 0 | CA18: 10 | CB18: 10 | CC18: 0 | CD18: 0 | CE18: 10
A19: Sun | B19: 2020-10-18 | C19: Tottenham | D19: 3 | E19: 3 | F19: West Ham | G19: 16:30:00 | I19: 0 | J19: 0 | K19: 0 | L19: 0 | M19: 0 | N19: 0 | O19: 0 | P19: 0 | Q19: 0 | R19: 0 | S19: 0 | T19: 0 | U19: 0 | V19: 0 | W19: 0 | X19: 0 | Y19: 0 | Z19: 0 | AA19: 0 | AB19: 0 | AC19: 0 | AD19: 0 | AE19: 0 | AF19: 0 | AG19: 0 | AH19: 0 | AI19: 0 | AJ19: 5 | AK19: 0 | AL19: 0 | AM19: 0 | AN19: 0 | AO19: 0 | AP19: 5 | AQ19: 0 | AR19: 0 | AS19: 5 | AT19: 0 | AU19: 0 | AV19: 0 | AW19: 0 | AX19: 5 | AY19: 5 | AZ19: 0 | BA19: 0 | BB19: 0 | BC19: 0 | BD19: 0 | BE19: 0 | BF19: 0 | BG19: 0 | BH19: 0 | BI19: 5 | BJ19: 0 | BK19: 0 | BL19: 0 | BM19: 0 | BN19: 0 | BO19: 0 | BP19: 0 | BQ19: 5 | BR19: 0 | BS19: 0 | BT19: 0 | BU19: 0 | BV19: 0 | BW19: 0 | BX19: 0 | BY19: 5 | BZ19: 0 | CA19: 0 | CB19: 0 | CC19: 0 | CD19: 0 | CE19: 0
A20: Sun | B20: 2020-10-18 | C20: Leicester | D20: 0 | E20: 1 | F20: Aston Villa | G20: 19:15:00 | I20: 5 | J20: 0 | K20: 0 | L20: 0 | M20: 0 | N20: 0 | O20: 0 | P20: 0 | Q20: 0 | R20: 0 | S20: 0 | T20: 0 | U20: 0 | V20: 5 | W20: 0 | X20: 0 | Y20: 0 | Z20: 0 | AA20: 0 | AB20: 0 | AC20: 0 | AD20: 0 | AE20: 0 | AF20: 0 | AG20: 0 | AH20: 0 | AI20: 0 | AJ20: 0 | AK20: 0 | AL20: 0 | AM20: 0 | AN20: 0 | AO20: 5 | AP20: 0 | AQ20: 0 | AR20: 0 | AS20: 0 | AT20: 0 | AU20: 0 | AV20: 0 | AW20: 0 | AX20: 0 | AY20: 0 | AZ20: 0 | BA20: 0 | BB20: 0 | BC20: 0 | BD20: 0 | BE20: 0 | BF20: 0 | BG20: 0 | BH20: 0 | BI20: 0 | BJ20: 0 | BK20: 0 | BL20: 0 | BM20: 0 | BN20: 0 | BO20: 0 | BP20: 0 | BQ20: 0 | BR20: 0 | BS20: 0 | BT20: 0 | BU20: 0 | BV20: 0 | BW20: 0 | BX20: 0 | BY20: 0 | BZ20: 0 | CA20: 0 | CB20: 0 | CC20: 0 | CD20: 0 | CE20: 0
A21: Mon | B21: 2020-10-19 | C21: West Brom | D21: 0 | E21: 0 | F21: Burnley | G21: 17:30:00 | I21: 5 | J21: 0 | K21: 5 | L21: 5 | M21: 0 | N21: 5 | O21: 0 | P21: 0 | Q21: 5 | R21: 0 | S21: 0 | T21: 0 | U21: 0 | V21: 0 | W21: 0 | X21: 0 | Y21: 5 | Z21: 5 | AA21: 0 | AB21: 0 | AC21: 0 | AD21: 0 | AE21: 10 | AF21: 5 | AG21: 10 | AH21: 0 | AI21: 0 | AJ21: 5 | AK21: 0 | AL21: 0 | AM21: 0 | AN21: 0 | AO21: 5 | AP21: 0 | AQ21: 5 | AR21: 5 | AS21: 0 | AT21: 0 | AU21: 5 | AV21: 0 | AW21: 0 | AX21: 10 | AY21: 10 | AZ21: 10 | BA21: 0 | BB21: 0 | BC21: 10 | BD21: 5 | BE21: 0 | BF21: 0 | BG21: 0 | BH21: 0 | BI21: 0 | BJ21: 0 | BK21: 0 | BL21: 0 | BM21: 0 | BN21: 5 | BO21: 0 | BP21: 0 | BQ21: 0 | BR21: 5 | BS21: 5 | BT21: 5 | BU21: 5 | BV21: 0 | BW21: 5 | BX21: 5 | BY21: 0 | BZ21: 0 | CA21: 0 | CB21: 0 | CC21: 0 | CD21: 0 | CE21: 5
A22: Mon | B22: 2020-10-19 | C22: Leeds | D22: 0 | E22: 1 | F22: Wolves | G22: 20:00:00 | I22: 0 | J22: 0 | K22: 5 | L22: 0 | M22: 0 | N22: 0 | O22: 0 | P22: 0 | Q22: 0 | R22: 5 | S22: 0 | T22: 0 | U22: 0 | V22: 5 | W22: 0 | X22: 0 | Y22: 0 | Z22: 0 | AA22: 0 | AB22: 0 | AC22: 5 | AD22: 0 | AE22: 0 | AF22: 0 | AG22: 0 | AH22: 0 | AI22: 5 | AJ22: 0 | AK22: 0 | AL22: 0 | AM22: 0 | AN22: 0 | AO22: 0 | AP22: 5 | AQ22: 0 | AR22: 5 | AS22: 0 | AT22: 0 | AU22: 0 | AV22: 0 | AW22: 0 | AX22: 0 | AY22: 0 | AZ22: 0 | BA22: 0 | BB22: 0 | BC22: 0 | BD22: 5 | BE22: 0 | BF22: 5 | BG22: 0 | BH22: 0 | BI22: 0 | BJ22: 0 | BK22: 0 | BL22: 5 | BM22: 0 | BN22: 0 | BO22: 0 | BP22: 5 | BQ22: 5 | BR22: 0 | BS22: 0 | BT22: 0 | BU22: 0 | BV22: 0 | BW22: 0 | BX22: 0 | BY22: 0 | BZ22: 0 | CA22: 0 | CB22: 0 | CC22: 0 | CD22: 0 | CE22: 0
A23: Fri | B23: 2020-10-23 | C23: Aston Villa | D23: 0 | E23: 3 | F23: Leeds | G23: 20:00:00 | I23: 0 | J23: 0 | K23: 0 | L23: 0 | M23: 0 | N23: 0 | O23: 0 | P23: 0 | Q23: 0 | R23: 0 | S23: 0 | T23: 0 | U23: 0 | V23: 0 | W23: 0 | X23: 0 | Y23: 0 | Z23: 0 | AA23: 0 | AB23: 0 | AC23: 0 | AD23: 0 | AE23: 0 | AF23: 0 | AG23: 0 | AH23: 0 | AI23: 5 | AJ23: 0 | AK23: 0 | AL23: 0 | AM23: 0 | AN23: 0 | AO23: 0 | AP23: 0 | AQ23: 0 | AR23: 5 | AS23: 5 | AT23: 0 | AU23: 0 | AV23: 0 | AW23: 0 | AX23: 0 | AY23: 0 | AZ23: 0 | BA23: 0 | BB23: 0 | BC23: 5 | BD23: 0 | BE23: 0 | BF23: 0 | BG23: 5 | BH23: 0 | BI23: 0 | BJ23: 5 | BK23: 0 | BL23: 0 | BM23: 0 | BN23: 5 | BO23: 5 | BP23: 0 | BQ23: 5 | BR23: 0 | BS23: 0 | BT23: 0 | BU23: 0 | BV23: 0 | BW23: 0 | BX23: 0 | BY23: 5 | BZ23: 0 | CA23: 0 | CB23: 5 | CC23: 0 | CD23: 0 | CE23: 0
A24: Sat | B24: 2010-10-24 | C24: West Ham | D24: 1 | E24: 1 | F24: Man City | G24: 12:30:00 | I24: 0 | J24: 0 | K24: 0 | L24: 0 | M24: 0 | N24: 0 | O24: 0 | P24: 0 | Q24: 0 | R24: 0 | S24: 0 | T24: 0 | U24: 0 | V24: 0 | W24: 0 | X24: 0 | Y24: 0 | Z24: 0 | AA24: 0 | AB24: 0 | AC24: 0 | AD24: 0 | AE24: 0 | AF24: 0 | AG24: 0 | AH24: 0 | AI24: 0 | AJ24: 5 | AK24: 0 | AL24: 0 | AM24: 0 | AN24: 0 | AO24: 0 | AP24: 0 | AQ24: 0 | AR24: 0 | AS24: 0 | AT24: 0 | AU24: 10 | AV24: 0 | AW24: 0 | AX24: 0 | AY24: 0 | AZ24: 0 | BA24: 0 | BB24: 0 | BC24: 0 | BD24: 0 | BE24: 0 | BF24: 0 | BG24: 0 | BH24: 0 | BI24: 0 | BJ24: 10 | BK24: 0 | BL24: 0 | BM24: 0 | BN24: 0 | BO24: 0 | BP24: 0 | BQ24: 0 | BR24: 0 | BS24: 0 | BT24: 0 | BU24: 0 | BV24: 0 | BW24: 0 | BX24: 0 | BY24: 10 | BZ24: 0 | CA24: 0 | CB24: 0 | CC24: 0 | CD24: 0 | CE24: 10
A25: Sat | B25: 2010-10-24 | C25: Fulham | D25: 1 | E25: 2 | F25: Crystal Palace | G25: 15:00:00 | I25: 0 | J25: 0 | K25: 10 | L25: 5 | M25: 10 | N25: 10 | O25: 10 | P25: 5 | Q25: 5 | R25: 0 | S25: 5 | T25: 0 | U25: 5 | V25: 10 | W25: 10 | X25: 0 | Y25: 10 | Z25: 0 | AA25: 5 | AB25: 5 | AC25: 0 | AD25: 0 | AE25: 5 | AF25: 0 | AG25: 5 | AH25: 5 | AI25: 5 | AJ25: 0 | AK25: 5 | AL25: 10 | AM25: 10 | AN25: 10 | AO25: 0 | AP25: 10 | AQ25: 10 | AR25: 5 | AS25: 5 | AT25: 5 | AU25: 0 | AV25: 0 | AW25: 0 | AX25: 0 | AY25: 5 | AZ25: 10 | BA25: 0 | BB25: 0 | BC25: 0 | BD25: 5 | BE25: 5 | BF25: 10 | BG25: 5 | BH25: 10 | BI25: 10 | BJ25: 0 | BK25: 0 | BL25: 0 | BM25: 5 | BN25: 10 | BO25: 0 | BP25: 5 | BQ25: 10 | BR25: 5 | BS25: 5 | BT25: 0 | BU25: 0 | BV25: 0 | BW25: 0 | BX25: 0 | BY25: 0 | BZ25: 0 | CA25: 0 | CB25: 0 | CC25: 0 | CD25: 5 | CE25: 10
A26: Sat | B26: 2010-10-24 | C26: Manchester United | D26: 0 | E26: 0 | F26: Chelsea | G26: 17:30:00 | I26: 5 | J26: 5 | K26: 5 | L26: 0 | M26: 5 | N26: 0 | O26: 5 | P26: 0 | Q26: 0 | R26: 0 | S26: 5 | T26: 5 | U26: 0 | V26: 0 | W26: 0 | X26: 5 | Y26: 0 | Z26: 5 | AA26: 5 | AB26: 0 | AC26: 5 | AD26: 0 | AE26: 0 | AF26: 0 | AG26: 5 | AH26: 5 | AI26: 0 | AJ26: 5 | AK26: 5 | AL26: 0 | AM26: 0 | AN26: 0 | AO26: 0 | AP26: 0 | AQ26: 5 | AR26: 5 | AS26: 0 | AT26: 0 | AU26: 5 | AV26: 5 | AW26: 0 | AX26: 5 | AY26: 0 | AZ26: 5 | BA26: 5 | BB26: 5 | BC26: 0 | BD26: 0 | BE26: 0 | BF26: 5 | BG26: 0 | BH26: 5 | BI26: 0 | BJ26: 0 | BK26: 0 | BL26: 0 | BM26: 0 | BN26: 0 | BO26: 5 | BP26: 0 | BQ26: 0 | BR26: 0 | BS26: 5 | BT26: 5 | BU26: 0 | BV26: 0 | BW26: 0 | BX26: 0 | BY26: 5 | BZ26: 0 | CA26: 5 | CB26: 5 | CC26: 5 | CD26: 0 | CE26: 0
A27: Sat | B27: 2010-10-24 | C27: Liverpool | D27: 2 | E27: 1 | F27: Sheffield United | G27: 19:45:00 | I27: 5 | J27: 5 | K27: 5 | L27: 5 | M27: 5 | N27: 5 | O27: 5 | P27: 5 | Q27: 5 | R27: 5 | S27: 10 | T27: 5 | U27: 5 | V27: 5 | W27: 5 | X27: 5 | Y27: 5 | Z27: 5 | AA27: 5 | AB27: 5 | AC27: 5 | AD27: 5 | AE27: 10 | AF27: 5 | AG27: 5 | AH27: 5 | AI27: 5 | AJ27: 0 | AK27: 5 | AL27: 5 | AM27: 10 | AN27: 5 | AO27: 5 | AP27: 5 | AQ27: 5 | AR27: 5 | AS27: 5 | AT27: 5 | AU27: 0 | AV27: 5 | AW27: 5 | AX27: 5 | AY27: 5 | AZ27: 5 | BA27: 5 | BB27: 5 | BC27: 5 | BD27: 5 | BE27: 5 | BF27: 5 | BG27: 5 | BH27: 5 | BI27: 0 | BJ27: 5 | BK27: 5 | BL27: 5 | BM27: 10 | BN27: 0 | BO27: 5 | BP27: 5 | BQ27: 5 | BR27: 5 | BS27: 5 | BT27: 5 | BU27: 5 | BV27: 5 | BW27: 5 | BX27: 5 | BY27: 5 | BZ27: 5 | CA27: 5 | CB27: 5 | CC27: 5 | CD27: 5 | CE27: 5
A28: Sun | B28: 2020-10-25 | C28: Southampton | D28: 2 | E28: 0 | F28: Everton | G28: 15:00:00 | I28: 0 | J28: 0 | K28: 0 | L28: 10 | M28: 5 | N28: 0 | O28: 5 | P28: 0 | Q28: 0 | R28: 0 | S28: 0 | T28: 0 | U28: 0 | V28: 0 | W28: 0 | X28: 5 | Y28: 0 | Z28: 0 | AA28: 0 | AB28: 0 | AC28: 0 | AD28: 0 | AE28: 0 | AF28: 0 | AG28: 0 | AH28: 0 | AI28: 0 | AJ28: 0 | AK28: 0 | AL28: 0 | AM28: 0 | AN28: 0 | AO28: 5 | AP28: 0 | AQ28: 0 | AR28: 10 | AS28: 0 | AT28: 0 | AU28: 0 | AV28: 0 | AW28: 0 | AX28: 0 | AY28: 0 | AZ28: 0 | BA28: 0 | BB28: 0 | BC28: 0 | BD28: 0 | BE28: 0 | BF28: 5 | BG28: 10 | BH28: 0 | BI28: 0 | BJ28: 0 | BK28: 0 | BL28: 5 | BM28: 0 | BN28: 0 | BO28: 5 | BP28: 0 | BQ28: 0 | BR28: 0 | BS28: 0 | BT28: 5 | BU28: 0 | BV28: 0 | BW28: 0 | BX28: 0 | BY28: 0 | BZ28: 0 | CA28: 0 | CB28: 0 | CC28: 0 | CD28: 0 | CE28: 0
A29: Sun | B29: 2020-10-25 | C29: Wolves | D29: 1 | E29: 1 | F29: Newcastle | G29: 17:30:00 | I29: 0 | J29: 0 | K29: 0 | L29: 0 | M29: 0 | N29: 0 | O29: 0 | P29: 0 | Q29: 0 | R29: 0 | S29: 0 | T29: 0 | U29: 0 | V29: 0 | W29: 0 | X29: 0 | Y29: 0 | Z29: 0 | AA29: 0 | AB29: 0 | AC29: 0 | AD29: 0 | AE29: 0 | AF29: 0 | AG29: 0 | AH29: 0 | AI29: 0 | AJ29: 5 | AK29: 0 | AL29: 0 | AM29: 0 | AN29: 0 | AO29: 0 | AP29: 0 | AQ29: 0 | AR29: 0 | AS29: 5 | AT29: 0 | AU29: 10 | AV29: 0 | AW29: 0 | AX29: 0 | AY29: 0 | AZ29: 0 | BA29: 0 | BB29: 0 | BC29: 5 | BD29: 0 | BE29: 0 | BF29: 0 | BG29: 0 | BH29: 0 | BI29: 10 | BJ29: 0 | BK29: 0 | BL29: 0 | BM29: 0 | BN29: 0 | BO29: 0 | BP29: 0 | BQ29: 0 | BR29: 0 | BS29: 0 | BT29: 5 | BU29: 5 | BV29: 0 | BW29: 0 | BX29: 0 | BY29: 0 | BZ29: 0 | CA29: 0 | CB29: 0 | CC29: 0 | CD29: 0 | CE29: 0
A30: Sun | B30: 2020-10-25 | C30: Arsenal | D30: 0 | E30: 1 | F30: Leicester | G30: 20:15:00 | I30: 0 | J30: 0 | K30: 5 | L30: 0 | M30: 0 | N30: 0 | O30: 0 | P30: 0 | Q30: 0 | R30: 0 | S30: 0 | T30: 5 | U30: 0 | V30: 0 | W30: 0 | X30: 0 | Y30: 0 | Z30: 0 | AA30: 0 | AB30: 0 | AC30: 0 | AD30: 0 | AE30: 10 | AF30: 0 | AG30: 5 | AH30: 0 | AI30: 0 | AJ30: 0 | AK30: 0 | AL30: 0 | AM30: 0 | AN30: 0 | AO30: 0 | AP30: 0 | AQ30: 0 | AR30: 0 | AS30: 0 | AT30: 0 | AU30: 0 | AV30: 0 | AW30: 0 | AX30: 0 | AY30: 0 | AZ30: 0 | BA30: 0 | BB30: 0 | BC30: 0 | BD30: 0 | BE30: 0 | BF30: 0 | BG30: 5 | BH30: 0 | BI30: 0 | BJ30: 0 | BK30: 0 | BL30: 0 | BM30: 0 | BN30: 5 | BO30: 0 | BP30: 0 | BQ30: 5 | BR30: 0 | BS30: 0 | BT30: 0 | BU30: 0 | BV30: 0 | BW30: 0 | BX30: 0 | BY30: 0 | BZ30: 0 | CA30: 0 | CB30: 0 | CC30: 0 | CD30: 0 | CE30: 0
A31: Mon | B31: 2020-10-26 | C31: Brighton | D31: 1 | E31: 1 | F31: West Brom | G31: 17:30:00 | I31: 10 | J31: 10 | K31: 0 | L31: 0 | M31: 0 | N31: 0 | O31: 0 | P31: 10 | Q31: 0 | R31: 0 | S31: 5 | T31: 10 | U31: 0 | V31: 0 | W31: 10 | X31: 0 | Y31: 0 | Z31: 10 | AA31: 0 | AB31: 0 | AC31: 0 | AD31: 0 | AE31: 0 | AF31: 0 | AG31: 10 | AH31: 10 | AI31: 10 | AJ31: 5 | AK31: 0 | AL31: 0 | AM31: 0 | AN31: 0 | AO31: 0 | AP31: 0 | AQ31: 0 | AR31: 5 | AS31: 0 | AT31: 0 | AU31: 10 | AV31: 0 | AW31: 0 | AX31: 0 | AY31: 0 | AZ31: 0 | BA31: 0 | BB31: 0 | BC31: 0 | BD31: 0 | BE31: 0 | BF31: 0 | BG31: 0 | BH31: 0 | BI31: 0 | BJ31: 0 | BK31: 0 | BL31: 0 | BM31: 10 | BN31: 0 | BO31: 10 | BP31: 0 | BQ31: 10 | BR31: 10 | BS31: 0 | BT31: 0 | BU31: 0 | BV31: 0 | BW31: 0 | BX31: 0 | BY31: 0 | BZ31: 0 | CA31: 10 | CB31: 0 | CC31: 0 | CD31: 0 | CE31: 10
A32: Mon | B32: 2020-10-26 | C32: Burnley | D32: 0 | E32: 1 | F32: Tottenham | G32: 20:00:00 | I32: 5 | J32: 5 | K32: 5 | L32: 5 | M32: 5 | N32: 5 | O32: 5 | P32: 5 | Q32: 5 | R32: 5 | S32: 5 | T32: 5 | U32: 0 | V32: 5 | W32: 5 | X32: 5 | Y32: 5 | Z32: 5 | AA32: 5 | AB32: 5 | AC32: 5 | AD32: 5 | AE32: 5 | AF32: 5 | AG32: 5 | AH32: 5 | AI32: 5 | AJ32: 0 | AK32: 5 | AL32: 5 | AM32: 5 | AN32: 5 | AO32: 5 | AP32: 5 | AQ32: 5 | AR32: 5 | AS32: 5 | AT32: 10 | AU32: 0 | AV32: 5 | AW32: 5 | AX32: 5 | AY32: 5 | AZ32: 5 | BA32: 5 | BB32: 5 | BC32: 5 | BD32: 5 | BE32: 5 | BF32: 5 | BG32: 5 | BH32: 5 | BI32: 5 | BJ32: 5 | BK32: 5 | BL32: 5 | BM32: 5 | BN32: 5 | BO32: 5 | BP32: 5 | BQ32: 0 | BR32: 5 | BS32: 5 | BT32: 5 | BU32: 5 | BV32: 5 | BW32: 5 | BX32: 5 | BY32: 5 | BZ32: 5 | CA32: 5 | CB32: 5 | CC32: 5 | CD32: 5 | CE32: 5
A33: Fri | B33: 2020-10-30 | C33: Wolves | D33: 2 | E33: 0 | F33: Crystal Palace | G33: 20:00:00 | I33: 0 | J33: 5 | K33: 10 | L33: 5 | M33: 5 | N33: 5 | O33: 5 | P33: 10 | Q33: 5 | R33: 5 | S33: 5 | T33: 5 | U33: 10 | V33: 5 | W33: 5 | X33: 5 | Y33: 0 | Z33: 0 | AA33: 10 | AB33: 5 | AC33: 5 | AD33: 5 | AE33: 5 | AF33: 5 | AG33: 0 | AH33: 0 | AI33: 5 | AJ33: 0 | AK33: 5 | AL33: 0 | AM33: 0 | AN33: 0 | AO33: 5 | AP33: 5 | AQ33: 5 | AR33: 5 | AS33: 5 | AT33: 10 | AU33: 5 | AV33: 5 | AW33: 10 | AX33: 0 | AY33: 10 | AZ33: 5 | BA33: 5 | BB33: 5 | BC33: 10 | BD33: 10 | BE33: 5 | BF33: 5 | BG33: 10 | BH33: 5 | BI33: 5 | BJ33: 5 | BK33: 10 | BL33: 5 | BM33: 5 | BN33: 5 | BO33: 0 | BP33: 5 | BQ33: 5 | BR33: 5 | BS33: 10 | BT33: 5 | BU33: 0 | BV33: 10 | BW33: 10 | BX33: 5 | BY33: 5 | BZ33: 10 | CA33: 0 | CB33: 0 | CC33: 5 | CD33: 5 | CE33: 5
A34: Sat | B34: 2010-10-31 | C34: Sheffield United | D34: 0 | E34: 1 | F34: Man City | G34: 12:30:00 | I34: 5 | J34: 0 | K34: 5 | L34: 5 | M34: 5 | N34: 5 | O34: 5 | P34: 5 | Q34: 5 | R34: 5 | S34: 5 | T34: 0 | U34: 5 | V34: 0 | W34: 5 | X34: 5 | Y34: 5 | Z34: 5 | AA34: 5 | AB34: 5 | AC34: 5 | AD34: 5 | AE34: 5 | AF34: 5 | AG34: 5 | AH34: 5 | AI34: 5 | AJ34: 0 | AK34: 5 | AL34: 5 | AM34: 5 | AN34: 5 | AO34: 5 | AP34: 5 | AQ34: 5 | AR34: 5 | AS34: 5 | AT34: 5 | AU34: 5 | AV34: 5 | AW34: 5 | AX34: 5 | AY34: 5 | AZ34: 5 | BA34: 5 | BB34: 5 | BC34: 5 | BD34: 5 | BE34: 5 | BF34: 5 | BG34: 5 | BH34: 0 | BI34: 5 | BJ34: 5 | BK34: 5 | BL34: 5 | BM34: 0 | BN34: 5 | BO34: 5 | BP34: 5 | BQ34: 5 | BR34: 0 | BS34: 0 | BT34: 5 | BU34: 5 | BV34: 5 | BW34: 5 | BX34: 5 | BY34: 5 | BZ34: 5 | CA34: 5 | CB34: 5 | CC34: 5 | CD34: 5 | CE34: 5
A35: Sat | B35: 2010-10-31 | C35: Burnley | D35: 0 | E35: 3 | F35: Chelsea | G35: 15:00:00 | I35: 5 | J35: 0 | K35: 10 | L35: 5 | M35: 0 | N35: 5 | O35: 5 | P35: 0 | Q35: 5 | R35: 5 | S35: 5 | T35: 0 | U35: 0 | V35: 5 | W35: 5 | X35: 5 | Y35: 5 | Z35: 5 | AA35: 5 | AB35: 5 | AC35: 5 | AD35: 5 | AE35: 10 | AF35: 5 | AG35: 5 | AH35: 5 | AI35: 5 | AJ35: - | AK35: 5 | AL35: 5 | AM35: 10 | AN35: 5 | AO35: 5 | AP35: 5 | AQ35: 5 | AR35: 0 | AS35: 5 | AT35: 5 | AU35: 5 | AV35: 5 | AW35: 0 | AX35: 5 | AY35: 0 | AZ35: 5 | BA35: 0 | BB35: 5 | BC35: 5 | BD35: 5 | BE35: 5 | BF35: 5 | BG35: 10 | BH35: 0 | BI35: 5 | BJ35: 5 | BK35: 5 | BL35: 10 | BM35: 0 | BN35: 5 | BO35: 5 | BP35: 10 | BQ35: 5 | BR35: 0 | BS35: 5 | BT35: 5 | BU35: 5 | BV35: 5 | BW35: 5 | BX35: 5 | BY35: 5 | BZ35: 5 | CA35: 5 | CB35: 0 | CC35: 5 | CD35: 5 | CE35: 0
A36: Sat | B36: 2010-10-31 | C36: Liverpool | D36: 2 | E36: 1 | F36: West Ham | G36: 17:30:00 | I36: 0 | J36: 5 | K36: 5 | L36: 10 | M36: 5 | N36: 5 | O36: 5 | P36: 5 | Q36: 5 | R36: 10 | S36: 5 | T36: 10 | U36: 5 | V36: 5 | W36: 0 | X36: 5 | Y36: 10 | Z36: 5 | AA36: 5 | AB36: 5 | AC36: 5 | AD36: 5 | AE36: 5 | AF36: 10 | AG36: 10 | AH36: 5 | AI36: 5 | AJ36: - | AK36: 5 | AL36: 0 | AM36: 10 | AN36: 5 | AO36: 5 | AP36: 5 | AQ36: 5 | AR36: 5 | AS36: 10 | AT36: 0 | AU36: 5 | AV36: 5 | AW36: 5 | AX36: 0 | AY36: 5 | AZ36: 5 | BA36: 5 | BB36: 5 | BC36: 5 | BD36: 5 | BE36: 10 | BF36: 5 | BG36: 5 | BH36: 10 | BI36: 10 | BJ36: 10 | BK36: 10 | BL36: 5 | BM36: 10 | BN36: 0 | BO36: 5 | BP36: 0 | BQ36: 0 | BR36: 10 | BS36: 5 | BT36: 5 | BU36: 5 | BV36: 5 | BW36: 5 | BX36: 5 | BY36: 5 | BZ36: 5 | CA36: 5 | CB36: 10 | CC36: 5 | CD36: 5 | CE36: 5
A38: Golden Boots
A39: Anthony Martial - Man United | D39: =COUNT(I39:CE39) -> 8 | E39: =0+0+0 -> 0 | U39: =$E39*2 -> 0 | AB39: =$E39*2 -> 0 | AF39: =$E39*2 -> 0 | AM39: =$E39*2 -> 0 | BD39: =$E39*2 -> 0 | BI39: =$E39*2 -> 0 | BN39: =$E39*2 -> 0 | BU39: =$E39*2 -> 0
A40: Chris Wood - Burnley | D40: 0 | E40: =0+0+0+0 -> 0
A41: Danny Ings - Southampton | D41: 6 | E41: =0+1+0 -> 1 | T41: =$E41*2 -> 2 | AP41: =$E41*2 -> 2 | BO41: =$E41*2 -> 2 | BR41: =$E41*2 -> 2 | BV41: =$E41*2 -> 2 | CD41: =$E41*2 -> 2
A42: Harry Kane - Tottenham Hotspur | D42: 44 | E42: =2+2+0 -> 4 | I42: =$E42*2 -> 8 | J42: 8 | K42: 8 | L42: 8 | M42: 8 | N42: 8 | O42: 8 | Q42: =$E42*2 -> 8 | R42: =$E42*2 -> 8 | W42: =$E42*2 -> 8 | X42: =$E42*2 -> 8 | Y42: =$E42*2 -> 8 | Z42: =$E42*2 -> 8 | AC42: =$E42*2 -> 8 | AD42: 8 | AE42: 8 | AF42: 8 | AG42: 8 | AH42: 8 | AI42: 8 | AJ42: =$E42*2 -> 8 | AK42: =$E42*2 -> 8 | AL42: =$E42*2 -> 8 | AM42: =$E42*2 -> 8 | AN42: =$E42*2 -> 8 | AP42: =$E42*2 -> 8 | AQ42: =$E42*2 -> 8 | AR42: =$E42*2 -> 8 | AS42: =$E42*2 -> 8 | AT42: =$E42*2 -> 8 | AW42: =$E42*2 -> 8 | AY42: =$E42*2 -> 8 | AZ42: =$E42*2 -> 8 | BA42: =$E42*2 -> 8 | BB42: =$E42*2 -> 8 | BD42: =$E42*2 -> 8 | BF42: =$E42*2 -> 8 | BH42: =$E42*2 -> 8 | BI42: =$E42*2 -> 8 | BM42: =$E42*2 -> 8 | BS42: =$E42*2 -> 8 | BT42: =$E42*2 -> 8 | BX42: =$E42*2 -> 8 | CD42: =$E42*2 -> 8
A43: Jamie Vardy - Leicester City | D43: 19 | E43: =0+0+1 -> 1 | K43: =$E43*2 -> 2 | S43: =$E43*2 -> 2 | Z43: =$E43*2 -> 2 | AD43: =$E43*2 -> 2 | AS43: =$E43*2 -> 2 | AU43: =$E43*2 -> 2 | AV43: =$E43*2 -> 2 | AW43: =$E43*2 -> 2 | AX43: =$E43*2 -> 2 | AY43: =$E43*2 -> 2 | BA43: =$E43*2 -> 2 | BJ43: =$E43*2 -> 2 | BN43: =$E43*2 -> 2 | BQ43: =$E43*2 -> 2 | BR43: =$E43*2 -> 2 | BW43: =$E43*2 -> 2 | BX43: =$E43*2 -> 2 | CA43: =$E43*2 -> 2 | CB43: =$E43*2 -> 2
A44: Marcus Rashford - Man United | D44: 6 | E44: =0+1+0 -> 1 | P44: =$E44*2 -> 2 | BA44: =$E44*2 -> 2 | BG44: =$E44*2 -> 2 | BI44: =$E44*2 -> 2 | CA44: =$E44*2 -> 2 | CC44: =$E44*2 -> 2
A45: Mohamed Salah - Liverpool | D45: 36 | E45: =2+1+0+1 -> 4 | K45: =$E45*2 -> 8 | L45: =$E45*2 -> 8 | O45: =$E45*2 -> 8 | Q45: =$E45*2 -> 8 | R45: 8 | S45: 8 | T45: 8 | U45: 8 | V45: 8 | X45: =$E45*2 -> 8 | Y45: =$E45*2 -> 8 | AB45: =$E45*2 -> 8 | AE45: =$E45*2 -> 8 | AF45: =$E45*2 -> 8 | AM45: =$E45*2 -> 8 | AO45: =$E45*2 -> 8 | AQ45: =$E45*2 -> 8 | AV45: =$E45*2 -> 8 | AX45: =$E45*2 -> 8 | BB45: =$E45*2 -> 8 | BC45: =$E45*2 -> 8 | BD45: =$E45*2 -> 8 | BE45: =$E45*2 -> 8 | BF45: =$E45*2 -> 8 | BJ45: =$E45*2 -> 8 | BL45: =$E45*2 -> 8 | BO45: =$E45*2 -> 8 | BS45: =$E45*2 -> 8 | BT45: 8 | BU45: 8 | BV45: 8 | BW45: 8 | BX45: =$E45*2 -> 8 | BZ45: =$E45*2 -> 8 | CA45: 8 | CE45: =$E45*2 -> 8
A46: Pierre Emerick Aubameyang - Arsenal | D46: 45 | E46: =0+0+0 -> 0 | L46: =$E46*2 -> 0 | N46: =$E46*2 -> 0 | O46: =$E46*2 -> 0 | P46: =$E46*2 -> 0 | Q46: =$E46*2 -> 0 | R46: =$E46*2 -> 0 | S46: =$E46*2 -> 0 | U46: =$E46*2 -> 0 | V46: =$E46*2 -> 0 | W46: =$E46*2 -> 0 | AA46: =$E46*2 -> 0 | AB46: =$E46*2 -> 0 | AC46: =$E46*2 -> 0 | AE46: =$E46*2 -> 0 | AG46: =$E46*2 -> 0 | AI46: =$E46*2 -> 0 | AJ46: =$E46*2 -> 0 | AK46: =$E46*2 -> 0 | AN46: =$E46*2 -> 0 | AO46: =$E46*2 -> 0 | AQ46: =$E46*2 -> 0 | AR46: =$E46*2 -> 0 | AS46: =$E46*2 -> 0 | AU46: =$E46*2 -> 0 | AV46: =$E46*2 -> 0 | AW46: =$E46*2 -> 0 | AX46: =$E46*2 -> 0 | AY46: =$E46*2 -> 0 | BB46: =$E46*2 -> 0 | BC46: =$E46*2 -> 0 | BE46: =$E46*2 -> 0 | BF46: =$E46*2 -> 0 | BK46: =$E46*2 -> 0 | BL46: =$E46*2 -> 0 | BN46: =$E46*2 -> 0 | BP46: =$E46*2 -> 0 | BT46: =$E46*2 -> 0 | BV46: =$E46*2 -> 0 | BW46: =$E46*2 -> 0 | BY46: =$E46*2 -> 0 | BZ46: =$E46*2 -> 0 | CB46: =$E46*2 -> 0 | CC46: =$E46*2 -> 0 | CD46: =$E46*2 -> 0 | CE46: =$E46*2 -> 0
A47: Raheem Sterling - Man City | D47: 14 | E47: =1+1+0+0 -> 2 | X47: =$E47*2 -> 4 | AA47: =$E47*2 -> 4 | AC47: =$E47*2 -> 4 | AH47: =$E47*2 -> 4 | AJ47: =$E47*2 -> 4 | BG47: =$E47*2 -> 4 | BH47: =$E47*2 -> 4 | BJ47: =$E47*2 -> 4 | BK47: =$E47*2 -> 4 | BM47: =$E47*2 -> 4 | BP47: =$E47*2 -> 4 | BQ47: =$E47*2 -> 4 | BS47: =$E47*2 -> 4 | CE47: =$E47*2 -> 4
A48: Raul Jiminez - Wolves | D48: 1 | E48: =0+1+1+0 -> 2 | AU48: =$E48*2 -> 4
A49: Richarlison - Everton | D49: 1 | E49: =0+0+0 -> 0 | I49: =$E49*2 -> 0
A50: Sadio Mane - Liverpool | D50: 12 | E50: =0+1+0+0 -> 1 | J50: =$E50*2 -> 2 | M50: =$E50*2 -> 2 | P50: =$E50*2 -> 2 | V50: =$E50*2 -> 2 | AH50: =$E50*2 -> 2 | AI50: =$E50*2 -> 2 | AT50: =$E50*2 -> 2 | AZ50: =$E50*2 -> 2 | BG50: =$E50*2 -> 2 | BL50: =$E50*2 -> 2 | BP50: =$E50*2 -> 2 | CC50: =$E50*2 -> 2
A51: Sergio Aguero - Man City | D51: 9 | E51: =0+0+0+0 -> 0 | J51: =$E51*2 -> 0 | T51: =$E51*2 -> 0 | AL51: =$E51*2 -> 0 | AP51: =$E51*2 -> 0 | AT51: =$E51*2 -> 0 | BE51: =$E51*2 -> 0 | BM51: =$E51*2 -> 0 | BU51: =$E51*2 -> 0 | BY51: =$E51*2 -> 0
A52: Tammy Abraham - Chelsea | D52: 0 | E52: =0+0+0+0 -> 0
A53: Timo Werner - Chelsea | D53: 24 | E53: =0+2+0+1 -> 3 | I53: =$E53*2 -> 6 | M53: =$E53*2 -> 6 | N53: =$E53*2 -> 6 | W53: =$E53*2 -> 6 | Y53: =$E53*2 -> 6 | Z53: =$E53*2 -> 6 | AA53: =$E53*2 -> 6 | AD53: =$E53*2 -> 6 | AG53: =$E53*2 -> 6 | AK53: =$E53*2 -> 6 | AL53: =$E53*2 -> 6 | AN53: =$E53*2 -> 6 | AO53: =$E53*2 -> 6 | AR53: =$E53*2 -> 6 | AZ53: =$E53*2 -> 6 | BC53: =$E53*2 -> 6 | BH53: =$E53*2 -> 6 | BK53: =$E53*2 -> 6 | BO53: =$E53*2 -> 6 | BQ53: =$E53*2 -> 6 | BR53: =$E53*2 -> 6 | BY53: =$E53*2 -> 6 | BZ53: =$E53*2 -> 6 | CB53: =$E53*2 -> 6
A55: Golden Gloves
A56: Alisson Becker - Liverpool | D56: =COUNT(I56:CE56) -> 57 | E56: =0+0+0+0 -> 0 | J56: =$E56*2 -> 0 | K56: =$E56*2 -> 0 | L56: =$E56*2 -> 0 | M56: =$E56*2 -> 0 | O56: =$E56*2 -> 0 | P56: =$E56*2 -> 0 | R56: =$E56*2 -> 0 | S56: =$E56*2 -> 0 | T56: =$E56*2 -> 0 | V56: =$E56*2 -> 0 | W56: =$E56*2 -> 0 | X56: =$E56*2 -> 0 | Y56: =$E56*2 -> 0 | Z56: =$E56*2 -> 0 | AB56: =$E56*2 -> 0 | AD56: =$E56*2 -> 0 | AG56: =$E56*2 -> 0 | AH56: 0 | AI56: 0 | AJ56: 0 | AK56: 0 | AL56: 0 | AN56: =$E56*2 -> 0 | AO56: =$E56*2 -> 0 | AP56: =$E56*2 -> 0 | AQ56: =$E56*2 -> 0 | AR56: =$E56*2 -> 0 | AT56: =$E56*2 -> 0 | AV56: =$E56*2 -> 0 | AX56: =$E56*2 -> 0 | AY56: =$E56*2 -> 0 | AZ56: =$E56*2 -> 0 | BA56: =$E56*2 -> 0 | BB56: =$E56*2 -> 0 | BD56: =$E56*2 -> 0 | BE56: =$E56*2 -> 0 | BF56: =$E56*2 -> 0 | BG56: =$E56*2 -> 0 | BI56: =$E56*2 -> 0 | BJ56: =$E56*2 -> 0 | BK56: 0 | BL56: =$E56*2 -> 0 | BM56: 0 | BN56: 0 | BO56: =$E56*2 -> 0 | BP56: 0 | BR56: =$E56*2 -> 0 | BS56: 0 | BT56: 0 | BW56: =$E56*2 -> 0 | BX56: 0 | BY56: 0 | BZ56: =$E56*2 -> 0 | CA56: 0 | CB56: 0 | CC56: 0 | CE56: =$E56*2 -> 0
A57: Ederson - Man City | D57: =COUNT(I57:CE57) -> 14 | E57: =0+1+0+1 -> 2 | I57: =$E57*2 -> 4 | Q57: =$E57*2 -> 4 | U57: =$E57*2 -> 4 | AA57: =$E57*2 -> 4 | AC57: =$E57*2 -> 4 | AE57: =$E57*2 -> 4 | AF57: =$E57*2 -> 4 | AM57: =$E57*2 -> 4 | AU57: =$E57*2 -> 4 | AW57: =$E57*2 -> 4 | BC57: =$E57*2 -> 4 | BH57: =$E57*2 -> 4 | BV57: =$E57*2 -> 4 | CD57: =$E57*2 -> 4
A58: David de Gea - Man United | D58: =COUNT(I58:CE58) -> 3 | E58: =0+0+1 -> 1 | N58: =$E58*2 -> 2 | AS58: =$E58*2 -> 2 | BU58: =$E58*2 -> 2
A59: Hugo Lloris - Tottenham Hotspur | D59: =COUNT(I59:CE59) -> 1 | E59: =0+0+1 -> 1 | BQ59: =$E59*2 -> 2
A60: Nick Pope - Burnley | D60: =COUNT(I60:CE60) -> 0 | E60: =0+1+0+0 -> 1
A62: Sack Race
A63: Brendan Rodgers - Leicester City | D63: =COUNT(I63:CE63) -> 1 | BP63: =$E63*15 -> 0
A64: Carlo Ancelotti - Everton | D64: 0
A65: Chris Wilder - Sheffield United | D65: 0
A66: David Moyes - West Ham United | D66: 14 | M66: =$E66*15 -> 0 | P66: =$E66*15 -> 0 | Y66: =$E66*15 -> 0 | AB66: =$E66*15 -> 0 | AC66: =$E66*15 -> 0 | AI66: =$E66*15 -> 0 | AJ66: =$E66*15 -> 0 | AK66: =$E66*15 -> 0 | AR66: =$E66*15 -> 0 | AS66: =$E66*15 -> 0 | BA66: =$E66*15 -> 0 | BB66: =$E66*15 -> 0 | BE66: =$E66*15 -> 0 | BO66: =$E66*15 -> 0
A67: Dean Smith - Aston Villa | D67: 16 | N67: =$E67*15 -> 0 | O67: =$E67*15 -> 0 | W67: =$E67*15 -> 0 | AM67: =$E67*15 -> 0 | AN67: =$E67*15 -> 0 | AQ67: =$E67*15 -> 0 | AT67: =$E67*15 -> 0 | AU67: =$E67*15 -> 0 | AX67: =$E67*15 -> 0 | AZ67: =$E67*15 -> 0 | BG67: =$E67*15 -> 0 | BK67: =$E67*15 -> 0 | BM67: =$E67*15 -> 0 | BN67: =$E67*15 -> 0 | BQ67: =$E67*15 -> 0 | BT67: =$E67*15 -> 0
A68: Frank Lampard - Chelsea | D68: 0
A69: Graham Potter - Brighton | D69: 6 | I69: =$E69*15 -> 0 | T69: =$E69*15 -> 0 | V69: =$E69*15 -> 0 | AA69: =$E69*15 -> 0 | AF69: =$E69*15 -> 0 | CC69: =$E69*15 -> 0
A70: Jose Mourinho - Tottenham Hotspur | D70: 4 | AE70: =$E70*15 -> 0 | BJ70: =$E70*15 -> 0 | BU70: =$E70*15 -> 0 | CE70: =$E70*15 -> 0
A71: Jurgen Klopp - Liverpool | D71: 0
A72: Marco Bielsa - Leeds United | D72: 1 | BZ72: =$E72*15 -> 0
A73: Mikel Arteta - Arsenal | D73: 0
A74: Nuno Espirito Santo - Wolves | D74: 0
A75: Ole Gunnar Solskjaer - Manchester United | D75: 1 | AL75: =$E75*15 -> 0
A76: Pep Guardiola - Manchester City | D76: 1 | AV76: =$E76*15 -> 0
A77: Ralph Hassenhuttl - Southampton | D77: 2 | K77: =$E77*15 -> 0 | AH77: =$E77*15 -> 0
A78: Roy Hodgson - Crystal Palace | D78: 8 | J78: =$E78*15 -> 0 | L78: =$E78*15 -> 0 | AD78: =$E78*15 -> 0 | AP78: =$E78*15 -> 0 | BF78: =$E78*15 -> 0 | BS78: =$E78*15 -> 0 | BV78: =$E78*15 -> 0 | BY78: =$E78*15 -> 0
A79: Scott Parker - Fulham | D79: 3 | R79: =$E79*15 -> 0 | Z79: =$E79*15 -> 0 | BC79: =$E79*15 -> 0
A80: Sean Dyche - Burnley | D80: 1 | S80: =$E80*15 -> 0
A81: Slaven Bilic - West Brom | D81: 4 | U81: =$E81*15 -> 0 | AO81: =$E81*15 -> 0 | BI81: =$E81*15 -> 0 | BL81: =$E81*15 -> 0
A82: Steve Bruce - Newcastle United | D82: 13 | Q82: =$E82*15 -> 0 | X82: =$E82*15 -> 0 | AG82: =$E82*15 -> 0 | AW82: =$E82*15 -> 0 | AY82: =$E82*15 -> 0 | BD82: =$E82*15 -> 0 | BH82: =$E82*15 -> 0 | BR82: =$E82*15 -> 0 | BW82: =$E82*15 -> 0 | BX82: =$E82*15 -> 0 | CA82: =$E82*15 -> 0 | CB82: =$E82*15 -> 0 | CD82: =$E82*15 -> 0
A84: Grand Total - October | I84: =SUM(I$3:I83) -> 108 | J84: =SUM(J$3:J83) -> 100 | K84: =SUM(K$3:K83) -> 138 | L84: =SUM(L$3:L83) -> 121 | M84: =SUM(M$3:M83) -> 96 | N84: =SUM(N$3:N83) -> 101 | O84: =SUM(O$3:O83) -> 121 | P84: =SUM(P$3:P83) -> 99 | Q84: =SUM(Q$3:Q83) -> 110 | R84: =SUM(R$3:R83) -> 101 | S84: =SUM(S$3:S83) -> 95 | T84: =SUM(T$3:T83) -> 95 | U84: =SUM(U$3:U83) -> 102 | V84: =SUM(V$3:V83) -> 80 | W84: =SUM(W$3:W83) -> 89 | X84: =SUM(X$3:X83) -> 105 | Y84: =SUM(Y$3:Y83) -> 117 | Z84: =SUM(Z$3:Z83) -> 106 | AA84: =SUM(AA$3:AA83) -> 94 | AB84: =SUM(AB$3:AB83) -> 108 | AC84: =SUM(AC$3:AC83) -> 101 | AD84: =SUM(AD$3:AD83) -> 96 | AE84: =SUM(AE$3:AE83) -> 120 | AF84: =SUM(AF$3:AF83) -> 110 | AG84: =SUM(AG$3:AG83) -> 124 | AH84: =SUM(AH$3:AH83) -> 109 | AI84: =SUM(AI$3:AI83) -> 115 | AJ84: =SUM(AJ$3:AJ83) -> 102 | AK84: =SUM(AK$3:AK83) -> 119 | AL84: =SUM(AL$3:AL83) -> 74 | AM84: =SUM(AM$3:AM83) -> 120 | AN84: =SUM(AN$3:AN83) -> 114 | AO84: =SUM(AO$3:AO83) -> 109 | AP84: =SUM(AP$3:AP83) -> 100 | AQ84: =SUM(AQ$3:AQ83) -> 116 | AR84: =SUM(AR$3:AR83) -> 114 | AS84: =SUM(AS$3:AS83) -> 122 | AT84: =SUM(AT$3:AT83) -> 80 | AU84: =SUM(AU$3:AU83) -> 100 | AV84: =SUM(AV$3:AV83) -> 90 | AW84: =SUM(AW$3:AW83) -> 79 | AX84: =SUM(AX$3:AX83) -> 90 | AY84: =SUM(AY$3:AY83) -> 95 | AZ84: =SUM(AZ$3:AZ83) -> 111 | BA84: =SUM(BA$3:BA83) -> 82 | BB84: =SUM(BB$3:BB83) -> 106 | BC84: =SUM(BC$3:BC83) -> 98 | BD84: =SUM(BD$3:BD83) -> 131 | BE84: =SUM(BE$3:BE83) -> 88 | BF84: =SUM(BF$3:BF83) -> 116 | BG84: =SUM(BG$3:BG83) -> 123 | BH84: =SUM(BH$3:BH83) -> 107 | BI84: =SUM(BI$3:BI83) -> 100 | BJ84: =SUM(BJ$3:BJ83) -> 129 | BK84: =SUM(BK$3:BK83) -> 95 | BL84: =SUM(BL$3:BL83) -> 85 | BM84: =SUM(BM$3:BM83) -> 92 | BN84: =SUM(BN$3:BN83) -> 82 | BO84: =SUM(BO$3:BO83) -> 111 | BP84: =SUM(BP$3:BP83) -> 86 | BQ84: =SUM(BQ$3:BQ83) -> 109 | BR84: =SUM(BR$3:BR83) -> 95 | BS84: =SUM(BS$3:BS83) -> 85 | BT84: =SUM(BT$3:BT83) -> 106 | BU84: =SUM(BU$3:BU83) -> 90 | BV84: =SUM(BV$3:BV83) -> 94 | BW84: =SUM(BW$3:BW83) -> 95 | BX84: =SUM(BX$3:BX83) -> 83 | BY84: =SUM(BY$3:BY83) -> 111 | BZ84: =SUM(BZ$3:BZ83) -> 84 | CA84: =SUM(CA$3:CA83) -> 97 | CB84: =SUM(CB$3:CB83) -> 98 | CC84: =SUM(CC$3:CC83) -> 74 | CD84: =SUM(CD$3:CD83) -> 84 | CE84: =SUM(CE$3:CE83) -> 132
A86: Ten Pointers | I86: =COUNTIF(I$3:I36,"10") -> 1 | J86: =COUNTIF(J$3:J36,"10") -> 5 | K86: =COUNTIF(K$3:K36,"10") -> 5 | L86: =COUNTIF(L$3:L36,"10") -> 3 | M86: =COUNTIF(M$3:M36,"10") -> 2 | N86: =COUNTIF(N$3:N36,"10") -> 2 | O86: =COUNTIF(O$3:O36,"10") -> 3 | P86: =COUNTIF(P$3:P36,"10") -> 4 | Q86: =COUNTIF(Q$3:Q36,"10") -> 2 | R86: =COUNTIF(R$3:R36,"10") -> 1 | S86: =COUNTIF(S$3:S36,"10") -> 1 | T86: =COUNTIF(T$3:T36,"10") -> 4 | U86: =COUNTIF(U$3:U36,"10") -> 3 | V86: =COUNTIF(V$3:V36,"10") -> 1 | W86: =COUNTIF(W$3:W36,"10") -> 2 | X86: =COUNTIF(X$3:X36,"10") -> 2 | Y86: =COUNTIF(Y$3:Y36,"10") -> 4 | Z86: =COUNTIF(Z$3:Z36,"10") -> 2 | AA86: =COUNTIF(AA$3:AA36,"10") -> 1 | AB86: =COUNTIF(AB$3:AB36,"10") -> 3 | AC86: =COUNTIF(AC$3:AC36,"10") -> 1 | AD86: =COUNTIF(AD$3:AD36,"10") -> 2 | AE86: =COUNTIF(AE$3:AE36,"10") -> 4 | AF86: =COUNTIF(AF$3:AF36,"10") -> 2 | AG86: =COUNTIF(AG$3:AG36,"10") -> 5 | AH86: =COUNTIF(AH$3:AH36,"10") -> 3 | AI86: =COUNTIF(AI$3:AI36,"10") -> 2 | AJ86: =COUNTIF(AJ$3:AJ36,"10") -> 2 | AK86: =COUNTIF(AK$3:AK36,"10") -> 2 | AL86: =COUNTIF(AL$3:AL36,"10") -> 1 | AM86: =COUNTIF(AM$3:AM36,"10") -> 5 | AN86: =COUNTIF(AN$3:AN36,"10") -> 4 | AO86: =COUNTIF(AO$3:AO36,"10") -> 1 | AP86: =COUNTIF(AP$3:AP36,"10") -> 2 | AQ86: =COUNTIF(AQ$3:AQ36,"10") -> 3 | AR86: =COUNTIF(AR$3:AR36,"10") -> 1 | AS86: =COUNTIF(AS$3:AS36,"10") -> 4 | AT86: =COUNTIF(AT$3:AT36,"10") -> 2 | AU86: =COUNTIF(AU$3:AU36,"10") -> 4 | AV86: =COUNTIF(AV$3:AV36,"10") -> 1 | AW86: =COUNTIF(AW$3:AW36,"10") -> 1 | AX86: =COUNTIF(AX$3:AX36,"10") -> 1 | AY86: =COUNTIF(AY$3:AY36,"10") -> 2 | AZ86: =COUNTIF(AZ$3:AZ36,"10") -> 3 | BA86: =COUNTIF(BA$3:BA36,"10") -> 1 | BB86: =COUNTIF(BB$3:BB36,"10") -> 2 | BC86: =COUNTIF(BC$3:BC36,"10") -> 2 | BD86: =COUNTIF(BD$3:BD36,"10") -> 3 | BE86: =COUNTIF(BE$3:BE36,"10") -> 1 | BF86: =COUNTIF(BF$3:BF36,"10") -> 2 | BG86: =COUNTIF(BG$3:BG36,"10") -> 3 | BH86: =COUNTIF(BH$3:BH36,"10") -> 3 | BI86: =COUNTIF(BI$3:BI36,"10") -> 3 | BJ86: =COUNTIF(BJ$3:BJ36,"10") -> 4 | BK86: =COUNTIF(BK$3:BK36,"10") -> 3 | BL86: =COUNTIF(BL$3:BL36,"10") -> 2 | BM86: =COUNTIF(BM$3:BM36,"10") -> 3 | BN86: =COUNTIF(BN$3:BN36,"10") -> 2 | BO86: =COUNTIF(BO$3:BO36,"10") -> 2 | BP86: =COUNTIF(BP$3:BP36,"10") -> 2 | BQ86: =COUNTIF(BQ$3:BQ36,"10") -> 3 | BR86: =COUNTIF(BR$3:BR36,"10") -> 2 | BS86: =COUNTIF(BS$3:BS36,"10") -> 1 | BT86: =COUNTIF(BT$3:BT36,"10") -> 1 | BU86: =COUNTIF(BU$3:BU36,"10") -> 1 | BV86: =COUNTIF(BV$3:BV36,"10") -> 2 | BW86: =COUNTIF(BW$3:BW36,"10") -> 1 | BX86: =COUNTIF(BX$3:BX36,"10") -> 0 | BY86: =COUNTIF(BY$3:BY36,"10") -> 2 | BZ86: =COUNTIF(BZ$3:BZ36,"10") -> 2 | CA86: =COUNTIF(CA$3:CA36,"10") -> 2 | CB86: =COUNTIF(CB$3:CB36,"10") -> 2 | CC86: =COUNTIF(CC$3:CC36,"10") -> 0 | CD86: =COUNTIF(CD$3:CD36,"10") -> 0 | CE86: =COUNTIF(CE$3:CE36,"10") -> 5

Sheet November
I1: Aidan Scanlon | J1: Aidan White | K1: Alan White | L1: Anastas Popov | M1: Andy Dunne | N1: Ben Creasey | O1: Bobby Hynes | P1: Brendan Maguire | Q1: Brian Prendergast | R1: Brian Haughton | S1: Brian Mullen | T1: Callum Dunne | U1: Calvin McGettigan | V1: Caroline Carroll | W1: Cathal Thornton | X1: Christina Morgan | Y1: Ciaran Nelson | Z1: Ciaran O'Hart | AA1: Con McSweeney | AB1: Craig Calvert | AC1: Darragh Kenny | AD1: David Cooney | AE1: David Lavelle | AF1: David McGinley | AG1: Davy Doyle | AH1: Dean White | AI1: Derek Brady | AJ1: Drew Armstrong | AK1: Eamon Fox | AL1: Eoghan Farrelly | AM1: Fiachra O'Brolachain | AN1: Frank McSweeney | AO1: Gareth Pierpoint | AP1: Gary Donnelly | AQ1: Gary Fitzpatrick | AR1: Gary McGurk | AS1: Gavin Goodwin | AT1: Gavin Morgan | AU1: George McGettigan | AV1: Gerard McCluskey | AW1: Gerry Draper | AX1: Gerry Moore | AY1: Graham Goodwin | AZ1: Javier Suarez | BA1: Joe Behan | BB1: Joe Turner | BC1: John Brophy | BD1: John O'Driscoll | BE1: Jonathan Fox | BF1: Joseph Kavanagh | BG1: Kev Dalton | BH1: Kevin Philpott | BI1: Kris Stainton | BJ1: Liam Geraghty | BK1: Liam Keohan | BL1: Lionel Knott | BM1: Michael Kenaney | BN1: Micheal Joyce | BO1: Niall Cannon | BP1: Niall Carroll | BQ1: Niall Murray | BR1: Patrick Mifsud | BS1: Paul Moore | BT1: Paul Prendergast | BU1: Phil Doyle | BV1: Philip Jordan | BW1: Ralph Goodwin | BX1: Richard Johnston | BY1: Robert Hynes | BZ1: Robert Manley | CA1: Roisin Joyce | CB1: Sean O'Mairtin | CC1: Trevor Byrne | CD1: Victoria Reid | CE1: Wayne Donovan
A2: Day | B2: Date | C2: Teams | G2: Time
A3: Sun | B3: 2020-11-01 | C3: Aston Villa | D3: 3 | E3: 4 | F3: Southampton | G3: 12:00:00 | I3: 0 | J3: 0 | K3: 0 | L3: 5 | M3: 0 | N3: 0 | O3: 5 | P3: 5 | Q3: 0 | R3: 0 | S3: 0 | T3: 0 | U3: 0 | V3: 5 | W3: 0 | X3: 0 | Y3: 0 | Z3: 0 | AA3: 5 | AB3: 0 | AC3: 0 | AD3: 0 | AE3: 0 | AF3: 0 | AG3: 0 | AH3: 0 | AI3: 0 | AJ3: - | AK3: 5 | AL3: 0 | AM3: 0 | AN3: 5 | AO3: 0 | AP3: 0 | AQ3: 5 | AR3: 0 | AS3: 5 | AT3: 0 | AU3: 0 | AV3: 0 | AW3: 5 | AX3: 0 | AY3: 0 | AZ3: 0 | BA3: 0 | BB3: 0 | BC3: 0 | BD3: 0 | BE3: 0 | BF3: 0 | BG3: 0 | BH3: 0 | BI3: 0 | BJ3: 0 | BK3: 5 | BL3: 5 | BM3: 0 | BN3: 5 | BO3: 0 | BP3: 5 | BQ3: 0 | BR3: 0 | BS3: 0 | BT3: 5 | BU3: 0 | BV3: 0 | BW3: 0 | BX3: 0 | BY3: 0 | BZ3: 0 | CA3: 0 | CB3: 0 | CC3: 0 | CD3: 0 | CE3: 0
A4: Sun | B4: 2020-11-01 | C4: Newcastle | D4: 2 | E4: 1 | F4: Everton | G4: 14:00:00 | I4: 0 | J4: 0 | K4: 0 | L4: 0 | M4: 0 | N4: 0 | O4: 0 | P4: 0 | Q4: 0 | R4: 0 | S4: 0 | T4: 10 | U4: 0 | V4: 0 | W4: 0 | X4: 10 | Y4: 0 | Z4: 0 | AA4: 0 | AB4: 0 | AC4: 0 | AD4: 0 | AE4: 0 | AF4: 0 | AG4: 0 | AH4: 0 | AI4: 0 | AJ4: - | AK4: 10 | AL4: 0 | AM4: 0 | AN4: 0 | AO4: 0 | AP4: 0 | AQ4: 0 | AR4: 0 | AS4: 0 | AT4: 0 | AU4: 5 | AV4: 10 | AW4: 0 | AX4: 10 | AY4: 0 | AZ4: 0 | BA4: 0 | BB4: 10 | BC4: 0 | BD4: 0 | BE4: 0 | BF4: 0 | BG4: 0 | BH4: 0 | BI4: 0 | BJ4: 0 | BK4: 0 | BL4: 0 | BM4: 10 | BN4: 0 | BO4: 0 | BP4: 0 | BQ4: 0 | BR4: 10 | BS4: 0 | BT4: 0 | BU4: 0 | BV4: 0 | BW4: 0 | BX4: 0 | BY4: 0 | BZ4: 0 | CA4: 0 | CB4: 0 | CC4: 0 | CD4: 5 | CE4: 0
A5: Sun | B5: 2020-11-01 | C5: Manchester United | D5: 0 | E5: 1 | F5: Arsenal | G5: 16:30:00 | I5: 0 | J5: 0 | K5: 0 | L5: 0 | M5: 0 | N5: 0 | O5: 0 | P5: 0 | Q5: 0 | R5: 0 | S5: 0 | T5: 0 | U5: 0 | V5: 0 | W5: 0 | X5: 0 | Y5: 0 | Z5: 0 | AA5: 0 | AB5: 0 | AC5: 0 | AD5: 0 | AE5: 0 | AF5: 0 | AG5: 0 | AH5: 0 | AI5: 5 | AJ5: - | AK5: 0 | AL5: 5 | AM5: 0 | AN5: 0 | AO5: 0 | AP5: 0 | AQ5: 0 | AR5: 0 | AS5: 0 | AT5: 0 | AU5: 0 | AV5: 0 | AW5: 0 | AX5: 5 | AY5: 0 | AZ5: 0 | BA5: 0 | BB5: 0 | BC5: 0 | BD5: 0 | BE5: 0 | BF5: 0 | BG5: 0 | BH5: 0 | BI5: 0 | BJ5: 5 | BK5: 0 | BL5: 0 | BM5: 0 | BN5: 5 | BO5: 0 | BP5: 0 | BQ5: 5 | BR5: 0 | BS5: 0 | BT5: 0 | BU5: 0 | BV5: 0 | BW5: 0 | BX5: 0 | BY5: 0 | BZ5: 0 | CA5: 0 | CB5: 0 | CC5: 0 | CD5: 0 | CE5: 0
A6: Sun | B6: 2020-11-01 | C6: Tottenham | D6: 2 | E6: 1 | F6: Brighton | G6: 19:15:00 | I6: 5 | J6: 5 | K6: 5 | L6: 5 | M6: 5 | N6: 5 | O6: 5 | P6: 5 | Q6: 5 | R6: 5 | S6: 5 | T6: 10 | U6: 5 | V6: 5 | W6: 5 | X6: 5 | Y6: 5 | Z6: 5 | AA6: 5 | AB6: 5 | AC6: 5 | AD6: 5 | AE6: 5 | AF6: 5 | AG6: 5 | AH6: 5 | AI6: 5 | AJ6: - | AK6: 5 | AL6: 5 | AM6: 5 | AN6: 5 | AO6: 5 | AP6: 5 | AQ6: 5 | AR6: 5 | AS6: 5 | AT6: 5 | AU6: 10 | AV6: 10 | AW6: 5 | AX6: 0 | AY6: 5 | AZ6: 5 | BA6: 5 | BB6: 5 | BC6: 5 | BD6: 5 | BE6: 5 | BF6: 5 | BG6: 5 | BH6: 5 | BI6: 5 | BJ6: 0 | BK6: 5 | BL6: 5 | BM6: 10 | BN6: 5 | BO6: 10 | BP6: 5 | BQ6: 5 | BR6: 10 | BS6: 5 | BT6: 5 | BU6: 5 | BV6: 5 | BW6: 5 | BX6: 5 | BY6: 5 | BZ6: 5 | CA6: 5 | CB6: 5 | CC6: 5 | CD6: 5 | CE6: 5
A7: Mon | B7: 2020-11-02 | C7: Fulham | D7: 2 | E7: 0 | F7: West Brom | G7: 17:30:00 | I7: 0 | J7: 5 | K7: 0 | L7: 5 | M7: 0 | N7: 0 | O7: 0 | P7: 0 | Q7: 5 | R7: 5 | S7: 0 | T7: 5 | U7: 0 | V7: 0 | W7: 0 | X7: 0 | Y7: 0 | Z7: 0 | AA7: 0 | AB7: 0 | AC7: 0 | AD7: 0 | AE7: 0 | AF7: 0 | AG7: 0 | AH7: 5 | AI7: 0 | AJ7: - | AK7: 0 | AL7: 0 | AM7: 5 | AN7: 5 | AO7: 5 | AP7: 0 | AQ7: 0 | AR7: 5 | AS7: 0 | AT7: 0 | AU7: 0 | AV7: 0 | AW7: 5 | AX7: 5 | AY7: 0 | AZ7: 0 | BA7: 0 | BB7: 0 | BC7: 0 | BD7: 0 | BE7: 5 | BF7: 0 | BG7: 0 | BH7: 0 | BI7: 0 | BJ7: 0 | BK7: 5 | BL7: 0 | BM7: 5 | BN7: 0 | BO7: 0 | BP7: 5 | BQ7: 5 | BR7: 5 | BS7: 0 | BT7: 0 | BU7: 5 | BV7: 0 | BW7: 5 | BX7: 0 | BY7: 5 | BZ7: 5 | CA7: 0 | CB7: 0 | CC7: 5 | CD7: 5 | CE7: 0
A8: Mon | B8: 2020-11-02 | C8: Leeds | D8: 1 | E8: 4 | F8: Leicester | G8: 20:00:00 | I8: 0 | J8: 0 | K8: 5 | L8: 0 | M8: 0 | N8: 5 | O8: 0 | P8: 0 | Q8: 0 | R8: 5 | S8: 0 | T8: 0 | U8: 5 | V8: 0 | W8: 0 | X8: 0 | Y8: 5 | Z8: 0 | AA8: 0 | AB8: 0 | AC8: 0 | AD8: 0 | AE8: 0 | AF8: 0 | AG8: 5 | AH8: 0 | AI8: 0 | AJ8: - | AK8: 5 | AL8: 5 | AM8: 0 | AN8: 0 | AO8: 0 | AP8: 0 | AQ8: 0 | AR8: 5 | AS8: 0 | AT8: 0 | AU8: 5 | AV8: 0 | AW8: 0 | AX8: 0 | AY8: 0 | AZ8: 0 | BA8: 0 | BB8: 0 | BC8: 0 | BD8: 5 | BE8: 0 | BF8: 0 | BG8: 5 | BH8: 0 | BI8: 0 | BJ8: 0 | BK8: 5 | BL8: 5 | BM8: 0 | BN8: 0 | BO8: 5 | BP8: 5 | BQ8: 0 | BR8: 0 | BS8: 0 | BT8: 5 | BU8: 5 | BV8: 0 | BW8: 0 | BX8: 5 | BY8: 0 | BZ8: 0 | CA8: 0 | CB8: 0 | CC8: 0 | CD8: 0 | CE8: 0
A9: Fri | B9: 2020-11-06 | C9: Brighton | D9: 0 | E9: 0 | F9: Burnley | G9: 17:30:00 | I9: 5 | J9: 0 | K9: 0 | L9: 0 | M9: 0 | N9: 0 | O9: 5 | P9: 0 | Q9: 0 | R9: 5 | S9: 0 | T9: 0 | U9: 0 | V9: 0 | W9: 5 | X9: 0 | Y9: 5 | Z9: 0 | AA9: 0 | AB9: 0 | AC9: 10 | AD9: 0 | AE9: 10 | AF9: 0 | AG9: 0 | AH9: 5 | AI9: 0 | AJ9: - | AK9: 0 | AL9: 0 | AM9: 0 | AN9: 0 | AO9: 5 | AP9: 0 | AQ9: 5 | AR9: 0 | AS9: 0 | AT9: 0 | AU9: 5 | AV9: 5 | AW9: 0 | AX9: 10 | AY9: 0 | AZ9: 0 | BA9: 0 | BB9: 0 | BC9: 0 | BD9: 5 | BE9: 0 | BF9: 0 | BG9: 0 | BH9: 0 | BI9: 0 | BJ9: 0 | BK9: 0 | BL9: 0 | BM9: 0 | BN9: 0 | BO9: 0 | BP9: 5 | BQ9: 5 | BR9: 5 | BS9: 0 | BT9: 0 | BU9: 5 | BV9: 5 | BW9: 5 | BX9: 0 | BY9: 5 | BZ9: 0 | CA9: 5 | CB9: 5 | CC9: 0 | CD9: 0 | CE9: 5
A10: Fri | B10: 2020-11-06 | C10: Southampton | D10: 2 | E10: 0 | F10: Newcastle | G10: 20:00:00 | I10: 5 | J10: 10 | K10: 5 | L10: 5 | M10: 0 | N10: 10 | O10: 5 | P10: 10 | Q10: 5 | R10: 5 | S10: 5 | T10: 10 | U10: 0 | V10: 10 | W10: 0 | X10: 5 | Y10: 0 | Z10: 10 | AA10: 10 | AB10: 10 | AC10: 0 | AD10: 5 | AE10: 0 | AF10: 5 | AG10: 5 | AH10: 5 | AI10: 10 | AJ10: - | AK10: 5 | AL10: 0 | AM10: 5 | AN10: 5 | AO10: 5 | AP10: 0 | AQ10: 10 | AR10: 5 | AS10: 0 | AT10: 5 | AU10: 0 | AV10: 0 | AW10: 0 | AX10: 5 | AY10: 5 | AZ10: 5 | BA10: 5 | BB10: 5 | BC10: 5 | BD10: 5 | BE10: 5 | BF10: 5 | BG10: 5 | BH10: 5 | BI10: 0 | BJ10: 5 | BK10: 5 | BL10: 5 | BM10: 10 | BN10: 0 | BO10: 5 | BP10: 10 | BQ10: 5 | BR10: 0 | BS10: 10 | BT10: 10 | BU10: 0 | BV10: 5 | BW10: 10 | BX10: 10 | BY10: 5 | BZ10: 0 | CA10: 5 | CB10: 10 | CC10: 5 | CD10: 5 | CE10: 5
A11: Sat | B11: 2020-11-07 | C11: Everton | D11: 1 | E11: 3 | F11: Manchester United | G11: 12:30:00 | I11: 0 | J11: 0 | K11: 0 | L11: 0 | M11: 0 | N11: 0 | O11: 0 | P11: 10 | Q11: 0 | R11: 0 | S11: 0 | T11: 0 | U11: 10 | V11: 0 | W11: 0 | X11: 0 | Y11: 0 | Z11: 0 | AA11: 0 | AB11: 0 | AC11: 0 | AD11: 0 | AE11: 0 | AF11: 0 | AG11: 0 | AH11: 0 | AI11: 0 | AJ11: - | AK11: 0 | AL11: 5 | AM11: 0 | AN11: 0 | AO11: 5 | AP11: 0 | AQ11: 5 | AR11: 0 | AS11: 5 | AT11: 0 | AU11: 0 | AV11: 0 | AW11: 0 | AX11: 0 | AY11: 0 | AZ11: 0 | BA11: 0 | BB11: 0 | BC11: 0 | BD11: 10 | BE11: 5 | BF11: 0 | BG11: 10 | BH11: 0 | BI11: 5 | BJ11: 0 | BK11: 0 | BL11: 0 | BM11: 0 | BN11: 0 | BO11: 0 | BP11: 5 | BQ11: 0 | BR11: 0 | BS11: 0 | BT11: 0 | BU11: 0 | BV11: 5 | BW11: 0 | BX11: 5 | BY11: 0 | BZ11: 0 | CA11: 0 | CB11: 5 | CC11: 0 | CD11: 0 | CE11: 0
A12: Sat | B12: 2020-11-07 | C12: Crystal Palace | D12: 4 | E12: 1 | F12: Leeds | G12: 15:00:00 | I12: 0 | J12: 0 | K12: 0 | L12: 0 | M12: 0 | N12: 0 | O12: 5 | P12: 0 | Q12: 0 | R12: 5 | S12: 0 | T12: 0 | U12: 0 | V12: 0 | W12: 0 | X12: 5 | Y12: 0 | Z12: 5 | AA12: 0 | AB12: 0 | AC12: 0 | AD12: 5 | AE12: 0 | AF12: 0 | AG12: 0 | AH12: 0 | AI12: 0 | AJ12: - | AK12: 0 | AL12: 0 | AM12: 0 | AN12: 0 | AO12: 0 | AP12: 0 | AQ12: 0 | AR12: 5 | AS12: 5 | AT12: 5 | AU12: 5 | AV12: 0 | AW12: 0 | AX12: 5 | AY12: 0 | AZ12: 0 | BA12: 0 | BB12: 5 | BC12: 0 | BD12: 0 | BE12: 0 | BF12: 0 | BG12: 0 | BH12: 0 | BI12: 0 | BJ12: 0 | BK12: 0 | BL12: 0 | BM12: 0 | BN12: 0 | BO12: 0 | BP12: 0 | BQ12: 0 | BR12: 5 | BS12: 0 | BT12: 5 | BU12: 0 | BV12: 0 | BW12: 0 | BX12: 0 | BY12: 0 | BZ12: 5 | CA12: 0 | CB12: 5 | CC12: 0 | CD12: 0 | CE12: 0
A13: Sat | B13: 2020-11-07 | C13: Chelsea | D13: 4 | E13: 1 | F13: Sheffield United | G13: 17:30:00 | I13: 5 | J13: 5 | K13: 5 | L13: 5 | M13: 5 | N13: 5 | O13: 5 | P13: 5 | Q13: 5 | R13: 10 | S13: 5 | T13: 5 | U13: 5 | V13: 5 | W13: 5 | X13: 5 | Y13: 5 | Z13: 5 | AA13: 5 | AB13: 5 | AC13: 5 | AD13: 5 | AE13: 5 | AF13: 5 | AG13: 5 | AH13: 5 | AI13: 5 | AJ13: - | AK13: 5 | AL13: 5 | AM13: 5 | AN13: 5 | AO13: 5 | AP13: 5 | AQ13: 5 | AR13: 5 | AS13: 5 | AT13: 5 | AU13: 5 | AV13: 0 | AW13: 5 | AX13: 5 | AY13: 5 | AZ13: 5 | BA13: 5 | BB13: 5 | BC13: 5 | BD13: 5 | BE13: 5 | BF13: 5 | BG13: 5 | BH13: 5 | BI13: 5 | BJ13: 5 | BK13: 5 | BL13: 5 | BM13: 5 | BN13: 5 | BO13: 5 | BP13: 5 | BQ13: 5 | BR13: 5 | BS13: 5 | BT13: 5 | BU13: 5 | BV13: 5 | BW13: 5 | BX13: 5 | BY13: 5 | BZ13: 5 | CA13: 5 | CB13: 5 | CC13: 5 | CD13: 5 | CE13: 5
A14: Sat | B14: 2020-11-07 | C14: West Ham | D14: 1 | E14: 0 | F14: Fulham | G14: 15:00:00 | I14: 5 | J14: 10 | K14: 5 | L14: 5 | M14: 5 | N14: 5 | O14: 5 | P14: 5 | Q14: 5 | R14: 5 | S14: 5 | T14: 5 | U14: 5 | V14: 5 | W14: 5 | X14: 5 | Y14: 5 | Z14: 5 | AA14: 5 | AB14: 5 | AC14: 5 | AD14: 5 | AE14: 5 | AF14: 5 | AG14: 5 | AH14: 5 | AI14: 5 | AJ14: - | AK14: 5 | AL14: 5 | AM14: 5 | AN14: 5 | AO14: 5 | AP14: 5 | AQ14: 5 | AR14: 5 | AS14: 5 | AT14: 5 | AU14: 5 | AV14: 0 | AW14: 5 | AX14: 0 | AY14: 10 | AZ14: 5 | BA14: 5 | BB14: 5 | BC14: 5 | BD14: 5 | BE14: 10 | BF14: 5 | BG14: 5 | BH14: 5 | BI14: 10 | BJ14: 0 | BK14: 5 | BL14: 5 | BM14: 5 | BN14: 5 | BO14: 5 | BP14: 5 | BQ14: 5 | BR14: 5 | BS14: 5 | BT14: 5 | BU14: 5 | BV14: 5 | BW14: 5 | BX14: 5 | BY14: 5 | BZ14: 5 | CA14: 5 | CB14: 5 | CC14: 10 | CD14: 10 | CE14: 5
A15: Sun | B15: 2020-11-08 | C15: West Brom | D15: 0 | E15: 1 | F15: Tottenham | G15: 12:00:00 | I15: 5 | J15: 10 | K15: 5 | L15: 5 | M15: 5 | N15: 5 | O15: 5 | P15: 5 | Q15: 5 | R15: 5 | S15: 10 | T15: 5 | U15: 5 | V15: 5 | W15: 5 | X15: 10 | Y15: 5 | Z15: 5 | AA15: 5 | AB15: 5 | AC15: 5 | AD15: 5 | AE15: 5 | AF15: 5 | AG15: 5 | AH15: 5 | AI15: 5 | AJ15: - | AK15: 5 | AL15: 5 | AM15: 5 | AN15: 5 | AO15: 5 | AP15: 5 | AQ15: 5 | AR15: 5 | AS15: 5 | AT15: 10 | AU15: 5 | AV15: 0 | AW15: 5 | AX15: 5 | AY15: 5 | AZ15: 5 | BA15: 5 | BB15: 5 | BC15: 10 | BD15: 5 | BE15: 5 | BF15: 5 | BG15: 5 | BH15: 5 | BI15: 5 | BJ15: 5 | BK15: 5 | BL15: 5 | BM15: 5 | BN15: 5 | BO15: 5 | BP15: 5 | BQ15: 5 | BR15: 5 | BS15: 5 | BT15: 10 | BU15: 5 | BV15: 5 | BW15: 5 | BX15: 5 | BY15: 5 | BZ15: 5 | CA15: 5 | CB15: 5 | CC15: 5 | CD15: 5 | CE15: 5
A16: Sun | B16: 2020-11-08 | C16: Leicester | D16: 1 | E16: 0 | F16: Wolves | G16: 14:00:00 | I16: 5 | J16: 10 | K16: 5 | L16: 5 | M16: 5 | N16: 5 | O16: 5 | P16: 5 | Q16: 5 | R16: 5 | S16: 5 | T16: 0 | U16: 5 | V16: 10 | W16: 5 | X16: 0 | Y16: 5 | Z16: 5 | AA16: 5 | AB16: 10 | AC16: 0 | AD16: 0 | AE16: 5 | AF16: 0 | AG16: 5 | AH16: 5 | AI16: 5 | AJ16: - | AK16: 5 | AL16: 5 | AM16: 5 | AN16: 0 | AO16: 5 | AP16: 5 | AQ16: 0 | AR16: 0 | AS16: 5 | AT16: 5 | AU16: 5 | AV16: 0 | AW16: 0 | AX16: 0 | AY16: 0 | AZ16: 5 | BA16: 5 | BB16: 0 | BC16: 0 | BD16: 5 | BE16: 10 | BF16: 0 | BG16: 5 | BH16: 5 | BI16: 5 | BJ16: 0 | BK16: 5 | BL16: 0 | BM16: 0 | BN16: 0 | BO16: 0 | BP16: 0 | BQ16: 5 | BR16: 5 | BS16: 0 | BT16: 5 | BU16: 5 | BV16: 0 | BW16: 5 | BX16: 10 | BY16: 0 | BZ16: 5 | CA16: 0 | CB16: 0 | CC16: 10 | CD16: 5 | CE16: 0
A17: Sun | B17: 2020-11-08 | C17: Man City | D17: 1 | E17: 1 | F17: Liverpool | G17: 16:30:00 | I17: 5 | J17: 5 | K17: 5 | L17: 0 | M17: 0 | N17: 0 | O17: 0 | P17: 0 | Q17: 5 | R17: 0 | S17: 5 | T17: 0 | U17: 10 | V17: 0 | W17: 0 | X17: 0 | Y17: 0 | Z17: 10 | AA17: 0 | AB17: 0 | AC17: 0 | AD17: 0 | AE17: 10 | AF17: 10 | AG17: 0 | AH17: 5 | AI17: 0 | AJ17: - | AK17: 0 | AL17: 0 | AM17: 0 | AN17: 0 | AO17: 5 | AP17: 0 | AQ17: 0 | AR17: 0 | AS17: 5 | AT17: 0 | AU17: 0 | AV17: 10 | AW17: 0 | AX17: 5 | AY17: 10 | AZ17: 0 | BA17: 5 | BB17: 5 | BC17: 10 | BD17: 5 | BE17: 10 | BF17: 0 | BG17: 0 | BH17: 5 | BI17: 0 | BJ17: 0 | BK17: 0 | BL17: 0 | BM17: 10 | BN17: 0 | BO17: 5 | BP17: 10 | BQ17: 0 | BR17: 0 | BS17: 10 | BT17: 10 | BU17: 0 | BV17: 0 | BW17: 0 | BX17: 0 | BY17: 0 | BZ17: 0 | CA17: 5 | CB17: 0 | CC17: 0 | CD17: 10 | CE17: 10
A18: Sun | B18: 2020-11-08 | C18: Arsenal | D18: 0 | E18: 3 | F18: Aston Villa | G18: 19:15:00 | I18: 0 | J18: 0 | K18: 0 | L18: 0 | M18: 0 | N18: 0 | O18: 0 | P18: 0 | Q18: 0 | R18: 0 | S18: 0 | T18: 0 | U18: 0 | V18: 0 | W18: 0 | X18: 0 | Y18: 0 | Z18: 0 | AA18: 0 | AB18: 0 | AC18: 0 | AD18: 0 | AE18: 0 | AF18: 0 | AG18: 0 | AH18: 0 | AI18: 0 | AJ18: - | AK18: 0 | AL18: 0 | AM18: 0 | AN18: 0 | AO18: 0 | AP18: 0 | AQ18: 0 | AR18: 0 | AS18: 0 | AT18: 0 | AU18: 0 | AV18: 0 | AW18: 0 | AX18: 0 | AY18: 0 | AZ18: 0 | BA18: 0 | BB18: 0 | BC18: 0 | BD18: 0 | BE18: 0 | BF18: 0 | BG18: 0 | BH18: 0 | BI18: 0 | BJ18: 0 | BK18: 0 | BL18: 0 | BM18: 0 | BN18: 0 | BO18: 0 | BP18: 0 | BQ18: 0 | BR18: 0 | BS18: 0 | BT18: 0 | BU18: 0 | BV18: 0 | BW18: 0 | BX18: 0 | BY18: 0 | BZ18: 0 | CA18: 0 | CB18: 0 | CC18: 0 | CD18: 0 | CE18: 0
A19: Sat | B19: 2020-11-21 | C19: Newcastle | D19: 0 | E19: 2 | F19: Chelsea | G19: 12:30:00 | I19: 5 | J19: 0 | K19: 10 | L19: 5 | M19: 5 | N19: 5 | O19: 10 | P19: 10 | Q19: 0 | R19: 5 | S19: 5 | T19: 0 | U19: 10 | V19: 5 | W19: 10 | X19: 5 | Y19: 5 | Z19: 0 | AA19: 5 | AB19: 10 | AC19: 5 | AD19: 5 | AE19: 10 | AF19: 5 | AG19: 10 | AH19: 10 | AI19: 10 | AJ19: - | AK19: 10 | AL19: 0 | AM19: 10 | AN19: 5 | AO19: 10 | AP19: 0 | AQ19: 5 | AR19: 10 | AS19: 10 | AT19: 5 | AU19: 0 | AV19: 5 | AW19: 10 | AX19: 5 | AY19: 10 | AZ19: 5 | BA19: 5 | BB19: 5 | BC19: 10 | BD19: 5 | BE19: 10 | BF19: 0 | BG19: 5 | BH19: 5 | BI19: 5 | BJ19: 5 | BK19: 5 | BL19: 0 | BM19: 0 | BN19: 5 | BO19: 0 | BP19: 5 | BQ19: 5 | BR19: 5 | BS19: 5 | BT19: 0 | BU19: 5 | BV19: 5 | BW19: 10 | BX19: 0 | BY19: 5 | BZ19: 5 | CA19: 5 | CB19: 0 | CC19: 5 | CD19: 0 | CE19: 0
A20: Sat | B20: 2020-11-21 | C20: Aston Villa | D20: 1 | E20: 2 | F20: Brighton | G20: 15:00:00 | I20: 0 | J20: 0 | K20: 0 | L20: 0 | M20: 0 | N20: 0 | O20: 0 | P20: 0 | Q20: 0 | R20: 0 | S20: 0 | T20: 0 | U20: 0 | V20: 0 | W20: 0 | X20: 10 | Y20: 0 | Z20: 0 | AA20: 0 | AB20: 0 | AC20: 0 | AD20: 0 | AE20: 0 | AF20: 0 | AG20: 0 | AH20: 0 | AI20: 0 | AJ20: - | AK20: 0 | AL20: 0 | AM20: 0 | AN20: 0 | AO20: 0 | AP20: 0 | AQ20: 0 | AR20: 0 | AS20: 0 | AT20: 0 | AU20: 0 | AV20: 0 | AW20: 0 | AX20: 0 | AY20: 0 | AZ20: 0 | BA20: 0 | BB20: 0 | BC20: 0 | BD20: 0 | BE20: 0 | BF20: 0 | BG20: 0 | BH20: 0 | BI20: 0 | BJ20: 0 | BK20: 0 | BL20: 0 | BM20: 0 | BN20: 0 | BO20: 0 | BP20: 0 | BQ20: 0 | BR20: 0 | BS20: 10 | BT20: 0 | BU20: 0 | BV20: 0 | BW20: 0 | BX20: 0 | BY20: 0 | BZ20: 0 | CA20: 0 | CB20: 0 | CC20: 0 | CD20: 0 | CE20: 0
A21: Sat | B21: 2020-11-21 | C21: Tottenham | D21: 2 | E21: 0 | F21: Man City | G21: 17:30:00 | I21: 0 | J21: 5 | K21: 0 | L21: 0 | M21: 5 | N21: 0 | O21: 0 | P21: 0 | Q21: 5 | R21: 0 | S21: 0 | T21: 0 | U21: 0 | V21: 0 | W21: 0 | X21: 5 | Y21: 0 | Z21: 0 | AA21: 0 | AB21: 0 | AC21: 0 | AD21: 0 | AE21: 0 | AF21: 0 | AG21: 0 | AH21: 0 | AI21: 5 | AJ21: - | AK21: 0 | AL21: 5 | AM21: 5 | AN21: 0 | AO21: 0 | AP21: 5 | AQ21: 0 | AR21: 0 | AS21: 0 | AT21: 10 | AU21: 0 | AV21: 5 | AW21: 0 | AX21: 0 | AY21: 0 | AZ21: 0 | BA21: 0 | BB21: 5 | BC21: 0 | BD21: 0 | BE21: 0 | BF21: 0 | BG21: 5 | BH21: 0 | BI21: 0 | BJ21: 0 | BK21: 0 | BL21: 5 | BM21: 5 | BN21: 0 | BO21: 5 | BP21: 0 | BQ21: 0 | BR21: 5 | BS21: 0 | BT21: 0 | BU21: 5 | BV21: 0 | BW21: 0 | BX21: 10 | BY21: 0 | BZ21: 10 | CA21: 0 | CB21: 10 | CC21: 0 | CD21: 5 | CE21: 0
A22: Sat | B22: 2020-11-21 | C22: Manchester United | D22: 1 | E22: 0 | F22: West Brom | G22: 20:00:00 | I22: 5 | J22: 10 | K22: 5 | L22: 5 | M22: 5 | N22: 5 | O22: 5 | P22: 5 | Q22: 5 | R22: 5 | S22: 10 | T22: 5 | U22: 5 | V22: 5 | W22: 5 | X22: 5 | Y22: 5 | Z22: 5 | AA22: 5 | AB22: 5 | AC22: 5 | AD22: 5 | AE22: 10 | AF22: 5 | AG22: 5 | AH22: 5 | AI22: 5 | AJ22: - | AK22: 5 | AL22: 5 | AM22: 10 | AN22: 5 | AO22: 5 | AP22: 5 | AQ22: 5 | AR22: 5 | AS22: 5 | AT22: 5 | AU22: 5 | AV22: 5 | AW22: 5 | AX22: 5 | AY22: 10 | AZ22: 5 | BA22: 5 | BB22: 5 | BC22: 0 | BD22: 5 | BE22: 5 | BF22: 5 | BG22: 5 | BH22: 5 | BI22: 5 | BJ22: 0 | BK22: 5 | BL22: 5 | BM22: 5 | BN22: 5 | BO22: 5 | BP22: 5 | BQ22: 5 | BR22: 5 | BS22: 5 | BT22: 5 | BU22: 5 | BV22: 5 | BW22: 5 | BX22: 5 | BY22: 5 | BZ22: 5 | CA22: 5 | CB22: 5 | CC22: 10 | CD22: 5 | CE22: 5
A23: Sun | B23: 2020-11-22 | C23: Fulham | D23: 2 | E23: 3 | F23: Everton | G23: 12:00:00 | I23: 5 | J23: 0 | K23: 5 | L23: 5 | M23: 5 | N23: 5 | O23: 0 | P23: 5 | Q23: 5 | R23: 5 | S23: 5 | T23: 5 | U23: 5 | V23: 5 | W23: 5 | X23: 10 | Y23: 5 | Z23: 0 | AA23: 5 | AB23: 0 | AC23: 5 | AD23: 0 | AE23: 5 | AF23: 5 | AG23: 5 | AH23: 5 | AI23: 5 | AJ23: - | AK23: 5 | AL23: 5 | AM23: 5 | AN23: 5 | AO23: 5 | AP23: 0 | AQ23: 5 | AR23: 0 | AS23: 5 | AT23: 5 | AU23: 5 | AV23: 5 | AW23: 5 | AX23: 0 | AY23: 5 | AZ23: 5 | BA23: 5 | BB23: 5 | BC23: 5 | BD23: 5 | BE23: 5 | BF23: 5 | BG23: 5 | BH23: 5 | BI23: 5 | BJ23: 5 | BK23: 5 | BL23: 5 | BM23: 0 | BN23: 5 | BO23: 0 | BP23: 5 | BQ23: 5 | BR23: 5 | BS23: 5 | BT23: 5 | BU23: 5 | BV23: 5 | BW23: 5 | BX23: 5 | BY23: 0 | BZ23: 5 | CA23: 5 | CB23: 5 | CC23: 0 | CD23: 5 | CE23: 5
A24: Sat | B24: 2020-11-21 | C24: Sheffield United | D24: 0 | E24: 1 | F24: West Ham | G24: 14:00:00 | I24: 0 | J24: 0 | K24: 5 | L24: 10 | M24: 0 | N24: 0 | O24: 0 | P24: 0 | Q24: 0 | R24: 10 | S24: 0 | T24: 0 | U24: 5 | V24: 0 | W24: 5 | X24: 0 | Y24: 0 | Z24: 0 | AA24: 5 | AB24: 5 | AC24: 0 | AD24: 5 | AE24: 5 | AF24: 0 | AG24: 0 | AH24: 0 | AI24: 10 | AJ24: - | AK24: 10 | AL24: 0 | AM24: 0 | AN24: 5 | AO24: 0 | AP24: 0 | AQ24: 0 | AR24: 0 | AS24: 5 | AT24: 0 | AU24: 0 | AV24: 0 | AW24: 0 | AX24: 0 | AY24: 10 | AZ24: 0 | BA24: 0 | BB24: 0 | BC24: 0 | BD24: 0 | BE24: 10 | BF24: 0 | BG24: 0 | BH24: 0 | BI24: 0 | BJ24: 0 | BK24: 10 | BL24: 0 | BM24: 0 | BN24: 5 | BO24: 0 | BP24: 0 | BQ24: 0 | BR24: 0 | BS24: 0 | BT24: 10 | BU24: 5 | BV24: 0 | BW24: 10 | BX24: 5 | BY24: 5 | BZ24: 10 | CA24: 0 | CB24: 0 | CC24: 0 | CD24: 5 | CE24: 0
A25: Sat | B25: 2020-11-21 | C25: Leeds | D25: 0 | E25: 0 | F25: Arsenal | G25: 16:30:00 | I25: 0 | J25: 0 | K25: 0 | L25: 0 | M25: 5 | N25: 0 | O25: 0 | P25: 5 | Q25: 0 | R25: 0 | S25: 0 | T25: 0 | U25: 0 | V25: 0 | W25: 5 | X25: 0 | Y25: 0 | Z25: 0 | AA25: 0 | AB25: 5 | AC25: 5 | AD25: 5 | AE25: 5 | AF25: 0 | AG25: 5 | AH25: 0 | AI25: 0 | AJ25: - | AK25: 0 | AL25: 0 | AM25: 0 | AN25: 0 | AO25: 0 | AP25: 0 | AQ25: 5 | AR25: 0 | AS25: 0 | AT25: 0 | AU25: 0 | AV25: 5 | AW25: 0 | AX25: 0 | AY25: 0 | AZ25: 0 | BA25: 0 | BB25: 5 | BC25: 5 | BD25: 0 | BE25: 0 | BF25: 0 | BG25: 0 | BH25: 0 | BI25: 0 | BJ25: 5 | BK25: 0 | BL25: 0 | BM25: 0 | BN25: 0 | BO25: 0 | BP25: 0 | BQ25: 0 | BR25: 0 | BS25: 5 | BT25: 0 | BU25: 5 | BV25: 0 | BW25: 0 | BX25: 0 | BY25: 5 | BZ25: 0 | CA25: 0 | CB25: 5 | CC25: 5 | CD25: 0 | CE25: 5
A26: Sat | B26: 2020-11-21 | C26: Liverpool | D26: 3 | E26: 0 | F26: Leicester | G26: 19:15:00 | I26: 0 | J26: 5 | K26: 0 | L26: 0 | M26: 5 | N26: 0 | O26: 5 | P26: 0 | Q26: 5 | R26: 5 | S26: 0 | T26: 5 | U26: 5 | V26: 10 | W26: 0 | X26: 5 | Y26: 5 | Z26: 0 | AA26: 0 | AB26: 0 | AC26: 5 | AD26: 5 | AE26: 0 | AF26: 5 | AG26: 0 | AH26: 0 | AI26: 5 | AJ26: - | AK26: 0 | AL26: 0 | AM26: 0 | AN26: 5 | AO26: 5 | AP26: 5 | AQ26: 0 | AR26: 5 | AS26: 5 | AT26: 5 | AU26: 0 | AV26: 5 | AW26: 0 | AX26: 0 | AY26: 0 | AZ26: 0 | BA26: 5 | BB26: 5 | BC26: 5 | BD26: 0 | BE26: 5 | BF26: 5 | BG26: 0 | BH26: 5 | BI26: 0 | BJ26: 5 | BK26: 0 | BL26: 5 | BM26: 5 | BN26: 0 | BO26: 5 | BP26: 0 | BQ26: 0 | BR26: 5 | BS26: 5 | BT26: 5 | BU26: 0 | BV26: 0 | BW26: 5 | BX26: 5 | BY26: 0 | BZ26: 5 | CA26: 0 | CB26: 5 | CC26: 5 | CD26: 0 | CE26: 5
A27: Mon | B27: 2020-11-23 | C27: Burnley | D27: 1 | E27: 0 | F27: Crystal Palace | G27: 17:30:00 | I27: 0 | J27: 10 | K27: 0 | L27: 0 | M27: 0 | N27: 0 | O27: 0 | P27: 5 | Q27: 0 | R27: 0 | S27: 0 | T27: 0 | U27: 10 | V27: 0 | W27: 0 | X27: 0 | Y27: 0 | Z27: 0 | AA27: 0 | AB27: 0 | AC27: 0 | AD27: 0 | AE27: 0 | AF27: 10 | AG27: 0 | AH27: 0 | AI27: 0 | AJ27: - | AK27: 0 | AL27: 10 | AM27: 0 | AN27: 0 | AO27: 0 | AP27: 5 | AQ27: 0 | AR27: 10 | AS27: 0 | AT27: 5 | AU27: 5 | AV27: 0 | AW27: 5 | AX27: 0 | AY27: 0 | AZ27: 0 | BA27: 0 | BB27: 0 | BC27: 0 | BD27: 0 | BE27: 0 | BF27: 0 | BG27: 0 | BH27: 0 | BI27: 0 | BJ27: 0 | BK27: 0 | BL27: 0 | BM27: 5 | BN27: 0 | BO27: 5 | BP27: 0 | BQ27: 10 | BR27: 0 | BS27: 0 | BT27: 0 | BU27: 0 | BV27: 10 | BW27: 0 | BX27: 5 | BY27: 5 | BZ27: 10 | CA27: 0 | CB27: 0 | CC27: 0 | CD27: 0 | CE27: 10
A28: Mon | B28: 2020-11-23 | C28: Wolves | D28: 1 | E28: 1 | F28: Southampton | G28: 20:00:00 | I28: 0 | J28: 0 | K28: 10 | L28: 0 | M28: 0 | N28: 0 | O28: 0 | P28: 0 | Q28: 5 | R28: 10 | S28: 0 | T28: 0 | U28: 0 | V28: 0 | W28: 10 | X28: 0 | Y28: 5 | Z28: 0 | AA28: 0 | AB28: 0 | AC28: 0 | AD28: 0 | AE28: 0 | AF28: 10 | AG28: 0 | AH28: 5 | AI28: 10 | AJ28: - | AK28: 0 | AL28: 0 | AM28: 10 | AN28: 10 | AO28: 0 | AP28: 0 | AQ28: 0 | AR28: 0 | AS28: 0 | AT28: 0 | AU28: 0 | AV28: 0 | AW28: 0 | AX28: 10 | AY28: 10 | AZ28: 0 | BA28: 0 | BB28: 0 | BC28: 0 | BD28: 0 | BE28: 0 | BF28: 0 | BG28: 0 | BH28: 10 | BI28: 0 | BJ28: 0 | BK28: 0 | BL28: 0 | BM28: 0 | BN28: 5 | BO28: 0 | BP28: 0 | BQ28: 5 | BR28: 0 | BS28: 10 | BT28: 0 | BU28: 0 | BV28: 0 | BW28: 10 | BX28: 0 | BY28: 0 | BZ28: 10 | CA28: 0 | CB28: 0 | CC28: 0 | CD28: 10 | CE28: 0
A29: Fri | B29: 2020-11-27 | C29: Crystal Palace | D29: 0 | E29: 2 | F29: Newcastle | G29: 20:00:00 | I29: 0 | J29: 0 | K29: 0 | L29: 0 | M29: 0 | N29: 0 | O29: 0 | P29: 0 | Q29: 0 | R29: 0 | S29: 0 | T29: 0 | U29: 5 | V29: 0 | W29: 0 | X29: 0 | Y29: 0 | Z29: 0 | AA29: 0 | AB29: 0 | AC29: 10 | AD29: 0 | AE29: 0 | AF29: 0 | AG29: 0 | AH29: 0 | AI29: 0 | AJ29: - | AK29: 0 | AL29: 0 | AM29: 0 | AN29: 0 | AO29: 0 | AP29: 0 | AQ29: 0 | AR29: 0 | AS29: 0 | AT29: 0 | AU29: 0 | AV29: 0 | AW29: 0 | AX29: 0 | AY29: 0 | AZ29: 0 | BA29: 0 | BB29: 0 | BC29: 5 | BD29: 0 | BE29: 0 | BF29: 0 | BG29: 0 | BH29: 0 | BI29: 0 | BJ29: 0 | BK29: 0 | BL29: 0 | BM29: 0 | BN29: 0 | BO29: 0 | BP29: 0 | BQ29: 0 | BR29: 0 | BS29: 0 | BT29: 0 | BU29: 0 | BV29: 0 | BW29: 0 | BX29: 0 | BY29: 0 | BZ29: 0 | CA29: 0 | CB29: 0 | CC29: 5 | CD29: 0 | CE29: 0
A30: Sat | B30: 2020-11-28 | C30: Brighton | D30: 1 | E30: 1 | F30: Liverpool | G30: 12:30:00 | I30: 0 | J30: 0 | K30: 0 | L30: 0 | M30: 0 | N30: 0 | O30: 0 | P30: 10 | Q30: 0 | R30: 0 | S30: 0 | T30: 0 | U30: 0 | V30: 0 | W30: 0 | X30: 0 | Y30: 0 | Z30: 10 | AA30: 0 | AB30: 0 | AC30: 0 | AD30: 0 | AE30: 0 | AF30: 0 | AG30: 0 | AH30: 0 | AI30: 0 | AJ30: - | AK30: 0 | AL30: 0 | AM30: 0 | AN30: 0 | AO30: 0 | AP30: 0 | AQ30: 0 | AR30: 0 | AS30: 0 | AT30: 0 | AU30: 0 | AV30: 0 | AW30: 0 | AX30: 0 | AY30: 0 | AZ30: 0 | BA30: 0 | BB30: 0 | BC30: 0 | BD30: 0 | BE30: 0 | BF30: 0 | BG30: 0 | BH30: 0 | BI30: 0 | BJ30: 0 | BK30: 0 | BL30: 0 | BM30: - | BN30: 0 | BO30: 0 | BP30: 10 | BQ30: 0 | BR30: 0 | BS30: 0 | BT30: 0 | BU30: 0 | BV30: 0 | BW30: 0 | BX30: 0 | BY30: 0 | BZ30: 0 | CA30: 0 | CB30: 0 | CC30: 0 | CD30: 0 | CE30: 0
A31: Sat | B31: 2020-11-28 | C31: Man City | D31: 5 | E31: 0 | F31: Burnley | G31: 15:00:00 | I31: 5 | J31: 5 | K31: 5 | L31: 5 | M31: 5 | N31: 5 | O31: 5 | P31: 5 | Q31: 5 | R31: 10 | S31: 5 | T31: 5 | U31: 5 | V31: 5 | W31: 5 | X31: 5 | Y31: 5 | Z31: 5 | AA31: 5 | AB31: 5 | AC31: 5 | AD31: 5 | AE31: 10 | AF31: 5 | AG31: 5 | AH31: 5 | AI31: 5 | AJ31: - | AK31: 5 | AL31: 5 | AM31: 5 | AN31: 5 | AO31: 5 | AP31: 5 | AQ31: 5 | AR31: 5 | AS31: 5 | AT31: 5 | AU31: 5 | AV31: 5 | AW31: 5 | AX31: 5 | AY31: 10 | AZ31: 5 | BA31: 5 | BB31: 5 | BC31: 5 | BD31: 5 | BE31: 5 | BF31: 5 | BG31: 10 | BH31: 5 | BI31: 5 | BJ31: 5 | BK31: 5 | BL31: 5 | BM31: - | BN31: 5 | BO31: 5 | BP31: 5 | BQ31: 5 | BR31: 5 | BS31: 5 | BT31: 5 | BU31: 5 | BV31: 5 | BW31: 5 | BX31: 5 | BY31: 5 | BZ31: 5 | CA31: 5 | CB31: 5 | CC31: 5 | CD31: 5 | CE31: 5
A32: Sat | B32: 2020-11-28 | C32: Everton | D32: 0 | E32: 1 | F32: Leeds | G32: 17:30:00 | I32: 0 | J32: 0 | K32: 0 | L32: 0 | M32: 0 | N32: 0 | O32: 0 | P32: 0 | Q32: 0 | R32: 0 | S32: 0 | T32: 0 | U32: 0 | V32: 0 | W32: 0 | X32: 0 | Y32: 0 | Z32: 0 | AA32: 5 | AB32: 0 | AC32: 0 | AD32: 0 | AE32: 0 | AF32: 0 | AG32: 0 | AH32: 0 | AI32: 0 | AJ32: - | AK32: 0 | AL32: 0 | AM32: 0 | AN32: 0 | AO32: 0 | AP32: 0 | AQ32: 0 | AR32: 0 | AS32: 0 | AT32: 0 | AU32: 0 | AV32: 0 | AW32: 0 | AX32: 0 | AY32: 0 | AZ32: 0 | BA32: 0 | BB32: 0 | BC32: 0 | BD32: 0 | BE32: 0 | BF32: 0 | BG32: 0 | BH32: 0 | BI32: 0 | BJ32: 5 | BK32: 0 | BL32: 5 | BM32: - | BN32: 0 | BO32: 0 | BP32: 0 | BQ32: 0 | BR32: 5 | BS32: 0 | BT32: 0 | BU32: 0 | BV32: 0 | BW32: 0 | BX32: 0 | BY32: 0 | BZ32: 0 | CA32: 0 | CB32: 0 | CC32: 0 | CD32: 0 | CE32: 0
A33: Sat | B33: 2020-11-28 | C33: West Brom | D33: 1 | E33: 0 | F33: Sheffield United | G33: 20:00:00 | I33: 0 | J33: 10 | K33: 0 | L33: 0 | M33: 5 | N33: 5 | O33: 0 | P33: 0 | Q33: 0 | R33: 0 | S33: 10 | T33: 0 | U33: 0 | V33: 10 | W33: 0 | X33: 0 | Y33: 0 | Z33: 5 | AA33: 0 | AB33: 10 | AC33: 10 | AD33: 0 | AE33: 0 | AF33: 0 | AG33: 0 | AH33: 0 | AI33: 0 | AJ33: - | AK33: 0 | AL33: 5 | AM33: 5 | AN33: 0 | AO33: 0 | AP33: 0 | AQ33: 5 | AR33: 0 | AS33: 0 | AT33: 10 | AU33: 10 | AV33: 0 | AW33: 0 | AX33: 10 | AY33: 0 | AZ33: 5 | BA33: 0 | BB33: 0 | BC33: 5 | BD33: 0 | BE33: 10 | BF33: 0 | BG33: 0 | BH33: 0 | BI33: 0 | BJ33: 0 | BK33: 0 | BL33: 0 | BM33: - | BN33: 0 | BO33: 10 | BP33: 10 | BQ33: 0 | BR33: 0 | BS33: 0 | BT33: 10 | BU33: 0 | BV33: 0 | BW33: 10 | BX33: 0 | BY33: 10 | BZ33: 10 | CA33: 0 | CB33: 0 | CC33: 0 | CD33: 0 | CE33: 0
A34: Sun | B34: 2020-11-29 | C34: Southampton | D34: 2 | E34: 3 | F34: Manchester United | G34: 14:00:00 | I34: 0 | J34: 5 | K34: 5 | L34: 0 | M34: 0 | N34: 0 | O34: 0 | P34: 5 | Q34: 5 | R34: 5 | S34: 5 | T34: 0 | U34: 0 | V34: 0 | W34: 0 | X34: 0 | Y34: 5 | Z34: 0 | AA34: 0 | AB34: 5 | AC34: 5 | AD34: 0 | AE34: 5 | AF34: 5 | AG34: 0 | AH34: 5 | AI34: 5 | AJ34: - | AK34: 5 | AL34: 0 | AM34: 0 | AN34: 0 | AO34: 0 | AP34: 5 | AQ34: 0 | AR34: 0 | AS34: 5 | AT34: 0 | AU34: 0 | AV34: 0 | AW34: 5 | AX34: 0 | AY34: 0 | AZ34: 5 | BA34: 0 | BB34: 0 | BC34: 0 | BD34: 5 | BE34: 5 | BF34: 5 | BG34: 5 | BH34: 5 | BI34: 5 | BJ34: 0 | BK34: 5 | BL34: 5 | BM34: - | BN34: 0 | BO34: 5 | BP34: 0 | BQ34: 5 | BR34: 0 | BS34: 0 | BT34: 0 | BU34: 5 | BV34: 5 | BW34: 0 | BX34: 5 | BY34: 5 | BZ34: 0 | CA34: 0 | CB34: 0 | CC34: 5 | CD34: 5 | CE34: 0
A35: Sun | B35: 2020-11-29 | C35: Chelsea | D35: 0 | E35: 0 | F35: Tottenham | G35: 16:30:00 | I35: 5 | J35: 0 | K35: 0 | L35: 5 | M35: 5 | N35: 0 | O35: 0 | P35: 5 | Q35: 0 | R35: 5 | S35: 5 | T35: 5 | U35: 5 | V35: 5 | W35: 0 | X35: 0 | Y35: 0 | Z35: 5 | AA35: 0 | AB35: 5 | AC35: 5 | AD35: 0 | AE35: 0 | AF35: 0 | AG35: 0 | AH35: 5 | AI35: 0 | AJ35: - | AK35: 0 | AL35: 0 | AM35: 0 | AN35: 5 | AO35: 0 | AP35: 5 | AQ35: 0 | AR35: 0 | AS35: 0 | AT35: 5 | AU35: 0 | AV35: 0 | AW35: 5 | AX35: 5 | AY35: 5 | AZ35: 5 | BA35: 0 | BB35: 0 | BC35: 5 | BD35: 0 | BE35: 0 | BF35: 10 | BG35: 0 | BH35: 5 | BI35: 0 | BJ35: 0 | BK35: 5 | BL35: 0 | BM35: - | BN35: 5 | BO35: 5 | BP35: 0 | BQ35: 0 | BR35: 0 | BS35: 5 | BT35: 0 | BU35: 0 | BV35: 0 | BW35: 5 | BX35: 0 | BY35: 5 | BZ35: 0 | CA35: 5 | CB35: 0 | CC35: 0 | CD35: 5 | CE35: 0
A36: Sun | B36: 2020-11-29 | C36: Arsenal | D36: 1 | E36: 2 | F36: Wolves | G36: 19:15:00 | I36: 0 | J36: 0 | K36: 0 | L36: 0 | M36: 0 | N36: 0 | O36: 0 | P36: 0 | Q36: 0 | R36: 0 | S36: 0 | T36: 0 | U36: 0 | V36: 0 | W36: 0 | X36: 0 | Y36: 0 | Z36: 0 | AA36: 0 | AB36: 0 | AC36: 0 | AD36: 0 | AE36: 10 | AF36: 0 | AG36: 0 | AH36: 0 | AI36: 0 | AJ36: - | AK36: 0 | AL36: 10 | AM36: 0 | AN36: 0 | AO36: 0 | AP36: 0 | AQ36: 0 | AR36: 0 | AS36: 0 | AT36: 0 | AU36: 0 | AV36: 0 | AW36: 0 | AX36: 0 | AY36: 0 | AZ36: 0 | BA36: 0 | BB36: 0 | BC36: 0 | BD36: 10 | BE36: 0 | BF36: 5 | BG36: 0 | BH36: 0 | BI36: 0 | BJ36: 10 | BK36: 0 | BL36: 0 | BM36: - | BN36: 0 | BO36: 0 | BP36: 0 | BQ36: 0 | BR36: 0 | BS36: 0 | BT36: 0 | BU36: 0 | BV36: 0 | BW36: 0 | BX36: 0 | BY36: 0 | BZ36: 0 | CA36: 0 | CB36: 0 | CC36: 0 | CD36: 0 | CE36: 0
A37: Mon | B37: 2020-11-30 | C37: Leicester | D37: 1 | E37: 2 | F37: Fulham | G37: 17:30:00 | I37: 0 | J37: 0 | K37: 0 | L37: 0 | M37: 0 | N37: 0 | O37: 0 | P37: 0 | Q37: 0 | R37: 0 | S37: 0 | T37: 0 | U37: 0 | V37: 0 | W37: 0 | X37: 0 | Y37: 0 | Z37: 0 | AA37: 0 | AB37: 0 | AC37: 0 | AD37: 0 | AE37: 0 | AF37: 0 | AG37: 0 | AH37: 0 | AI37: 0 | AJ37: - | AK37: 0 | AL37: 0 | AM37: 0 | AN37: 0 | AO37: 0 | AP37: 0 | AQ37: 0 | AR37: 0 | AS37: 0 | AT37: 0 | AU37: 0 | AV37: 0 | AW37: 0 | AX37: 0 | AY37: 0 | AZ37: 0 | BA37: 0 | BB37: 0 | BC37: 0 | BD37: 0 | BE37: 0 | BF37: 0 | BG37: 0 | BH37: 0 | BI37: 0 | BJ37: 0 | BK37: 0 | BL37: 0 | BM37: - | BN37: 0 | BO37: 0 | BP37: 0 | BQ37: 0 | BR37: 0 | BS37: 0 | BT37: 0 | BU37: 0 | BV37: 0 | BW37: 0 | BX37: 0 | BY37: 0 | BZ37: 0 | CA37: 0 | CB37: 0 | CC37: 0 | CD37: 0 | CE37: 0
A38: Mon | B38: 2020-11-30 | C38: West Ham | D38: 2 | E38: 1 | F38: Aston Villa | G38: 20:00:00 | I38: 0 | J38: 0 | K38: 0 | L38: 10 | M38: 10 | N38: 5 | O38: 10 | P38: 5 | Q38: 0 | R38: 10 | S38: 0 | T38: 10 | U38: 0 | V38: 5 | W38: 0 | X38: 5 | Y38: 0 | Z38: 10 | AA38: 0 | AB38: 10 | AC38: 10 | AD38: 10 | AE38: 0 | AF38: 10 | AG38: 0 | AH38: 0 | AI38: 10 | AJ38: - | AK38: 10 | AL38: 0 | AM38: 10 | AN38: 0 | AO38: 0 | AP38: 0 | AQ38: 10 | AR38: 5 | AS38: 5 | AT38: 10 | AU38: 10 | AV38: 5 | AW38: 10 | AX38: 0 | AY38: 10 | AZ38: 0 | BA38: 0 | BB38: 5 | BC38: 0 | BD38: 10 | BE38: 5 | BF38: 0 | BG38: 0 | BH38: 0 | BI38: 0 | BJ38: 0 | BK38: 5 | BL38: 5 | BM38: - | BN38: 0 | BO38: 10 | BP38: 5 | BQ38: 0 | BR38: 0 | BS38: 0 | BT38: 5 | BU38: 0 | BV38: 0 | BW38: 0 | BX38: 0 | BY38: 10 | BZ38: 5 | CA38: 0 | CB38: 0 | CC38: 0 | CD38: 0 | CE38: 10
A40: Golden Boots
A41: Anthony Martial - Man United | D41: =COUNT(I41:CE41) -> 8 | E41: =0+0+0+0 -> 0 | U41: =$E41*2 -> 0 | AB41: =$E41*2 -> 0 | AF41: =$E41*2 -> 0 | AM41: =$E41*2 -> 0 | BD41: =$E41*2 -> 0 | BI41: =$E41*2 -> 0 | BN41: =$E41*2 -> 0 | BU41: =$E41*2 -> 0
A42: Chris Wood - Burnley | D42: 0 | E42: =0+1+0 -> 1
A43: Danny Ings - Southampton | D43: 6 | E43: =1+0+0+0 -> 1 | T43: =$E43*2 -> 2 | AP43: =$E43*2 -> 2 | BO43: =$E43*2 -> 2 | BR43: =$E43*2 -> 2 | BV43: =$E43*2 -> 2 | CD43: =$E43*2 -> 2
A44: Harry Kane - Tottenham Hotspur | D44: 44 | E44: =1+1+0+0 -> 2 | I44: =$E44*2 -> 4 | J44: 4 | K44: 4 | L44: 4 | M44: 4 | N44: 4 | O44: 4 | Q44: =$E44*2 -> 4 | R44: =$E44*2 -> 4 | W44: =$E44*2 -> 4 | X44: =$E44*2 -> 4 | Y44: =$E44*2 -> 4 | Z44: =$E44*2 -> 4 | AC44: =$E44*2 -> 4 | AD44: 4 | AE44: 4 | AF44: 4 | AG44: 4 | AH44: 4 | AI44: 4 | AJ44: =$E44*2 -> 4 | AK44: =$E44*2 -> 4 | AL44: =$E44*2 -> 4 | AM44: =$E44*2 -> 4 | AN44: =$E44*2 -> 4 | AP44: =$E44*2 -> 4 | AQ44: =$E44*2 -> 4 | AR44: =$E44*2 -> 4 | AS44: =$E44*2 -> 4 | AT44: =$E44*2 -> 4 | AW44: =$E44*2 -> 4 | AY44: =$E44*2 -> 4 | AZ44: =$E44*2 -> 4 | BA44: =$E44*2 -> 4 | BB44: =$E44*2 -> 4 | BD44: =$E44*2 -> 4 | BF44: =$E44*2 -> 4 | BH44: =$E44*2 -> 4 | BI44: =$E44*2 -> 4 | BM44: =$E44*2 -> 4 | BS44: =$E44*2 -> 4 | BT44: =$E44*2 -> 4 | BX44: =$E44*2 -> 4 | CD44: =$E44*2 -> 4
A45: Jamie Vardy - Leicester City | D45: 19 | E45: =1+1+0+0 -> 2 | K45: =$E45*2 -> 4 | S45: =$E45*2 -> 4 | Z45: =$E45*2 -> 4 | AD45: =$E45*2 -> 4 | AS45: =$E45*2 -> 4 | AU45: =$E45*2 -> 4 | AV45: =$E45*2 -> 4 | AW45: =$E45*2 -> 4 | AX45: =$E45*2 -> 4 | AY45: =$E45*2 -> 4 | BA45: =$E45*2 -> 4 | BJ45: =$E45*2 -> 4 | BN45: =$E45*2 -> 4 | BQ45: =$E45*2 -> 4 | BR45: =$E45*2 -> 4 | BW45: =$E45*2 -> 4 | BX45: =$E45*2 -> 4 | CA45: =$E45*2 -> 4 | CB45: =$E45*2 -> 4
A46: Marcus Rashford - Man United | D46: 6 | E46: =0+0+0+0 -> 0 | P46: =$E46*2 -> 0 | BA46: =$E46*2 -> 0 | BG46: =$E46*2 -> 0 | BI46: =$E46*2 -> 0 | CA46: =$E46*2 -> 0 | CC46: =$E46*2 -> 0
A47: Mohamed Salah - Liverpool | D47: 36 | E47: =1+0+0 -> 1 | K47: =$E47*2 -> 2 | L47: =$E47*2 -> 2 | O47: =$E47*2 -> 2 | Q47: =$E47*2 -> 2 | R47: 2 | S47: 2 | T47: 2 | U47: 2 | V47: 2 | X47: =$E47*2 -> 2 | Y47: =$E47*2 -> 2 | AB47: =$E47*2 -> 2 | AE47: =$E47*2 -> 2 | AF47: =$E47*2 -> 2 | AM47: =$E47*2 -> 2 | AO47: =$E47*2 -> 2 | AQ47: =$E47*2 -> 2 | AV47: =$E47*2 -> 2 | AX47: =$E47*2 -> 2 | BB47: =$E47*2 -> 2 | BC47: =$E47*2 -> 2 | BD47: =$E47*2 -> 2 | BE47: =$E47*2 -> 2 | BF47: =$E47*2 -> 2 | BJ47: =$E47*2 -> 2 | BL47: =$E47*2 -> 2 | BO47: =$E47*2 -> 2 | BS47: =$E47*2 -> 2 | BT47: 2 | BU47: 2 | BV47: 2 | BW47: 2 | BX47: =$E47*2 -> 2 | BZ47: =$E47*2 -> 2 | CA47: 2 | CE47: =$E47*2 -> 2
A48: Pierre Emerick Aubameyang - Arsenal | D48: 45 | E48: =1+0+0 -> 1 | L48: =$E48*2 -> 2 | N48: =$E48*2 -> 2 | O48: =$E48*2 -> 2 | P48: =$E48*2 -> 2 | Q48: =$E48*2 -> 2 | R48: =$E48*2 -> 2 | S48: =$E48*2 -> 2 | U48: =$E48*2 -> 2 | V48: =$E48*2 -> 2 | W48: =$E48*2 -> 2 | AA48: =$E48*2 -> 2 | AB48: =$E48*2 -> 2 | AC48: =$E48*2 -> 2 | AE48: =$E48*2 -> 2 | AG48: =$E48*2 -> 2 | AI48: =$E48*2 -> 2 | AJ48: =$E48*2 -> 2 | AK48: =$E48*2 -> 2 | AN48: =$E48*2 -> 2 | AO48: =$E48*2 -> 2 | AQ48: =$E48*2 -> 2 | AR48: =$E48*2 -> 2 | AS48: =$E48*2 -> 2 | AU48: =$E48*2 -> 2 | AV48: =$E48*2 -> 2 | AW48: =$E48*2 -> 2 | AX48: =$E48*2 -> 2 | AY48: =$E48*2 -> 2 | BB48: =$E48*2 -> 2 | BC48: =$E48*2 -> 2 | BE48: =$E48*2 -> 2 | BF48: =$E48*2 -> 2 | BK48: =$E48*2 -> 2 | BL48: =$E48*2 -> 2 | BN48: =$E48*2 -> 2 | BP48: =$E48*2 -> 2 | BT48: =$E48*2 -> 2 | BV48: =$E48*2 -> 2 | BW48: =$E48*2 -> 2 | BY48: =$E48*2 -> 2 | BZ48: =$E48*2 -> 2 | CB48: =$E48*2 -> 2 | CC48: =$E48*2 -> 2 | CD48: =$E48*2 -> 2 | CE48: =$E48*2 -> 2
A49: Raheem Sterling - Man City | D49: 14 | E49: =0+0+0 -> 0 | X49: =$E49*2 -> 0 | AA49: =$E49*2 -> 0 | AC49: =$E49*2 -> 0 | AH49: =$E49*2 -> 0 | AJ49: =$E49*2 -> 0 | BG49: =$E49*2 -> 0 | BH49: =$E49*2 -> 0 | BJ49: =$E49*2 -> 0 | BK49: =$E49*2 -> 0 | BM49: =$E49*2 -> 0 | BP49: =$E49*2 -> 0 | BQ49: =$E49*2 -> 0 | BS49: =$E49*2 -> 0 | CE49: =$E49*2 -> 0
A50: Raul Jiminez - Wolves | D50: 1 | E50: =0+0+0 -> 0 | AU50: =$E50*2 -> 0
A51: Richarlison - Everton | D51: 1 | E51: =0+0+0 -> 0 | I51: =$E51*2 -> 0
A52: Sadio Mane - Liverpool | D52: 12 | E52: =0+0+0 -> 0 | J52: =$E52*2 -> 0 | M52: =$E52*2 -> 0 | P52: =$E52*2 -> 0 | V52: =$E52*2 -> 0 | AH52: =$E52*2 -> 0 | AI52: =$E52*2 -> 0 | AT52: =$E52*2 -> 0 | AZ52: =$E52*2 -> 0 | BG52: =$E52*2 -> 0 | BL52: =$E52*2 -> 0 | BP52: =$E52*2 -> 0 | CC52: =$E52*2 -> 0
A53: Sergio Aguero - Man City | D53: 9 | E53: =0+0+0 -> 0 | J53: =$E53*2 -> 0 | T53: =$E53*2 -> 0 | AL53: =$E53*2 -> 0 | AP53: =$E53*2 -> 0 | AT53: =$E53*2 -> 0 | BE53: =$E53*2 -> 0 | BM53: =$E53*2 -> 0 | BU53: =$E53*2 -> 0 | BY53: =$E53*2 -> 0
A54: Tammy Abraham - Chelsea | D54: 0 | E54: =1+1+0 -> 2
A55: Timo Werner - Chelsea | D55: 24 | E55: =1+0+0 -> 1 | I55: =$E55*2 -> 2 | M55: =$E55*2 -> 2 | N55: =$E55*2 -> 2 | W55: =$E55*2 -> 2 | Y55: =$E55*2 -> 2 | Z55: =$E55*2 -> 2 | AA55: =$E55*2 -> 2 | AD55: =$E55*2 -> 2 | AG55: =$E55*2 -> 2 | AK55: =$E55*2 -> 2 | AL55: =$E55*2 -> 2 | AN55: =$E55*2 -> 2 | AO55: =$E55*2 -> 2 | AR55: =$E55*2 -> 2 | AZ55: =$E55*2 -> 2 | BC55: =$E55*2 -> 2 | BH55: =$E55*2 -> 2 | BK55: =$E55*2 -> 2 | BO55: =$E55*2 -> 2 | BQ55: =$E55*2 -> 2 | BR55: =$E55*2 -> 2 | BY55: =$E55*2 -> 2 | BZ55: =$E55*2 -> 2 | CB55: =$E55*2 -> 2
A57: Golden Gloves
A58: Alisson Becker - Liverpool | D58: =COUNT(I58:CE58) -> 57 | E58: =0+1+0 -> 1 | J58: =$E58*2 -> 2 | K58: =$E58*2 -> 2 | L58: =$E58*2 -> 2 | M58: =$E58*2 -> 2 | O58: =$E58*2 -> 2 | P58: =$E58*2 -> 2 | R58: =$E58*2 -> 2 | S58: =$E58*2 -> 2 | T58: =$E58*2 -> 2 | V58: =$E58*2 -> 2 | W58: =$E58*2 -> 2 | X58: =$E58*2 -> 2 | Y58: =$E58*2 -> 2 | Z58: =$E58*2 -> 2 | AB58: =$E58*2 -> 2 | AD58: =$E58*2 -> 2 | AG58: =$E58*2 -> 2 | AH58: 2 | AI58: 2 | AJ58: 2 | AK58: 2 | AL58: 2 | AN58: =$E58*2 -> 2 | AO58: =$E58*2 -> 2 | AP58: =$E58*2 -> 2 | AQ58: =$E58*2 -> 2 | AR58: =$E58*2 -> 2 | AT58: =$E58*2 -> 2 | AV58: =$E58*2 -> 2 | AX58: =$E58*2 -> 2 | AY58: =$E58*2 -> 2 | AZ58: =$E58*2 -> 2 | BA58: =$E58*2 -> 2 | BB58: =$E58*2 -> 2 | BD58: =$E58*2 -> 2 | BE58: =$E58*2 -> 2 | BF58: =$E58*2 -> 2 | BG58: =$E58*2 -> 2 | BI58: =$E58*2 -> 2 | BJ58: =$E58*2 -> 2 | BK58: 2 | BL58: =$E58*2 -> 2 | BM58: 2 | BN58: 2 | BO58: =$E58*2 -> 2 | BP58: 2 | BR58: =$E58*2 -> 2 | BS58: 2 | BT58: 2 | BW58: =$E58*2 -> 2 | BX58: 2 | BY58: 2 | BZ58: =$E58*2 -> 2 | CA58: 2 | CB58: 2 | CC58: 2 | CE58: =$E58*2 -> 2
A59: Ederson - Man City | D59: =COUNT(I59:CE59) -> 14 | E59: =0+0+0+1 -> 1 | I59: =$E59*2 -> 2 | Q59: =$E59*2 -> 2 | U59: =$E59*2 -> 2 | AA59: =$E59*2 -> 2 | AC59: =$E59*2 -> 2 | AE59: =$E59*2 -> 2 | AF59: =$E59*2 -> 2 | AM59: =$E59*2 -> 2 | AU59: =$E59*2 -> 2 | AW59: =$E59*2 -> 2 | BC59: =$E59*2 -> 2 | BH59: =$E59*2 -> 2 | BV59: =$E59*2 -> 2 | CD59: =$E59*2 -> 2
A60: David de Gea - Man United | D60: =COUNT(I60:CE60) -> 3 | E60: =0+0+1+0 -> 1 | N60: =$E60*2 -> 2 | AS60: =$E60*2 -> 2 | BU60: =$E60*2 -> 2
A61: Hugo Lloris - Tottenham Hotspur | D61: =COUNT(I61:CE61) -> 1 | E61: =0+1+1+1 -> 3 | BQ61: =$E61*2 -> 6
A62: Nick Pope - Burnley | D62: =COUNT(I62:CE62) -> 0 | E62: =1+1+0 -> 2
A64: Sack Race
A65: Brendan Rodgers - Leicester City | D65: =COUNT(I65:CE65) -> 1 | BP65: =$E65*15 -> 0
A66: Carlo Ancelotti - Everton | D66: 0
A67: Chris Wilder - Sheffield United | D67: 0
A68: David Moyes - West Ham United | D68: 14 | M68: =$E68*15 -> 0 | P68: =$E68*15 -> 0 | Y68: =$E68*15 -> 0 | AB68: =$E68*15 -> 0 | AC68: =$E68*15 -> 0 | AI68: =$E68*15 -> 0 | AJ68: =$E68*15 -> 0 | AK68: =$E68*15 -> 0 | AR68: =$E68*15 -> 0 | AS68: =$E68*15 -> 0 | BA68: =$E68*15 -> 0 | BB68: =$E68*15 -> 0 | BE68: =$E68*15 -> 0 | BO68: =$E68*15 -> 0
A69: Dean Smith - Aston Villa | D69: 16 | N69: =$E69*15 -> 0 | O69: =$E69*15 -> 0 | W69: =$E69*15 -> 0 | AM69: =$E69*15 -> 0 | AN69: =$E69*15 -> 0 | AQ69: =$E69*15 -> 0 | AT69: =$E69*15 -> 0 | AU69: =$E69*15 -> 0 | AX69: =$E69*15 -> 0 | AZ69: =$E69*15 -> 0 | BG69: =$E69*15 -> 0 | BK69: =$E69*15 -> 0 | BM69: =$E69*15 -> 0 | BN69: =$E69*15 -> 0 | BQ69: =$E69*15 -> 0 | BT69: =$E69*15 -> 0
A70: Frank Lampard - Chelsea | D70: 0
A71: Graham Potter - Brighton | D71: 6 | I71: =$E71*15 -> 0 | T71: =$E71*15 -> 0 | V71: =$E71*15 -> 0 | AA71: =$E71*15 -> 0 | AF71: =$E71*15 -> 0 | CC71: =$E71*15 -> 0
A72: Jose Mourinho - Tottenham Hotspur | D72: 4 | AE72: =$E72*15 -> 0 | BJ72: =$E72*15 -> 0 | BU72: =$E72*15 -> 0 | CE72: =$E72*15 -> 0
A73: Jurgen Klopp - Liverpool | D73: 0
A74: Marco Bielsa - Leeds United | D74: 1 | BZ74: =$E74*15 -> 0
A75: Mikel Arteta - Arsenal | D75: 0
A76: Nuno Espirito Santo - Wolves | D76: 0
A77: Ole Gunnar Solskjaer - Manchester United | D77: 1 | AL77: =$E77*15 -> 0
A78: Pep Guardiola - Manchester City | D78: 1 | AV78: =$E78*15 -> 0
A79: Ralph Hassenhuttl - Southampton | D79: 2 | K79: =$E79*15 -> 0 | AH79: =$E79*15 -> 0
A80: Roy Hodgson - Crystal Palace | D80: 8 | J80: =$E80*15 -> 0 | L80: =$E80*15 -> 0 | AD80: =$E80*15 -> 0 | AP80: =$E80*15 -> 0 | BF80: =$E80*15 -> 0 | BS80: =$E80*15 -> 0 | BV80: =$E80*15 -> 0 | BY80: =$E80*15 -> 0
A81: Scott Parker - Fulham | D81: 3 | R81: =$E81*15 -> 0 | Z81: =$E81*15 -> 0 | BC81: =$E81*15 -> 0
A82: Sean Dyche - Burnley | D82: 1 | S82: =$E82*15 -> 0
A83: Slaven Bilic - West Brom | D83: 4 | U83: =$E83*15 -> 0 | AO83: =$E83*15 -> 0 | BI83: =$E83*15 -> 0 | BL83: =$E83*15 -> 0
A84: Steve Bruce - Newcastle United | D84: 13 | Q84: =$E84*15 -> 0 | X84: =$E84*15 -> 0 | AG84: =$E84*15 -> 0 | AW84: =$E84*15 -> 0 | AY84: =$E84*15 -> 0 | BD84: =$E84*15 -> 0 | BH84: =$E84*15 -> 0 | BR84: =$E84*15 -> 0 | BW84: =$E84*15 -> 0 | BX84: =$E84*15 -> 0 | CA84: =$E84*15 -> 0 | CB84: =$E84*15 -> 0 | CD84: =$E84*15 -> 0
A86: Grand Total - November | I86: =SUM(I$3:I85) -> 73 | J86: =SUM(J$3:J85) -> 116 | K86: =SUM(K$3:K85) -> 97 | L86: =SUM(L$3:L85) -> 95 | M86: =SUM(M$3:M85) -> 88 | N86: =SUM(N$3:N85) -> 80 | O86: =SUM(O$3:O85) -> 90 | P86: =SUM(P$3:P85) -> 114 | Q86: =SUM(Q$3:Q85) -> 85 | R86: =SUM(R$3:R85) -> 135 | S86: =SUM(S$3:S85) -> 95 | T86: =SUM(T$3:T85) -> 91 | U86: =SUM(U$3:U85) -> 111 | V86: =SUM(V$3:V85) -> 101 | W86: =SUM(W$3:W85) -> 85 | X86: =SUM(X$3:X85) -> 103 | Y86: =SUM(Y$3:Y85) -> 80 | Z86: =SUM(Z$3:Z85) -> 102 | AA86: =SUM(AA$3:AA85) -> 76 | AB86: =SUM(AB$3:AB85) -> 106 | AC86: =SUM(AC$3:AC85) -> 108 | AD86: =SUM(AD$3:AD85) -> 82 | AE86: =SUM(AE$3:AE85) -> 115 | AF86: =SUM(AF$3:AF85) -> 103 | AG86: =SUM(AG$3:AG85) -> 75 | AH86: =SUM(AH$3:AH85) -> 91 | AI86: =SUM(AI$3:AI85) -> 118 | AJ86: =SUM(AJ$3:AJ85) -> 8 | AK86: =SUM(AK$3:AK85) -> 110 | AL86: =SUM(AL$3:AL85) -> 93 | AM86: =SUM(AM$3:AM85) -> 103 | AN86: =SUM(AN$3:AN85) -> 90 | AO86: =SUM(AO$3:AO85) -> 88 | AP86: =SUM(AP$3:AP85) -> 68 | AQ86: =SUM(AQ$3:AQ85) -> 95 | AR86: =SUM(AR$3:AR85) -> 90 | AS86: =SUM(AS$3:AS85) -> 102 | AT86: =SUM(AT$3:AT85) -> 111 | AU86: =SUM(AU$3:AU85) -> 98 | AV86: =SUM(AV$3:AV85) -> 85 | AW86: =SUM(AW$3:AW85) -> 92 | AX86: =SUM(AX$3:AX85) -> 105 | AY86: =SUM(AY$3:AY85) -> 122 | AZ86: =SUM(AZ$3:AZ85) -> 73 | BA86: =SUM(BA$3:BA85) -> 70 | BB86: =SUM(BB$3:BB85) -> 95 | BC86: =SUM(BC$3:BC85) -> 93 | BD86: =SUM(BD$3:BD85) -> 108 | BE86: =SUM(BE$3:BE85) -> 126 | BF86: =SUM(BF$3:BF85) -> 75 | BG86: =SUM(BG$3:BG85) -> 82 | BH86: =SUM(BH$3:BH85) -> 88 | BI86: =SUM(BI$3:BI85) -> 66 | BJ86: =SUM(BJ$3:BJ85) -> 68 | BK86: =SUM(BK$3:BK85) -> 96 | BL86: =SUM(BL$3:BL85) -> 81 | BM86: =SUM(BM$3:BM85) -> 86 | BN86: =SUM(BN$3:BN85) -> 73 | BO86: =SUM(BO$3:BO85) -> 103 | BP86: =SUM(BP$3:BP85) -> 114 | BQ86: =SUM(BQ$3:BQ85) -> 97 | BR86: =SUM(BR$3:BR85) -> 100 | BS86: =SUM(BS$3:BS85) -> 103 | BT86: =SUM(BT$3:BT85) -> 120 | BU86: =SUM(BU$3:BU85) -> 84 | BV86: =SUM(BV$3:BV85) -> 78 | BW86: =SUM(BW$3:BW85) -> 120 | BX86: =SUM(BX$3:BX85) -> 107 | BY86: =SUM(BY$3:BY85) -> 101 | BZ86: =SUM(BZ$3:BZ85) -> 123 | CA86: =SUM(CA$3:CA85) -> 68 | CB86: =SUM(CB$3:CB85) -> 90 | CC86: =SUM(CC$3:CC85) -> 89 | CD86: =SUM(CD$3:CD85) -> 110 | CE86: =SUM(CE$3:CE85) -> 91
A88: Ten Pointers | I88: =COUNTIF(I$3:I38,"10") -> 0 | J88: =COUNTIF(J$3:J38,"10") -> 7 | K88: =COUNTIF(K$3:K38,"10") -> 2 | L88: =COUNTIF(L$3:L38,"10") -> 2 | M88: =COUNTIF(M$3:M38,"10") -> 1 | N88: =COUNTIF(N$3:N38,"10") -> 1 | O88: =COUNTIF(O$3:O38,"10") -> 2 | P88: =COUNTIF(P$3:P38,"10") -> 4 | Q88: =COUNTIF(Q$3:Q38,"10") -> 0 | R88: =COUNTIF(R$3:R38,"10") -> 5 | S88: =COUNTIF(S$3:S38,"10") -> 3 | T88: =COUNTIF(T$3:T38,"10") -> 4 | U88: =COUNTIF(U$3:U38,"10") -> 4 | V88: =COUNTIF(V$3:V38,"10") -> 4 | W88: =COUNTIF(W$3:W38,"10") -> 2 | X88: =COUNTIF(X$3:X38,"10") -> 4 | Y88: =COUNTIF(Y$3:Y38,"10") -> 0 | Z88: =COUNTIF(Z$3:Z38,"10") -> 4 | AA88: =COUNTIF(AA$3:AA38,"10") -> 1 | AB88: =COUNTIF(AB$3:AB38,"10") -> 5 | AC88: =COUNTIF(AC$3:AC38,"10") -> 4 | AD88: =COUNTIF(AD$3:AD38,"10") -> 1 | AE88: =COUNTIF(AE$3:AE38,"10") -> 6 | AF88: =COUNTIF(AF$3:AF38,"10") -> 4 | AG88: =COUNTIF(AG$3:AG38,"10") -> 1 | AH88: =COUNTIF(AH$3:AH38,"10") -> 1 | AI88: =COUNTIF(AI$3:AI38,"10") -> 5 | AJ88: =COUNTIF(AJ$3:AJ38,"10") -> 0 | AK88: =COUNTIF(AK$3:AK38,"10") -> 4 | AL88: =COUNTIF(AL$3:AL38,"10") -> 2 | AM88: =COUNTIF(AM$3:AM38,"10") -> 4 | AN88: =COUNTIF(AN$3:AN38,"10") -> 1 | AO88: =COUNTIF(AO$3:AO38,"10") -> 1 | AP88: =COUNTIF(AP$3:AP38,"10") -> 0 | AQ88: =COUNTIF(AQ$3:AQ38,"10") -> 2 | AR88: =COUNTIF(AR$3:AR38,"10") -> 2 | AS88: =COUNTIF(AS$3:AS38,"10") -> 1 | AT88: =COUNTIF(AT$3:AT38,"10") -> 4 | AU88: =COUNTIF(AU$3:AU38,"10") -> 3 | AV88: =COUNTIF(AV$3:AV38,"10") -> 3 | AW88: =COUNTIF(AW$3:AW38,"10") -> 2 | AX88: =COUNTIF(AX$3:AX38,"10") -> 4 | AY88: =COUNTIF(AY$3:AY38,"10") -> 8 | AZ88: =COUNTIF(AZ$3:AZ38,"10") -> 0 | BA88: =COUNTIF(BA$3:BA38,"10") -> 0 | BB88: =COUNTIF(BB$3:BB38,"10") -> 1 | BC88: =COUNTIF(BC$3:BC38,"10") -> 3 | BD88: =COUNTIF(BD$3:BD38,"10") -> 3 | BE88: =COUNTIF(BE$3:BE38,"10") -> 6 | BF88: =COUNTIF(BF$3:BF38,"10") -> 1 | BG88: =COUNTIF(BG$3:BG38,"10") -> 2 | BH88: =COUNTIF(BH$3:BH38,"10") -> 1 | BI88: =COUNTIF(BI$3:BI38,"10") -> 1 | BJ88: =COUNTIF(BJ$3:BJ38,"10") -> 1 | BK88: =COUNTIF(BK$3:BK38,"10") -> 1 | BL88: =COUNTIF(BL$3:BL38,"10") -> 0 | BM88: =COUNTIF(BM$3:BM38,"10") -> 4 | BN88: =COUNTIF(BN$3:BN38,"10") -> 0 | BO88: =COUNTIF(BO$3:BO38,"10") -> 3 | BP88: =COUNTIF(BP$3:BP38,"10") -> 4 | BQ88: =COUNTIF(BQ$3:BQ38,"10") -> 1 | BR88: =COUNTIF(BR$3:BR38,"10") -> 2 | BS88: =COUNTIF(BS$3:BS38,"10") -> 4 | BT88: =COUNTIF(BT$3:BT38,"10") -> 5 | BU88: =COUNTIF(BU$3:BU38,"10") -> 0 | BV88: =COUNTIF(BV$3:BV38,"10") -> 1 | BW88: =COUNTIF(BW$3:BW38,"10") -> 5 | BX88: =COUNTIF(BX$3:BX38,"10") -> 3 | BY88: =COUNTIF(BY$3:BY38,"10") -> 2 | BZ88: =COUNTIF(BZ$3:BZ38,"10") -> 5 | CA88: =COUNTIF(CA$3:CA38,"10") -> 0 | CB88: =COUNTIF(CB$3:CB38,"10") -> 2 | CC88: =COUNTIF(CC$3:CC38,"10") -> 3 | CD88: =COUNTIF(CD$3:CD38,"10") -> 3 | CE88: =COUNTIF(CE$3:CE38,"10") -> 3

Sheet December
I1: Aidan Scanlon | J1: Aidan White | K1: Alan White | L1: Anastas Popov | M1: Andy Dunne | N1: Ben Creasey | O1: Bobby Hynes | P1: Brendan Maguire | Q1: Brian Prendergast | R1: Brian Haughton | S1: Brian Mullen | T1: Callum Dunne | U1: Calvin McGettigan | V1: Caroline Carroll | W1: Cathal Thornton | X1: Christina Morgan | Y1: Ciaran Nelson | Z1: Ciaran O'Hart | AA1: Con McSweeney | AB1: Craig Calvert | AC1: Darragh Kenny | AD1: David Cooney | AE1: David Lavelle | AF1: David McGinley | AG1: Davy Doyle | AH1: Dean White | AI1: Derek Brady | AJ1: Drew Armstrong | AK1: Eamon Fox | AL1: Eoghan Farrelly | AM1: Fiachra O'Brolachain | AN1: Frank McSweeney | AO1: Gareth Pierpoint | AP1: Gary Donnelly | AQ1: Gary Fitzpatrick | AR1: Gary McGurk | AS1: Gavin Goodwin | AT1: Gavin Morgan | AU1: George McGettigan | AV1: Gerard McCluskey | AW1: Gerry Draper | AX1: Gerry Moore | AY1: Graham Goodwin | AZ1: Javier Suarez | BA1: Joe Behan | BB1: Joe Turner | BC1: John Brophy | BD1: John O'Driscoll | BE1: Jonathan Fox | BF1: Joseph Kavanagh | BG1: Kev Dalton | BH1: Kevin Philpott | BI1: Kris Stainton | BJ1: Liam Geraghty | BK1: Liam Keohan | BL1: Lionel Knott | BM1: Michael Kenaney | BN1: Micheal Joyce | BO1: Niall Cannon | BP1: Niall Carroll | BQ1: Niall Murray | BR1: Patrick Mifsud | BS1: Paul Moore | BT1: Paul Prendergast | BU1: Phil Doyle | BV1: Philip Jordan | BW1: Ralph Goodwin | BX1: Richard Johnston | BY1: Robert Hynes | BZ1: Robert Manley | CA1: Roisin Joyce | CB1: Sean O'Mairtin | CC1: Trevor Byrne | CD1: Victoria Reid | CE1: Wayne Donovan
A2: Day | B2: Date | C2: Teams | G2: Time
A3: Sat | B3: 2020-12-05 | C3: Burnley | D3: 1 | E3: 1 | F3: Everton | G3: 12:30:00 | I3: 0 | J3: 0 | K3: 0 | L3: 0 | M3: 0 | N3: 0 | O3: 10 | P3: 10 | Q3: 10 | R3: 0 | S3: 0 | T3: 0 | U3: 0 | V3: 0 | W3: 10 | X3: 0 | Y3: 0 | Z3: 10 | AA3: 10 | AB3: 10 | AC3: 0 | AD3: 0 | AE3: 0 | AF3: 0 | AG3: 0 | AH3: 0 | AI3: 0 | AJ3: - | AK3: 0 | AL3: 0 | AM3: 0 | AN3: 0 | AO3: 0 | AP3: 0 | AQ3: 0 | AR3: 0 | AS3: 0 | AT3: 0 | AU3: 10 | AV3: 0 | AW3: 0 | AX3: 0 | AY3: 10 | AZ3: 0 | BA3: 0 | BB3: 0 | BC3: 0 | BD3: 0 | BE3: 0 | BF3: 10 | BG3: 0 | BH3: 0 | BI3: 0 | BJ3: 0 | BK3: 0 | BL3: 0 | BM3: - | BN3: 0 | BO3: 0 | BP3: 0 | BQ3: 0 | BR3: 0 | BS3: 0 | BT3: 10 | BU3: 0 | BV3: 0 | BW3: 0 | BX3: 0 | BY3: 0 | BZ3: 0 | CA3: 0 | CB3: 10 | CC3: 0 | CD3: 0 | CE3: 10
A4: Sat | B4: 2020-12-05 | C4: Man City | D4: 2 | E4: 0 | F4: Fulham | G4: 15:00:00 | I4: 5 | J4: 5 | K4: 5 | L4: 5 | M4: 10 | N4: 10 | O4: 5 | P4: 5 | Q4: 5 | R4: 5 | S4: 5 | T4: 5 | U4: 5 | V4: 5 | W4: 5 | X4: 5 | Y4: 5 | Z4: 5 | AA4: 5 | AB4: 5 | AC4: 5 | AD4: 5 | AE4: 5 | AF4: 5 | AG4: 5 | AH4: 5 | AI4: 5 | AJ4: - | AK4: 5 | AL4: 5 | AM4: 10 | AN4: 5 | AO4: 5 | AP4: 5 | AQ4: 5 | AR4: 5 | AS4: 5 | AT4: 5 | AU4: 0 | AV4: 5 | AW4: 5 | AX4: 5 | AY4: 5 | AZ4: 5 | BA4: 5 | BB4: 5 | BC4: 5 | BD4: 5 | BE4: 5 | BF4: 5 | BG4: 5 | BH4: 5 | BI4: 10 | BJ4: 5 | BK4: 5 | BL4: 5 | BM4: - | BN4: 5 | BO4: 5 | BP4: 5 | BQ4: 5 | BR4: 10 | BS4: 5 | BT4: 5 | BU4: 5 | BV4: 5 | BW4: 5 | BX4: 5 | BY4: 5 | BZ4: 5 | CA4: 5 | CB4: 5 | CC4: 5 | CD4: 5 | CE4: 5
A5: Sat | B5: 2020-12-05 | C5: West Ham | D5: 1 | E5: 3 | F5: Manchester United | G5: 17:30:00 | I5: 5 | J5: 5 | K5: 5 | L5: 0 | M5: 0 | N5: 0 | O5: 5 | P5: 5 | Q5: 0 | R5: 5 | S5: 5 | T5: 0 | U5: 10 | V5: 0 | W5: 0 | X5: 5 | Y5: 5 | Z5: 0 | AA5: 0 | AB5: 5 | AC5: 0 | AD5: 0 | AE5: 0 | AF5: 5 | AG5: 5 | AH5: 10 | AI5: 5 | AJ5: - | AK5: 5 | AL5: 0 | AM5: 5 | AN5: 0 | AO5: 0 | AP5: 0 | AQ5: 0 | AR5: 0 | AS5: 5 | AT5: 0 | AU5: 0 | AV5: 0 | AW5: 0 | AX5: 0 | AY5: 0 | AZ5: 5 | BA5: 0 | BB5: 0 | BC5: 5 | BD5: 5 | BE5: 5 | BF5: 5 | BG5: 10 | BH5: 5 | BI5: 10 | BJ5: 0 | BK5: 5 | BL5: 5 | BM5: - | BN5: 10 | BO5: 5 | BP5: 5 | BQ5: 0 | BR5: 0 | BS5: 0 | BT5: 0 | BU5: 5 | BV5: 5 | BW5: 5 | BX5: 5 | BY5: 0 | BZ5: 0 | CA5: 0 | CB5: 0 | CC5: 0 | CD5: 0 | CE5: 0
A6: Sat | B6: 2020-12-05 | C6: Chelsea | D6: 3 | E6: 1 | F6: Leeds | G6: 20:00:00 | I6: 10 | J6: 5 | K6: 10 | L6: 5 | M6: 5 | N6: 5 | O6: 10 | P6: 5 | Q6: 10 | R6: 10 | S6: 5 | T6: 0 | U6: 5 | V6: 5 | W6: 5 | X6: 5 | Y6: 5 | Z6: 5 | AA6: 10 | AB6: 0 | AC6: 5 | AD6: 10 | AE6: 10 | AF6: 5 | AG6: 5 | AH6: 5 | AI6: 5 | AJ6: - | AK6: 5 | AL6: 10 | AM6: 10 | AN6: 10 | AO6: 5 | AP6: 5 | AQ6: 5 | AR6: 5 | AS6: 5 | AT6: 5 | AU6: 5 | AV6: 5 | AW6: 5 | AX6: 0 | AY6: 5 | AZ6: 5 | BA6: 5 | BB6: 5 | BC6: 10 | BD6: 0 | BE6: 5 | BF6: 10 | BG6: 5 | BH6: 5 | BI6: 5 | BJ6: 5 | BK6: 5 | BL6: 5 | BM6: - | BN6: 10 | BO6: 5 | BP6: 5 | BQ6: 10 | BR6: 10 | BS6: 5 | BT6: 5 | BU6: 5 | BV6: 10 | BW6: 10 | BX6: 5 | BY6: 10 | BZ6: 5 | CA6: 0 | CB6: 5 | CC6: 5 | CD6: 5 | CE6: 5
A7: Sun | B7: 2020-12-06 | C7: West Brom | D7: 1 | E7: 5 | F7: Crystal Palace | G7: 12:30:00 | I7: 0 | J7: 0 | K7: 0 | L7: 0 | M7: 0 | N7: 0 | O7: 5 | P7: 5 | Q7: 0 | R7: 5 | S7: 0 | T7: 5 | U7: 0 | V7: 0 | W7: 0 | X7: 5 | Y7: 0 | Z7: 0 | AA7: 5 | AB7: 5 | AC7: 0 | AD7: 0 | AE7: 0 | AF7: 0 | AG7: 5 | AH7: 0 | AI7: 5 | AJ7: - | AK7: 5 | AL7: 0 | AM7: 5 | AN7: 0 | AO7: 0 | AP7: 5 | AQ7: 0 | AR7: 0 | AS7: 5 | AT7: 0 | AU7: 0 | AV7: 0 | AW7: 0 | AX7: 0 | AY7: 0 | AZ7: 0 | BA7: 0 | BB7: 0 | BC7: 0 | BD7: 5 | BE7: 0 | BF7: 0 | BG7: 5 | BH7: 5 | BI7: 0 | BJ7: 5 | BK7: 5 | BL7: 0 | BM7: - | BN7: 5 | BO7: 0 | BP7: 0 | BQ7: 0 | BR7: 5 | BS7: 5 | BT7: 0 | BU7: 0 | BV7: 0 | BW7: 0 | BX7: 0 | BY7: 0 | BZ7: 0 | CA7: 0 | CB7: 5 | CC7: 0 | CD7: 0 | CE7: 0
A8: Sun | B8: 2020-12-06 | C8: Sheffield United | D8: 1 | E8: 2 | F8: Leicester | G8: 14:15:00 | I8: 0 | J8: 5 | K8: 5 | L8: 5 | M8: 10 | N8: 0 | O8: 5 | P8: 10 | Q8: 5 | R8: 10 | S8: 5 | T8: 5 | U8: 5 | V8: 10 | W8: 10 | X8: 0 | Y8: 5 | Z8: 5 | AA8: 10 | AB8: 10 | AC8: 5 | AD8: 10 | AE8: 5 | AF8: 0 | AG8: 5 | AH8: 5 | AI8: 5 | AJ8: - | AK8: 10 | AL8: 10 | AM8: 5 | AN8: 5 | AO8: 10 | AP8: 0 | AQ8: 0 | AR8: 10 | AS8: 5 | AT8: 5 | AU8: 0 | AV8: 0 | AW8: 10 | AX8: 5 | AY8: 5 | AZ8: 5 | BA8: 5 | BB8: 0 | BC8: 5 | BD8: 5 | BE8: 5 | BF8: 5 | BG8: 5 | BH8: 10 | BI8: 5 | BJ8: 10 | BK8: 5 | BL8: 5 | BM8: - | BN8: 0 | BO8: 5 | BP8: 5 | BQ8: 10 | BR8: 10 | BS8: 5 | BT8: 0 | BU8: 5 | BV8: 0 | BW8: 5 | BX8: 5 | BY8: 10 | BZ8: 10 | CA8: 10 | CB8: 0 | CC8: 0 | CD8: 5 | CE8: 0
A9: Sun | B9: 2020-12-06 | C9: Tottenham | D9: 2 | E9: 0 | F9: Arsenal | G9: 16:30:00 | I9: 5 | J9: 5 | K9: 0 | L9: 10 | M9: 5 | N9: 10 | O9: 5 | P9: 10 | Q9: 5 | R9: 5 | S9: 0 | T9: 5 | U9: 0 | V9: 10 | W9: 10 | X9: 5 | Y9: 5 | Z9: 5 | AA9: 5 | AB9: 10 | AC9: 5 | AD9: 0 | AE9: 5 | AF9: 5 | AG9: 0 | AH9: 10 | AI9: 5 | AJ9: - | AK9: 10 | AL9: 5 | AM9: 5 | AN9: 0 | AO9: 10 | AP9: 0 | AQ9: 5 | AR9: 0 | AS9: 5 | AT9: 5 | AU9: 5 | AV9: 10 | AW9: 5 | AX9: 0 | AY9: 5 | AZ9: 10 | BA9: 10 | BB9: 10 | BC9: 5 | BD9: 5 | BE9: 5 | BF9: 10 | BG9: 10 | BH9: 5 | BI9: 5 | BJ9: 0 | BK9: 0 | BL9: 5 | BM9: - | BN9: 0 | BO9: 10 | BP9: 5 | BQ9: 0 | BR9: 5 | BS9: 10 | BT9: 10 | BU9: 5 | BV9: 5 | BW9: 5 | BX9: 0 | BY9: 5 | BZ9: 10 | CA9: 10 | CB9: 5 | CC9: 5 | CD9: 5 | CE9: 5
A10: Sun | B10: 2020-12-06 | C10: Liverpool | D10: 4 | E10: 0 | F10: Wolves | G10: 19:15:00 | I10: 0 | J10: 5 | K10: 5 | L10: 5 | M10: 5 | N10: 5 | O10: 5 | P10: 0 | Q10: 5 | R10: 5 | S10: 5 | T10: 5 | U10: 5 | V10: 5 | W10: 5 | X10: 5 | Y10: 5 | Z10: 0 | AA10: 5 | AB10: 0 | AC10: 5 | AD10: 5 | AE10: 5 | AF10: 5 | AG10: 5 | AH10: 5 | AI10: 5 | AJ10: - | AK10: 5 | AL10: 5 | AM10: 5 | AN10: 5 | AO10: 5 | AP10: 5 | AQ10: 5 | AR10: 5 | AS10: 5 | AT10: 5 | AU10: 5 | AV10: 5 | AW10: 5 | AX10: 0 | AY10: 5 | AZ10: 5 | BA10: 5 | BB10: 5 | BC10: 0 | BD10: 0 | BE10: 5 | BF10: 5 | BG10: 5 | BH10: 5 | BI10: 0 | BJ10: 5 | BK10: 5 | BL10: 5 | BM10: - | BN10: 5 | BO10: 5 | BP10: 0 | BQ10: 0 | BR10: 5 | BS10: 5 | BT10: 5 | BU10: 5 | BV10: 5 | BW10: 5 | BX10: 5 | BY10: 5 | BZ10: 5 | CA10: 0 | CB10: 5 | CC10: 5 | CD10: 5 | CE10: 5
A11: Mon | B11: 2020-12-07 | C11: Brighton | D11: 1 | E11: 2 | F11: Southampton | G11: 20:00:00 | I11: 10 | J11: 0 | K11: 5 | L11: 10 | M11: 5 | N11: 0 | O11: 0 | P11: 0 | Q11: 0 | R11: 0 | S11: 0 | T11: 10 | U11: 0 | V11: 0 | W11: 10 | X11: 0 | Y11: 0 | Z11: 0 | AA11: 10 | AB11: 10 | AC11: 5 | AD11: 0 | AE11: 5 | AF11: 0 | AG11: 5 | AH11: 5 | AI11: 0 | AJ11: - | AK11: 5 | AL11: 0 | AM11: 0 | AN11: 5 | AO11: 10 | AP11: 0 | AQ11: 0 | AR11: 0 | AS11: 0 | AT11: 0 | AU11: 0 | AV11: 0 | AW11: 0 | AX11: 0 | AY11: 5 | AZ11: 5 | BA11: 0 | BB11: 0 | BC11: 0 | BD11: 0 | BE11: 5 | BF11: 0 | BG11: 10 | BH11: 10 | BI11: 5 | BJ11: 0 | BK11: 5 | BL11: 10 | BM11: - | BN11: 5 | BO11: 0 | BP11: 5 | BQ11: 0 | BR11: 5 | BS11: 10 | BT11: 10 | BU11: 10 | BV11: 0 | BW11: 5 | BX11: 10 | BY11: 0 | BZ11: 10 | CA11: 0 | CB11: 0 | CC11: 10 | CD11: 0 | CE11: 0
A12: Fri | B12: 2020-12-11 | C12: Leeds | D12: 1 | E12: 2 | F12: West Ham | G12: 20:00:00 | I12: 0 | J12: 0 | K12: 0 | L12: 0 | M12: 0 | N12: - | O12: 0 | P12: 0 | Q12: 0 | R12: 0 | S12: 0 | T12: 0 | U12: 5 | V12: 10 | W12: 10 | X12: 0 | Y12: 10 | Z12: 0 | AA12: 0 | AB12: 0 | AC12: 0 | AD12: 0 | AE12: 0 | AF12: 0 | AG12: 0 | AH12: 0 | AI12: 0 | AJ12: - | AK12: 0 | AL12: 0 | AM12: 0 | AN12: 0 | AO12: 0 | AP12: 0 | AQ12: 0 | AR12: 0 | AS12: 0 | AT12: 0 | AU12: 0 | AV12: 0 | AW12: 0 | AX12: 0 | AY12: 0 | AZ12: 0 | BA12: 0 | BB12: 0 | BC12: 0 | BD12: 0 | BE12: 0 | BF12: 0 | BG12: 0 | BH12: 0 | BI12: 0 | BJ12: 0 | BK12: 0 | BL12: 10 | BM12: - | BN12: 0 | BO12: 0 | BP12: 0 | BQ12: 0 | BR12: 0 | BS12: 0 | BT12: 0 | BU12: 0 | BV12: 0 | BW12: 0 | BX12: 0 | BY12: 0 | BZ12: 0 | CA12: 0 | CB12: 0 | CC12: 0 | CD12: 10 | CE12: 0
A13: Sat | B13: 2020-12-12 | C13: Wolves | D13: 0 | E13: 1 | F13: Aston Villa | G13: 12:30:00 | I13: 0 | J13: 5 | K13: 0 | L13: 0 | M13: 0 | N13: - | O13: 0 | P13: 0 | Q13: 0 | R13: 0 | S13: 0 | T13: 0 | U13: 0 | V13: 0 | W13: 0 | X13: 0 | Y13: 0 | Z13: 0 | AA13: 0 | AB13: 0 | AC13: 0 | AD13: 0 | AE13: 0 | AF13: 0 | AG13: 0 | AH13: 0 | AI13: 0 | AJ13: - | AK13: 5 | AL13: 0 | AM13: 0 | AN13: 0 | AO13: 5 | AP13: 0 | AQ13: 0 | AR13: 0 | AS13: 0 | AT13: 0 | AU13: 0 | AV13: 0 | AW13: 5 | AX13: 10 | AY13: 0 | AZ13: 0 | BA13: 0 | BB13: 0 | BC13: 0 | BD13: 0 | BE13: 0 | BF13: 0 | BG13: 0 | BH13: 0 | BI13: 5 | BJ13: 0 | BK13: 0 | BL13: 0 | BM13: - | BN13: 5 | BO13: 10 | BP13: 0 | BQ13: 0 | BR13: 5 | BS13: 0 | BT13: 0 | BU13: 5 | BV13: 0 | BW13: 0 | BX13: 0 | BY13: 0 | BZ13: 0 | CA13: 0 | CB13: 0 | CC13: 0 | CD13: 10 | CE13: 0
A14: Sat | B14: 2020-12-12 | C14: Newcastle | D14: 2 | E14: 1 | F14: West Brom | G14: 15:00:00 | I14: 10 | J14: 5 | K14: 5 | L14: 5 | M14: 5 | N14: - | O14: 5 | P14: 10 | Q14: 5 | R14: 5 | S14: 10 | T14: 10 | U14: 5 | V14: 0 | W14: 5 | X14: 10 | Y14: 5 | Z14: 5 | AA14: 5 | AB14: 10 | AC14: 5 | AD14: 5 | AE14: 0 | AF14: 5 | AG14: 5 | AH14: 5 | AI14: 5 | AJ14: - | AK14: 5 | AL14: 5 | AM14: 0 | AN14: 5 | AO14: 5 | AP14: 0 | AQ14: 0 | AR14: 5 | AS14: 10 | AT14: 5 | AU14: 10 | AV14: 5 | AW14: 0 | AX14: 5 | AY14: 5 | AZ14: 5 | BA14: 5 | BB14: 5 | BC14: 5 | BD14: 5 | BE14: 5 | BF14: 5 | BG14: 0 | BH14: 10 | BI14: 5 | BJ14: 0 | BK14: 5 | BL14: 0 | BM14: - | BN14: 10 | BO14: 5 | BP14: 0 | BQ14: 5 | BR14: 5 | BS14: 0 | BT14: 5 | BU14: 10 | BV14: 5 | BW14: 5 | BX14: 10 | BY14: 0 | BZ14: 5 | CA14: 5 | CB14: 10 | CC14: 5 | CD14: 5 | CE14: 5
A15: Sat | B15: 2020-12-12 | C15: Manchester United | D15: 0 | E15: 0 | F15: Man City | G15: 17:30:00 | I15: 0 | J15: 5 | K15: 5 | L15: 0 | M15: 0 | N15: - | O15: 5 | P15: 0 | Q15: 0 | R15: 0 | S15: 0 | T15: 0 | U15: 0 | V15: 0 | W15: 0 | X15: 0 | Y15: 0 | Z15: 0 | AA15: 0 | AB15: 0 | AC15: 5 | AD15: 0 | AE15: 0 | AF15: 5 | AG15: 0 | AH15: 0 | AI15: 0 | AJ15: - | AK15: 0 | AL15: 0 | AM15: 0 | AN15: 0 | AO15: 0 | AP15: 5 | AQ15: 5 | AR15: 5 | AS15: 0 | AT15: 0 | AU15: 0 | AV15: 0 | AW15: 0 | AX15: 0 | AY15: 0 | AZ15: 5 | BA15: 0 | BB15: 0 | BC15: 0 | BD15: 0 | BE15: 0 | BF15: 0 | BG15: 0 | BH15: 0 | BI15: 0 | BJ15: 5 | BK15: 0 | BL15: 0 | BM15: - | BN15: 0 | BO15: 0 | BP15: 0 | BQ15: 0 | BR15: 5 | BS15: 0 | BT15: 5 | BU15: 0 | BV15: 0 | BW15: 0 | BX15: 0 | BY15: 5 | BZ15: 5 | CA15: 0 | CB15: 5 | CC15: 0 | CD15: 0 | CE15: 0
A16: Sat | B16: 2020-12-12 | C16: Everton | D16: 1 | E16: 0 | F16: Chelsea | G16: 20:00:00 | I16: 0 | J16: 0 | K16: 0 | L16: 0 | M16: 0 | N16: - | O16: 0 | P16: 0 | Q16: 0 | R16: 0 | S16: 0 | T16: 5 | U16: 0 | V16: 0 | W16: 0 | X16: 0 | Y16: 0 | Z16: 0 | AA16: 0 | AB16: 0 | AC16: 0 | AD16: 0 | AE16: 0 | AF16: 0 | AG16: 0 | AH16: 0 | AI16: 0 | AJ16: - | AK16: 0 | AL16: 0 | AM16: 0 | AN16: 0 | AO16: 0 | AP16: 0 | AQ16: 0 | AR16: 0 | AS16: 0 | AT16: 0 | AU16: 0 | AV16: 0 | AW16: 0 | AX16: 0 | AY16: 0 | AZ16: 0 | BA16: 0 | BB16: 0 | BC16: 5 | BD16: 0 | BE16: 0 | BF16: 0 | BG16: 0 | BH16: 0 | BI16: 0 | BJ16: 0 | BK16: 0 | BL16: 0 | BM16: - | BN16: 0 | BO16: 0 | BP16: 0 | BQ16: 0 | BR16: 0 | BS16: 0 | BT16: 0 | BU16: 5 | BV16: 0 | BW16: 0 | BX16: 0 | BY16: 0 | BZ16: 0 | CA16: 0 | CB16: 0 | CC16: 0 | CD16: 0 | CE16: 0
A17: Sun | B17: 2020-12-13 | C17: Southampton | D17: 3 | E17: 0 | F17: Sheffield United | G17: 12:00:00 | I17: 5 | J17: 0 | K17: 5 | L17: 5 | M17: 5 | N17: - | O17: 5 | P17: 5 | Q17: 5 | R17: 10 | S17: 5 | T17: 5 | U17: 5 | V17: 10 | W17: 5 | X17: 5 | Y17: 5 | Z17: 5 | AA17: 5 | AB17: 10 | AC17: 5 | AD17: 10 | AE17: 10 | AF17: 5 | AG17: 5 | AH17: 5 | AI17: 5 | AJ17: - | AK17: 5 | AL17: 5 | AM17: 5 | AN17: 5 | AO17: 5 | AP17: 5 | AQ17: 10 | AR17: 0 | AS17: 0 | AT17: 5 | AU17: 10 | AV17: 5 | AW17: 5 | AX17: 5 | AY17: 5 | AZ17: 0 | BA17: 5 | BB17: 5 | BC17: 0 | BD17: 5 | BE17: 5 | BF17: 5 | BG17: 5 | BH17: 5 | BI17: 0 | BJ17: 5 | BK17: 5 | BL17: 5 | BM17: - | BN17: 5 | BO17: 5 | BP17: 10 | BQ17: 5 | BR17: 5 | BS17: 5 | BT17: 5 | BU17: 0 | BV17: 5 | BW17: 5 | BX17: 5 | BY17: 5 | BZ17: 5 | CA17: 5 | CB17: 5 | CC17: 0 | CD17: 0 | CE17: 5
A18: Sun | B18: 2020-12-13 | C18: Crystal Palace | D18: 1 | E18: 1 | F18: Tottenham | G18: 14:15:00 | I18: 0 | J18: 0 | K18: 0 | L18: 0 | M18: 0 | N18: - | O18: 10 | P18: 0 | Q18: 0 | R18: 0 | S18: 0 | T18: 0 | U18: 0 | V18: 0 | W18: 0 | X18: 0 | Y18: 0 | Z18: 0 | AA18: 0 | AB18: 0 | AC18: 0 | AD18: 0 | AE18: 0 | AF18: 0 | AG18: 0 | AH18: 0 | AI18: 0 | AJ18: - | AK18: 0 | AL18: 0 | AM18: 0 | AN18: 0 | AO18: 0 | AP18: 0 | AQ18: 0 | AR18: 0 | AS18: 0 | AT18: 0 | AU18: 0 | AV18: 10 | AW18: 0 | AX18: 10 | AY18: 0 | AZ18: 0 | BA18: 0 | BB18: 10 | BC18: 10 | BD18: 0 | BE18: 0 | BF18: 0 | BG18: 0 | BH18: 0 | BI18: 0 | BJ18: 10 | BK18: 0 | BL18: 0 | BM18: - | BN18: 0 | BO18: 0 | BP18: 0 | BQ18: 0 | BR18: 0 | BS18: 0 | BT18: 0 | BU18: 0 | BV18: 0 | BW18: 0 | BX18: 0 | BY18: 0 | BZ18: 0 | CA18: 0 | CB18: 10 | CC18: 0 | CD18: 0 | CE18: 0
A19: Sun | B19: 2020-12-13 | C19: Fulham | D19: 1 | E19: 1 | F19: Liverpool | G19: 16:30:00 | I19: 0 | J19: 0 | K19: 0 | L19: 0 | M19: 0 | N19: - | O19: 0 | P19: 0 | Q19: 0 | R19: 0 | S19: 0 | T19: 0 | U19: 0 | V19: 0 | W19: 0 | X19: 0 | Y19: 0 | Z19: 0 | AA19: 0 | AB19: 0 | AC19: 0 | AD19: 0 | AE19: 0 | AF19: 0 | AG19: 0 | AH19: 0 | AI19: 0 | AJ19: - | AK19: 0 | AL19: 0 | AM19: 0 | AN19: 0 | AO19: 0 | AP19: 0 | AQ19: 0 | AR19: 0 | AS19: 0 | AT19: 0 | AU19: 0 | AV19: 0 | AW19: 0 | AX19: 0 | AY19: 0 | AZ19: 0 | BA19: 0 | BB19: 0 | BC19: 0 | BD19: 0 | BE19: 0 | BF19: 0 | BG19: 0 | BH19: 0 | BI19: 0 | BJ19: 0 | BK19: 0 | BL19: 0 | BM19: - | BN19: 0 | BO19: 0 | BP19: 0 | BQ19: 0 | BR19: 0 | BS19: 0 | BT19: 0 | BU19: 0 | BV19: 0 | BW19: 0 | BX19: 0 | BY19: 0 | BZ19: 0 | CA19: 0 | CB19: 0 | CC19: 0 | CD19: 0 | CE19: 0
A20: Sun | B20: 2020-12-13 | C20: Arsenal | D20: 0 | E20: 1 | F20: Burnley | G20: 19:15:00 | I20: 0 | J20: 0 | K20: 0 | L20: 0 | M20: 0 | N20: - | O20: 0 | P20: 0 | Q20: 0 | R20: 0 | S20: 0 | T20: 0 | U20: 0 | V20: 0 | W20: 0 | X20: 0 | Y20: 0 | Z20: 0 | AA20: 0 | AB20: 0 | AC20: 0 | AD20: 0 | AE20: 0 | AF20: 0 | AG20: 0 | AH20: 0 | AI20: 0 | AJ20: - | AK20: 0 | AL20: 0 | AM20: 0 | AN20: 0 | AO20: 0 | AP20: 0 | AQ20: 0 | AR20: 0 | AS20: 0 | AT20: 0 | AU20: 0 | AV20: 0 | AW20: 0 | AX20: 0 | AY20: 0 | AZ20: 0 | BA20: 0 | BB20: 0 | BC20: 0 | BD20: 0 | BE20: 0 | BF20: 0 | BG20: 5 | BH20: 0 | BI20: 0 | BJ20: 0 | BK20: 0 | BL20: 0 | BM20: - | BN20: 0 | BO20: 0 | BP20: 0 | BQ20: 0 | BR20: 0 | BS20: 0 | BT20: 0 | BU20: 0 | BV20: 0 | BW20: 0 | BX20: 0 | BY20: 0 | BZ20: 0 | CA20: 0 | CB20: 0 | CC20: 0 | CD20: 10 | CE20: 0
A21: Sun | B21: 2020-12-13 | C21: Leicester | D21: 3 | E21: 0 | F21: Brighton | G21: 19:15:00 | I21: 5 | J21: 5 | K21: 5 | L21: 5 | M21: 5 | N21: - | O21: 5 | P21: 5 | Q21: 10 | R21: 5 | S21: 5 | T21: 5 | U21: 5 | V21: 0 | W21: 5 | X21: 5 | Y21: 5 | Z21: 5 | AA21: 5 | AB21: 5 | AC21: 5 | AD21: 5 | AE21: 5 | AF21: 5 | AG21: 5 | AH21: 5 | AI21: 10 | AJ21: - | AK21: 5 | AL21: 0 | AM21: 5 | AN21: 5 | AO21: 5 | AP21: 10 | AQ21: 5 | AR21: 5 | AS21: 5 | AT21: 5 | AU21: 10 | AV21: 5 | AW21: 5 | AX21: 5 | AY21: 0 | AZ21: 5 | BA21: 5 | BB21: 5 | BC21: 5 | BD21: 5 | BE21: 5 | BF21: 5 | BG21: 5 | BH21: 5 | BI21: 5 | BJ21: 10 | BK21: 5 | BL21: 5 | BM21: - | BN21: 5 | BO21: 10 | BP21: 5 | BQ21: 5 | BR21: 5 | BS21: 5 | BT21: 5 | BU21: 5 | BV21: 5 | BW21: 5 | BX21: 5 | BY21: 5 | BZ21: 5 | CA21: 5 | CB21: 5 | CC21: 5 | CD21: 0 | CE21: 5
A22: Tue | B22: 2020-12-15 | C22: Wolves | D22: 2 | E22: 1 | F22: Chelsea | G22: 18:00:00 | I22: 0 | J22: 0 | K22: 10 | L22: 0 | M22: 0 | N22: - | O22: 10 | P22: 0 | Q22: 10 | R22: 0 | S22: 0 | T22: 10 | U22: 0 | V22: 0 | W22: 0 | X22: 5 | Y22: 0 | Z22: 0 | AA22: 0 | AB22: 0 | AC22: 10 | AD22: 0 | AE22: 0 | AF22: 10 | AG22: 0 | AH22: 0 | AI22: 10 | AJ22: - | AK22: 0 | AL22: 0 | AM22: 0 | AN22: 0 | AO22: 0 | AP22: 0 | AQ22: 0 | AR22: 5 | AS22: 0 | AT22: 0 | AU22: 0 | AV22: 0 | AW22: 0 | AX22: 0 | AY22: 0 | AZ22: 0 | BA22: 0 | BB22: 0 | BC22: 0 | BD22: 0 | BE22: 0 | BF22: 0 | BG22: 0 | BH22: 0 | BI22: 0 | BJ22: 0 | BK22: 0 | BL22: 0 | BM22: - | BN22: 0 | BO22: 0 | BP22: 0 | BQ22: 0 | BR22: 0 | BS22: 0 | BT22: 0 | BU22: 0 | BV22: 0 | BW22: 0 | BX22: 0 | BY22: 10 | BZ22: 0 | CA22: 0 | CB22: 0 | CC22: 0 | CD22: 10 | CE22: 10
A23: Tue | B23: 2020-12-15 | C23: Man City | D23: 1 | E23: 1 | F23: West Brom | G23: 20:00:00 | I23: 0 | J23: 0 | K23: 0 | L23: 0 | M23: 0 | N23: - | O23: 0 | P23: 0 | Q23: 0 | R23: 0 | S23: 0 | T23: 0 | U23: 0 | V23: 0 | W23: 0 | X23: 0 | Y23: 0 | Z23: 0 | AA23: 0 | AB23: 0 | AC23: 0 | AD23: 0 | AE23: 0 | AF23: 0 | AG23: 0 | AH23: 0 | AI23: 0 | AJ23: - | AK23: 0 | AL23: 0 | AM23: 0 | AN23: 0 | AO23: 0 | AP23: 0 | AQ23: 0 | AR23: 0 | AS23: 0 | AT23: 0 | AU23: 0 | AV23: 0 | AW23: 0 | AX23: 0 | AY23: 0 | AZ23: 0 | BA23: 0 | BB23: 0 | BC23: 0 | BD23: 0 | BE23: 0 | BF23: 0 | BG23: 0 | BH23: 0 | BI23: 0 | BJ23: 0 | BK23: 0 | BL23: 0 | BM23: - | BN23: 0 | BO23: 0 | BP23: 0 | BQ23: 0 | BR23: 0 | BS23: 0 | BT23: 0 | BU23: 0 | BV23: 0 | BW23: 0 | BX23: 0 | BY23: 0 | BZ23: 0 | CA23: 5 | CB23: 0 | CC23: 0 | CD23: 0 | CE23: 0
A24: Wed | B24: 2020-12-16 | C24: Arsenal | D24: 1 | E24: 1 | F24: Southampton | G24: 18:00:00 | I24: 0 | J24: 0 | K24: 10 | L24: 0 | M24: 5 | N24: - | O24: 0 | P24: 0 | Q24: 0 | R24: 10 | S24: 0 | T24: 0 | U24: 5 | V24: 0 | W24: 0 | X24: 10 | Y24: 0 | Z24: 10 | AA24: 0 | AB24: 0 | AC24: 0 | AD24: 0 | AE24: 0 | AF24: 10 | AG24: 5 | AH24: 10 | AI24: 0 | AJ24: - | AK24: 0 | AL24: 10 | AM24: 0 | AN24: 10 | AO24: 10 | AP24: 0 | AQ24: 10 | AR24: 0 | AS24: 0 | AT24: 10 | AU24: 10 | AV24: 5 | AW24: 0 | AX24: 0 | AY24: 0 | AZ24: 5 | BA24: 0 | BB24: 5 | BC24: 0 | BD24: 5 | BE24: 10 | BF24: 0 | BG24: 0 | BH24: 0 | BI24: 0 | BJ24: 0 | BK24: 0 | BL24: 0 | BM24: - | BN24: 10 | BO24: 0 | BP24: 0 | BQ24: 0 | BR24: 0 | BS24: 10 | BT24: 0 | BU24: 5 | BV24: 0 | BW24: 0 | BX24: 0 | BY24: 0 | BZ24: 0 | CA24: 5 | CB24: 0 | CC24: 0 | CD24: 0 | CE24: 10
A25: Wed | B25: 2020-12-16 | C25: Leeds | D25: 5 | E25: 2 | F25: Newcastle | G25: 18:00:00 | I25: 5 | J25: 0 | K25: 5 | L25: 5 | M25: 0 | N25: - | O25: 5 | P25: 0 | Q25: 5 | R25: 0 | S25: 0 | T25: 5 | U25: 0 | V25: 5 | W25: 5 | X25: 5 | Y25: 0 | Z25: 5 | AA25: 5 | AB25: 5 | AC25: 0 | AD25: 5 | AE25: 5 | AF25: 5 | AG25: 5 | AH25: 0 | AI25: 5 | AJ25: - | AK25: 5 | AL25: 0 | AM25: 5 | AN25: 5 | AO25: 5 | AP25: 0 | AQ25: 5 | AR25: 0 | AS25: 5 | AT25: 5 | AU25: 0 | AV25: 5 | AW25: 5 | AX25: 0 | AY25: 0 | AZ25: 5 | BA25: 5 | BB25: 5 | BC25: 5 | BD25: 5 | BE25: 5 | BF25: 5 | BG25: 0 | BH25: 5 | BI25: 5 | BJ25: 5 | BK25: 5 | BL25: 5 | BM25: - | BN25: 5 | BO25: 5 | BP25: 5 | BQ25: 0 | BR25: 5 | BS25: 0 | BT25: 5 | BU25: 5 | BV25: 5 | BW25: 5 | BX25: 5 | BY25: 5 | BZ25: 5 | CA25: 0 | CB25: 5 | CC25: 0 | CD25: 5 | CE25: 5
A26: Wed | B26: 2020-12-16 | C26: Leicester | D26: 0 | E26: 2 | F26: Everton | G26: 18:00:00 | I26: 0 | J26: 0 | K26: 0 | L26: 0 | M26: 0 | N26: - | O26: 0 | P26: 0 | Q26: 0 | R26: 5 | S26: 0 | T26: 0 | U26: 0 | V26: 0 | W26: 0 | X26: 0 | Y26: 0 | Z26: 0 | AA26: 0 | AB26: 0 | AC26: 0 | AD26: 0 | AE26: 0 | AF26: 0 | AG26: 0 | AH26: 0 | AI26: 0 | AJ26: - | AK26: 0 | AL26: 0 | AM26: 0 | AN26: 0 | AO26: 0 | AP26: 0 | AQ26: 0 | AR26: 0 | AS26: 0 | AT26: 0 | AU26: 0 | AV26: 0 | AW26: 0 | AX26: 0 | AY26: 0 | AZ26: 0 | BA26: 0 | BB26: 0 | BC26: 0 | BD26: 0 | BE26: 0 | BF26: 0 | BG26: 0 | BH26: 0 | BI26: 0 | BJ26: 0 | BK26: 0 | BL26: 0 | BM26: - | BN26: 0 | BO26: 0 | BP26: 0 | BQ26: 0 | BR26: 0 | BS26: 0 | BT26: 0 | BU26: 0 | BV26: 0 | BW26: 0 | BX26: 0 | BY26: 0 | BZ26: 0 | CA26: 0 | CB26: 0 | CC26: 0 | CD26: 0 | CE26: 0
A27: Wed | B27: 2020-12-16 | C27: Fulham | D27: 0 | E27: 0 | F27: Brighton | G27: 20:00:00 | I27: 5 | J27: 5 | K27: 0 | L27: 0 | M27: 10 | N27: - | O27: 5 | P27: 0 | Q27: 5 | R27: 10 | S27: 5 | T27: 5 | U27: 5 | V27: 0 | W27: 0 | X27: 10 | Y27: 5 | Z27: 0 | AA27: 5 | AB27: 0 | AC27: 0 | AD27: 5 | AE27: 10 | AF27: 5 | AG27: 0 | AH27: 0 | AI27: 0 | AJ27: - | AK27: 0 | AL27: 5 | AM27: 0 | AN27: 0 | AO27: 5 | AP27: 0 | AQ27: 0 | AR27: 0 | AS27: 5 | AT27: 0 | AU27: 0 | AV27: 5 | AW27: 0 | AX27: 10 | AY27: 0 | AZ27: 10 | BA27: 5 | BB27: 5 | BC27: 10 | BD27: 5 | BE27: 0 | BF27: 0 | BG27: 5 | BH27: 5 | BI27: 0 | BJ27: 0 | BK27: 0 | BL27: 5 | BM27: - | BN27: 5 | BO27: 10 | BP27: 5 | BQ27: 0 | BR27: 0 | BS27: 5 | BT27: 10 | BU27: 0 | BV27: 0 | BW27: 0 | BX27: 5 | BY27: 5 | BZ27: 0 | CA27: 5 | CB27: 0 | CC27: 5 | CD27: 0 | CE27: 5
A28: Wed | B28: 2020-12-16 | C28: Liverpool | D28: 2 | E28: 1 | F28: Tottenham | G28: 20:00:00 | I28: 0 | J28: 0 | K28: 0 | L28: 10 | M28: 10 | N28: - | O28: 10 | P28: 0 | Q28: 10 | R28: 5 | S28: 5 | T28: 10 | U28: 0 | V28: 10 | W28: 0 | X28: 5 | Y28: 10 | Z28: 0 | AA28: 0 | AB28: 0 | AC28: 0 | AD28: 0 | AE28: 0 | AF28: 10 | AG28: 10 | AH28: 0 | AI28: 5 | AJ28: - | AK28: 10 | AL28: 0 | AM28: 0 | AN28: 5 | AO28: 5 | AP28: 10 | AQ28: 5 | AR28: 10 | AS28: 0 | AT28: 5 | AU28: 0 | AV28: 10 | AW28: 10 | AX28: 0 | AY28: 10 | AZ28: 5 | BA28: 5 | BB28: 10 | BC28: 5 | BD28: 0 | BE28: 5 | BF28: 5 | BG28: 10 | BH28: 0 | BI28: 0 | BJ28: 5 | BK28: 10 | BL28: 10 | BM28: - | BN28: 0 | BO28: 10 | BP28: 0 | BQ28: 0 | BR28: 0 | BS28: 10 | BT28: 5 | BU28: 0 | BV28: 0 | BW28: 10 | BX28: 5 | BY28: 10 | BZ28: 5 | CA28: 5 | CB28: 10 | CC28: 5 | CD28: 0 | CE28: 10
A29: Wed | B29: 2020-12-16 | C29: West Ham | D29: 1 | E29: 1 | F29: Crystal Palace | G29: 20:00:00 | I29: 0 | J29: 10 | K29: 10 | L29: 0 | M29: 0 | N29: - | O29: 10 | P29: 5 | Q29: 10 | R29: 0 | S29: 0 | T29: 10 | U29: 0 | V29: 0 | W29: 0 | X29: 0 | Y29: 10 | Z29: 0 | AA29: 0 | AB29: 0 | AC29: 0 | AD29: 0 | AE29: 0 | AF29: 10 | AG29: 5 | AH29: 0 | AI29: 0 | AJ29: - | AK29: 0 | AL29: 0 | AM29: 10 | AN29: 0 | AO29: 0 | AP29: 5 | AQ29: 10 | AR29: 0 | AS29: 0 | AT29: 0 | AU29: 0 | AV29: 10 | AW29: 0 | AX29: 10 | AY29: 0 | AZ29: 0 | BA29: 0 | BB29: 10 | BC29: 5 | BD29: 0 | BE29: 0 | BF29: 10 | BG29: 0 | BH29: 0 | BI29: 0 | BJ29: 10 | BK29: 0 | BL29: 0 | BM29: - | BN29: 10 | BO29: 5 | BP29: 10 | BQ29: 0 | BR29: 5 | BS29: 0 | BT29: 10 | BU29: 0 | BV29: 0 | BW29: 5 | BX29: 0 | BY29: 0 | BZ29: 5 | CA29: 5 | CB29: 0 | CC29: 0 | CD29: 0 | CE29: 10
A30: Thu | B30: 2020-12-17 | C30: Aston Villa | D30: 0 | E30: 0 | F30: Burnley | G30: 18:00:00 | I30: 0 | J30: 0 | K30: 0 | L30: 0 | M30: 5 | N30: - | O30: 5 | P30: 0 | Q30: 0 | R30: 5 | S30: 5 | T30: 5 | U30: 0 | V30: 0 | W30: 5 | X30: 0 | Y30: 0 | Z30: 0 | AA30: 0 | AB30: 0 | AC30: 0 | AD30: 0 | AE30: 0 | AF30: 0 | AG30: 0 | AH30: 0 | AI30: 0 | AJ30: - | AK30: 0 | AL30: 0 | AM30: 0 | AN30: 0 | AO30: 0 | AP30: 0 | AQ30: 0 | AR30: 0 | AS30: 0 | AT30: 0 | AU30: 5 | AV30: 0 | AW30: 0 | AX30: 5 | AY30: 0 | AZ30: 0 | BA30: 0 | BB30: 0 | BC30: 0 | BD30: 0 | BE30: 0 | BF30: 0 | BG30: 0 | BH30: 0 | BI30: 0 | BJ30: 0 | BK30: 0 | BL30: 0 | BM30: - | BN30: 0 | BO30: 0 | BP30: 0 | BQ30: 0 | BR30: 0 | BS30: 0 | BT30: 0 | BU30: 0 | BV30: 0 | BW30: 0 | BX30: 0 | BY30: 5 | BZ30: 0 | CA30: 0 | CB30: 5 | CC30: 0 | CD30: 5 | CE30: 0
A31: Thu | B31: 2020-12-17 | C31: Sheffield United | D31: 2 | E31: 3 | F31: Manchester United | G31: 20:00:00 | I31: 5 | J31: 5 | K31: 5 | L31: 5 | M31: 5 | N31: - | O31: 5 | P31: 5 | Q31: 5 | R31: 5 | S31: 5 | T31: 0 | U31: 5 | V31: 5 | W31: 5 | X31: 5 | Y31: 5 | Z31: 5 | AA31: 5 | AB31: 5 | AC31: 5 | AD31: 5 | AE31: 5 | AF31: 5 | AG31: 5 | AH31: 5 | AI31: 0 | AJ31: - | AK31: 5 | AL31: 5 | AM31: 0 | AN31: 5 | AO31: 5 | AP31: 0 | AQ31: 5 | AR31: 5 | AS31: 5 | AT31: 5 | AU31: 5 | AV31: 5 | AW31: 5 | AX31: 5 | AY31: 5 | AZ31: 5 | BA31: 0 | BB31: 5 | BC31: 0 | BD31: 5 | BE31: 5 | BF31: 5 | BG31: 5 | BH31: 5 | BI31: 5 | BJ31: 5 | BK31: 5 | BL31: 5 | BM31: - | BN31: 0 | BO31: 5 | BP31: 5 | BQ31: 0 | BR31: 5 | BS31: 0 | BT31: 5 | BU31: 5 | BV31: 5 | BW31: 5 | BX31: 5 | BY31: 5 | BZ31: 5 | CA31: 5 | CB31: 5 | CC31: 0 | CD31: 5 | CE31: 5
A32: Sat | B32: 2020-12-19 | C32: Crystal Palace | D32: 0 | E32: 7 | F32: Liverpool | G32: 12:30:00 | I32: 0 | J32: 5 | K32: 5 | L32: 5 | M32: 5 | N32: - | O32: 5 | P32: 0 | Q32: 5 | R32: 5 | S32: 0 | T32: 0 | U32: 0 | V32: 5 | W32: 5 | X32: 5 | Y32: 5 | Z32: 0 | AA32: 5 | AB32: 5 | AC32: 5 | AD32: 0 | AE32: 5 | AF32: 5 | AG32: 0 | AH32: 5 | AI32: 5 | AJ32: - | AK32: 5 | AL32: 5 | AM32: 5 | AN32: 5 | AO32: 5 | AP32: 0 | AQ32: 5 | AR32: 5 | AS32: 5 | AT32: 0 | AU32: 5 | AV32: 5 | AW32: 5 | AX32: 0 | AY32: 0 | AZ32: 5 | BA32: 5 | BB32: 5 | BC32: 0 | BD32: 0 | BE32: 5 | BF32: 5 | BG32: 5 | BH32: 5 | BI32: 5 | BJ32: 5 | BK32: 5 | BL32: 0 | BM32: - | BN32: 0 | BO32: 0 | BP32: 0 | BQ32: 0 | BR32: 0 | BS32: 5 | BT32: 5 | BU32: 0 | BV32: 5 | BW32: 5 | BX32: 5 | BY32: 5 | BZ32: 5 | CA32: 0 | CB32: 5 | CC32: 5 | CD32: 0 | CE32: 5
A33: Sat | B33: 2020-12-19 | C33: Southampton | D33: 0 | E33: 1 | F33: Man City | G33: 15:00:00 | I33: 0 | J33: 5 | K33: 5 | L33: 5 | M33: 0 | N33: - | O33: 5 | P33: 5 | Q33: 5 | R33: 5 | S33: 0 | T33: 0 | U33: 5 | V33: 0 | W33: 0 | X33: 0 | Y33: 5 | Z33: 0 | AA33: 5 | AB33: 0 | AC33: 0 | AD33: 0 | AE33: 5 | AF33: 0 | AG33: 5 | AH33: 5 | AI33: 5 | AJ33: - | AK33: 5 | AL33: 5 | AM33: 0 | AN33: 5 | AO33: 5 | AP33: 0 | AQ33: 0 | AR33: 0 | AS33: 5 | AT33: 0 | AU33: 5 | AV33: 0 | AW33: 0 | AX33: 0 | AY33: 5 | AZ33: 5 | BA33: 0 | BB33: 0 | BC33: 0 | BD33: 5 | BE33: 10 | BF33: 5 | BG33: 5 | BH33: 5 | BI33: 5 | BJ33: 5 | BK33: 5 | BL33: 0 | BM33: - | BN33: 5 | BO33: 0 | BP33: 5 | BQ33: 5 | BR33: 0 | BS33: 0 | BT33: 0 | BU33: 0 | BV33: 5 | BW33: 5 | BX33: 5 | BY33: 5 | BZ33: 0 | CA33: 0 | CB33: 5 | CC33: 5 | CD33: 5 | CE33: 0
A34: Sat | B34: 2020-12-19 | C34: Everton | D34: 2 | E34: 1 | F34: Arsenal | G34: 17:30:00 | I34: 5 | J34: 0 | K34: 0 | L34: 5 | M34: 5 | N34: - | O34: 0 | P34: 10 | Q34: 10 | R34: 10 | S34: 10 | T34: - | U34: 10 | V34: 5 | W34: 10 | X34: 10 | Y34: 5 | Z34: 0 | AA34: 0 | AB34: 5 | AC34: 10 | AD34: 10 | AE34: 10 | AF34: 10 | AG34: 10 | AH34: 0 | AI34: 0 | AJ34: - | AK34: 5 | AL34: 0 | AM34: 5 | AN34: 10 | AO34: 10 | AP34: 10 | AQ34: 5 | AR34: 10 | AS34: 10 | AT34: 5 | AU34: 10 | AV34: 0 | AW34: 5 | AX34: 0 | AY34: 5 | AZ34: 0 | BA34: 0 | BB34: 5 | BC34: 5 | BD34: 10 | BE34: 5 | BF34: 10 | BG34: 0 | BH34: 0 | BI34: 10 | BJ34: 0 | BK34: 0 | BL34: 0 | BM34: - | BN34: 5 | BO34: 10 | BP34: 5 | BQ34: 10 | BR34: 10 | BS34: 5 | BT34: 5 | BU34: 10 | BV34: 0 | BW34: 10 | BX34: 10 | BY34: 10 | BZ34: 5 | CA34: 5 | CB34: 5 | CC34: 0 | CD34: 0 | CE34: 0
A35: Sat | B35: 2020-12-19 | C35: Newcastle | D35: 1 | E35: 1 | F35: Fulham | G35: 20:00:00 | I35: 0 | J35: 0 | K35: 0 | L35: 0 | M35: 0 | N35: - | O35: 10 | P35: 0 | Q35: 0 | R35: 0 | S35: 0 | T35: - | U35: 0 | V35: 10 | W35: 10 | X35: 10 | Y35: 0 | Z35: 10 | AA35: 0 | AB35: 0 | AC35: 0 | AD35: 10 | AE35: 10 | AF35: 0 | AG35: 0 | AH35: 10 | AI35: 0 | AJ35: - | AK35: 0 | AL35: 0 | AM35: 10 | AN35: 10 | AO35: 0 | AP35: 0 | AQ35: 10 | AR35: 0 | AS35: 10 | AT35: 0 | AU35: 0 | AV35: 5 | AW35: 0 | AX35: 0 | AY35: 0 | AZ35: 0 | BA35: 0 | BB35: 0 | BC35: 0 | BD35: 0 | BE35: 0 | BF35: 0 | BG35: 10 | BH35: 0 | BI35: 0 | BJ35: 0 | BK35: 0 | BL35: 0 | BM35: - | BN35: 0 | BO35: 0 | BP35: 10 | BQ35: 10 | BR35: 0 | BS35: 0 | BT35: 0 | BU35: 0 | BV35: 0 | BW35: 0 | BX35: 0 | BY35: 10 | BZ35: 0 | CA35: 0 | CB35: 0 | CC35: 0 | CD35: 0 | CE35: 0
A36: Sun | B36: 2020-12-20 | C36: Brighton | D36: 1 | E36: 1 | F36: Sheffield United | G36: 12:00:00 | I36: 0 | J36: 0 | K36: 0 | L36: 0 | M36: 0 | N36: - | O36: 10 | P36: 5 | Q36: 0 | R36: 0 | S36: 0 | T36: - | U36: 0 | V36: 0 | W36: 10 | X36: 0 | Y36: 0 | Z36: 10 | AA36: 0 | AB36: 0 | AC36: 0 | AD36: 0 | AE36: 5 | AF36: 0 | AG36: 0 | AH36: 0 | AI36: 10 | AJ36: - | AK36: 0 | AL36: 0 | AM36: 0 | AN36: 10 | AO36: 10 | AP36: 0 | AQ36: 0 | AR36: 0 | AS36: 0 | AT36: 0 | AU36: 10 | AV36: 0 | AW36: 0 | AX36: 5 | AY36: 10 | AZ36: 0 | BA36: 10 | BB36: 0 | BC36: 0 | BD36: 0 | BE36: 0 | BF36: 0 | BG36: 0 | BH36: 0 | BI36: 10 | BJ36: 0 | BK36: 5 | BL36: 0 | BM36: - | BN36: 0 | BO36: 0 | BP36: 0 | BQ36: 0 | BR36: 0 | BS36: 10 | BT36: 0 | BU36: 0 | BV36: 10 | BW36: 0 | BX36: 0 | BY36: 0 | BZ36: 0 | CA36: 0 | CB36: 5 | CC36: 0 | CD36: 0 | CE36: 10
A37: Sun | B37: 2020-12-20 | C37: Tottenham | D37: 0 | E37: 2 | F37: Leicester | G37: 14:15:00 | I37: 0 | J37: 0 | K37: 0 | L37: 0 | M37: 0 | N37: - | O37: 0 | P37: 0 | Q37: 0 | R37: 0 | S37: 0 | T37: - | U37: 0 | V37: 0 | W37: 0 | X37: 0 | Y37: 0 | Z37: 0 | AA37: 0 | AB37: 0 | AC37: 0 | AD37: 0 | AE37: 0 | AF37: 0 | AG37: 0 | AH37: 0 | AI37: 0 | AJ37: - | AK37: 0 | AL37: 0 | AM37: 0 | AN37: 0 | AO37: 0 | AP37: 0 | AQ37: 5 | AR37: 0 | AS37: 0 | AT37: 0 | AU37: 0 | AV37: 0 | AW37: 0 | AX37: 0 | AY37: 0 | AZ37: 0 | BA37: 0 | BB37: 0 | BC37: 0 | BD37: 0 | BE37: 0 | BF37: 0 | BG37: 0 | BH37: 0 | BI37: 0 | BJ37: 0 | BK37: 5 | BL37: 0 | BM37: - | BN37: 0 | BO37: 0 | BP37: 0 | BQ37: 0 | BR37: 0 | BS37: 0 | BT37: 0 | BU37: 0 | BV37: 0 | BW37: 0 | BX37: 0 | BY37: 0 | BZ37: 0 | CA37: 0 | CB37: 0 | CC37: 0 | CD37: 0 | CE37: 0
A38: Sun | B38: 2020-12-20 | C38: Manchester United | D38: 6 | E38: 2 | F38: Leeds | G38: 16:30:00 | I38: 5 | J38: 5 | K38: 5 | L38: 5 | M38: 0 | N38: - | O38: 5 | P38: 5 | Q38: 5 | R38: 5 | S38: 5 | T38: - | U38: 5 | V38: 0 | W38: 5 | X38: 5 | Y38: 5 | Z38: 0 | AA38: 0 | AB38: 5 | AC38: 5 | AD38: 5 | AE38: 0 | AF38: 5 | AG38: 0 | AH38: 5 | AI38: 5 | AJ38: - | AK38: 5 | AL38: 0 | AM38: 0 | AN38: 5 | AO38: 5 | AP38: 5 | AQ38: 5 | AR38: 5 | AS38: 5 | AT38: 5 | AU38: 5 | AV38: 5 | AW38: 5 | AX38: 0 | AY38: 0 | AZ38: 5 | BA38: 5 | BB38: 5 | BC38: 5 | BD38: 5 | BE38: 5 | BF38: 5 | BG38: 5 | BH38: 5 | BI38: 5 | BJ38: 0 | BK38: 0 | BL38: 0 | BM38: - | BN38: 0 | BO38: 5 | BP38: 5 | BQ38: 0 | BR38: 5 | BS38: 0 | BT38: 5 | BU38: 5 | BV38: 5 | BW38: 0 | BX38: 0 | BY38: 5 | BZ38: 5 | CA38: 0 | CB38: 5 | CC38: 0 | CD38: 5 | CE38: 5
A39: Sun | B39: 2020-12-20 | C39: West Brom | D39: 0 | E39: 3 | F39: Aston Villa | G39: 19:15:00 | I39: 0 | J39: 0 | K39: 0 | L39: 0 | M39: 0 | N39: - | O39: 0 | P39: 0 | Q39: 0 | R39: 0 | S39: 0 | T39: - | U39: 5 | V39: 0 | W39: 0 | X39: 0 | Y39: 5 | Z39: 0 | AA39: 5 | AB39: 0 | AC39: 0 | AD39: 0 | AE39: 5 | AF39: 0 | AG39: 5 | AH39: 0 | AI39: 5 | AJ39: - | AK39: 5 | AL39: 5 | AM39: 5 | AN39: 0 | AO39: 5 | AP39: 0 | AQ39: 0 | AR39: 0 | AS39: 0 | AT39: 5 | AU39: 0 | AV39: 0 | AW39: 0 | AX39: 0 | AY39: 5 | AZ39: 0 | BA39: 0 | BB39: 0 | BC39: 0 | BD39: 0 | BE39: 5 | BF39: 5 | BG39: 5 | BH39: 0 | BI39: 0 | BJ39: 0 | BK39: 0 | BL39: 5 | BM39: - | BN39: 0 | BO39: 0 | BP39: 0 | BQ39: 5 | BR39: 0 | BS39: 0 | BT39: 0 | BU39: 0 | BV39: 5 | BW39: 0 | BX39: 5 | BY39: 5 | BZ39: 0 | CA39: 0 | CB39: 0 | CC39: 0 | CD39: 5 | CE39: 0
A40: Mon | B40: 2020-12-21 | C40: Burnley | D40: 2 | E40: 1 | F40: Wolves | G40: 17:30:00 | I40: 5 | J40: 0 | K40: 0 | L40: 0 | M40: 0 | N40: - | O40: 0 | P40: 0 | Q40: 0 | R40: 0 | S40: 10 | T40: - | U40: 0 | V40: 0 | W40: 0 | X40: 0 | Y40: 0 | Z40: 0 | AA40: 0 | AB40: 0 | AC40: 0 | AD40: 10 | AE40: 0 | AF40: 0 | AG40: 10 | AH40: 0 | AI40: 0 | AJ40: - | AK40: 0 | AL40: 10 | AM40: 0 | AN40: 0 | AO40: 0 | AP40: 10 | AQ40: 0 | AR40: 0 | AS40: 0 | AT40: 0 | AU40: 0 | AV40: 5 | AW40: 0 | AX40: 0 | AY40: 0 | AZ40: 0 | BA40: 0 | BB40: 0 | BC40: 5 | BD40: 0 | BE40: 0 | BF40: 0 | BG40: 0 | BH40: 0 | BI40: 5 | BJ40: 0 | BK40: 5 | BL40: 0 | BM40: - | BN40: 0 | BO40: 10 | BP40: 0 | BQ40: 0 | BR40: 10 | BS40: 0 | BT40: 0 | BU40: 10 | BV40: 0 | BW40: 0 | BX40: 0 | BY40: 0 | BZ40: 5 | CA40: 0 | CB40: 5 | CC40: 0 | CD40: 5 | CE40: 0
A41: Mon | B41: 2020-12-21 | C41: Chelsea | D41: 3 | E41: 0 | F41: West Ham | G41: 20:00:00 | I41: 5 | J41: 5 | K41: 5 | L41: 5 | M41: 5 | N41: - | O41: 5 | P41: 5 | Q41: 5 | R41: 5 | S41: 5 | T41: - | U41: 5 | V41: 0 | W41: 5 | X41: 5 | Y41: 5 | Z41: 0 | AA41: 5 | AB41: 5 | AC41: 0 | AD41: 5 | AE41: 5 | AF41: 5 | AG41: 10 | AH41: 5 | AI41: 5 | AJ41: - | AK41: 5 | AL41: 0 | AM41: 0 | AN41: 5 | AO41: 10 | AP41: 5 | AQ41: 5 | AR41: 5 | AS41: 5 | AT41: 5 | AU41: 5 | AV41: 5 | AW41: 5 | AX41: 0 | AY41: 5 | AZ41: 5 | BA41: 5 | BB41: 5 | BC41: 5 | BD41: 5 | BE41: 5 | BF41: 5 | BG41: 5 | BH41: 5 | BI41: 5 | BJ41: 5 | BK41: 5 | BL41: 10 | BM41: - | BN41: 10 | BO41: 5 | BP41: 5 | BQ41: 5 | BR41: 5 | BS41: 5 | BT41: 5 | BU41: 5 | BV41: 5 | BW41: 5 | BX41: 10 | BY41: 5 | BZ41: 5 | CA41: 5 | CB41: 5 | CC41: 0 | CD41: 5 | CE41: 5
A42: Sat | B42: 2020-12-26 | C42: Leicester | D42: 2 | E42: 2 | F42: Manchester United | G42: 12:30:00 | I42: 0 | J42: 5 | K42: 5 | L42: 0 | M42: 0 | N42: - | O42: 5 | P42: 0 | Q42: 10 | R42: 0 | S42: 10 | T42: - | U42: 0 | V42: 0 | W42: 5 | X42: 0 | Y42: 0 | Z42: 5 | AA42: 0 | AB42: 0 | AC42: 0 | AD42: 10 | AE42: 0 | AF42: 0 | AG42: 0 | AH42: 10 | AI42: 0 | AJ42: - | AK42: 5 | AL42: 0 | AM42: 0 | AN42: 0 | AO42: 0 | AP42: 0 | AQ42: 0 | AR42: 5 | AS42: 0 | AT42: 0 | AU42: 5 | AV42: 0 | AW42: 0 | AX42: 10 | AY42: 0 | AZ42: 0 | BA42: 0 | BB42: 10 | BC42: 5 | BD42: 0 | BE42: 0 | BF42: 10 | BG42: 0 | BH42: 0 | BI42: 0 | BJ42: 0 | BK42: 0 | BL42: 0 | BM42: - | BN42: 5 | BO42: 0 | BP42: 0 | BQ42: 0 | BR42: 10 | BS42: 10 | BT42: 5 | BU42: 0 | BV42: 0 | BW42: 0 | BX42: 0 | BY42: 5 | BZ42: 5 | CA42: 5 | CB42: 10 | CC42: 5 | CD42: 0 | CE42: 5
A43: Sat | B43: 2020-12-26 | C43: Aston Villa | D43: 3 | E43: 0 | F43: Crystal Palace | G43: 15:00:00 | I43: 5 | J43: 5 | K43: 5 | L43: 5 | M43: 5 | N43: - | O43: 0 | P43: 0 | Q43: 5 | R43: 5 | S43: 5 | T43: - | U43: 5 | V43: 0 | W43: 0 | X43: 5 | Y43: 5 | Z43: 5 | AA43: 5 | AB43: 5 | AC43: 5 | AD43: 5 | AE43: 5 | AF43: 5 | AG43: 5 | AH43: 0 | AI43: 0 | AJ43: - | AK43: 5 | AL43: 5 | AM43: 10 | AN43: 5 | AO43: 5 | AP43: 5 | AQ43: 0 | AR43: 5 | AS43: 5 | AT43: 5 | AU43: 0 | AV43: 5 | AW43: 5 | AX43: 5 | AY43: 5 | AZ43: 5 | BA43: 5 | BB43: 5 | BC43: 5 | BD43: 5 | BE43: 5 | BF43: 5 | BG43: 5 | BH43: 0 | BI43: 5 | BJ43: 0 | BK43: 5 | BL43: 0 | BM43: - | BN43: 0 | BO43: 0 | BP43: 0 | BQ43: 0 | BR43: 0 | BS43: 0 | BT43: 5 | BU43: 5 | BV43: 5 | BW43: 10 | BX43: 5 | BY43: 5 | BZ43: 5 | CA43: 0 | CB43: 5 | CC43: 5 | CD43: 5 | CE43: 5
A44: Sat | B44: 2020-12-26 | C44: Fulham | D44: 0 | E44: 0 | F44: Southampton | G44: 15:00:00 | I44: 0 | J44: 0 | K44: 0 | L44: 0 | M44: 0 | N44: - | O44: 0 | P44: 5 | Q44: 5 | R44: 5 | S44: 0 | T44: - | U44: 0 | V44: 0 | W44: 0 | X44: 0 | Y44: 0 | Z44: 0 | AA44: 5 | AB44: 0 | AC44: 0 | AD44: 5 | AE44: 0 | AF44: 0 | AG44: 0 | AH44: 0 | AI44: 0 | AJ44: - | AK44: 0 | AL44: 5 | AM44: 0 | AN44: 0 | AO44: 0 | AP44: 0 | AQ44: 0 | AR44: 0 | AS44: 0 | AT44: 0 | AU44: 5 | AV44: 0 | AW44: 0 | AX44: 0 | AY44: 0 | AZ44: 0 | BA44: 0 | BB44: 0 | BC44: 0 | BD44: 0 | BE44: 0 | BF44: 0 | BG44: 0 | BH44: 0 | BI44: 0 | BJ44: 0 | BK44: 0 | BL44: 0 | BM44: - | BN44: 5 | BO44: 5 | BP44: 0 | BQ44: 0 | BR44: 0 | BS44: 0 | BT44: 0 | BU44: 0 | BV44: 5 | BW44: 0 | BX44: 0 | BY44: 5 | BZ44: 0 | CA44: 10 | CB44: 0 | CC44: 5 | CD44: 5 | CE44: 5
A45: Sat | B45: 2020-12-26 | C45: Arsenal | D45: 3 | E45: 1 | F45: Chelsea | G45: 17:30:00 | I45: 0 | J45: 0 | K45: 0 | L45: 0 | M45: 0 | N45: - | O45: 0 | P45: 0 | Q45: 0 | R45: 0 | S45: 0 | T45: - | U45: 5 | V45: 0 | W45: 0 | X45: 0 | Y45: 0 | Z45: 0 | AA45: 0 | AB45: 0 | AC45: 0 | AD45: 0 | AE45: 5 | AF45: 0 | AG45: 0 | AH45: 0 | AI45: 0 | AJ45: - | AK45: 0 | AL45: 0 | AM45: 0 | AN45: 5 | AO45: 0 | AP45: 5 | AQ45: 0 | AR45: 0 | AS45: 0 | AT45: 0 | AU45: 0 | AV45: 0 | AW45: 0 | AX45: 0 | AY45: 0 | AZ45: 0 | BA45: 0 | BB45: 0 | BC45: 0 | BD45: 0 | BE45: 0 | BF45: 0 | BG45: 0 | BH45: 0 | BI45: 0 | BJ45: 0 | BK45: 0 | BL45: 0 | BM45: - | BN45: 0 | BO45: 0 | BP45: 0 | BQ45: 0 | BR45: 0 | BS45: 0 | BT45: 0 | BU45: 0 | BV45: 0 | BW45: 0 | BX45: 0 | BY45: 0 | BZ45: 0 | CA45: 0 | CB45: 0 | CC45: 0 | CD45: 0 | CE45: 0
A46: Sat | B46: 2020-12-26 | C46: Man City | D46: 2 | E46: 0 | F46: Newcastle | G46: 20:00:00 | I46: 5 | J46: 10 | K46: 5 | L46: 5 | M46: 10 | N46: - | O46: 5 | P46: 5 | Q46: 5 | R46: 5 | S46: 5 | T46: - | U46: 10 | V46: 5 | W46: 10 | X46: 5 | Y46: 5 | Z46: 5 | AA46: 5 | AB46: 5 | AC46: 5 | AD46: 5 | AE46: 10 | AF46: 5 | AG46: 5 | AH46: 5 | AI46: 5 | AJ46: - | AK46: 10 | AL46: 5 | AM46: 10 | AN46: 5 | AO46: 5 | AP46: 5 | AQ46: 5 | AR46: 10 | AS46: 5 | AT46: 5 | AU46: 0 | AV46: 5 | AW46: 5 | AX46: 5 | AY46: 5 | AZ46: 5 | BA46: 5 | BB46: 5 | BC46: 0 | BD46: 5 | BE46: 5 | BF46: 5 | BG46: 5 | BH46: 5 | BI46: 5 | BJ46: 5 | BK46: 5 | BL46: 5 | BM46: - | BN46: 0 | BO46: 5 | BP46: 5 | BQ46: 5 | BR46: 5 | BS46: 10 | BT46: 5 | BU46: 10 | BV46: 10 | BW46: 5 | BX46: 5 | BY46: 5 | BZ46: 5 | CA46: 5 | CB46: 5 | CC46: 10 | CD46: 5 | CE46: 10
A47: Sat | B47: 2020-12-26 | C47: Sheffield United | D47: 0 | E47: 1 | F47: Everton | G47: 20:00:00 | I47: 5 | J47: 0 | K47: 5 | L47: 10 | M47: 5 | N47: - | O47: 0 | P47: 0 | Q47: 5 | R47: 5 | S47: 5 | T47: - | U47: 0 | V47: 0 | W47: 5 | X47: 0 | Y47: 5 | Z47: 10 | AA47: 5 | AB47: 0 | AC47: 5 | AD47: 5 | AE47: 0 | AF47: 0 | AG47: 5 | AH47: 5 | AI47: 5 | AJ47: - | AK47: 10 | AL47: 0 | AM47: 5 | AN47: 0 | AO47: 0 | AP47: 0 | AQ47: 5 | AR47: 0 | AS47: 5 | AT47: 0 | AU47: 0 | AV47: 0 | AW47: 0 | AX47: 5 | AY47: 10 | AZ47: 5 | BA47: 0 | BB47: 0 | BC47: 0 | BD47: 0 | BE47: 10 | BF47: 0 | BG47: 5 | BH47: 5 | BI47: 10 | BJ47: 5 | BK47: 5 | BL47: 5 | BM47: - | BN47: 0 | BO47: 10 | BP47: 5 | BQ47: 5 | BR47: 5 | BS47: 5 | BT47: 0 | BU47: 5 | BV47: 0 | BW47: 10 | BX47: 5 | BY47: 0 | BZ47: 5 | CA47: 0 | CB47: 0 | CC47: 5 | CD47: 0 | CE47: 0
A48: Sun | B48: 2020-12-27 | C48: Leeds | D48: 1 | E48: 0 | F48: Burnley | G48: 12:00:00 | I48: 5 | J48: 10 | K48: 5 | L48: 5 | M48: 5 | N48: - | O48: 5 | P48: 5 | Q48: 5 | R48: 5 | S48: 5 | T48: - | U48: 5 | V48: 5 | W48: 5 | X48: 5 | Y48: 5 | Z48: 10 | AA48: 5 | AB48: 5 | AC48: 5 | AD48: 5 | AE48: 5 | AF48: 5 | AG48: 5 | AH48: 5 | AI48: 5 | AJ48: - | AK48: 5 | AL48: 5 | AM48: 0 | AN48: 10 | AO48: 5 | AP48: 5 | AQ48: 0 | AR48: 10 | AS48: 0 | AT48: 5 | AU48: 0 | AV48: 5 | AW48: 5 | AX48: 5 | AY48: 5 | AZ48: 5 | BA48: 5 | BB48: 5 | BC48: 5 | BD48: 0 | BE48: 5 | BF48: 5 | BG48: 5 | BH48: 5 | BI48: 5 | BJ48: 5 | BK48: 5 | BL48: 5 | BM48: - | BN48: 0 | BO48: 5 | BP48: 0 | BQ48: 5 | BR48: 10 | BS48: 5 | BT48: 5 | BU48: 5 | BV48: 5 | BW48: 5 | BX48: 5 | BY48: 5 | BZ48: 0 | CA48: 5 | CB48: 5 | CC48: 0 | CD48: 5 | CE48: 5
A49: Sun | B49: 2020-12-27 | C49: West Ham | D49: 2 | E49: 2 | F49: Brighton | G49: 14:15:00 | I49: 0 | J49: 0 | K49: 0 | L49: 0 | M49: 0 | N49: - | O49: 0 | P49: 0 | Q49: 0 | R49: 0 | S49: 0 | T49: - | U49: 0 | V49: 0 | W49: 0 | X49: 0 | Y49: 0 | Z49: 0 | AA49: 0 | AB49: 0 | AC49: 0 | AD49: 0 | AE49: 0 | AF49: 0 | AG49: 0 | AH49: 0 | AI49: 0 | AJ49: - | AK49: 0 | AL49: 0 | AM49: 0 | AN49: 0 | AO49: 0 | AP49: 0 | AQ49: 0 | AR49: 0 | AS49: 0 | AT49: 0 | AU49: 0 | AV49: 0 | AW49: 0 | AX49: 0 | AY49: 0 | AZ49: 0 | BA49: 0 | BB49: 0 | BC49: 0 | BD49: 0 | BE49: 0 | BF49: 0 | BG49: 0 | BH49: 0 | BI49: 0 | BJ49: 0 | BK49: 0 | BL49: 0 | BM49: - | BN49: 0 | BO49: 0 | BP49: 0 | BQ49: 0 | BR49: 0 | BS49: 0 | BT49: 0 | BU49: 0 | BV49: 0 | BW49: 0 | BX49: 0 | BY49: 0 | BZ49: 0 | CA49: 0 | CB49: 0 | CC49: 0 | CD49: 0 | CE49: 0
A50: Sun | B50: 2020-12-27 | C50: Liverpool | D50: 1 | E50: 1 | F50: West Brom | G50: 16:30:00 | I50: 0 | J50: 0 | K50: 0 | L50: 0 | M50: 0 | N50: - | O50: 0 | P50: 0 | Q50: 0 | R50: 0 | S50: 0 | T50: - | U50: 0 | V50: 0 | W50: 0 | X50: 0 | Y50: 0 | Z50: 0 | AA50: 0 | AB50: 0 | AC50: 0 | AD50: 0 | AE50: 0 | AF50: 0 | AG50: 0 | AH50: 0 | AI50: 0 | AJ50: - | AK50: 0 | AL50: 0 | AM50: 0 | AN50: 0 | AO50: 0 | AP50: 0 | AQ50: 0 | AR50: 0 | AS50: 0 | AT50: 0 | AU50: 10 | AV50: 0 | AW50: 0 | AX50: 0 | AY50: 0 | AZ50: 0 | BA50: 0 | BB50: 0 | BC50: 0 | BD50: 0 | BE50: 0 | BF50: 0 | BG50: 0 | BH50: 0 | BI50: 0 | BJ50: 0 | BK50: 0 | BL50: 0 | BM50: - | BN50: 10 | BO50: 0 | BP50: 0 | BQ50: 0 | BR50: 0 | BS50: 0 | BT50: 0 | BU50: 0 | BV50: 0 | BW50: 0 | BX50: 0 | BY50: 0 | BZ50: 0 | CA50: 0 | CB50: 0 | CC50: 0 | CD50: 0 | CE50: 0
A51: Sun | B51: 2020-12-27 | C51: Wolves | D51: 1 | E51: 1 | F51: Tottenham | G51: 19:15:00 | I51: 0 | J51: 0 | K51: 5 | L51: 0 | M51: 5 | N51: - | O51: 10 | P51: 0 | Q51: 5 | R51: 0 | S51: 0 | T51: - | U51: 0 | V51: 10 | W51: 0 | X51: 0 | Y51: 0 | Z51: 0 | AA51: 0 | AB51: 10 | AC51: 0 | AD51: 10 | AE51: 0 | AF51: 10 | AG51: 10 | AH51: 0 | AI51: 5 | AJ51: - | AK51: 0 | AL51: 0 | AM51: 0 | AN51: 0 | AO51: 0 | AP51: 0 | AQ51: 10 | AR51: 5 | AS51: 0 | AT51: 0 | AU51: 10 | AV51: 0 | AW51: 10 | AX51: 10 | AY51: 0 | AZ51: 5 | BA51: 0 | BB51: 0 | BC51: 0 | BD51: 10 | BE51: 0 | BF51: 0 | BG51: 0 | BH51: 0 | BI51: 0 | BJ51: 0 | BK51: 0 | BL51: 10 | BM51: - | BN51: 10 | BO51: 0 | BP51: 0 | BQ51: 0 | BR51: 0 | BS51: 5 | BT51: 10 | BU51: 0 | BV51: 0 | BW51: 0 | BX51: 0 | BY51: 0 | BZ51: 10 | CA51: 5 | CB51: 0 | CC51: 0 | CD51: 0 | CE51: 0
A52: Mon | B52: 2020-12-28 | C52: Crystal Palace | D52: 1 | E52: 1 | F52: Leicester | G52: 15:00:00 | I52: 0 | J52: 0 | K52: 0 | L52: 0 | M52: 10 | N52: - | O52: 0 | P52: 5 | Q52: 0 | R52: 0 | S52: 0 | T52: - | U52: 0 | V52: 0 | W52: 0 | X52: 0 | Y52: 0 | Z52: 10 | AA52: 0 | AB52: 0 | AC52: 0 | AD52: 0 | AE52: 0 | AF52: 0 | AG52: 0 | AH52: 0 | AI52: 0 | AJ52: - | AK52: 0 | AL52: 0 | AM52: 0 | AN52: 0 | AO52: 0 | AP52: - | AQ52: 10 | AR52: 0 | AS52: 10 | AT52: 0 | AU52: 10 | AV52: 0 | AW52: 0 | AX52: 0 | AY52: 10 | AZ52: 0 | BA52: 0 | BB52: 0 | BC52: 10 | BD52: 0 | BE52: 0 | BF52: 0 | BG52: 0 | BH52: 0 | BI52: 0 | BJ52: 0 | BK52: 0 | BL52: 0 | BM52: - | BN52: 10 | BO52: 0 | BP52: 0 | BQ52: 0 | BR52: 0 | BS52: 0 | BT52: 0 | BU52: 0 | BV52: 0 | BW52: 0 | BX52: 0 | BY52: 0 | BZ52: 0 | CA52: 0 | CB52: 0 | CC52: 0 | CD52: 0 | CE52: 0
A53: Mon | B53: 2020-12-28 | C53: Chelsea | D53: 1 | E53: 1 | F53: Aston Villa | G53: 17:30:00 | I53: 0 | J53: 5 | K53: 0 | L53: 0 | M53: 0 | N53: - | O53: 0 | P53: 0 | Q53: 0 | R53: 0 | S53: 0 | T53: 0 | U53: 0 | V53: 0 | W53: 5 | X53: 0 | Y53: 0 | Z53: 0 | AA53: 0 | AB53: 5 | AC53: 10 | AD53: 0 | AE53: 0 | AF53: 0 | AG53: 0 | AH53: 0 | AI53: 0 | AJ53: - | AK53: 0 | AL53: 0 | AM53: 0 | AN53: 0 | AO53: 0 | AP53: - | AQ53: 0 | AR53: 0 | AS53: 0 | AT53: 0 | AU53: 10 | AV53: 0 | AW53: 0 | AX53: 5 | AY53: 0 | AZ53: 0 | BA53: 0 | BB53: 0 | BC53: 0 | BD53: 0 | BE53: 0 | BF53: 0 | BG53: 0 | BH53: 0 | BI53: 0 | BJ53: 0 | BK53: 0 | BL53: 0 | BM53: - | BN53: 10 | BO53: 0 | BP53: 0 | BQ53: 0 | BR53: 0 | BS53: 0 | BT53: 0 | BU53: 0 | BV53: 0 | BW53: 0 | BX53: 0 | BY53: 0 | BZ53: 0 | CA53: 0 | CB53: 0 | CC53: 0 | CD53: 0 | CE53: 0
A54: Tue | B54: 2020-12-29 | C54: Brighton | D54: 0 | E54: 1 | F54: Arsenal | G54: 18:00:00 | I54: 5 | J54: 0 | K54: 5 | L54: 0 | M54: 0 | N54: - | O54: 5 | P54: 5 | Q54: 0 | R54: 5 | S54: 5 | T54: 5 | U54: 0 | V54: 0 | W54: 0 | X54: 0 | Y54: 0 | Z54: 0 | AA54: 5 | AB54: 0 | AC54: 0 | AD54: 0 | AE54: 0 | AF54: 5 | AG54: 5 | AH54: 5 | AI54: 5 | AJ54: - | AK54: 5 | AL54: 5 | AM54: 5 | AN54: 0 | AO54: 0 | AP54: - | AQ54: 0 | AR54: 5 | AS54: 0 | AT54: 0 | AU54: 0 | AV54: 0 | AW54: 0 | AX54: 0 | AY54: 0 | AZ54: 0 | BA54: 0 | BB54: 0 | BC54: 10 | BD54: 0 | BE54: 10 | BF54: 5 | BG54: 5 | BH54: 5 | BI54: 5 | BJ54: 5 | BK54: 5 | BL54: 5 | BM54: - | BN54: 0 | BO54: 5 | BP54: 5 | BQ54: 5 | BR54: 0 | BS54: 0 | BT54: 0 | BU54: 5 | BV54: 5 | BW54: 10 | BX54: 5 | BY54: 5 | BZ54: 5 | CA54: 0 | CB54: 5 | CC54: 5 | CD54: 10 | CE54: 0
A55: Tue | B55: 2020-12-29 | C55: Burnley | D55: 1 | E55: 0 | F55: Sheffield United | G55: 18:00:00 | I55: 0 | J55: 5 | K55: 10 | L55: 10 | M55: 5 | N55: - | O55: 10 | P55: 0 | Q55: 10 | R55: 0 | S55: 0 | T55: 10 | U55: 5 | V55: 5 | W55: 10 | X55: 10 | Y55: 0 | Z55: 5 | AA55: 5 | AB55: 10 | AC55: 5 | AD55: 5 | AE55: 5 | AF55: 10 | AG55: 0 | AH55: 10 | AI55: 10 | AJ55: - | AK55: 10 | AL55: 0 | AM55: 0 | AN55: 10 | AO55: 0 | AP55: - | AQ55: 5 | AR55: 5 | AS55: 5 | AT55: 10 | AU55: 0 | AV55: 10 | AW55: 5 | AX55: 5 | AY55: 0 | AZ55: 10 | BA55: 0 | BB55: 10 | BC55: 0 | BD55: 0 | BE55: 10 | BF55: 0 | BG55: 0 | BH55: 5 | BI55: 0 | BJ55: 5 | BK55: 10 | BL55: 0 | BM55: - | BN55: 0 | BO55: 0 | BP55: 5 | BQ55: 0 | BR55: 5 | BS55: 5 | BT55: 5 | BU55: 5 | BV55: 0 | BW55: 5 | BX55: 10 | BY55: 5 | BZ55: 5 | CA55: 0 | CB55: 5 | CC55: 0 | CD55: 0 | CE55: 10
A56: Tue | B56: 2020-12-29 | C56: Southampton | D56: 0 | E56: 0 | F56: West Ham | G56: 18:00:00 | I56: 0 | J56: 5 | K56: 0 | L56: 0 | M56: 0 | N56: - | O56: 0 | P56: 0 | Q56: 0 | R56: 0 | S56: 0 | T56: 0 | U56: 5 | V56: 5 | W56: 0 | X56: 0 | Y56: 5 | Z56: 5 | AA56: 0 | AB56: 0 | AC56: 5 | AD56: 0 | AE56: 0 | AF56: 0 | AG56: 0 | AH56: 0 | AI56: 5 | AJ56: - | AK56: 0 | AL56: 0 | AM56: 0 | AN56: 0 | AO56: 0 | AP56: - | AQ56: 0 | AR56: 0 | AS56: 5 | AT56: 0 | AU56: 5 | AV56: 0 | AW56: 0 | AX56: 0 | AY56: 0 | AZ56: 0 | BA56: 0 | BB56: 0 | BC56: 0 | BD56: 5 | BE56: 0 | BF56: 0 | BG56: 0 | BH56: 5 | BI56: 0 | BJ56: 5 | BK56: 0 | BL56: 5 | BM56: - | BN56: 5 | BO56: 0 | BP56: 5 | BQ56: 5 | BR56: 0 | BS56: 0 | BT56: 0 | BU56: 0 | BV56: 0 | BW56: 0 | BX56: 0 | BY56: 0 | BZ56: 0 | CA56: 5 | CB56: 0 | CC56: 0 | CD56: 0 | CE56: 0
A57: Tue | B57: 2020-12-29 | C57: West Brom | D57: 0 | E57: 5 | F57: Leeds | G57: 18:00:00 | I57: 0 | J57: 0 | K57: 5 | L57: 5 | M57: 5 | N57: - | O57: 0 | P57: 0 | Q57: 0 | R57: 0 | S57: 0 | T57: 5 | U57: 0 | V57: 0 | W57: 0 | X57: 5 | Y57: 5 | Z57: 5 | AA57: 5 | AB57: 5 | AC57: 0 | AD57: 5 | AE57: 0 | AF57: 0 | AG57: 5 | AH57: 0 | AI57: 5 | AJ57: - | AK57: 5 | AL57: 5 | AM57: 0 | AN57: 0 | AO57: 5 | AP57: - | AQ57: 5 | AR57: 0 | AS57: 5 | AT57: 5 | AU57: 0 | AV57: 0 | AW57: 5 | AX57: 0 | AY57: 0 | AZ57: 0 | BA57: 0 | BB57: 5 | BC57: 0 | BD57: 5 | BE57: 5 | BF57: 5 | BG57: 0 | BH57: 0 | BI57: 5 | BJ57: 5 | BK57: 5 | BL57: 0 | BM57: - | BN57: 0 | BO57: 5 | BP57: 0 | BQ57: 5 | BR57: 5 | BS57: 0 | BT57: 0 | BU57: 0 | BV57: 5 | BW57: 5 | BX57: 5 | BY57: 5 | BZ57: 5 | CA57: 5 | CB57: 0 | CC57: 0 | CD57: 5 | CE57: 5
A58: Tue | B58: 2020-12-29 | C58: Manchester United | D58: 1 | E58: 0 | F58: Wolves | G58: 20:00:00 | I58: 5 | J58: 5 | K58: 5 | L58: 5 | M58: 5 | N58: - | O58: 0 | P58: 5 | Q58: 5 | R58: 5 | S58: 5 | T58: 0 | U58: 5 | V58: 0 | W58: 5 | X58: 5 | Y58: 10 | Z58: 5 | AA58: 5 | AB58: 5 | AC58: 5 | AD58: 5 | AE58: 5 | AF58: 5 | AG58: 5 | AH58: 5 | AI58: 0 | AJ58: - | AK58: 5 | AL58: 0 | AM58: 0 | AN58: 10 | AO58: 5 | AP58: - | AQ58: 0 | AR58: 0 | AS58: 5 | AT58: 5 | AU58: - | AV58: 10 | AW58: 5 | AX58: 5 | AY58: 5 | AZ58: 5 | BA58: 5 | BB58: 0 | BC58: 5 | BD58: 5 | BE58: 5 | BF58: 5 | BG58: 5 | BH58: 5 | BI58: 5 | BJ58: 0 | BK58: 5 | BL58: 5 | BM58: - | BN58: 0 | BO58: 5 | BP58: 10 | BQ58: 5 | BR58: 5 | BS58: 0 | BT58: 5 | BU58: 5 | BV58: 5 | BW58: 5 | BX58: 5 | BY58: 5 | BZ58: 0 | CA58: 5 | CB58: 0 | CC58: 0 | CD58: 5 | CE58: 0
A59: Wed | B59: 2020-12-30 | C59: Newcastle | D59: 0 | E59: 0 | F59: Liverpool | G59: 20:00:00 | I59: 0 | J59: 0 | K59: 0 | L59: 0 | M59: 0 | N59: - | O59: 0 | P59: 0 | Q59: 0 | R59: 0 | S59: 0 | T59: 0 | U59: 0 | V59: 0 | W59: 0 | X59: 0 | Y59: 0 | Z59: 0 | AA59: 0 | AB59: 0 | AC59: 0 | AD59: 0 | AE59: 0 | AF59: 0 | AG59: 0 | AH59: 0 | AI59: 0 | AJ59: - | AK59: 0 | AL59: 0 | AM59: 0 | AN59: 0 | AO59: 0 | AP59: - | AQ59: 0 | AR59: 5 | AS59: 0 | AT59: 0 | AU59: - | AV59: 0 | AW59: 0 | AX59: 0 | AY59: 0 | AZ59: 0 | BA59: 0 | BB59: 0 | BC59: 0 | BD59: 0 | BE59: 0 | BF59: 0 | BG59: 0 | BH59: 0 | BI59: 0 | BJ59: 0 | BK59: 0 | BL59: 0 | BM59: - | BN59: 5 | BO59: 0 | BP59: 0 | BQ59: 5 | BR59: 0 | BS59: 0 | BT59: 0 | BU59: 0 | BV59: 0 | BW59: 0 | BX59: 0 | BY59: 0 | BZ59: 0 | CA59: 0 | CB59: 0 | CC59: 0 | CD59: 0 | CE59: 0
A61: Golden Boots
A62: Anthony Martial - Man United | D62: =COUNT(I62:CE62) -> 8 | E62: =0+0+1+0+0+0 -> 1 | U62: =$E62*2 -> 2 | AB62: =$E62*2 -> 2 | AF62: =$E62*2 -> 2 | AM62: =$E62*2 -> 2 | BD62: =$E62*2 -> 2 | BI62: =$E62*2 -> 2 | BN62: =$E62*2 -> 2 | BU62: =$E62*2 -> 2
A63: Chris Wood - Burnley | D63: 0 | E63: =0+0+0+1+0+0 -> 1
A64: Danny Ings - Southampton | D64: 6 | E64: =1+0+0+0+0+0 -> 1 | T64: =$E64*2 -> 2 | AP64: =$E64*2 -> 2 | BO64: =$E64*2 -> 2 | BR64: =$E64*2 -> 2 | BV64: =$E64*2 -> 2 | CD64: =$E64*2 -> 2
A65: Harry Kane - Tottenham Hotspur | D65: 44 | E65: =1+1+0+0+0 -> 2 | I65: =$E65*2 -> 4 | J65: 4 | K65: 4 | L65: 4 | M65: 4 | N65: 4 | O65: 4 | Q65: =$E65*2 -> 4 | R65: =$E65*2 -> 4 | W65: =$E65*2 -> 4 | X65: =$E65*2 -> 4 | Y65: =$E65*2 -> 4 | Z65: =$E65*2 -> 4 | AC65: =$E65*2 -> 4 | AD65: 4 | AE65: 4 | AF65: 4 | AG65: 4 | AH65: 4 | AI65: 4 | AJ65: =$E65*2 -> 4 | AK65: =$E65*2 -> 4 | AL65: =$E65*2 -> 4 | AM65: =$E65*2 -> 4 | AN65: =$E65*2 -> 4 | AP65: =$E65*2 -> 4 | AQ65: =$E65*2 -> 4 | AR65: =$E65*2 -> 4 | AS65: =$E65*2 -> 4 | AT65: =$E65*2 -> 4 | AW65: =$E65*2 -> 4 | AY65: =$E65*2 -> 4 | AZ65: =$E65*2 -> 4 | BA65: =$E65*2 -> 4 | BB65: =$E65*2 -> 4 | BD65: =$E65*2 -> 4 | BF65: =$E65*2 -> 4 | BH65: =$E65*2 -> 4 | BI65: =$E65*2 -> 4 | BM65: =$E65*2 -> 4 | BS65: =$E65*2 -> 4 | BT65: =$E65*2 -> 4 | BX65: =$E65*2 -> 4 | CD65: =$E65*2 -> 4
A66: Jamie Vardy - Leicester City | D66: 19 | E66: =1+1+0+1+0+0 -> 3 | K66: =$E66*2 -> 6 | S66: =$E66*2 -> 6 | Z66: =$E66*2 -> 6 | AD66: =$E66*2 -> 6 | AS66: =$E66*2 -> 6 | AU66: =$E66*2 -> 6 | AV66: =$E66*2 -> 6 | AW66: =$E66*2 -> 6 | AX66: =$E66*2 -> 6 | AY66: =$E66*2 -> 6 | BA66: =$E66*2 -> 6 | BJ66: =$E66*2 -> 6 | BN66: =$E66*2 -> 6 | BQ66: =$E66*2 -> 6 | BR66: =$E66*2 -> 6 | BW66: =$E66*2 -> 6 | BX66: =$E66*2 -> 6 | CA66: =$E66*2 -> 6 | CB66: =$E66*2 -> 6
A67: Marcus Rashford - Man United | D67: 6 | E67: =1+0+2+0+1+1 -> 5 | P67: =$E67*2 -> 10 | BA67: =$E67*2 -> 10 | BG67: =$E67*2 -> 10 | BI67: =$E67*2 -> 10 | CA67: =$E67*2 -> 10 | CC67: =$E67*2 -> 10
A68: Mohamed Salah - Liverpool | D68: 36 | E68: =1+1+1+2+0+0 -> 5 | K68: =$E68*2 -> 10 | L68: =$E68*2 -> 10 | O68: =$E68*2 -> 10 | Q68: =$E68*2 -> 10 | R68: 10 | S68: 10 | T68: 10 | U68: 10 | V68: 10 | X68: =$E68*2 -> 10 | Y68: =$E68*2 -> 10 | AB68: =$E68*2 -> 10 | AE68: =$E68*2 -> 10 | AF68: =$E68*2 -> 10 | AM68: =$E68*2 -> 10 | AO68: =$E68*2 -> 10 | AQ68: =$E68*2 -> 10 | AV68: =$E68*2 -> 10 | AX68: =$E68*2 -> 10 | BB68: =$E68*2 -> 10 | BC68: =$E68*2 -> 10 | BD68: =$E68*2 -> 10 | BE68: =$E68*2 -> 10 | BF68: =$E68*2 -> 10 | BJ68: =$E68*2 -> 10 | BL68: =$E68*2 -> 10 | BO68: =$E68*2 -> 10 | BS68: =$E68*2 -> 10 | BT68: 10 | BU68: 10 | BV68: 10 | BW68: 10 | BX68: =$E68*2 -> 10 | BZ68: =$E68*2 -> 10 | CA68: 10 | CE68: =$E68*2 -> 10
A69: Pierre Emerick Aubameyang - Arsenal | D69: 45 | E69: =0+0+1+0+0+0 -> 1 | L69: =$E69*2 -> 2 | N69: =$E69*2 -> 2 | O69: =$E69*2 -> 2 | P69: =$E69*2 -> 2 | Q69: =$E69*2 -> 2 | R69: =$E69*2 -> 2 | S69: =$E69*2 -> 2 | U69: =$E69*2 -> 2 | V69: =$E69*2 -> 2 | W69: =$E69*2 -> 2 | AA69: =$E69*2 -> 2 | AB69: =$E69*2 -> 2 | AC69: =$E69*2 -> 2 | AE69: =$E69*2 -> 2 | AG69: =$E69*2 -> 2 | AI69: =$E69*2 -> 2 | AJ69: =$E69*2 -> 2 | AK69: =$E69*2 -> 2 | AN69: =$E69*2 -> 2 | AO69: =$E69*2 -> 2 | AQ69: =$E69*2 -> 2 | AR69: =$E69*2 -> 2 | AS69: =$E69*2 -> 2 | AU69: =$E69*2 -> 2 | AV69: =$E69*2 -> 2 | AW69: =$E69*2 -> 2 | AX69: =$E69*2 -> 2 | AY69: =$E69*2 -> 2 | BB69: =$E69*2 -> 2 | BC69: =$E69*2 -> 2 | BE69: =$E69*2 -> 2 | BF69: =$E69*2 -> 2 | BK69: =$E69*2 -> 2 | BL69: =$E69*2 -> 2 | BN69: =$E69*2 -> 2 | BP69: =$E69*2 -> 2 | BT69: =$E69*2 -> 2 | BV69: =$E69*2 -> 2 | BW69: =$E69*2 -> 2 | BY69: =$E69*2 -> 2 | BZ69: =$E69*2 -> 2 | CB69: =$E69*2 -> 2 | CC69: =$E69*2 -> 2 | CD69: =$E69*2 -> 2 | CE69: =$E69*2 -> 2
A70: Raheem Sterling - Man City | D70: 14 | E70: =1+0+0+1+0 -> 2 | X70: =$E70*2 -> 4 | AA70: =$E70*2 -> 4 | AC70: =$E70*2 -> 4 | AH70: =$E70*2 -> 4 | AJ70: =$E70*2 -> 4 | BG70: =$E70*2 -> 4 | BH70: =$E70*2 -> 4 | BJ70: =$E70*2 -> 4 | BK70: =$E70*2 -> 4 | BM70: =$E70*2 -> 4 | BP70: =$E70*2 -> 4 | BQ70: =$E70*2 -> 4 | BS70: =$E70*2 -> 4 | CE70: =$E70*2 -> 4
A71: Raul Jiminez - Wolves | D71: 1 | E71: =0+0+0+0+0+0 -> 0 | AU71: =$E71*2 -> 0
A72: Richarlison - Everton | D72: 1 | E72: =0+0+1+0+0 -> 1 | I72: =$E72*2 -> 2
A73: Sadio Mane - Liverpool | D73: 12 | E73: =0+0+0+1+1+0 -> 2 | J73: =$E73*2 -> 4 | M73: =$E73*2 -> 4 | P73: =$E73*2 -> 4 | V73: =$E73*2 -> 4 | AH73: =$E73*2 -> 4 | AI73: =$E73*2 -> 4 | AT73: =$E73*2 -> 4 | AZ73: =$E73*2 -> 4 | BG73: =$E73*2 -> 4 | BL73: =$E73*2 -> 4 | BP73: =$E73*2 -> 4 | CC73: =$E73*2 -> 4
A74: Sergio Aguero - Man City | D74: 9 | E74: =0+0+0+0+0 -> 0 | J74: =$E74*2 -> 0 | T74: =$E74*2 -> 0 | AL74: =$E74*2 -> 0 | AP74: =$E74*2 -> 0 | AT74: =$E74*2 -> 0 | BE74: =$E74*2 -> 0 | BM74: =$E74*2 -> 0 | BU74: =$E74*2 -> 0 | BY74: =$E74*2 -> 0
A75: Tammy Abraham - Chelsea | D75: 0 | E75: =0+0+0+2+1+0 -> 3
A76: Timo Werner - Chelsea | D76: 24 | E76: =0+0+0+0+0+0 -> 0 | I76: =$E76*2 -> 0 | M76: =$E76*2 -> 0 | N76: =$E76*2 -> 0 | W76: =$E76*2 -> 0 | Y76: =$E76*2 -> 0 | Z76: =$E76*2 -> 0 | AA76: =$E76*2 -> 0 | AD76: =$E76*2 -> 0 | AG76: =$E76*2 -> 0 | AK76: =$E76*2 -> 0 | AL76: =$E76*2 -> 0 | AN76: =$E76*2 -> 0 | AO76: =$E76*2 -> 0 | AR76: =$E76*2 -> 0 | AZ76: =$E76*2 -> 0 | BC76: =$E76*2 -> 0 | BH76: =$E76*2 -> 0 | BK76: =$E76*2 -> 0 | BO76: =$E76*2 -> 0 | BQ76: =$E76*2 -> 0 | BR76: =$E76*2 -> 0 | BY76: =$E76*2 -> 0 | BZ76: =$E76*2 -> 0 | CB76: =$E76*2 -> 0
A78: Golden Gloves
A79: Alisson Becker - Liverpool | D79: =COUNT(I79:CE79) -> 57 | E79: =0+0+0+1+0+1 -> 2 | J79: =$E79*2 -> 4 | K79: =$E79*2 -> 4 | L79: =$E79*2 -> 4 | M79: =$E79*2 -> 4 | O79: =$E79*2 -> 4 | P79: =$E79*2 -> 4 | R79: =$E79*2 -> 4 | S79: =$E79*2 -> 4 | T79: =$E79*2 -> 4 | V79: =$E79*2 -> 4 | W79: =$E79*2 -> 4 | X79: =$E79*2 -> 4 | Y79: =$E79*2 -> 4 | Z79: =$E79*2 -> 4 | AB79: =$E79*2 -> 4 | AD79: =$E79*2 -> 4 | AG79: =$E79*2 -> 4 | AH79: 4 | AI79: 4 | AJ79: 4 | AK79: 4 | AL79: 4 | AN79: =$E79*2 -> 4 | AO79: =$E79*2 -> 4 | AP79: =$E79*2 -> 4 | AQ79: =$E79*2 -> 4 | AR79: =$E79*2 -> 4 | AT79: =$E79*2 -> 4 | AV79: =$E79*2 -> 4 | AX79: =$E79*2 -> 4 | AY79: =$E79*2 -> 4 | AZ79: =$E79*2 -> 4 | BA79: =$E79*2 -> 4 | BB79: =$E79*2 -> 4 | BD79: =$E79*2 -> 4 | BE79: =$E79*2 -> 4 | BF79: =$E79*2 -> 4 | BG79: =$E79*2 -> 4 | BI79: =$E79*2 -> 4 | BJ79: =$E79*2 -> 4 | BK79: 4 | BL79: =$E79*2 -> 4 | BM79: 4 | BN79: 4 | BO79: =$E79*2 -> 4 | BP79: 4 | BR79: =$E79*2 -> 4 | BS79: 4 | BT79: 4 | BW79: =$E79*2 -> 4 | BX79: 4 | BY79: 4 | BZ79: =$E79*2 -> 4 | CA79: 4 | CB79: 4 | CC79: 4 | CE79: =$E79*2 -> 4
A80: Ederson - Man City | D80: =COUNT(I80:CE80) -> 14 | E80: =1+1+0+1+1 -> 4 | I80: =$E80*2 -> 8 | Q80: =$E80*2 -> 8 | U80: =$E80*2 -> 8 | AA80: =$E80*2 -> 8 | AC80: =$E80*2 -> 8 | AE80: =$E80*2 -> 8 | AF80: =$E80*2 -> 8 | AM80: =$E80*2 -> 8 | AU80: =$E80*2 -> 8 | AW80: =$E80*2 -> 8 | BC80: =$E80*2 -> 8 | BH80: =$E80*2 -> 8 | BV80: =$E80*2 -> 8 | CD80: =$E80*2 -> 8
A81: David de Gea - Man United | D81: =COUNT(I81:CE81) -> 3 | E81: =0+1+0+0+0+1 -> 2 | N81: =$E81*2 -> 4 | AS81: =$E81*2 -> 4 | BU81: =$E81*2 -> 4
A82: Hugo Lloris - Tottenham Hotspur | D82: =COUNT(I82:CE82) -> 1 | E82: =1+0+0+0+0 -> 1 | BQ82: =$E82*2 -> 2
A83: Nick Pope - Burnley | D83: =COUNT(I83:CE83) -> 0 | E83: =0+1+1+0+0+1 -> 3
A85: Sack Race
A86: Brendan Rodgers - Leicester City | D86: =COUNT(I86:CE86) -> 1 | BP86: =$E86*15 -> 0
A87: Carlo Ancelotti - Everton | D87: 0
A88: Chris Wilder - Sheffield United | D88: 0
A89: David Moyes - West Ham United | D89: 14 | M89: =$E89*15 -> 0 | P89: =$E89*15 -> 0 | Y89: =$E89*15 -> 0 | AB89: =$E89*15 -> 0 | AC89: =$E89*15 -> 0 | AI89: =$E89*15 -> 0 | AJ89: =$E89*15 -> 0 | AK89: =$E89*15 -> 0 | AR89: =$E89*15 -> 0 | AS89: =$E89*15 -> 0 | BA89: =$E89*15 -> 0 | BB89: =$E89*15 -> 0 | BE89: =$E89*15 -> 0 | BO89: =$E89*15 -> 0
A90: Dean Smith - Aston Villa | D90: 16 | N90: =$E90*15 -> 0 | O90: =$E90*15 -> 0 | W90: =$E90*15 -> 0 | AM90: =$E90*15 -> 0 | AN90: =$E90*15 -> 0 | AQ90: =$E90*15 -> 0 | AT90: =$E90*15 -> 0 | AU90: =$E90*15 -> 0 | AX90: =$E90*15 -> 0 | AZ90: =$E90*15 -> 0 | BG90: =$E90*15 -> 0 | BK90: =$E90*15 -> 0 | BM90: =$E90*15 -> 0 | BN90: =$E90*15 -> 0 | BQ90: =$E90*15 -> 0 | BT90: =$E90*15 -> 0
A91: Frank Lampard - Chelsea | D91: 0
A92: Graham Potter - Brighton | D92: 6 | I92: =$E92*15 -> 0 | T92: =$E92*15 -> 0 | V92: =$E92*15 -> 0 | AA92: =$E92*15 -> 0 | AF92: =$E92*15 -> 0 | CC92: =$E92*15 -> 0
A93: Jose Mourinho - Tottenham Hotspur | D93: 4 | AE93: =$E93*15 -> 0 | BJ93: =$E93*15 -> 0 | BU93: =$E93*15 -> 0 | CE93: =$E93*15 -> 0
A94: Jurgen Klopp - Liverpool | D94: 0
A95: Marco Bielsa - Leeds United | D95: 1 | BZ95: =$E95*15 -> 0
A96: Mikel Arteta - Arsenal | D96: 0
A97: Nuno Espirito Santo - Wolves | D97: 0
A98: Ole Gunnar Solskjaer - Manchester United | D98: 1 | AL98: =$E98*15 -> 0
A99: Pep Guardiola - Manchester City | D99: 1 | AV99: =$E99*15 -> 0
A100: Ralph Hassenhuttl - Southampton | D100: 2 | K100: =$E100*15 -> 0 | AH100: =$E100*15 -> 0
A101: Roy Hodgson - Crystal Palace | D101: 8 | J101: =$E101*15 -> 0 | L101: =$E101*15 -> 0 | AD101: =$E101*15 -> 0 | AP101: =$E101*15 -> 0 | BF101: =$E101*15 -> 0 | BS101: =$E101*15 -> 0 | BV101: =$E101*15 -> 0 | BY101: =$E101*15 -> 0
A102: Scott Parker - Fulham | D102: 3 | R102: =$E102*15 -> 0 | Z102: =$E102*15 -> 0 | BC102: =$E102*15 -> 0
A103: Sean Dyche - Burnley | D103: 1 | S103: =$E103*15 -> 0
A104: Slaven Bilic - West Brom | D104: 4 | E104: 1 | U104: =$E104*15 -> 15 | AO104: =$E104*15 -> 15 | BI104: =$E104*15 -> 15 | BL104: =$E104*15 -> 15
A105: Steve Bruce - Newcastle United | D105: 13 | Q105: =$E105*15 -> 0 | X105: =$E105*15 -> 0 | AG105: =$E105*15 -> 0 | AW105: =$E105*15 -> 0 | AY105: =$E105*15 -> 0 | BD105: =$E105*15 -> 0 | BH105: =$E105*15 -> 0 | BR105: =$E105*15 -> 0 | BW105: =$E105*15 -> 0 | BX105: =$E105*15 -> 0 | CA105: =$E105*15 -> 0 | CB105: =$E105*15 -> 0 | CD105: =$E105*15 -> 0
A107: Grand Total - December | I107: =SUM(I$3:I106) -> 134 | J107: =SUM(J$3:J106) -> 152 | K107: =SUM(K$3:K106) -> 194 | L107: =SUM(L$3:L106) -> 165 | M107: =SUM(M$3:M106) -> 172 | N107: =SUM(N$3:N106) -> 40 | O107: =SUM(O$3:O106) -> 230 | P107: =SUM(P$3:P106) -> 160 | Q107: =SUM(Q$3:Q106) -> 214 | R107: =SUM(R$3:R106) -> 190 | S107: =SUM(S$3:S106) -> 157 | T107: =SUM(T$3:T106) -> 141 | U107: =SUM(U$3:U106) -> 172 | V107: =SUM(V$3:V106) -> 145 | W107: =SUM(W$3:W106) -> 195 | X107: =SUM(X$3:X106) -> 182 | Y107: =SUM(Y$3:Y106) -> 173 | Z107: =SUM(Z$3:Z106) -> 164 | AA107: =SUM(AA$3:AA106) -> 169 | AB107: =SUM(AB$3:AB106) -> 178 | AC107: =SUM(AC$3:AC106) -> 148 | AD107: =SUM(AD$3:AD106) -> 179 | AE107: =SUM(AE$3:AE106) -> 174 | AF107: =SUM(AF$3:AF106) -> 194 | AG107: =SUM(AG$3:AG106) -> 175 | AH107: =SUM(AH$3:AH106) -> 166 | AI107: =SUM(AI$3:AI106) -> 169 | AJ107: =SUM(AJ$3:AJ106) -> 14 | AK107: =SUM(AK$3:AK106) -> 190 | AL107: =SUM(AL$3:AL106) -> 128 | AM107: =SUM(AM$3:AM106) -> 149 | AN107: =SUM(AN$3:AN106) -> 175 | AO107: =SUM(AO$3:AO106) -> 201 | AP107: =SUM(AP$3:AP106) -> 115 | AQ107: =SUM(AQ$3:AQ106) -> 170 | AR107: =SUM(AR$3:AR106) -> 145 | AS107: =SUM(AS$3:AS106) -> 166 | AT107: =SUM(AT$3:AT106) -> 132 | AU107: =SUM(AU$3:AU106) -> 186 | AV107: =SUM(AV$3:AV106) -> 172 | AW107: =SUM(AW$3:AW106) -> 145 | AX107: =SUM(AX$3:AX106) -> 157 | AY107: =SUM(AY$3:AY106) -> 151 | AZ107: =SUM(AZ$3:AZ106) -> 157 | BA107: =SUM(BA$3:BA106) -> 129 | BB107: =SUM(BB$3:BB106) -> 170 | BC107: =SUM(BC$3:BC106) -> 160 | BD107: =SUM(BD$3:BD106) -> 140 | BE107: =SUM(BE$3:BE106) -> 181 | BF107: =SUM(BF$3:BF106) -> 185 | BG107: =SUM(BG$3:BG106) -> 177 | BH107: =SUM(BH$3:BH106) -> 156 | BI107: =SUM(BI$3:BI106) -> 185 | BJ107: =SUM(BJ$3:BJ106) -> 159 | BK107: =SUM(BK$3:BK106) -> 155 | BL107: =SUM(BL$3:BL106) -> 175 | BM107: =SUM(BM$3:BM106) -> 12 | BN107: =SUM(BN$3:BN106) -> 189 | BO107: =SUM(BO$3:BO106) -> 186 | BP107: =SUM(BP$3:BP106) -> 149 | BQ107: =SUM(BQ$3:BQ106) -> 127 | BR107: =SUM(BR$3:BR106) -> 177 | BS107: =SUM(BS$3:BS106) -> 167 | BT107: =SUM(BT$3:BT106) -> 180 | BU107: =SUM(BU$3:BU106) -> 166 | BV107: =SUM(BV$3:BV106) -> 152 | BW107: =SUM(BW$3:BW106) -> 182 | BX107: =SUM(BX$3:BX106) -> 179 | BY107: =SUM(BY$3:BY106) -> 186 | BZ107: =SUM(BZ$3:BZ106) -> 171 | CA107: =SUM(CA$3:CA106) -> 155 | CB107: =SUM(CB$3:CB106) -> 177 | CC107: =SUM(CC$3:CC106) -> 115 | CD107: =SUM(CD$3:CD106) -> 166 | CE107: =SUM(CE$3:CE106) -> 190
A109: Ten Pointers | I109: =COUNTIF(I$3:I59,"10") -> 3 | J109: =COUNTIF(J$3:J59,"10") -> 3 | K109: =COUNTIF(K$3:K59,"10") -> 5 | L109: =COUNTIF(L$3:L59,"10") -> 5 | M109: =COUNTIF(M$3:M59,"10") -> 6 | N109: =COUNTIF(N$3:N59,"10") -> 2 | O109: =COUNTIF(O$3:O59,"10") -> 10 | P109: =COUNTIF(P$3:P59,"10") -> 5 | Q109: =COUNTIF(Q$3:Q59,"10") -> 9 | R109: =COUNTIF(R$3:R59,"10") -> 6 | S109: =COUNTIF(S$3:S59,"10") -> 4 | T109: =COUNTIF(T$3:T59,"10") -> 6 | U109: =COUNTIF(U$3:U59,"10") -> 3 | V109: =COUNTIF(V$3:V59,"10") -> 7 | W109: =COUNTIF(W$3:W59,"10") -> 10 | X109: =COUNTIF(X$3:X59,"10") -> 6 | Y109: =COUNTIF(Y$3:Y59,"10") -> 4 | Z109: =COUNTIF(Z$3:Z59,"10") -> 7 | AA109: =COUNTIF(AA$3:AA59,"10") -> 4 | AB109: =COUNTIF(AB$3:AB59,"10") -> 8 | AC109: =COUNTIF(AC$3:AC59,"10") -> 3 | AD109: =COUNTIF(AD$3:AD59,"10") -> 8 | AE109: =COUNTIF(AE$3:AE59,"10") -> 6 | AF109: =COUNTIF(AF$3:AF59,"10") -> 7 | AG109: =COUNTIF(AG$3:AG59,"10") -> 5 | AH109: =COUNTIF(AH$3:AH59,"10") -> 6 | AI109: =COUNTIF(AI$3:AI59,"10") -> 4 | AJ109: =COUNTIF(AJ$3:AJ59,"10") -> 0 | AK109: =COUNTIF(AK$3:AK59,"10") -> 6 | AL109: =COUNTIF(AL$3:AL59,"10") -> 4 | AM109: =COUNTIF(AM$3:AM59,"10") -> 6 | AN109: =COUNTIF(AN$3:AN59,"10") -> 8 | AO109: =COUNTIF(AO$3:AO59,"10") -> 7 | AP109: =COUNTIF(AP$3:AP59,"10") -> 4 | AQ109: =COUNTIF(AQ$3:AQ59,"10") -> 6 | AR109: =COUNTIF(AR$3:AR59,"10") -> 5 | AS109: =COUNTIF(AS$3:AS59,"10") -> 4 | AT109: =COUNTIF(AT$3:AT59,"10") -> 2 | AU109: =COUNTIF(AU$3:AU59,"10") -> 11 | AV109: =COUNTIF(AV$3:AV59,"10") -> 6 | AW109: =COUNTIF(AW$3:AW59,"10") -> 3 | AX109: =COUNTIF(AX$3:AX59,"10") -> 6 | AY109: =COUNTIF(AY$3:AY59,"10") -> 5 | AZ109: =COUNTIF(AZ$3:AZ59,"10") -> 3 | BA109: =COUNTIF(BA$3:BA59,"10") -> 2 | BB109: =COUNTIF(BB$3:BB59,"10") -> 6 | BC109: =COUNTIF(BC$3:BC59,"10") -> 5 | BD109: =COUNTIF(BD$3:BD59,"10") -> 2 | BE109: =COUNTIF(BE$3:BE59,"10") -> 5 | BF109: =COUNTIF(BF$3:BF59,"10") -> 6 | BG109: =COUNTIF(BG$3:BG59,"10") -> 5 | BH109: =COUNTIF(BH$3:BH59,"10") -> 3 | BI109: =COUNTIF(BI$3:BI59,"10") -> 5 | BJ109: =COUNTIF(BJ$3:BJ59,"10") -> 4 | BK109: =COUNTIF(BK$3:BK59,"10") -> 2 | BL109: =COUNTIF(BL$3:BL59,"10") -> 5 | BM109: =COUNTIF(BM$3:BM59,"10") -> 0 | BN109: =COUNTIF(BN$3:BN59,"10") -> 10 | BO109: =COUNTIF(BO$3:BO59,"10") -> 8 | BP109: =COUNTIF(BP$3:BP59,"10") -> 4 | BQ109: =COUNTIF(BQ$3:BQ59,"10") -> 4 | BR109: =COUNTIF(BR$3:BR59,"10") -> 7 | BS109: =COUNTIF(BS$3:BS59,"10") -> 7 | BT109: =COUNTIF(BT$3:BT59,"10") -> 6 | BU109: =COUNTIF(BU$3:BU59,"10") -> 5 | BV109: =COUNTIF(BV$3:BV59,"10") -> 3 | BW109: =COUNTIF(BW$3:BW59,"10") -> 6 | BX109: =COUNTIF(BX$3:BX59,"10") -> 5 | BY109: =COUNTIF(BY$3:BY59,"10") -> 6 | BZ109: =COUNTIF(BZ$3:BZ59,"10") -> 4 | CA109: =COUNTIF(CA$3:CA59,"10") -> 3 | CB109: =COUNTIF(CB$3:CB59,"10") -> 5 | CC109: =COUNTIF(CC$3:CC59,"10") -> 2 | CD109: =COUNTIF(CD$3:CD59,"10") -> 5 | CE109: =COUNTIF(CE$3:CE59,"10") -> 8

Sheet January
I1: Aidan Scanlon | J1: Aidan White | K1: Alan White | L1: Anastas Popov | M1: Andy Dunne | N1: Ben Creasey | O1: Bobby Hynes | P1: Brendan Maguire | Q1: Brian Prendergast | R1: Brian Haughton | S1: Brian Mullen | T1: Callum Dunne | U1: Calvin McGettigan | V1: Caroline Carroll | W1: Cathal Thornton | X1: Christina Morgan | Y1: Ciaran Nelson | Z1: Ciaran O'Hart | AA1: Con McSweeney | AB1: Craig Calvert | AC1: Darragh Kenny | AD1: David Cooney | AE1: David Lavelle | AF1: David McGinley | AG1: Davy Doyle | AH1: Dean White | AI1: Derek Brady | AJ1: Drew Armstrong | AK1: Eamon Fox | AL1: Eoghan Farrelly | AM1: Fiachra O'Brolachain | AN1: Frank McSweeney | AO1: Gareth Pierpoint | AP1: Gary Donnelly | AQ1: Gary Fitzpatrick | AR1: Gary McGurk | AS1: Gavin Goodwin | AT1: Gavin Morgan | AU1: George McGettigan | AV1: Gerard McCluskey | AW1: Gerry Draper | AX1: Gerry Moore | AY1: Graham Goodwin | AZ1: Javier Suarez | BA1: Joe Behan | BB1: Joe Turner | BC1: John Brophy | BD1: John O'Driscoll | BE1: Jonathan Fox | BF1: Joseph Kavanagh | BG1: Kev Dalton | BH1: Kevin Philpott | BI1: Kris Stainton | BJ1: Liam Geraghty | BK1: Liam Keohan | BL1: Lionel Knott | BM1: Michael Kenaney | BN1: Micheal Joyce | BO1: Niall Cannon | BP1: Niall Carroll | BQ1: Niall Murray | BR1: Patrick Mifsud | BS1: Paul Moore | BT1: Paul Prendergast | BU1: Phil Doyle | BV1: Philip Jordan | BW1: Ralph Goodwin | BX1: Richard Johnston | BY1: Robert Hynes | BZ1: Robert Manley | CA1: Roisin Joyce | CB1: Sean O'Mairtin | CC1: Trevor Byrne | CD1: Victoria Reid | CE1: Wayne Donovan
A2: Day | B2: Date | C2: Teams | G2: Time
A3: Fri | B3: 2021-01-01 | C3: Everton | D3: 0 | E3: 1 | F3: West Ham | G3: 17:30:00 | I3: 0 | J3: 0 | K3: 0 | L3: 0 | M3: 0 | N3: - | O3: 0 | P3: 0 | Q3: 0 | R3: 0 | S3: 0 | T3: 0 | U3: 0 | V3: 0 | W3: 0 | X3: 0 | Y3: 0 | Z3: 0 | AA3: 0 | AB3: 0 | AC3: 0 | AD3: 0 | AE3: 0 | AF3: 0 | AG3: 0 | AH3: 0 | AI3: 0 | AJ3: - | AK3: 0 | AL3: 5 | AM3: 0 | AN3: 0 | AO3: 0 | AP3: - | AQ3: 0 | AR3: 0 | AS3: 0 | AT3: 0 | AU3: 0 | AV3: 0 | AW3: 0 | AX3: 0 | AY3: 0 | AZ3: 0 | BA3: 0 | BB3: 0 | BC3: 0 | BD3: 0 | BE3: 0 | BF3: 0 | BG3: 0 | BH3: 0 | BI3: 0 | BJ3: 0 | BK3: 0 | BL3: 0 | BM3: - | BN3: 0 | BO3: 0 | BP3: 0 | BQ3: 0 | BR3: 0 | BS3: 0 | BT3: 0 | BU3: 0 | BV3: 0 | BW3: 0 | BX3: 0 | BY3: 0 | BZ3: 0 | CA3: 0 | CB3: 0 | CC3: 0 | CD3: 0 | CE3: 0
A4: Fri | B4: 2021-01-01 | C4: Manchester United | D4: 2 | E4: 1 | F4: Aston Villa | G4: 20:00:00 | I4: 10 | J4: 0 | K4: 0 | L4: 5 | M4: 5 | N4: - | O4: 5 | P4: 5 | Q4: 5 | R4: 5 | S4: 5 | T4: 10 | U4: 5 | V4: 0 | W4: 10 | X4: 0 | Y4: 5 | Z4: 10 | AA4: 0 | AB4: 5 | AC4: 5 | AD4: 5 | AE4: 0 | AF4: 5 | AG4: 10 | AH4: 5 | AI4: 10 | AJ4: - | AK4: 0 | AL4: 10 | AM4: 0 | AN4: 0 | AO4: 10 | AP4: - | AQ4: 5 | AR4: 5 | AS4: 5 | AT4: 5 | AU4: 10 | AV4: 0 | AW4: 10 | AX4: 0 | AY4: 10 | AZ4: 0 | BA4: 5 | BB4: 10 | BC4: 5 | BD4: 5 | BE4: 5 | BF4: 10 | BG4: 5 | BH4: 5 | BI4: 5 | BJ4: 10 | BK4: 5 | BL4: 5 | BM4: - | BN4: 5 | BO4: 0 | BP4: 5 | BQ4: 5 | BR4: 0 | BS4: 0 | BT4: 5 | BU4: 5 | BV4: 5 | BW4: 5 | BX4: 5 | BY4: 5 | BZ4: 5 | CA4: 10 | CB4: 5 | CC4: 5 | CD4: 5 | CE4: 10
A5: Sat | B5: 2021-01-02 | C5: Tottenham | D5: 3 | E5: 0 | F5: Leeds | G5: 12:30:00 | I5: 5 | J5: 0 | K5: 5 | L5: 5 | M5: 0 | N5: - | O5: 5 | P5: 0 | Q5: 5 | R5: 5 | S5: 5 | T5: 0 | U5: 0 | V5: 5 | W5: 5 | X5: 0 | Y5: 5 | Z5: 0 | AA5: 0 | AB5: 0 | AC5: 5 | AD5: 5 | AE5: 5 | AF5: 5 | AG5: 0 | AH5: 5 | AI5: 5 | AJ5: - | AK5: 5 | AL5: 5 | AM5: 5 | AN5: 5 | AO5: 5 | AP5: - | AQ5: 5 | AR5: 5 | AS5: 5 | AT5: 10 | AU5: 5 | AV5: 5 | AW5: 5 | AX5: 0 | AY5: 5 | AZ5: 5 | BA5: 0 | BB5: 5 | BC5: 5 | BD5: 10 | BE5: 5 | BF5: 10 | BG5: 5 | BH5: 5 | BI5: 0 | BJ5: 0 | BK5: 5 | BL5: 5 | BM5: - | BN5: 0 | BO5: 5 | BP5: 5 | BQ5: 0 | BR5: 5 | BS5: 5 | BT5: 5 | BU5: 5 | BV5: 5 | BW5: 0 | BX5: 5 | BY5: 5 | BZ5: 5 | CA5: 0 | CB5: 5 | CC5: 5 | CD5: 0 | CE5: 5
A6: Sat | B6: 2021-01-02 | C6: Crystal Palace | D6: 2 | E6: 0 | F6: Sheffield United | G6: 15:00:00 | I6: 0 | J6: 5 | K6: 5 | L6: 5 | M6: 10 | N6: - | O6: 5 | P6: 5 | Q6: 5 | R6: 5 | S6: 0 | T6: 5 | U6: 0 | V6: 5 | W6: 5 | X6: 5 | Y6: 5 | Z6: 5 | AA6: 5 | AB6: 10 | AC6: 5 | AD6: 5 | AE6: 10 | AF6: 5 | AG6: 5 | AH6: 0 | AI6: 5 | AJ6: - | AK6: 5 | AL6: 5 | AM6: 5 | AN6: 0 | AO6: 5 | AP6: - | AQ6: 5 | AR6: 5 | AS6: 10 | AT6: 5 | AU6: 5 | AV6: 5 | AW6: 10 | AX6: 5 | AY6: 5 | AZ6: 10 | BA6: 10 | BB6: 10 | BC6: 0 | BD6: 5 | BE6: 5 | BF6: 5 | BG6: 0 | BH6: 5 | BI6: 0 | BJ6: 10 | BK6: 10 | BL6: 0 | BM6: - | BN6: 0 | BO6: 10 | BP6: 10 | BQ6: 0 | BR6: 5 | BS6: 0 | BT6: 5 | BU6: 5 | BV6: 0 | BW6: 10 | BX6: 10 | BY6: 5 | BZ6: 5 | CA6: 10 | CB6: 5 | CC6: 5 | CD6: 5 | CE6: 5
A7: Sat | B7: 2021-01-02 | C7: Brighton | D7: 3 | E7: 3 | F7: Wolves | G7: 17:30:00 | I7: 0 | J7: 5 | K7: 0 | L7: 5 | M7: 5 | N7: - | O7: 0 | P7: 0 | Q7: 5 | R7: 0 | S7: 0 | T7: 0 | U7: 5 | V7: 0 | W7: 0 | X7: 0 | Y7: 0 | Z7: 5 | AA7: 0 | AB7: 5 | AC7: 5 | AD7: 5 | AE7: 0 | AF7: 5 | AG7: 5 | AH7: 5 | AI7: 0 | AJ7: - | AK7: 5 | AL7: 5 | AM7: 0 | AN7: 0 | AO7: 0 | AP7: - | AQ7: 0 | AR7: 0 | AS7: 0 | AT7: 0 | AU7: 0 | AV7: 5 | AW7: 5 | AX7: 0 | AY7: 5 | AZ7: 5 | BA7: 5 | BB7: 5 | BC7: 0 | BD7: 0 | BE7: 0 | BF7: 0 | BG7: 5 | BH7: 0 | BI7: 0 | BJ7: 0 | BK7: 0 | BL7: 0 | BM7: - | BN7: 0 | BO7: 10 | BP7: 0 | BQ7: 0 | BR7: 0 | BS7: 0 | BT7: 0 | BU7: 5 | BV7: 0 | BW7: 0 | BX7: 0 | BY7: 0 | BZ7: 5 | CA7: 5 | CB7: 0 | CC7: 0 | CD7: 5 | CE7: 0
A8: Sat | B8: 2021-01-02 | C8: West Brom | D8: 0 | E8: 4 | F8: Arsenal | G8: 20:00:00 | I8: 0 | J8: 5 | K8: 5 | L8: 5 | M8: 5 | N8: - | O8: 5 | P8: 5 | Q8: 5 | R8: 5 | S8: 5 | T8: 5 | U8: 5 | V8: 5 | W8: 0 | X8: 0 | Y8: 5 | Z8: 5 | AA8: 5 | AB8: 5 | AC8: 5 | AD8: 5 | AE8: 0 | AF8: 5 | AG8: 5 | AH8: 5 | AI8: 5 | AJ8: - | AK8: 5 | AL8: 5 | AM8: 5 | AN8: 5 | AO8: 5 | AP8: - | AQ8: 5 | AR8: 5 | AS8: 5 | AT8: 5 | AU8: 0 | AV8: 5 | AW8: 5 | AX8: 5 | AY8: 0 | AZ8: 0 | BA8: 5 | BB8: 5 | BC8: 0 | BD8: 5 | BE8: 5 | BF8: 5 | BG8: 0 | BH8: 5 | BI8: 5 | BJ8: 5 | BK8: 5 | BL8: 5 | BM8: - | BN8: 5 | BO8: 0 | BP8: 5 | BQ8: 5 | BR8: 5 | BS8: 0 | BT8: 5 | BU8: 5 | BV8: 5 | BW8: 5 | BX8: 5 | BY8: 5 | BZ8: 5 | CA8: 5 | CB8: 0 | CC8: 0 | CD8: 5 | CE8: 5
A9: Sun | B9: 2021-01-03 | C9: Newcastle | D9: 1 | E9: 2 | F9: Leicester | G9: 14:15:00 | I9: 0 | J9: 10 | K9: 10 | L9: 5 | M9: 0 | N9: - | O9: 0 | P9: 5 | Q9: 5 | R9: 5 | S9: 5 | T9: 0 | U9: 5 | V9: 0 | W9: 5 | X9: 0 | Y9: 10 | Z9: 5 | AA9: 10 | AB9: 0 | AC9: 10 | AD9: 10 | AE9: 5 | AF9: 0 | AG9: 5 | AH9: 10 | AI9: 5 | AJ9: - | AK9: 5 | AL9: 10 | AM9: 5 | AN9: 10 | AO9: 5 | AP9: - | AQ9: 10 | AR9: 10 | AS9: 10 | AT9: 0 | AU9: 0 | AV9: 5 | AW9: 5 | AX9: 5 | AY9: 10 | AZ9: 5 | BA9: 5 | BB9: 5 | BC9: 5 | BD9: 0 | BE9: 5 | BF9: 5 | BG9: 5 | BH9: 10 | BI9: 10 | BJ9: 5 | BK9: 5 | BL9: 5 | BM9: - | BN9: 0 | BO9: 0 | BP9: 10 | BQ9: 5 | BR9: 5 | BS9: 0 | BT9: 5 | BU9: 5 | BV9: 0 | BW9: 5 | BX9: 5 | BY9: 5 | BZ9: 5 | CA9: 5 | CB9: 10 | CC9: 5 | CD9: 0 | CE9: 10
A10: Sun | B10: 2021-01-03 | C10: Chelsea | D10: 1 | E10: 3 | F10: Man City | G10: 16:30:00 | I10: 0 | J10: 0 | K10: 5 | L10: 5 | M10: 0 | N10: - | O10: 0 | P10: 5 | Q10: 0 | R10: 0 | S10: 0 | T10: 0 | U10: 0 | V10: 0 | W10: 5 | X10: 0 | Y10: 5 | Z10: 0 | AA10: 5 | AB10: 0 | AC10: 5 | AD10: 0 | AE10: 10 | AF10: 0 | AG10: 0 | AH10: 0 | AI10: 0 | AJ10: - | AK10: 5 | AL10: 10 | AM10: 5 | AN10: 0 | AO10: 0 | AP10: - | AQ10: 5 | AR10: 0 | AS10: 5 | AT10: 0 | AU10: 0 | AV10: 5 | AW10: 5 | AX10: 0 | AY10: 0 | AZ10: 5 | BA10: 5 | BB10: 0 | BC10: 0 | BD10: 0 | BE10: 5 | BF10: 0 | BG10: 0 | BH10: 0 | BI10: 0 | BJ10: 0 | BK10: 5 | BL10: 5 | BM10: - | BN10: 5 | BO10: 0 | BP10: 5 | BQ10: 0 | BR10: 0 | BS10: 0 | BT10: 0 | BU10: 0 | BV10: 0 | BW10: 0 | BX10: 5 | BY10: 0 | BZ10: 0 | CA10: 0 | CB10: 5 | CC10: 0 | CD10: 10 | CE10: 0
A11: Mon | B11: 2021-01-04 | C11: Southampton | D11: 1 | E11: 0 | F11: Liverpool | G11: 20:00:00 | I11: 5 | J11: 0 | K11: 0 | L11: 0 | M11: 0 | N11: - | O11: 0 | P11: 0 | Q11: 0 | R11: 0 | S11: 0 | T11: 0 | U11: 0 | V11: 0 | W11: 0 | X11: 0 | Y11: 0 | Z11: 0 | AA11: 0 | AB11: 0 | AC11: 0 | AD11: 0 | AE11: 0 | AF11: 0 | AG11: 0 | AH11: 0 | AI11: 0 | AJ11: - | AK11: 0 | AL11: 0 | AM11: 0 | AN11: 0 | AO11: 0 | AP11: - | AQ11: 0 | AR11: 0 | AS11: 0 | AT11: 5 | AU11: 0 | AV11: 5 | AW11: 0 | AX11: 0 | AY11: 0 | AZ11: 0 | BA11: 0 | BB11: 0 | BC11: 0 | BD11: 0 | BE11: 0 | BF11: 0 | BG11: 0 | BH11: 0 | BI11: 0 | BJ11: 0 | BK11: 5 | BL11: 0 | BM11: - | BN11: 0 | BO11: 0 | BP11: 0 | BQ11: 5 | BR11: 0 | BS11: 0 | BT11: 0 | BU11: 0 | BV11: 5 | BW11: 0 | BX11: 0 | BY11: 0 | BZ11: 0 | CA11: 0 | CB11: 0 | CC11: 0 | CD11: 0 | CE11: 0
A12: Tue | B12: 2021-01-12 | C12: Sheffield United | D12: 1 | E12: 0 | F12: Newcastle | G12: 18:00:00 | I12: 5 | J12: 0 | K12: 0 | L12: 0 | M12: 0 | N12: - | O12: 0 | P12: 5 | Q12: 5 | R12: 0 | S12: 0 | T12: - | U12: 0 | V12: 0 | W12: 0 | X12: 10 | Y12: 0 | Z12: 10 | AA12: 0 | AB12: 5 | AC12: 10 | AD12: 0 | AE12: 0 | AF12: 0 | AG12: 0 | AH12: 0 | AI12: 5 | AJ12: - | AK12: 0 | AL12: 5 | AM12: 5 | AN12: 10 | AO12: 5 | AP12: - | AQ12: 0 | AR12: 10 | AS12: 0 | AT12: 0 | AU12: 0 | AV12: 10 | AW12: 0 | AX12: 10 | AY12: 10 | AZ12: 0 | BA12: 10 | BB12: 10 | BC12: 10 | BD12: 5 | BE12: 0 | BF12: 10 | BG12: 5 | BH12: 0 | BI12: 0 | BJ12: 10 | BK12: 0 | BL12: 0 | BM12: - | BN12: 0 | BO12: 0 | BP12: 0 | BQ12: 5 | BR12: 0 | BS12: 10 | BT12: 5 | BU12: 0 | BV12: 10 | BW12: 0 | BX12: 5 | BY12: 5 | BZ12: 0 | CA12: 0 | CB12: 0 | CC12: 0 | CD12: 10 | CE12: 5
A13: Tue | B13: 2021-01-12 | C13: Burnley | D13: 0 | E13: 1 | F13: Manchester United | G13: 20:15:00 | I13: 5 | J13: 5 | K13: 5 | L13: 5 | M13: 5 | N13: - | O13: 5 | P13: 5 | Q13: 0 | R13: 5 | S13: 5 | T13: - | U13: 10 | V13: 5 | W13: 10 | X13: 5 | Y13: 5 | Z13: 5 | AA13: 5 | AB13: 0 | AC13: 5 | AD13: 5 | AE13: 5 | AF13: 10 | AG13: 5 | AH13: 5 | AI13: 10 | AJ13: - | AK13: 5 | AL13: 5 | AM13: 0 | AN13: 5 | AO13: 5 | AP13: - | AQ13: 5 | AR13: 0 | AS13: 5 | AT13: 5 | AU13: 0 | AV13: 5 | AW13: 10 | AX13: 0 | AY13: 5 | AZ13: 0 | BA13: 10 | BB13: 5 | BC13: 5 | BD13: 0 | BE13: 5 | BF13: 10 | BG13: 5 | BH13: 5 | BI13: 5 | BJ13: 0 | BK13: 5 | BL13: 5 | BM13: - | BN13: 0 | BO13: 5 | BP13: 5 | BQ13: 5 | BR13: 5 | BS13: 5 | BT13: 0 | BU13: 5 | BV13: 5 | BW13: 5 | BX13: 0 | BY13: 0 | BZ13: 0 | CA13: 5 | CB13: 5 | CC13: 5 | CD13: 5 | CE13: 10
A14: Tue | B14: 2021-01-12 | C14: Wolves | D14: 1 | E14: 2 | F14: Everton | G14: 20:15:00 | I14: 0 | J14: 10 | K14: 10 | L14: 0 | M14: 0 | N14: - | O14: 0 | P14: 0 | Q14: 0 | R14: 10 | S14: 0 | T14: - | U14: 0 | V14: 0 | W14: 0 | X14: 0 | Y14: 0 | Z14: 0 | AA14: 0 | AB14: 0 | AC14: 0 | AD14: 0 | AE14: 0 | AF14: 0 | AG14: 10 | AH14: 10 | AI14: 0 | AJ14: - | AK14: 5 | AL14: 0 | AM14: 10 | AN14: 10 | AO14: 0 | AP14: - | AQ14: 0 | AR14: 0 | AS14: 0 | AT14: 0 | AU14: 0 | AV14: 0 | AW14: 0 | AX14: 0 | AY14: 0 | AZ14: 0 | BA14: 0 | BB14: 0 | BC14: 0 | BD14: 0 | BE14: 0 | BF14: 0 | BG14: 10 | BH14: 10 | BI14: 5 | BJ14: 0 | BK14: 0 | BL14: 0 | BM14: - | BN14: 0 | BO14: 5 | BP14: 0 | BQ14: 0 | BR14: 0 | BS14: 0 | BT14: 0 | BU14: 0 | BV14: 0 | BW14: 0 | BX14: 0 | BY14: 0 | BZ14: 0 | CA14: 0 | CB14: 0 | CC14: 0 | CD14: 5 | CE14: 0
A15: Wed | B15: 2021-01-13 | C15: Man City | D15: 1 | E15: 0 | F15: Brighton | G15: 18:00:00 | I15: 5 | J15: 5 | K15: 5 | L15: 5 | M15: 5 | N15: - | O15: 5 | P15: 5 | Q15: 5 | R15: 5 | S15: 5 | T15: - | U15: 5 | V15: 5 | W15: 5 | X15: 5 | Y15: 5 | Z15: 5 | AA15: 5 | AB15: 5 | AC15: 5 | AD15: 5 | AE15: 5 | AF15: 5 | AG15: 5 | AH15: 5 | AI15: 5 | AJ15: - | AK15: 5 | AL15: 5 | AM15: 5 | AN15: 5 | AO15: 5 | AP15: - | AQ15: 5 | AR15: 5 | AS15: 5 | AT15: 5 | AU15: 5 | AV15: 5 | AW15: 5 | AX15: 5 | AY15: 5 | AZ15: 5 | BA15: 5 | BB15: 5 | BC15: 5 | BD15: 5 | BE15: 5 | BF15: 5 | BG15: 5 | BH15: 5 | BI15: 5 | BJ15: 10 | BK15: 5 | BL15: 5 | BM15: - | BN15: 5 | BO15: 5 | BP15: 5 | BQ15: 5 | BR15: 5 | BS15: 5 | BT15: 5 | BU15: 5 | BV15: 5 | BW15: 5 | BX15: 5 | BY15: 5 | BZ15: 5 | CA15: 5 | CB15: 5 | CC15: 5 | CD15: 5 | CE15: 5
A16: Wed | B16: 2021-01-13 | C16: Tottenham | D16: 1 | E16: 1 | F16: Fulham | G16: 20:15:00 | I16: 0 | J16: 0 | K16: 0 | L16: 0 | M16: 0 | N16: - | O16: 0 | P16: 0 | Q16: 0 | R16: 0 | S16: 0 | T16: - | U16: 0 | V16: 0 | W16: 0 | X16: 0 | Y16: 0 | Z16: 10 | AA16: 0 | AB16: 0 | AC16: 0 | AD16: 0 | AE16: 0 | AF16: 0 | AG16: 0 | AH16: 0 | AI16: 0 | AJ16: - | AK16: 0 | AL16: 0 | AM16: 0 | AN16: 0 | AO16: 0 | AP16: - | AQ16: 0 | AR16: 0 | AS16: 0 | AT16: 0 | AU16: 0 | AV16: 0 | AW16: 0 | AX16: 0 | AY16: 0 | AZ16: 0 | BA16: 0 | BB16: 0 | BC16: 0 | BD16: 0 | BE16: 0 | BF16: 0 | BG16: 0 | BH16: 0 | BI16: 0 | BJ16: 0 | BK16: 0 | BL16: 0 | BM16: - | BN16: 0 | BO16: 0 | BP16: 0 | BQ16: 0 | BR16: 0 | BS16: 0 | BT16: 0 | BU16: 0 | BV16: 0 | BW16: 0 | BX16: 0 | BY16: 0 | BZ16: 0 | CA16: 0 | CB16: 0 | CC16: 0 | CD16: 0 | CE16: 0
A17: Thu | B17: 2021-01-14 | C17: Arsenal | D17: 0 | E17: 0 | F17: Crystal Palace | G17: 20:00:00 | I17: 0 | J17: 0 | K17: 0 | L17: 0 | M17: 0 | N17: - | O17: 0 | P17: 0 | Q17: 0 | R17: 0 | S17: 0 | T17: - | U17: 0 | V17: 0 | W17: 0 | X17: 0 | Y17: 0 | Z17: 0 | AA17: 0 | AB17: 0 | AC17: 0 | AD17: 0 | AE17: 0 | AF17: 0 | AG17: 0 | AH17: 0 | AI17: 0 | AJ17: - | AK17: 0 | AL17: 5 | AM17: 0 | AN17: 0 | AO17: 0 | AP17: - | AQ17: 5 | AR17: 0 | AS17: 0 | AT17: 0 | AU17: 0 | AV17: 0 | AW17: 0 | AX17: 0 | AY17: 0 | AZ17: 0 | BA17: 0 | BB17: 0 | BC17: 0 | BD17: 0 | BE17: 0 | BF17: 0 | BG17: 0 | BH17: 0 | BI17: 0 | BJ17: 5 | BK17: 0 | BL17: 0 | BM17: - | BN17: 0 | BO17: 5 | BP17: 0 | BQ17: 0 | BR17: 5 | BS17: 0 | BT17: 0 | BU17: 5 | BV17: 0 | BW17: 0 | BX17: 0 | BY17: 0 | BZ17: 0 | CA17: 0 | CB17: 0 | CC17: 0 | CD17: 0 | CE17: 0
A18: Sat | B18: 2021-01-16 | C18: Wolves | D18: 2 | E18: 3 | F18: West Brom | G18: 12:30:00 | I18: 10 | J18: 5 | K18: 0 | L18: 0 | M18: 0 | N18: - | O18: 0 | P18: 0 | Q18: 0 | R18: 0 | S18: 0 | T18: 0 | U18: 0 | V18: 0 | W18: 5 | X18: 0 | Y18: 0 | Z18: 0 | AA18: 0 | AB18: 0 | AC18: 0 | AD18: 0 | AE18: 0 | AF18: 0 | AG18: 0 | AH18: 0 | AI18: 0 | AJ18: - | AK18: 0 | AL18: 0 | AM18: 0 | AN18: 0 | AO18: 0 | AP18: - | AQ18: 0 | AR18: 0 | AS18: 0 | AT18: 0 | AU18: 0 | AV18: 0 | AW18: 0 | AX18: 0 | AY18: 0 | AZ18: 0 | BA18: 0 | BB18: 0 | BC18: 5 | BD18: 0 | BE18: 0 | BF18: 0 | BG18: 0 | BH18: 0 | BI18: 0 | BJ18: 0 | BK18: 0 | BL18: 0 | BM18: - | BN18: 0 | BO18: 0 | BP18: 0 | BQ18: 0 | BR18: 0 | BS18: 0 | BT18: 0 | BU18: 0 | BV18: 0 | BW18: 0 | BX18: 0 | BY18: 0 | BZ18: 0 | CA18: 0 | CB18: 0 | CC18: 0 | CD18: 0 | CE18: 0
A19: Sat | B19: 2021-01-16 | C19: Leeds | D19: 0 | E19: 1 | F19: Brighton | G19: 15:00:00 | I19: 0 | J19: 0 | K19: 0 | L19: 0 | M19: 0 | N19: - | O19: 0 | P19: 0 | Q19: 0 | R19: 0 | S19: 0 | T19: 0 | U19: 0 | V19: 0 | W19: 0 | X19: 0 | Y19: 0 | Z19: 0 | AA19: 0 | AB19: 0 | AC19: 0 | AD19: 0 | AE19: 0 | AF19: 0 | AG19: 0 | AH19: 0 | AI19: 0 | AJ19: - | AK19: 0 | AL19: 0 | AM19: 0 | AN19: 0 | AO19: 0 | AP19: - | AQ19: 0 | AR19: 0 | AS19: 0 | AT19: 0 | AU19: 0 | AV19: 0 | AW19: 0 | AX19: 0 | AY19: 0 | AZ19: 0 | BA19: 0 | BB19: 0 | BC19: 0 | BD19: 0 | BE19: 0 | BF19: 0 | BG19: 0 | BH19: 0 | BI19: 0 | BJ19: 0 | BK19: 0 | BL19: 0 | BM19: - | BN19: 0 | BO19: 0 | BP19: 5 | BQ19: 0 | BR19: 0 | BS19: 0 | BT19: 0 | BU19: 0 | BV19: 0 | BW19: 0 | BX19: 0 | BY19: 0 | BZ19: 0 | CA19: 0 | CB19: 0 | CC19: 0 | CD19: 0 | CE19: 0
A20: Sat | B20: 2021-01-16 | C20: West Ham | D20: 1 | E20: 0 | F20: Burnley | G20: 15:00:00 | I20: 5 | J20: 10 | K20: 10 | L20: 10 | M20: 5 | N20: - | O20: 0 | P20: 5 | Q20: 5 | R20: 0 | S20: 5 | T20: 5 | U20: 5 | V20: 10 | W20: 0 | X20: 0 | Y20: 10 | Z20: 10 | AA20: 10 | AB20: 5 | AC20: 5 | AD20: 5 | AE20: 10 | AF20: 0 | AG20: 5 | AH20: 10 | AI20: 5 | AJ20: - | AK20: 5 | AL20: 10 | AM20: 0 | AN20: 10 | AO20: 5 | AP20: - | AQ20: 0 | AR20: 5 | AS20: 10 | AT20: 5 | AU20: 5 | AV20: 5 | AW20: 5 | AX20: 0 | AY20: 10 | AZ20: 0 | BA20: 10 | BB20: 5 | BC20: 0 | BD20: 5 | BE20: 10 | BF20: 5 | BG20: 0 | BH20: 0 | BI20: 10 | BJ20: 0 | BK20: 5 | BL20: 5 | BM20: - | BN20: 0 | BO20: 0 | BP20: 5 | BQ20: 10 | BR20: 5 | BS20: 5 | BT20: 10 | BU20: 10 | BV20: 0 | BW20: 10 | BX20: 5 | BY20: 0 | BZ20: 5 | CA20: 5 | CB20: 5 | CC20: 0 | CD20: 5 | CE20: 10
A21: Sat | B21: 2021-01-16 | C21: Fulham | D21: 0 | E21: 1 | F21: Chelsea | G21: 17:30:00 | I21: 5 | J21: 5 | K21: 5 | L21: 10 | M21: 5 | N21: - | O21: 5 | P21: 5 | Q21: 5 | R21: 10 | S21: 5 | T21: 5 | U21: 0 | V21: 5 | W21: 0 | X21: 5 | Y21: 5 | Z21: 5 | AA21: 5 | AB21: 5 | AC21: 5 | AD21: 5 | AE21: 5 | AF21: 5 | AG21: 5 | AH21: 0 | AI21: 5 | AJ21: - | AK21: 10 | AL21: 5 | AM21: 5 | AN21: 0 | AO21: 5 | AP21: - | AQ21: 5 | AR21: 5 | AS21: 5 | AT21: 10 | AU21: 5 | AV21: 5 | AW21: 5 | AX21: 0 | AY21: 0 | AZ21: 5 | BA21: 0 | BB21: 5 | BC21: 5 | BD21: 0 | BE21: 10 | BF21: 5 | BG21: 5 | BH21: 5 | BI21: 0 | BJ21: 5 | BK21: 10 | BL21: 5 | BM21: - | BN21: 5 | BO21: 0 | BP21: 5 | BQ21: 5 | BR21: 5 | BS21: 5 | BT21: 5 | BU21: 5 | BV21: 10 | BW21: 5 | BX21: 5 | BY21: 5 | BZ21: 5 | CA21: 5 | CB21: 5 | CC21: 5 | CD21: 10 | CE21: 0
A22: Sat | B22: 2021-01-16 | C22: Leicester | D22: 2 | E22: 0 | F22: Southampton | G22: 20:00:00 | I22: 0 | J22: 5 | K22: 0 | L22: 0 | M22: 5 | N22: - | O22: 5 | P22: 0 | Q22: 10 | R22: 0 | S22: 5 | T22: 5 | U22: 10 | V22: 0 | W22: 5 | X22: 5 | Y22: 10 | Z22: 0 | AA22: 10 | AB22: 0 | AC22: 5 | AD22: 5 | AE22: 5 | AF22: 5 | AG22: 0 | AH22: 5 | AI22: 5 | AJ22: - | AK22: 5 | AL22: 10 | AM22: 0 | AN22: 5 | AO22: 10 | AP22: - | AQ22: 5 | AR22: 5 | AS22: 10 | AT22: 10 | AU22: 10 | AV22: 5 | AW22: 10 | AX22: 0 | AY22: 5 | AZ22: 5 | BA22: 10 | BB22: 5 | BC22: 10 | BD22: 5 | BE22: 5 | BF22: 5 | BG22: 10 | BH22: 0 | BI22: 5 | BJ22: 5 | BK22: 0 | BL22: 5 | BM22: - | BN22: 5 | BO22: 0 | BP22: 10 | BQ22: 0 | BR22: 5 | BS22: 5 | BT22: 10 | BU22: 5 | BV22: 5 | BW22: 5 | BX22: 5 | BY22: 0 | BZ22: 10 | CA22: 5 | CB22: 5 | CC22: 5 | CD22: 10 | CE22: 5
A23: Sun | B23: 2021-01-17 | C23: Sheffield United | D23: 1 | E23: 3 | F23: Tottenham | G23: 14:00:00 | I23: 10 | J23: 5 | K23: 5 | L23: 5 | M23: 5 | N23: - | O23: 5 | P23: 5 | Q23: 5 | R23: 5 | S23: 10 | T23: 0 | U23: 0 | V23: 5 | W23: 5 | X23: 5 | Y23: 5 | Z23: 5 | AA23: 5 | AB23: 5 | AC23: 0 | AD23: 5 | AE23: 5 | AF23: 5 | AG23: 5 | AH23: 5 | AI23: 5 | AJ23: - | AK23: 5 | AL23: 5 | AM23: 5 | AN23: 0 | AO23: 0 | AP23: - | AQ23: 5 | AR23: 5 | AS23: 5 | AT23: 5 | AU23: 5 | AV23: 5 | AW23: 5 | AX23: 5 | AY23: 0 | AZ23: 10 | BA23: 5 | BB23: 5 | BC23: 0 | BD23: 0 | BE23: 5 | BF23: 0 | BG23: 5 | BH23: 5 | BI23: 5 | BJ23: 10 | BK23: 5 | BL23: 5 | BM23: - | BN23: 5 | BO23: 5 | BP23: 5 | BQ23: 5 | BR23: 5 | BS23: 5 | BT23: 0 | BU23: 5 | BV23: 5 | BW23: 5 | BX23: 5 | BY23: 5 | BZ23: 5 | CA23: 5 | CB23: 0 | CC23: 5 | CD23: 5 | CE23: 5
A24: Sun | B24: 2021-01-17 | C24: Liverpool | D24: 0 | E24: 0 | F24: Manchester United | G24: 16:30:00 | I24: 5 | J24: 5 | K24: 5 | L24: 0 | M24: 0 | N24: - | O24: 0 | P24: 0 | Q24: 0 | R24: 0 | S24: 5 | T24: 0 | U24: 0 | V24: 0 | W24: 0 | X24: 0 | Y24: 5 | Z24: 5 | AA24: 5 | AB24: 0 | AC24: 5 | AD24: 5 | AE24: 10 | AF24: 5 | AG24: 5 | AH24: 5 | AI24: 0 | AJ24: - | AK24: 0 | AL24: 0 | AM24: 0 | AN24: 0 | AO24: 0 | AP24: - | AQ24: 0 | AR24: 0 | AS24: 0 | AT24: 0 | AU24: 0 | AV24: 0 | AW24: 10 | AX24: 0 | AY24: 0 | AZ24: 0 | BA24: 5 | BB24: 0 | BC24: 0 | BD24: 0 | BE24: 0 | BF24: 0 | BG24: 0 | BH24: 0 | BI24: 0 | BJ24: 0 | BK24: 0 | BL24: 0 | BM24: - | BN24: 5 | BO24: 0 | BP24: 0 | BQ24: 5 | BR24: 0 | BS24: 0 | BT24: 0 | BU24: 0 | BV24: 0 | BW24: 0 | BX24: 0 | BY24: 5 | BZ24: 0 | CA24: 5 | CB24: 0 | CC24: 0 | CD24: 0 | CE24: 0
A25: Sun | B25: 2021-01-17 | C25: Man City | D25: 4 | E25: 0 | F25: Crystal Palace | G25: 19:15:00 | I25: 5 | J25: 5 | K25: 10 | L25: 5 | M25: 5 | N25: - | O25: 5 | P25: 5 | Q25: 5 | R25: 5 | S25: 5 | T25: 5 | U25: 5 | V25: 5 | W25: 5 | X25: 5 | Y25: 5 | Z25: 5 | AA25: 5 | AB25: 5 | AC25: 10 | AD25: 5 | AE25: 5 | AF25: 5 | AG25: 5 | AH25: 5 | AI25: 5 | AJ25: - | AK25: 5 | AL25: 5 | AM25: 5 | AN25: 5 | AO25: 5 | AP25: - | AQ25: 5 | AR25: 0 | AS25: 5 | AT25: 10 | AU25: 5 | AV25: 5 | AW25: 5 | AX25: 5 | AY25: 5 | AZ25: 5 | BA25: 5 | BB25: 5 | BC25: 5 | BD25: 5 | BE25: 5 | BF25: 5 | BG25: 5 | BH25: 5 | BI25: 5 | BJ25: 5 | BK25: 5 | BL25: 5 | BM25: - | BN25: 10 | BO25: 5 | BP25: 5 | BQ25: 5 | BR25: 5 | BS25: 10 | BT25: 10 | BU25: 5 | BV25: 5 | BW25: 5 | BX25: 5 | BY25: 5 | BZ25: 5 | CA25: 5 | CB25: 5 | CC25: 5 | CD25: 5 | CE25: 5
A26: Mon | B26: 2021-01-18 | C26: Arsenal | D26: 3 | E26: 0 | F26: Newcastle | G26: 20:00:00 | I26: 5 | J26: 5 | K26: 5 | L26: 5 | M26: 5 | N26: - | O26: 5 | P26: 10 | Q26: 5 | R26: 5 | S26: 5 | T26: 0 | U26: 5 | V26: 10 | W26: 0 | X26: 5 | Y26: 5 | Z26: 5 | AA26: 5 | AB26: 0 | AC26: 5 | AD26: 5 | AE26: 5 | AF26: 5 | AG26: 5 | AH26: 5 | AI26: 5 | AJ26: - | AK26: 5 | AL26: 0 | AM26: 10 | AN26: 5 | AO26: 5 | AP26: - | AQ26: 5 | AR26: 0 | AS26: 5 | AT26: 5 | AU26: 0 | AV26: 5 | AW26: 5 | AX26: 5 | AY26: 5 | AZ26: 5 | BA26: 5 | BB26: 5 | BC26: 0 | BD26: 5 | BE26: 5 | BF26: 5 | BG26: 5 | BH26: 5 | BI26: 5 | BJ26: 5 | BK26: 5 | BL26: 5 | BM26: - | BN26: 0 | BO26: 10 | BP26: 10 | BQ26: 5 | BR26: 0 | BS26: 5 | BT26: 5 | BU26: 5 | BV26: 5 | BW26: 10 | BX26: 5 | BY26: 5 | BZ26: 5 | CA26: 5 | CB26: 5 | CC26: 5 | CD26: 5 | CE26: 5
A27: Tue | B27: 2021-01-19 | C27: West Ham | D27: 2 | E27: 1 | F27: West Brom | G27: 18:00:00 | I27: 10 | J27: 5 | K27: 5 | L27: 5 | M27: 10 | N27: - | O27: 5 | P27: 0 | Q27: 0 | R27: 5 | S27: 5 | T27: 5 | U27: 5 | V27: 5 | W27: 0 | X27: 5 | Y27: 5 | Z27: 10 | AA27: 5 | AB27: 5 | AC27: 0 | AD27: 5 | AE27: 5 | AF27: 10 | AG27: 5 | AH27: 0 | AI27: 10 | AJ27: - | AK27: 5 | AL27: 5 | AM27: 5 | AN27: 5 | AO27: 5 | AP27: - | AQ27: 10 | AR27: 5 | AS27: 0 | AT27: 5 | AU27: 10 | AV27: 5 | AW27: 10 | AX27: 0 | AY27: 5 | AZ27: 5 | BA27: 5 | BB27: 5 | BC27: 0 | BD27: 10 | BE27: 5 | BF27: 10 | BG27: 0 | BH27: 10 | BI27: 5 | BJ27: 0 | BK27: 5 | BL27: 0 | BM27: - | BN27: 5 | BO27: 0 | BP27: 5 | BQ27: 10 | BR27: 5 | BS27: 0 | BT27: 5 | BU27: 5 | BV27: 5 | BW27: 5 | BX27: 10 | BY27: 0 | BZ27: 10 | CA27: 5 | CB27: 5 | CC27: 0 | CD27: 5 | CE27: 10
A28: Tue | B28: 2021-01-19 | C28: Leicester | D28: 2 | E28: 0 | F28: Chelsea | G28: 20:15:00 | I28: 5 | J28: 0 | K28: 0 | L28: 5 | M28: 0 | N28: - | O28: 0 | P28: 0 | Q28: 5 | R28: 0 | S28: 0 | T28: 5 | U28: 10 | V28: 0 | W28: 5 | X28: 5 | Y28: 0 | Z28: 0 | AA28: 10 | AB28: 5 | AC28: 5 | AD28: 0 | AE28: 5 | AF28: 0 | AG28: 0 | AH28: 5 | AI28: 0 | AJ28: - | AK28: 5 | AL28: 5 | AM28: 0 | AN28: 5 | AO28: 0 | AP28: - | AQ28: 5 | AR28: 5 | AS28: 0 | AT28: 5 | AU28: 0 | AV28: 5 | AW28: 5 | AX28: 0 | AY28: 5 | AZ28: 0 | BA28: 5 | BB28: 5 | BC28: 0 | BD28: 5 | BE28: 0 | BF28: 0 | BG28: 0 | BH28: 0 | BI28: 0 | BJ28: 0 | BK28: 5 | BL28: 0 | BM28: - | BN28: 0 | BO28: 5 | BP28: 0 | BQ28: 0 | BR28: 5 | BS28: 0 | BT28: 0 | BU28: 10 | BV28: 5 | BW28: 5 | BX28: 0 | BY28: 0 | BZ28: 5 | CA28: 0 | CB28: 0 | CC28: 0 | CD28: 0 | CE28: 5
A29: Wed | B29: 2021-01-20 | C29: Man City | D29: 2 | E29: 0 | F29: Aston Villa | G29: 18:00:00 | I29: 10 | J29: 10 | K29: 5 | L29: 5 | M29: 10 | N29: - | O29: 5 | P29: 5 | Q29: 5 | R29: 5 | S29: 5 | T29: 5 | U29: 5 | V29: 10 | W29: 10 | X29: 10 | Y29: 5 | Z29: 10 | AA29: 5 | AB29: 5 | AC29: 5 | AD29: 5 | AE29: 5 | AF29: 5 | AG29: 5 | AH29: 5 | AI29: 5 | AJ29: - | AK29: 5 | AL29: 5 | AM29: 5 | AN29: - | AO29: 5 | AP29: - | AQ29: 5 | AR29: 10 | AS29: 5 | AT29: 5 | AU29: 5 | AV29: 10 | AW29: 5 | AX29: 5 | AY29: 5 | AZ29: 10 | BA29: 10 | BB29: 10 | BC29: 5 | BD29: 5 | BE29: 10 | BF29: 5 | BG29: 5 | BH29: 10 | BI29: 5 | BJ29: 0 | BK29: 5 | BL29: 5 | BM29: - | BN29: 5 | BO29: 5 | BP29: 5 | BQ29: 5 | BR29: 0 | BS29: 5 | BT29: 10 | BU29: 5 | BV29: 5 | BW29: 5 | BX29: 5 | BY29: 5 | BZ29: 10 | CA29: 5 | CB29: 5 | CC29: 5 | CD29: 10 | CE29: 5
A30: Wed | B30: 2021-01-20 | C30: Fulham | D30: 1 | E30: 2 | F30: Manchester United | G30: 20:15:00 | I30: 5 | J30: 5 | K30: 5 | L30: 5 | M30: 5 | N30: - | O30: 10 | P30: 5 | Q30: 10 | R30: 10 | S30: 5 | T30: 0 | U30: 5 | V30: 5 | W30: 10 | X30: 5 | Y30: 5 | Z30: 5 | AA30: 5 | AB30: 5 | AC30: 5 | AD30: 10 | AE30: 5 | AF30: 5 | AG30: 5 | AH30: 5 | AI30: 5 | AJ30: - | AK30: 5 | AL30: 5 | AM30: 5 | AN30: - | AO30: 5 | AP30: - | AQ30: 10 | AR30: 5 | AS30: 5 | AT30: 5 | AU30: 5 | AV30: 5 | AW30: 5 | AX30: 0 | AY30: 0 | AZ30: 5 | BA30: 5 | BB30: 5 | BC30: 0 | BD30: 0 | BE30: 5 | BF30: 5 | BG30: 0 | BH30: 5 | BI30: 5 | BJ30: 0 | BK30: 5 | BL30: 5 | BM30: - | BN30: 5 | BO30: 10 | BP30: 5 | BQ30: 0 | BR30: 5 | BS30: 0 | BT30: 5 | BU30: 10 | BV30: 5 | BW30: 5 | BX30: 5 | BY30: 10 | BZ30: 5 | CA30: 0 | CB30: 0 | CC30: 10 | CD30: 5 | CE30: 10
A31: Thu | B31: 2021-01-21 | C31: Liverpool | D31: 0 | E31: 1 | F31: Burnley | G31: 20:00:00 | I31: 0 | J31: 0 | K31: 0 | L31: 0 | M31: 0 | N31: - | O31: 0 | P31: 0 | Q31: 0 | R31: 0 | S31: 0 | T31: 0 | U31: 0 | V31: 0 | W31: 0 | X31: 0 | Y31: 0 | Z31: 0 | AA31: 0 | AB31: 0 | AC31: 0 | AD31: 0 | AE31: 0 | AF31: 0 | AG31: 0 | AH31: 0 | AI31: 0 | AJ31: - | AK31: 0 | AL31: 0 | AM31: 0 | AN31: - | AO31: 0 | AP31: - | AQ31: 0 | AR31: 0 | AS31: 0 | AT31: 0 | AU31: 0 | AV31: 0 | AW31: 0 | AX31: 0 | AY31: 0 | AZ31: 0 | BA31: 0 | BB31: 0 | BC31: 0 | BD31: 0 | BE31: 0 | BF31: 0 | BG31: 0 | BH31: 0 | BI31: 0 | BJ31: 0 | BK31: 0 | BL31: 0 | BM31: - | BN31: 0 | BO31: 0 | BP31: 0 | BQ31: 0 | BR31: 0 | BS31: 0 | BT31: 0 | BU31: 0 | BV31: 0 | BW31: 0 | BX31: 0 | BY31: 0 | BZ31: 0 | CA31: 0 | CB31: 0 | CC31: 0 | CD31: 0 | CE31: 0
A32: Sat | B32: 2021-01-23 | C32: Aston Villa | D32: 2 | E32: 0 | F32: Newcastle Utd | G32: 20:00:00 | I32: 5 | J32: 5 | K32: 5 | L32: 5 | M32: 10 | N32: - | O32: 5 | P32: 5 | Q32: 5 | R32: 10 | S32: 5 | T32: - | U32: 10 | V32: 10 | W32: 5 | X32: 5 | Y32: 10 | Z32: 10 | AA32: 5 | AB32: 10 | AC32: 10 | AD32: 5 | AE32: 10 | AF32: 10 | AG32: 10 | AH32: 5 | AI32: 10 | AJ32: - | AK32: 10 | AL32: 5 | AM32: 5 | AN32: 5 | AO32: 5 | AP32: - | AQ32: 10 | AR32: 10 | AS32: 10 | AT32: 10 | AU32: 5 | AV32: 0 | AW32: 10 | AX32: 5 | AY32: 5 | AZ32: 5 | BA32: 5 | BB32: 10 | BC32: 5 | BD32: - | BE32: 10 | BF32: 10 | BG32: 5 | BH32: 5 | BI32: 10 | BJ32: 5 | BK32: 10 | BL32: 0 | BM32: - | BN32: 0 | BO32: 5 | BP32: 5 | BQ32: 0 | BR32: 5 | BS32: 10 | BT32: 10 | BU32: 5 | BV32: 10 | BW32: 5 | BX32: 10 | BY32: 5 | BZ32: 10 | CA32: 5 | CB32: 10 | CC32: 5 | CD32: 10 | CE32: 5
A33: Tue | B33: 2021-01-26 | C33: Crystal Palace | D33: 2 | E33: 3 | F33: West Ham | G33: 18:00:00 | I33: 5 | J33: 0 | K33: 5 | L33: 0 | M33: 0 | N33: - | O33: 0 | P33: 5 | Q33: 0 | R33: 0 | S33: 5 | T33: - | U33: 5 | V33: 5 | W33: 5 | X33: 0 | Y33: 0 | Z33: 0 | AA33: 0 | AB33: 5 | AC33: 5 | AD33: 0 | AE33: 0 | AF33: 0 | AG33: 5 | AH33: 0 | AI33: 5 | AJ33: - | AK33: 5 | AL33: 5 | AM33: 5 | AN33: 5 | AO33: 0 | AP33: - | AQ33: 0 | AR33: 0 | AS33: 0 | AT33: 5 | AU33: 5 | AV33: 0 | AW33: 0 | AX33: 0 | AY33: 0 | AZ33: 0 | BA33: 5 | BB33: 0 | BC33: 0 | BD33: - | BE33: 0 | BF33: 5 | BG33: 5 | BH33: 5 | BI33: 5 | BJ33: 0 | BK33: 5 | BL33: 5 | BM33: - | BN33: 5 | BO33: 0 | BP33: 0 | BQ33: 0 | BR33: 0 | BS33: 0 | BT33: 0 | BU33: 0 | BV33: 0 | BW33: 5 | BX33: 0 | BY33: 0 | BZ33: 0 | CA33: 5 | CB33: 5 | CC33: 5 | CD33: 0 | CE33: 0
A34: Tue | B34: 2021-01-26 | C34: Newcastle Utd | D34: 1 | E34: 2 | F34: Leeds Utd | G34: 18:00:00 | I34: 10 | J34: 0 | K34: 5 | L34: 10 | M34: 0 | N34: - | O34: 0 | P34: 0 | Q34: 0 | R34: 0 | S34: 0 | T34: - | U34: 0 | V34: 5 | W34: 10 | X34: 0 | Y34: 0 | Z34: 0 | AA34: 10 | AB34: 5 | AC34: 5 | AD34: 5 | AE34: 5 | AF34: 0 | AG34: 10 | AH34: 10 | AI34: 5 | AJ34: - | AK34: 10 | AL34: 10 | AM34: 5 | AN34: 0 | AO34: 0 | AP34: - | AQ34: 5 | AR34: 0 | AS34: 10 | AT34: 0 | AU34: 5 | AV34: 0 | AW34: 5 | AX34: 0 | AY34: 0 | AZ34: 10 | BA34: 5 | BB34: 0 | BC34: 0 | BD34: - | BE34: 0 | BF34: 5 | BG34: 0 | BH34: 10 | BI34: 0 | BJ34: 5 | BK34: 5 | BL34: 10 | BM34: - | BN34: 0 | BO34: 5 | BP34: 5 | BQ34: 5 | BR34: 0 | BS34: 0 | BT34: 0 | BU34: 10 | BV34: 5 | BW34: 5 | BX34: 0 | BY34: 10 | BZ34: 5 | CA34: 0 | CB34: 10 | CC34: 0 | CD34: 5 | CE34: 0
A35: Tue | B35: 2021-01-26 | C35: Southampton | D35: 1 | E35: 3 | F35: Arsenal | G35: 20:15:00 | I35: 0 | J35: 5 | K35: 0 | L35: 0 | M35: 0 | N35: - | O35: 0 | P35: 0 | Q35: 10 | R35: 5 | S35: 5 | T35: - | U35: 0 | V35: 0 | W35: 0 | X35: 5 | Y35: 0 | Z35: 10 | AA35: 0 | AB35: 0 | AC35: 0 | AD35: 0 | AE35: 0 | AF35: 0 | AG35: 0 | AH35: 5 | AI35: 5 | AJ35: - | AK35: 5 | AL35: 0 | AM35: 5 | AN35: 0 | AO35: 0 | AP35: - | AQ35: 0 | AR35: 0 | AS35: 5 | AT35: 0 | AU35: 10 | AV35: 0 | AW35: 5 | AX35: 5 | AY35: 0 | AZ35: 5 | BA35: 0 | BB35: 0 | BC35: 0 | BD35: - | BE35: 0 | BF35: 0 | BG35: 0 | BH35: 5 | BI35: 5 | BJ35: 0 | BK35: 10 | BL35: 0 | BM35: - | BN35: 10 | BO35: 0 | BP35: 0 | BQ35: 0 | BR35: 0 | BS35: 0 | BT35: 0 | BU35: 0 | BV35: 5 | BW35: 0 | BX35: 5 | BY35: 0 | BZ35: 0 | CA35: 5 | CB35: 0 | CC35: 5 | CD35: 5 | CE35: 0
A36: Tue | B36: 2021-01-26 | C36: West Bromwich | D36: 0 | E36: 5 | F36: Manchester City | G36: 20:15:00 | I36: 5 | J36: 5 | K36: 5 | L36: 5 | M36: 0 | N36: - | O36: 5 | P36: 5 | Q36: 5 | R36: 5 | S36: 5 | T36: - | U36: 5 | V36: 5 | W36: 5 | X36: 5 | Y36: 5 | Z36: 5 | AA36: 5 | AB36: 5 | AC36: 5 | AD36: 5 | AE36: 5 | AF36: 5 | AG36: 5 | AH36: 5 | AI36: 5 | AJ36: - | AK36: 5 | AL36: 5 | AM36: 5 | AN36: 5 | AO36: 5 | AP36: - | AQ36: 5 | AR36: 5 | AS36: 5 | AT36: 5 | AU36: 5 | AV36: 0 | AW36: 5 | AX36: 5 | AY36: 5 | AZ36: 5 | BA36: 5 | BB36: 5 | BC36: 0 | BD36: - | BE36: 0 | BF36: 5 | BG36: 10 | BH36: 5 | BI36: 5 | BJ36: 5 | BK36: 5 | BL36: 5 | BM36: - | BN36: 5 | BO36: 0 | BP36: 5 | BQ36: 5 | BR36: 0 | BS36: 5 | BT36: 5 | BU36: 5 | BV36: 5 | BW36: 5 | BX36: 10 | BY36: 5 | BZ36: 5 | CA36: 5 | CB36: 5 | CC36: 5 | CD36: 5 | CE36: 5
A37: Wed | B37: 2021-01-27 | C37: Burnley | D37: 3 | E37: 2 | F37: Aston Villa | G37: 18:00:00 | I37: 0 | J37: 0 | K37: 0 | L37: 5 | M37: 5 | N37: - | O37: 0 | P37: 0 | Q37: 5 | R37: 0 | S37: 0 | T37: - | U37: 0 | V37: 0 | W37: 0 | X37: 0 | Y37: 0 | Z37: 0 | AA37: 0 | AB37: 5 | AC37: 0 | AD37: 0 | AE37: 0 | AF37: 0 | AG37: 0 | AH37: 0 | AI37: 5 | AJ37: - | AK37: 0 | AL37: 0 | AM37: 0 | AN37: 0 | AO37: 0 | AP37: - | AQ37: 0 | AR37: 5 | AS37: 0 | AT37: 5 | AU37: 5 | AV37: 0 | AW37: 0 | AX37: 0 | AY37: 0 | AZ37: 0 | BA37: 0 | BB37: 0 | BC37: 5 | BD37: - | BE37: 0 | BF37: 0 | BG37: 0 | BH37: 0 | BI37: 0 | BJ37: 5 | BK37: 0 | BL37: 0 | BM37: - | BN37: 5 | BO37: 0 | BP37: 0 | BQ37: 0 | BR37: 5 | BS37: 0 | BT37: 0 | BU37: 0 | BV37: 0 | BW37: 0 | BX37: 5 | BY37: 0 | BZ37: 0 | CA37: 0 | CB37: 5 | CC37: 0 | CD37: 0 | CE37: 0
A38: Wed | B38: 2021-01-27 | C38: Chelsea | D38: 0 | E38: 0 | F38: Wolverhampton | G38: 18:00:00 | I38: 0 | J38: 0 | K38: 0 | L38: 0 | M38: 0 | N38: - | O38: 0 | P38: 0 | Q38: 0 | R38: 0 | S38: 0 | T38: - | U38: 0 | V38: 0 | W38: 5 | X38: 0 | Y38: 0 | Z38: 0 | AA38: 0 | AB38: 0 | AC38: 5 | AD38: 0 | AE38: 0 | AF38: 0 | AG38: 0 | AH38: 5 | AI38: 0 | AJ38: - | AK38: 0 | AL38: 5 | AM38: 0 | AN38: 0 | AO38: 0 | AP38: - | AQ38: 5 | AR38: 0 | AS38: 0 | AT38: 0 | AU38: 0 | AV38: 5 | AW38: 0 | AX38: 0 | AY38: 0 | AZ38: 0 | BA38: 5 | BB38: 5 | BC38: 0 | BD38: - | BE38: 0 | BF38: 0 | BG38: 0 | BH38: 0 | BI38: 0 | BJ38: 0 | BK38: 0 | BL38: 0 | BM38: - | BN38: 0 | BO38: 0 | BP38: 5 | BQ38: 0 | BR38: 0 | BS38: 0 | BT38: 0 | BU38: 0 | BV38: 0 | BW38: 0 | BX38: 0 | BY38: 0 | BZ38: 0 | CA38: 0 | CB38: 0 | CC38: 0 | CD38: 0 | CE38: 5
A39: Wed | B39: 2021-01-27 | C39: Brighton | D39: 0 | E39: 0 | F39: Fulham | G39: 19:30:00 | I39: 5 | J39: 0 | K39: 0 | L39: 0 | M39: 0 | N39: - | O39: 0 | P39: 0 | Q39: 5 | R39: 5 | S39: 10 | T39: - | U39: 0 | V39: 5 | W39: 0 | X39: 0 | Y39: 5 | Z39: 0 | AA39: 0 | AB39: 5 | AC39: 0 | AD39: 5 | AE39: 0 | AF39: 0 | AG39: 5 | AH39: 0 | AI39: 5 | AJ39: - | AK39: 0 | AL39: 0 | AM39: 5 | AN39: 5 | AO39: 0 | AP39: - | AQ39: 5 | AR39: 0 | AS39: 5 | AT39: 0 | AU39: 0 | AV39: 0 | AW39: 0 | AX39: 10 | AY39: 0 | AZ39: 10 | BA39: 0 | BB39: 0 | BC39: 0 | BD39: - | BE39: 0 | BF39: 5 | BG39: 10 | BH39: 5 | BI39: 5 | BJ39: 0 | BK39: 0 | BL39: 0 | BM39: - | BN39: 0 | BO39: 0 | BP39: 0 | BQ39: 0 | BR39: - | BS39: 5 | BT39: 0 | BU39: 0 | BV39: 0 | BW39: 0 | BX39: 0 | BY39: 0 | BZ39: 0 | CA39: 5 | CB39: 5 | CC39: 0 | CD39: 5 | CE39: 5
A40: Wed | B40: 2021-01-27 | C40: Everton | D40: 1 | E40: 1 | F40: Leicester City | G40: 20:15:00 | I40: 5 | J40: 10 | K40: 0 | L40: 0 | M40: 0 | N40: - | O40: 10 | P40: 10 | Q40: 0 | R40: 0 | S40: 5 | T40: - | U40: 10 | V40: 10 | W40: 0 | X40: 0 | Y40: 0 | Z40: 0 | AA40: 0 | AB40: 10 | AC40: 5 | AD40: 0 | AE40: 0 | AF40: 10 | AG40: 0 | AH40: 0 | AI40: 0 | AJ40: - | AK40: 0 | AL40: 0 | AM40: 5 | AN40: 10 | AO40: 10 | AP40: - | AQ40: 0 | AR40: 5 | AS40: 0 | AT40: 0 | AU40: 0 | AV40: 0 | AW40: 0 | AX40: 5 | AY40: 0 | AZ40: 5 | BA40: 5 | BB40: 0 | BC40: 0 | BD40: - | BE40: 0 | BF40: 10 | BG40: 0 | BH40: 0 | BI40: 0 | BJ40: 5 | BK40: 0 | BL40: 0 | BM40: - | BN40: 0 | BO40: 0 | BP40: 0 | BQ40: 5 | BR40: - | BS40: 5 | BT40: 10 | BU40: 0 | BV40: 0 | BW40: 0 | BX40: 5 | BY40: 10 | BZ40: 0 | CA40: 0 | CB40: 0 | CC40: 10 | CD40: 0 | CE40: 0
A41: Wed | B41: 2021-01-27 | C41: Manchester United | D41: 1 | E41: 2 | F41: Sheffield Utd | G41: 20:15:00 | I41: 0 | J41: 0 | K41: 0 | L41: 0 | M41: 0 | N41: - | O41: 0 | P41: 0 | Q41: 0 | R41: 0 | S41: 0 | T41: - | U41: 0 | V41: 0 | W41: 0 | X41: 0 | Y41: 0 | Z41: 0 | AA41: 0 | AB41: 0 | AC41: 0 | AD41: 0 | AE41: 0 | AF41: 0 | AG41: 0 | AH41: 0 | AI41: 0 | AJ41: - | AK41: 0 | AL41: 0 | AM41: 0 | AN41: 0 | AO41: 0 | AP41: - | AQ41: 0 | AR41: 0 | AS41: 0 | AT41: 0 | AU41: 0 | AV41: 0 | AW41: 0 | AX41: 0 | AY41: 0 | AZ41: 0 | BA41: 0 | BB41: 0 | BC41: 0 | BD41: - | BE41: 0 | BF41: 0 | BG41: 0 | BH41: 0 | BI41: 0 | BJ41: 0 | BK41: 0 | BL41: 0 | BM41: - | BN41: 0 | BO41: 0 | BP41: 0 | BQ41: 0 | BR41: - | BS41: 0 | BT41: 0 | BU41: 0 | BV41: 0 | BW41: 0 | BX41: 0 | BY41: 0 | BZ41: 0 | CA41: 0 | CB41: 0 | CC41: 0 | CD41: 0 | CE41: 0
A42: Thu | B42: 2021-01-28 | C42: Tottenham | D42: 1 | E42: 3 | F42: Liverpool | G42: 20:00:00 | I42: 0 | J42: 0 | K42: 0 | L42: 0 | M42: 0 | N42: - | O42: 0 | P42: 0 | Q42: 0 | R42: 5 | S42: 0 | T42: - | U42: 0 | V42: 5 | W42: 0 | X42: 5 | Y42: 0 | Z42: 0 | AA42: 0 | AB42: 0 | AC42: 0 | AD42: 0 | AE42: 0 | AF42: 0 | AG42: 0 | AH42: 0 | AI42: 5 | AJ42: - | AK42: 0 | AL42: 0 | AM42: 0 | AN42: 5 | AO42: 5 | AP42: - | AQ42: 0 | AR42: 0 | AS42: 0 | AT42: 0 | AU42: 0 | AV42: 5 | AW42: 0 | AX42: 0 | AY42: 0 | AZ42: 5 | BA42: 5 | BB42: 5 | BC42: 0 | BD42: - | BE42: 5 | BF42: 5 | BG42: 0 | BH42: 5 | BI42: 0 | BJ42: 10 | BK42: 0 | BL42: 5 | BM42: - | BN42: 0 | BO42: 5 | BP42: 0 | BQ42: 5 | BR42: - | BS42: 5 | BT42: 0 | BU42: 0 | BV42: 0 | BW42: 10 | BX42: 10 | BY42: 0 | BZ42: 5 | CA42: 0 | CB42: 0 | CC42: 10 | CD42: 0 | CE42: 0
A43: Sat | B43: 2021-01-30 | C43: Everton | D43: 0 | E43: 2 | F43: Newcastle Utd | G43: 12:30:00 | I43: 0 | J43: 0 | K43: 0 | L43: 0 | M43: 0 | N43: - | O43: 0 | P43: 0 | Q43: 0 | R43: 0 | S43: 0 | T43: - | U43: 0 | V43: 0 | W43: 0 | X43: 0 | Y43: 0 | Z43: 0 | AA43: 0 | AB43: 0 | AC43: 0 | AD43: 0 | AE43: 0 | AF43: 0 | AG43: 0 | AH43: 0 | AI43: 0 | AJ43: - | AK43: 0 | AL43: 0 | AM43: 0 | AN43: 0 | AO43: 0 | AP43: - | AQ43: 0 | AR43: 0 | AS43: 0 | AT43: 0 | AU43: 0 | AV43: 0 | AW43: 0 | AX43: 0 | AY43: 0 | AZ43: 0 | BA43: 0 | BB43: 0 | BC43: 0 | BD43: 0 | BE43: 0 | BF43: 0 | BG43: 0 | BH43: 0 | BI43: 0 | BJ43: 0 | BK43: 0 | BL43: 0 | BM43: - | BN43: 0 | BO43: 0 | BP43: 0 | BQ43: 0 | BR43: - | BS43: 0 | BT43: 0 | BU43: 0 | BV43: 0 | BW43: 0 | BX43: 0 | BY43: 0 | BZ43: 0 | CA43: 0 | CB43: 0 | CC43: 0 | CD43: 0 | CE43: 0
A44: Sat | B44: 2021-01-30 | C44: Crystal Palace | D44: 1 | E44: 0 | F44: Wolverhampton | G44: 15:00:00 | I44: 0 | J44: 10 | K44: 0 | L44: 0 | M44: 5 | N44: - | O44: 0 | P44: 0 | Q44: 0 | R44: 5 | S44: 0 | T44: - | U44: 0 | V44: 0 | W44: 0 | X44: 0 | Y44: 0 | Z44: 0 | AA44: 0 | AB44: 0 | AC44: 0 | AD44: 0 | AE44: 0 | AF44: 0 | AG44: 0 | AH44: 0 | AI44: 0 | AJ44: - | AK44: 0 | AL44: 0 | AM44: 0 | AN44: 0 | AO44: 0 | AP44: - | AQ44: 0 | AR44: 10 | AS44: 0 | AT44: 10 | AU44: 0 | AV44: 0 | AW44: 0 | AX44: 5 | AY44: 5 | AZ44: 0 | BA44: 0 | BB44: 0 | BC44: 10 | BD44: 0 | BE44: 0 | BF44: 5 | BG44: 0 | BH44: 5 | BI44: 0 | BJ44: 0 | BK44: 0 | BL44: 0 | BM44: - | BN44: 5 | BO44: 0 | BP44: 0 | BQ44: 0 | BR44: - | BS44: 0 | BT44: 0 | BU44: 0 | BV44: 0 | BW44: 5 | BX44: 5 | BY44: 0 | BZ44: 5 | CA44: 0 | CB44: 5 | CC44: 0 | CD44: 10 | CE44: 0
A45: Sat | B45: 2021-01-30 | C45: Manchester City | D45: 1 | E45: 0 | F45: Sheffield Utd | G45: 15:00:00 | I45: 5 | J45: 10 | K45: 5 | L45: 5 | M45: 5 | N45: - | O45: 5 | P45: 5 | Q45: 5 | R45: 5 | S45: 5 | T45: - | U45: 5 | V45: 5 | W45: 5 | X45: 5 | Y45: 5 | Z45: 5 | AA45: 5 | AB45: 5 | AC45: 5 | AD45: 5 | AE45: 5 | AF45: 5 | AG45: 5 | AH45: 5 | AI45: 5 | AJ45: - | AK45: 5 | AL45: 5 | AM45: 5 | AN45: 5 | AO45: 5 | AP45: - | AQ45: 5 | AR45: 5 | AS45: 5 | AT45: 5 | AU45: 0 | AV45: 5 | AW45: 5 | AX45: 5 | AY45: 5 | AZ45: 5 | BA45: 5 | BB45: 5 | BC45: 0 | BD45: 5 | BE45: 5 | BF45: 5 | BG45: 5 | BH45: 5 | BI45: 5 | BJ45: 5 | BK45: 5 | BL45: 5 | BM45: - | BN45: 5 | BO45: 5 | BP45: 5 | BQ45: 5 | BR45: - | BS45: 5 | BT45: 5 | BU45: 5 | BV45: 5 | BW45: 5 | BX45: 5 | BY45: 5 | BZ45: 5 | CA45: 5 | CB45: 5 | CC45: 5 | CD45: 5 | CE45: 5
A46: Sat | B46: 2021-01-30 | C46: West Bromwich | D46: 2 | E46: 2 | F46: Fulham | G46: 15:00:00 | I46: 0 | J46: 0 | K46: 5 | L46: 0 | M46: 0 | N46: - | O46: 5 | P46: 0 | Q46: 0 | R46: 5 | S46: 0 | T46: - | U46: 0 | V46: 0 | W46: 0 | X46: 0 | Y46: 5 | Z46: 5 | AA46: 0 | AB46: 5 | AC46: 0 | AD46: 5 | AE46: 5 | AF46: 0 | AG46: 5 | AH46: 5 | AI46: 5 | AJ46: - | AK46: 0 | AL46: 0 | AM46: 0 | AN46: 5 | AO46: 0 | AP46: - | AQ46: 5 | AR46: 0 | AS46: 5 | AT46: 0 | AU46: 5 | AV46: 0 | AW46: 0 | AX46: 0 | AY46: 5 | AZ46: 5 | BA46: 0 | BB46: 0 | BC46: 0 | BD46: 0 | BE46: 5 | BF46: 0 | BG46: 0 | BH46: 0 | BI46: 0 | BJ46: 5 | BK46: 0 | BL46: 0 | BM46: - | BN46: 10 | BO46: 0 | BP46: 5 | BQ46: 0 | BR46: - | BS46: 5 | BT46: 0 | BU46: 5 | BV46: 0 | BW46: 0 | BX46: 0 | BY46: 0 | BZ46: 0 | CA46: 5 | CB46: 0 | CC46: 5 | CD46: 5 | CE46: 0
A47: Sat | B47: 2021-01-30 | C47: Arsenal | D47: 0 | E47: 0 | F47: Manchester United | G47: 17:30:00 | I47: 0 | J47: 0 | K47: 5 | L47: 0 | M47: 0 | N47: - | O47: 5 | P47: 0 | Q47: 5 | R47: 0 | S47: 0 | T47: - | U47: 5 | V47: 0 | W47: 0 | X47: 0 | Y47: 0 | Z47: 5 | AA47: 0 | AB47: 0 | AC47: 0 | AD47: 5 | AE47: 5 | AF47: 5 | AG47: 0 | AH47: 0 | AI47: 0 | AJ47: - | AK47: 0 | AL47: 0 | AM47: 0 | AN47: 5 | AO47: 5 | AP47: - | AQ47: 0 | AR47: 0 | AS47: 0 | AT47: 0 | AU47: 0 | AV47: 0 | AW47: 5 | AX47: 0 | AY47: 5 | AZ47: 5 | BA47: 5 | BB47: 0 | BC47: 0 | BD47: 0 | BE47: 0 | BF47: 0 | BG47: 0 | BH47: 0 | BI47: 0 | BJ47: 5 | BK47: 0 | BL47: 0 | BM47: - | BN47: 0 | BO47: 5 | BP47: 5 | BQ47: 5 | BR47: - | BS47: 0 | BT47: 5 | BU47: 0 | BV47: 0 | BW47: 0 | BX47: 0 | BY47: 0 | BZ47: 0 | CA47: 0 | CB47: 5 | CC47: 5 | CD47: 5 | CE47: 5
A48: Sat | B48: 2021-01-30 | C48: Southampton | D48: 0 | E48: 1 | F48: Aston Villa | G48: 20:00:00 | I48: 0 | J48: 0 | K48: 0 | L48: 0 | M48: 0 | N48: - | O48: 0 | P48: 0 | Q48: 0 | R48: 0 | S48: 0 | T48: - | U48: 0 | V48: 0 | W48: 0 | X48: 0 | Y48: 0 | Z48: 0 | AA48: 0 | AB48: 0 | AC48: 0 | AD48: 0 | AE48: 0 | AF48: 0 | AG48: 0 | AH48: 0 | AI48: 0 | AJ48: - | AK48: 0 | AL48: 5 | AM48: 0 | AN48: 0 | AO48: 0 | AP48: - | AQ48: 0 | AR48: 0 | AS48: 5 | AT48: 0 | AU48: 5 | AV48: 0 | AW48: 5 | AX48: 0 | AY48: 0 | AZ48: 0 | BA48: 5 | BB48: 0 | BC48: 0 | BD48: 0 | BE48: 0 | BF48: 0 | BG48: 0 | BH48: 0 | BI48: 5 | BJ48: 5 | BK48: 0 | BL48: 0 | BM48: - | BN48: 0 | BO48: 0 | BP48: 0 | BQ48: 0 | BR48: - | BS48: 0 | BT48: 0 | BU48: 5 | BV48: 5 | BW48: 0 | BX48: 5 | BY48: 0 | BZ48: 0 | CA48: 0 | CB48: 0 | CC48: 5 | CD48: 0 | CE48: 0
A49: Sun | B49: 2021-01-31 | C49: Chelsea | D49: 2 | E49: 0 | F49: Burnley | G49: 12:00:00 | I49: 5 | J49: 5 | K49: 5 | L49: 5 | M49: 10 | N49: - | O49: 10 | P49: 5 | Q49: 5 | R49: 5 | S49: 10 | T49: - | U49: 0 | V49: 10 | W49: 5 | X49: 5 | Y49: 5 | Z49: 10 | AA49: 10 | AB49: 10 | AC49: 10 | AD49: 10 | AE49: 10 | AF49: 5 | AG49: 10 | AH49: 10 | AI49: 10 | AJ49: - | AK49: 5 | AL49: 10 | AM49: 5 | AN49: 10 | AO49: 10 | AP49: - | AQ49: 5 | AR49: 5 | AS49: 10 | AT49: 10 | AU49: 5 | AV49: 10 | AW49: 5 | AX49: 5 | AY49: 5 | AZ49: 10 | BA49: 10 | BB49: 10 | BC49: 5 | BD49: 10 | BE49: 10 | BF49: 10 | BG49: 5 | BH49: 5 | BI49: 5 | BJ49: 5 | BK49: 5 | BL49: 10 | BM49: - | BN49: 0 | BO49: 10 | BP49: 10 | BQ49: 5 | BR49: - | BS49: 0 | BT49: 10 | BU49: 5 | BV49: 10 | BW49: 10 | BX49: 5 | BY49: 5 | BZ49: 5 | CA49: 10 | CB49: 5 | CC49: 10 | CD49: 5 | CE49: 5
A50: Sun | B50: 2021-01-31 | C50: Leicester City | D50: 1 | E50: 3 | F50: Leeds Utd | G50: 14:00:00 | I50: 0 | J50: 0 | K50: 0 | L50: 5 | M50: 0 | N50: - | O50: 0 | P50: 0 | Q50: 0 | R50: 0 | S50: 0 | T50: - | U50: 0 | V50: 0 | W50: 0 | X50: 0 | Y50: 0 | Z50: 0 | AA50: 0 | AB50: 0 | AC50: 0 | AD50: 0 | AE50: 0 | AF50: 0 | AG50: 0 | AH50: 0 | AI50: 0 | AJ50: - | AK50: 0 | AL50: 0 | AM50: 0 | AN50: 0 | AO50: 0 | AP50: - | AQ50: 0 | AR50: 0 | AS50: 0 | AT50: 0 | AU50: 0 | AV50: 0 | AW50: 0 | AX50: 0 | AY50: 0 | AZ50: 0 | BA50: 0 | BB50: 0 | BC50: 0 | BD50: 0 | BE50: 0 | BF50: 0 | BG50: 0 | BH50: 0 | BI50: 0 | BJ50: 0 | BK50: 0 | BL50: 0 | BM50: - | BN50: 0 | BO50: 0 | BP50: 0 | BQ50: 0 | BR50: - | BS50: 0 | BT50: 0 | BU50: 0 | BV50: 0 | BW50: 0 | BX50: 0 | BY50: 0 | BZ50: 0 | CA50: 0 | CB50: 0 | CC50: 0 | CD50: 0 | CE50: 0
A51: Sun | B51: 2021-01-31 | C51: West Ham | D51: 1 | E51: 3 | F51: Liverpool | G51: 16:30:00 | I51: 0 | J51: 0 | K51: 10 | L51: 5 | M51: 10 | N51: - | O51: 5 | P51: 10 | Q51: 5 | R51: 5 | S51: 5 | T51: - | U51: 5 | V51: 10 | W51: 5 | X51: 5 | Y51: 5 | Z51: 10 | AA51: 5 | AB51: 0 | AC51: 5 | AD51: 5 | AE51: 5 | AF51: 5 | AG51: 5 | AH51: 5 | AI51: 5 | AJ51: - | AK51: 5 | AL51: 5 | AM51: 5 | AN51: 10 | AO51: 10 | AP51: - | AQ51: 0 | AR51: 5 | AS51: 5 | AT51: 5 | AU51: 0 | AV51: 5 | AW51: 10 | AX51: 0 | AY51: 5 | AZ51: 10 | BA51: 5 | BB51: 5 | BC51: 5 | BD51: 5 | BE51: 5 | BF51: 10 | BG51: 5 | BH51: 0 | BI51: 0 | BJ51: 5 | BK51: 5 | BL51: 10 | BM51: - | BN51: 0 | BO51: 5 | BP51: 0 | BQ51: 10 | BR51: - | BS51: 10 | BT51: 5 | BU51: 0 | BV51: 0 | BW51: 5 | BX51: 10 | BY51: 5 | BZ51: 0 | CA51: 0 | CB51: 5 | CC51: 5 | CD51: 5 | CE51: 0
A52: Sun | B52: 2021-01-31 | C52: Brighton | D52: 1 | E52: 0 | F52: Tottenham | G52: 19:15:00 | I52: 0 | J52: 10 | K52: 0 | L52: 0 | M52: 0 | N52: - | O52: 0 | P52: 0 | Q52: 0 | R52: 0 | S52: 0 | T52: - | U52: 0 | V52: 0 | W52: 0 | X52: 0 | Y52: 0 | Z52: 0 | AA52: 0 | AB52: 0 | AC52: 0 | AD52: 0 | AE52: 0 | AF52: 0 | AG52: 0 | AH52: 0 | AI52: 10 | AJ52: - | AK52: 0 | AL52: 0 | AM52: 0 | AN52: 0 | AO52: 0 | AP52: - | AQ52: 0 | AR52: 0 | AS52: 0 | AT52: 10 | AU52: 0 | AV52: 0 | AW52: 0 | AX52: 5 | AY52: 0 | AZ52: 0 | BA52: 0 | BB52: 0 | BC52: 0 | BD52: 0 | BE52: 0 | BF52: 0 | BG52: 0 | BH52: 5 | BI52: 0 | BJ52: 0 | BK52: 0 | BL52: 0 | BM52: - | BN52: 0 | BO52: 0 | BP52: 0 | BQ52: 0 | BR52: - | BS52: 0 | BT52: 0 | BU52: 0 | BV52: 0 | BW52: 0 | BX52: 0 | BY52: 0 | BZ52: 0 | CA52: 0 | CB52: 0 | CC52: 0 | CD52: 0 | CE52: 0
A54: Golden Boots
A55: Anthony Martial - Man United | D55: =COUNT(I55:CE55) -> 8 | E55: =1+0+0+0+0+0 -> 1 | U55: =$E55*2 -> 2 | AB55: =$E55*2 -> 2 | AF55: =$E55*2 -> 2 | AM55: =$E55*2 -> 2 | BD55: =$E55*2 -> 2 | BI55: =$E55*2 -> 2 | BN55: =$E55*2 -> 2 | BU55: =$E55*2 -> 2
A56: Chris Wood - Burnley | D56: 0 | E56: =0+0+0+1+0+0 -> 1
A57: Danny Ings - Southampton | D57: 6 | E57: =1+0+0 -> 1 | T57: =$E57*2 -> 2 | AP57: =$E57*2 -> 2 | BO57: =$E57*2 -> 2 | BR57: =$E57*2 -> 2 | BV57: =$E57*2 -> 2 | CD57: =$E57*2 -> 2
A58: Harry Kane - Tottenham Hotspur | D58: 44 | E58: =1+1+1+0+0 -> 3 | I58: =$E58*2 -> 6 | J58: 6 | K58: 6 | L58: 6 | M58: 6 | N58: 6 | O58: 6 | Q58: =$E58*2 -> 6 | R58: =$E58*2 -> 6 | W58: =$E58*2 -> 6 | X58: =$E58*2 -> 6 | Y58: =$E58*2 -> 6 | Z58: =$E58*2 -> 6 | AC58: =$E58*2 -> 6 | AD58: 6 | AE58: 6 | AF58: 6 | AG58: 6 | AH58: 6 | AI58: 6 | AJ58: =$E58*2 -> 6 | AK58: =$E58*2 -> 6 | AL58: =$E58*2 -> 6 | AM58: =$E58*2 -> 6 | AN58: =$E58*2 -> 6 | AP58: =$E58*2 -> 6 | AQ58: =$E58*2 -> 6 | AR58: =$E58*2 -> 6 | AS58: =$E58*2 -> 6 | AT58: =$E58*2 -> 6 | AW58: =$E58*2 -> 6 | AY58: =$E58*2 -> 6 | AZ58: =$E58*2 -> 6 | BA58: =$E58*2 -> 6 | BB58: =$E58*2 -> 6 | BD58: =$E58*2 -> 6 | BF58: =$E58*2 -> 6 | BH58: =$E58*2 -> 6 | BI58: =$E58*2 -> 6 | BM58: =$E58*2 -> 6 | BS58: =$E58*2 -> 6 | BT58: =$E58*2 -> 6 | BX58: =$E58*2 -> 6 | CD58: =$E58*2 -> 6
A59: Jamie Vardy - Leicester City | D59: 19 | E59: =0+0+0+0+0 -> 0 | K59: =$E59*2 -> 0 | S59: =$E59*2 -> 0 | Z59: =$E59*2 -> 0 | AD59: =$E59*2 -> 0 | AS59: =$E59*2 -> 0 | AU59: =$E59*2 -> 0 | AV59: =$E59*2 -> 0 | AW59: =$E59*2 -> 0 | AX59: =$E59*2 -> 0 | AY59: =$E59*2 -> 0 | BA59: =$E59*2 -> 0 | BJ59: =$E59*2 -> 0 | BN59: =$E59*2 -> 0 | BQ59: =$E59*2 -> 0 | BR59: =$E59*2 -> 0 | BW59: =$E59*2 -> 0 | BX59: =$E59*2 -> 0 | CA59: =$E59*2 -> 0 | CB59: =$E59*2 -> 0
A60: Marcus Rashford - Man United | D60: 6 | E60: =0+0+0+0+0+0 -> 0 | P60: =$E60*2 -> 0 | BA60: =$E60*2 -> 0 | BG60: =$E60*2 -> 0 | BI60: =$E60*2 -> 0 | CA60: =$E60*2 -> 0 | CC60: =$E60*2 -> 0
A61: Mohamed Salah - Liverpool | D61: 36 | E61: =0+0+0+0+2 -> 2 | K61: =$E61*2 -> 4 | L61: =$E61*2 -> 4 | O61: =$E61*2 -> 4 | Q61: =$E61*2 -> 4 | R61: 4 | S61: 4 | T61: 4 | U61: 4 | V61: 4 | X61: =$E61*2 -> 4 | Y61: =$E61*2 -> 4 | AB61: =$E61*2 -> 4 | AE61: =$E61*2 -> 4 | AF61: =$E61*2 -> 4 | AM61: =$E61*2 -> 4 | AO61: =$E61*2 -> 4 | AQ61: =$E61*2 -> 4 | AV61: =$E61*2 -> 4 | AX61: =$E61*2 -> 4 | BB61: =$E61*2 -> 4 | BC61: =$E61*2 -> 4 | BD61: =$E61*2 -> 4 | BE61: =$E61*2 -> 4 | BF61: =$E61*2 -> 4 | BJ61: =$E61*2 -> 4 | BL61: =$E61*2 -> 4 | BO61: =$E61*2 -> 4 | BS61: =$E61*2 -> 4 | BT61: 4 | BU61: 4 | BV61: 4 | BW61: 4 | BX61: =$E61*2 -> 4 | BZ61: =$E61*2 -> 4 | CA61: 4 | CE61: =$E61*2 -> 4
A62: Pierre Emerick Aubameyang - Arsenal | D62: 45 | E62: =0+0+2+0 -> 2 | L62: =$E62*2 -> 4 | N62: =$E62*2 -> 4 | O62: =$E62*2 -> 4 | P62: =$E62*2 -> 4 | Q62: =$E62*2 -> 4 | R62: =$E62*2 -> 4 | S62: =$E62*2 -> 4 | U62: =$E62*2 -> 4 | V62: =$E62*2 -> 4 | W62: =$E62*2 -> 4 | AA62: =$E62*2 -> 4 | AB62: =$E62*2 -> 4 | AC62: =$E62*2 -> 4 | AE62: =$E62*2 -> 4 | AG62: =$E62*2 -> 4 | AI62: =$E62*2 -> 4 | AJ62: =$E62*2 -> 4 | AK62: =$E62*2 -> 4 | AN62: =$E62*2 -> 4 | AO62: =$E62*2 -> 4 | AQ62: =$E62*2 -> 4 | AR62: =$E62*2 -> 4 | AS62: =$E62*2 -> 4 | AU62: =$E62*2 -> 4 | AV62: =$E62*2 -> 4 | AW62: =$E62*2 -> 4 | AX62: =$E62*2 -> 4 | AY62: =$E62*2 -> 4 | BB62: =$E62*2 -> 4 | BC62: =$E62*2 -> 4 | BE62: =$E62*2 -> 4 | BF62: =$E62*2 -> 4 | BK62: =$E62*2 -> 4 | BL62: =$E62*2 -> 4 | BN62: =$E62*2 -> 4 | BP62: =$E62*2 -> 4 | BT62: =$E62*2 -> 4 | BV62: =$E62*2 -> 4 | BW62: =$E62*2 -> 4 | BY62: =$E62*2 -> 4 | BZ62: =$E62*2 -> 4 | CB62: =$E62*2 -> 4 | CC62: =$E62*2 -> 4 | CD62: =$E62*2 -> 4 | CE62: =$E62*2 -> 4
A63: Raheem Sterling - Man City | D63: 14 | E63: =0+0+1+0+1+0 -> 2 | X63: =$E63*2 -> 4 | AA63: =$E63*2 -> 4 | AC63: =$E63*2 -> 4 | AH63: =$E63*2 -> 4 | AJ63: =$E63*2 -> 4 | BG63: =$E63*2 -> 4 | BH63: =$E63*2 -> 4 | BJ63: =$E63*2 -> 4 | BK63: =$E63*2 -> 4 | BM63: =$E63*2 -> 4 | BP63: =$E63*2 -> 4 | BQ63: =$E63*2 -> 4 | BS63: =$E63*2 -> 4 | CE63: =$E63*2 -> 4
A64: Raul Jiminez - Wolves | D64: 1 | E64: =0+0+0+0+0 -> 0 | AU64: =$E64*2 -> 0
A65: Richarlison - Everton | D65: 1 | E65: =0+0+0+0 -> 0 | I65: =$E65*2 -> 0
A66: Sadio Mane - Liverpool | D66: 12 | E66: =0+0+0+1+0 -> 1 | J66: =$E66*2 -> 2 | M66: =$E66*2 -> 2 | P66: =$E66*2 -> 2 | V66: =$E66*2 -> 2 | AH66: =$E66*2 -> 2 | AI66: =$E66*2 -> 2 | AT66: =$E66*2 -> 2 | AZ66: =$E66*2 -> 2 | BG66: =$E66*2 -> 2 | BL66: =$E66*2 -> 2 | BP66: =$E66*2 -> 2 | CC66: =$E66*2 -> 2
A67: Sergio Aguero - Man City | D67: 9 | E67: =0+0+0+0+0 -> 0 | J67: =$E67*2 -> 0 | T67: =$E67*2 -> 0 | AL67: =$E67*2 -> 0 | AP67: =$E67*2 -> 0 | AT67: =$E67*2 -> 0 | BE67: =$E67*2 -> 0 | BM67: =$E67*2 -> 0 | BU67: =$E67*2 -> 0 | BY67: =$E67*2 -> 0
A68: Tammy Abraham - Chelsea | D68: 0 | E68: =0+0+0+0+0+0 -> 0
A69: Timo Werner - Chelsea | D69: 24 | E69: =0+0+0+0+0+0 -> 0 | I69: =$E69*2 -> 0 | M69: =$E69*2 -> 0 | N69: =$E69*2 -> 0 | W69: =$E69*2 -> 0 | Y69: =$E69*2 -> 0 | Z69: =$E69*2 -> 0 | AA69: =$E69*2 -> 0 | AD69: =$E69*2 -> 0 | AG69: =$E69*2 -> 0 | AK69: =$E69*2 -> 0 | AL69: =$E69*2 -> 0 | AN69: =$E69*2 -> 0 | AO69: =$E69*2 -> 0 | AR69: =$E69*2 -> 0 | AZ69: =$E69*2 -> 0 | BC69: =$E69*2 -> 0 | BH69: =$E69*2 -> 0 | BK69: =$E69*2 -> 0 | BO69: =$E69*2 -> 0 | BQ69: =$E69*2 -> 0 | BR69: =$E69*2 -> 0 | BY69: =$E69*2 -> 0 | BZ69: =$E69*2 -> 0 | CB69: =$E69*2 -> 0
A71: Golden Gloves
A72: Alisson Becker - Liverpool | D72: =COUNT(I72:CE72) -> 57 | E72: =0+1+0+0+0 -> 1 | J72: =$E72*2 -> 2 | K72: =$E72*2 -> 2 | L72: =$E72*2 -> 2 | M72: =$E72*2 -> 2 | O72: =$E72*2 -> 2 | P72: =$E72*2 -> 2 | R72: =$E72*2 -> 2 | S72: =$E72*2 -> 2 | T72: =$E72*2 -> 2 | V72: =$E72*2 -> 2 | W72: =$E72*2 -> 2 | X72: =$E72*2 -> 2 | Y72: =$E72*2 -> 2 | Z72: =$E72*2 -> 2 | AB72: =$E72*2 -> 2 | AD72: =$E72*2 -> 2 | AG72: =$E72*2 -> 2 | AH72: 2 | AI72: 2 | AJ72: 2 | AK72: 2 | AL72: 2 | AN72: =$E72*2 -> 2 | AO72: =$E72*2 -> 2 | AP72: =$E72*2 -> 2 | AQ72: =$E72*2 -> 2 | AR72: =$E72*2 -> 2 | AT72: =$E72*2 -> 2 | AV72: =$E72*2 -> 2 | AX72: =$E72*2 -> 2 | AY72: =$E72*2 -> 2 | AZ72: =$E72*2 -> 2 | BA72: =$E72*2 -> 2 | BB72: =$E72*2 -> 2 | BD72: =$E72*2 -> 2 | BE72: =$E72*2 -> 2 | BF72: =$E72*2 -> 2 | BG72: =$E72*2 -> 2 | BI72: =$E72*2 -> 2 | BJ72: =$E72*2 -> 2 | BK72: 2 | BL72: =$E72*2 -> 2 | BM72: 2 | BN72: 2 | BO72: =$E72*2 -> 2 | BP72: 2 | BR72: =$E72*2 -> 2 | BS72: 2 | BT72: 2 | BW72: =$E72*2 -> 2 | BX72: 2 | BY72: 2 | BZ72: =$E72*2 -> 2 | CA72: 2 | CB72: 2 | CC72: 2 | CE72: =$E72*2 -> 2
A73: Ederson - Man City | D73: =COUNT(I73:CE73) -> 14 | E73: =0+1+1+1+1+1 -> 5 | I73: =$E73*2 -> 10 | Q73: =$E73*2 -> 10 | U73: =$E73*2 -> 10 | AA73: =$E73*2 -> 10 | AC73: =$E73*2 -> 10 | AE73: =$E73*2 -> 10 | AF73: =$E73*2 -> 10 | AM73: =$E73*2 -> 10 | AU73: =$E73*2 -> 10 | AW73: =$E73*2 -> 10 | BC73: =$E73*2 -> 10 | BH73: =$E73*2 -> 10 | BV73: =$E73*2 -> 10 | CD73: =$E73*2 -> 10
A74: David de Gea - Man United | D74: =COUNT(I74:CE74) -> 3 | E74: =0+1+1+0+0+1 -> 3 | N74: =$E74*2 -> 6 | AS74: =$E74*2 -> 6 | BU74: =$E74*2 -> 6
A75: Hugo Lloris - Tottenham Hotspur | D75: =COUNT(I75:CE75) -> 1 | E75: =1+0+0 -> 1 | BQ75: =$E75*2 -> 2
A76: Nick Pope - Burnley | D76: =COUNT(I76:CE76) -> 0 | E76: =0+0+1+0+0+0 -> 1
A78: Grand Total - January | I78: =SUM(I$3:I77) -> 171 | J78: =SUM(J$3:J77) -> 180 | K78: =SUM(K$3:K77) -> 167 | L78: =SUM(L$3:L77) -> 161 | M78: =SUM(M$3:M77) -> 145 | N78: =SUM(N$3:N77) -> 16 | O78: =SUM(O$3:O77) -> 141 | P78: =SUM(P$3:P77) -> 133 | Q78: =SUM(Q$3:Q77) -> 169 | R78: =SUM(R$3:R77) -> 161 | S78: =SUM(S$3:S77) -> 150 | T78: =SUM(T$3:T77) -> 63 | U78: =SUM(U$3:U77) -> 150 | V78: =SUM(V$3:V77) -> 162 | W78: =SUM(W$3:W77) -> 147 | X78: =SUM(X$3:X77) -> 126 | Y78: =SUM(Y$3:Y77) -> 157 | Z78: =SUM(Z$3:Z77) -> 188 | AA78: =SUM(AA$3:AA77) -> 163 | AB78: =SUM(AB$3:AB77) -> 152 | AC78: =SUM(AC$3:AC77) -> 189 | AD78: =SUM(AD$3:AD77) -> 158 | AE78: =SUM(AE$3:AE77) -> 179 | AF78: =SUM(AF$3:AF77) -> 157 | AG78: =SUM(AG$3:AG77) -> 167 | AH78: =SUM(AH$3:AH77) -> 169 | AI78: =SUM(AI$3:AI77) -> 194 | AJ78: =SUM(AJ$3:AJ77) -> 16 | AK78: =SUM(AK$3:AK77) -> 162 | AL78: =SUM(AL$3:AL77) -> 193 | AM78: =SUM(AM$3:AM77) -> 157 | AN78: =SUM(AN$3:AN77) -> 167 | AO78: =SUM(AO$3:AO77) -> 155 | AP78: =SUM(AP$3:AP77) -> 10 | AQ78: =SUM(AQ$3:AQ77) -> 166 | AR78: =SUM(AR$3:AR77) -> 152 | AS78: =SUM(AS$3:AS77) -> 181 | AT78: =SUM(AT$3:AT77) -> 180 | AU78: =SUM(AU$3:AU77) -> 139 | AV78: =SUM(AV$3:AV77) -> 150 | AW78: =SUM(AW$3:AW77) -> 205 | AX78: =SUM(AX$3:AX77) -> 110 | AY78: =SUM(AY$3:AY77) -> 147 | AZ78: =SUM(AZ$3:AZ77) -> 175 | BA78: =SUM(BA$3:BA77) -> 198 | BB78: =SUM(BB$3:BB77) -> 176 | BC78: =SUM(BC$3:BC77) -> 113 | BD78: =SUM(BD$3:BD77) -> 109 | BE78: =SUM(BE$3:BE77) -> 150 | BF78: =SUM(BF$3:BF77) -> 196 | BG78: =SUM(BG$3:BG77) -> 133 | BH78: =SUM(BH$3:BH77) -> 175 | BI78: =SUM(BI$3:BI77) -> 135 | BJ78: =SUM(BJ$3:BJ77) -> 160 | BK78: =SUM(BK$3:BK77) -> 160 | BL78: =SUM(BL$3:BL77) -> 137 | BM78: =SUM(BM$3:BM77) -> 12 | BN78: =SUM(BN$3:BN77) -> 118 | BO78: =SUM(BO$3:BO77) -> 133 | BP78: =SUM(BP$3:BP77) -> 167 | BQ78: =SUM(BQ$3:BQ77) -> 136 | BR78: =SUM(BR$3:BR77) -> 89 | BS78: =SUM(BS$3:BS77) -> 131 | BT78: =SUM(BT$3:BT77) -> 161 | BU78: =SUM(BU$3:BU77) -> 162 | BV78: =SUM(BV$3:BV77) -> 155 | BW78: =SUM(BW$3:BW77) -> 160 | BX78: =SUM(BX$3:BX77) -> 182 | BY78: =SUM(BY$3:BY77) -> 126 | BZ78: =SUM(BZ$3:BZ77) -> 150 | CA78: =SUM(CA$3:CA77) -> 141 | CB78: =SUM(CB$3:CB77) -> 146 | CC78: =SUM(CC$3:CC77) -> 153 | CD78: =SUM(CD$3:CD77) -> 202 | CE78: =SUM(CE$3:CE77) -> 164
A80: Ten Pointers | I80: =COUNTIF(I$3:I52,"10") -> 6 | J80: =COUNTIF(J$3:J52,"10") -> 8 | K80: =COUNTIF(K$3:K52,"10") -> 5 | L80: =COUNTIF(L$3:L52,"10") -> 3 | M80: =COUNTIF(M$3:M52,"10") -> 6 | N80: =COUNTIF(N$3:N52,"10") -> 0 | O80: =COUNTIF(O$3:O52,"10") -> 3 | P80: =COUNTIF(P$3:P52,"10") -> 3 | Q80: =COUNTIF(Q$3:Q52,"10") -> 3 | R80: =COUNTIF(R$3:R52,"10") -> 4 | S80: =COUNTIF(S$3:S52,"10") -> 3 | T80: =COUNTIF(T$3:T52,"10") -> 1 | U80: =COUNTIF(U$3:U52,"10") -> 5 | V80: =COUNTIF(V$3:V52,"10") -> 7 | W80: =COUNTIF(W$3:W52,"10") -> 5 | X80: =COUNTIF(X$3:X52,"10") -> 2 | Y80: =COUNTIF(Y$3:Y52,"10") -> 4 | Z80: =COUNTIF(Z$3:Z52,"10") -> 10 | AA80: =COUNTIF(AA$3:AA52,"10") -> 6 | AB80: =COUNTIF(AB$3:AB52,"10") -> 4 | AC80: =COUNTIF(AC$3:AC52,"10") -> 5 | AD80: =COUNTIF(AD$3:AD52,"10") -> 3 | AE80: =COUNTIF(AE$3:AE52,"10") -> 6 | AF80: =COUNTIF(AF$3:AF52,"10") -> 4 | AG80: =COUNTIF(AG$3:AG52,"10") -> 5 | AH80: =COUNTIF(AH$3:AH52,"10") -> 5 | AI80: =COUNTIF(AI$3:AI52,"10") -> 6 | AJ80: =COUNTIF(AJ$3:AJ52,"10") -> 0 | AK80: =COUNTIF(AK$3:AK52,"10") -> 3 | AL80: =COUNTIF(AL$3:AL52,"10") -> 7 | AM80: =COUNTIF(AM$3:AM52,"10") -> 2 | AN80: =COUNTIF(AN$3:AN52,"10") -> 7 | AO80: =COUNTIF(AO$3:AO52,"10") -> 5 | AP80: =COUNTIF(AP$3:AP52,"10") -> 0 | AQ80: =COUNTIF(AQ$3:AQ52,"10") -> 4 | AR80: =COUNTIF(AR$3:AR52,"10") -> 5 | AS80: =COUNTIF(AS$3:AS52,"10") -> 7 | AT80: =COUNTIF(AT$3:AT52,"10") -> 8 | AU80: =COUNTIF(AU$3:AU52,"10") -> 4 | AV80: =COUNTIF(AV$3:AV52,"10") -> 3 | AW80: =COUNTIF(AW$3:AW52,"10") -> 8 | AX80: =COUNTIF(AX$3:AX52,"10") -> 2 | AY80: =COUNTIF(AY$3:AY52,"10") -> 4 | AZ80: =COUNTIF(AZ$3:AZ52,"10") -> 7 | BA80: =COUNTIF(BA$3:BA52,"10") -> 7 | BB80: =COUNTIF(BB$3:BB52,"10") -> 6 | BC80: =COUNTIF(BC$3:BC52,"10") -> 3 | BD80: =COUNTIF(BD$3:BD52,"10") -> 3 | BE80: =COUNTIF(BE$3:BE52,"10") -> 5 | BF80: =COUNTIF(BF$3:BF52,"10") -> 9 | BG80: =COUNTIF(BG$3:BG52,"10") -> 4 | BH80: =COUNTIF(BH$3:BH52,"10") -> 5 | BI80: =COUNTIF(BI$3:BI52,"10") -> 3 | BJ80: =COUNTIF(BJ$3:BJ52,"10") -> 6 | BK80: =COUNTIF(BK$3:BK52,"10") -> 4 | BL80: =COUNTIF(BL$3:BL52,"10") -> 3 | BM80: =COUNTIF(BM$3:BM52,"10") -> 0 | BN80: =COUNTIF(BN$3:BN52,"10") -> 3 | BO80: =COUNTIF(BO$3:BO52,"10") -> 5 | BP80: =COUNTIF(BP$3:BP52,"10") -> 5 | BQ80: =COUNTIF(BQ$3:BQ52,"10") -> 3 | BR80: =COUNTIF(BR$3:BR52,"10") -> 0 | BS80: =COUNTIF(BS$3:BS52,"10") -> 4 | BT80: =COUNTIF(BT$3:BT52,"10") -> 7 | BU80: =COUNTIF(BU$3:BU52,"10") -> 4 | BV80: =COUNTIF(BV$3:BV52,"10") -> 4 | BW80: =COUNTIF(BW$3:BW52,"10") -> 5 | BX80: =COUNTIF(BX$3:BX52,"10") -> 6 | BY80: =COUNTIF(BY$3:BY52,"10") -> 3 | BZ80: =COUNTIF(BZ$3:BZ52,"10") -> 4 | CA80: =COUNTIF(CA$3:CA52,"10") -> 3 | CB80: =COUNTIF(CB$3:CB52,"10") -> 3 | CC80: =COUNTIF(CC$3:CC52,"10") -> 4 | CD80: =COUNTIF(CD$3:CD52,"10") -> 7 | CE80: =COUNTIF(CE$3:CE52,"10") -> 6

Sheet February
I1: Aidan Scanlon | J1: Aidan White | K1: Alan White | L1: Anastas Popov | M1: Andy Dunne | N1: Ben Creasey | O1: Bobby Hynes | P1: Brendan Maguire | Q1: Brian Prendergast | R1: Brian Haughton | S1: Brian Mullen | T1: Callum Dunne | U1: Calvin McGettigan | V1: Caroline Carroll | W1: Cathal Thornton | X1: Christina Morgan | Y1: Ciaran Nelson | Z1: Ciaran O'Hart | AA1: Con McSweeney | AB1: Craig Calvert | AC1: Darragh Kenny | AD1: David Cooney | AE1: David Lavelle | AF1: David McGinley | AG1: Davy Doyle | AH1: Dean White | AI1: Derek Brady | AJ1: Drew Armstrong | AK1: Eamon Fox | AL1: Eoghan Farrelly | AM1: Fiachra O'Brolachain | AN1: Frank McSweeney | AO1: Gareth Pierpoint | AP1: Gary Donnelly | AQ1: Gary Fitzpatrick | AR1: Gary McGurk | AS1: Gavin Goodwin | AT1: Gavin Morgan | AU1: George McGettigan | AV1: Gerard McCluskey | AW1: Gerry Draper | AX1: Gerry Moore | AY1: Graham Goodwin | AZ1: Javier Suarez | BA1: Joe Behan | BB1: Joe Turner | BC1: John Brophy | BD1: John O'Driscoll | BE1: Jonathan Fox | BF1: Joseph Kavanagh | BG1: Kev Dalton | BH1: Kevin Philpott | BI1: Kris Stainton | BJ1: Liam Geraghty | BK1: Liam Keohan | BL1: Lionel Knott | BM1: Michael Kenaney | BN1: Micheal Joyce | BO1: Niall Cannon | BP1: Niall Carroll | BQ1: Niall Murray | BR1: Patrick Mifsud | BS1: Paul Moore | BT1: Paul Prendergast | BU1: Phil Doyle | BV1: Philip Jordan | BW1: Ralph Goodwin | BX1: Richard Johnston | BY1: Robert Hynes | BZ1: Robert Manley | CA1: Roisin Joyce | CB1: Sean O'Mairtin | CC1: Trevor Byrne | CD1: Victoria Reid | CE1: Wayne Donovan
A2: Day | B2: Date | C2: Teams | G2: Time
A3: Tue | B3: 2021-02-02 | C3: Sheffield Utd | D3: 2 | E3: 1 | F3: West Bromwich | G3: 18:00:00 | I3: 5 | J3: 5 | K3: 5 | L3: 5 | M3: 5 | N3: - | O3: 10 | P3: 5 | Q3: 10 | R3: 5 | S3: 0 | T3: - | U3: 5 | V3: 5 | W3: 5 | X3: 5 | Y3: 0 | Z3: 5 | AA3: 5 | AB3: 5 | AC3: 5 | AD3: 5 | AE3: 0 | AF3: 10 | AG3: 0 | AH3: 5 | AI3: 5 | AJ3: - | AK3: 5 | AL3: 0 | AM3: 10 | AN3: 5 | AO3: 5 | AP3: - | AQ3: 10 | AR3: 0 | AS3: 10 | AT3: 5 | AU3: 10 | AV3: 5 | AW3: 10 | AX3: 0 | AY3: 5 | AZ3: 0 | BA3: 0 | BB3: 5 | BC3: 0 | BD3: 10 | BE3: 5 | BF3: 5 | BG3: 5 | BH3: 10 | BI3: 0 | BJ3: 10 | BK3: 0 | BL3: 0 | BM3: - | BN3: 0 | BO3: 10 | BP3: 10 | BQ3: 0 | BR3: - | BS3: 5 | BT3: 5 | BU3: 0 | BV3: 10 | BW3: 5 | BX3: 5 | BY3: 0 | BZ3: 10 | CA3: 0 | CB3: 5 | CC3: 0 | CD3: 0 | CE3: 5
A4: Tue | B4: 2021-02-02 | C4: Wolverhampton | D4: 2 | E4: 1 | F4: Arsenal | G4: 18:00:00 | I4: 0 | J4: 5 | K4: 0 | L4: 0 | M4: 0 | N4: - | O4: 10 | P4: 10 | Q4: 10 | R4: 0 | S4: 0 | T4: - | U4: 0 | V4: 10 | W4: 0 | X4: 0 | Y4: 0 | Z4: 0 | AA4: 0 | AB4: 0 | AC4: 0 | AD4: 10 | AE4: 0 | AF4: 10 | AG4: 0 | AH4: 5 | AI4: 0 | AJ4: - | AK4: 0 | AL4: 0 | AM4: 10 | AN4: 0 | AO4: 0 | AP4: - | AQ4: 0 | AR4: 0 | AS4: 0 | AT4: 5 | AU4: 0 | AV4: 0 | AW4: 5 | AX4: 0 | AY4: 0 | AZ4: 0 | BA4: 0 | BB4: 0 | BC4: 5 | BD4: 0 | BE4: 0 | BF4: 0 | BG4: 0 | BH4: 10 | BI4: 0 | BJ4: 0 | BK4: 0 | BL4: 10 | BM4: - | BN4: 0 | BO4: 0 | BP4: 0 | BQ4: 10 | BR4: - | BS4: 0 | BT4: 0 | BU4: 0 | BV4: 0 | BW4: 5 | BX4: 0 | BY4: 0 | BZ4: 0 | CA4: 0 | CB4: 5 | CC4: 0 | CD4: 0 | CE4: 0
A5: Tue | B5: 2021-02-02 | C5: Manchester United | D5: 9 | E5: 0 | F5: Southampton | G5: 20:15:00 | I5: 5 | J5: 5 | K5: 0 | L5: 5 | M5: 0 | N5: - | O5: 5 | P5: 5 | Q5: 5 | R5: 5 | S5: 5 | T5: - | U5: 0 | V5: 0 | W5: 5 | X5: 5 | Y5: 5 | Z5: 5 | AA5: 5 | AB5: 5 | AC5: 5 | AD5: 5 | AE5: 5 | AF5: 5 | AG5: 5 | AH5: 5 | AI5: 0 | AJ5: - | AK5: 5 | AL5: 5 | AM5: 5 | AN5: 5 | AO5: 5 | AP5: - | AQ5: 5 | AR5: 5 | AS5: 5 | AT5: 5 | AU5: 5 | AV5: 5 | AW5: 5 | AX5: 0 | AY5: 5 | AZ5: 5 | BA5: 5 | BB5: 5 | BC5: 5 | BD5: 5 | BE5: 5 | BF5: 0 | BG5: 5 | BH5: 5 | BI5: 5 | BJ5: 5 | BK5: 0 | BL5: 5 | BM5: - | BN5: 0 | BO5: 0 | BP5: 5 | BQ5: 0 | BR5: - | BS5: 5 | BT5: 5 | BU5: 5 | BV5: 5 | BW5: 5 | BX5: 5 | BY5: 5 | BZ5: 5 | CA5: 5 | CB5: 5 | CC5: 5 | CD5: 5 | CE5: 5
A6: Tue | B6: 2021-02-02 | C6: Newcastle Utd | D6: 1 | E6: 2 | F6: Crystal Palace | G6: 20:15:00 | I6: 0 | J6: 0 | K6: 0 | L6: 0 | M6: 0 | N6: - | O6: 0 | P6: 0 | Q6: 0 | R6: 0 | S6: 0 | T6: - | U6: 0 | V6: 0 | W6: 0 | X6: 0 | Y6: 5 | Z6: 0 | AA6: 0 | AB6: 0 | AC6: 0 | AD6: 0 | AE6: 5 | AF6: 0 | AG6: 5 | AH6: 0 | AI6: 0 | AJ6: - | AK6: 0 | AL6: 0 | AM6: 0 | AN6: 0 | AO6: 0 | AP6: - | AQ6: 10 | AR6: 0 | AS6: 5 | AT6: 0 | AU6: 0 | AV6: 0 | AW6: 0 | AX6: 0 | AY6: 0 | AZ6: 0 | BA6: 0 | BB6: 0 | BC6: 10 | BD6: 0 | BE6: 5 | BF6: 0 | BG6: 5 | BH6: 0 | BI6: 0 | BJ6: 0 | BK6: 0 | BL6: 0 | BM6: - | BN6: 0 | BO6: 0 | BP6: 0 | BQ6: 0 | BR6: - | BS6: 0 | BT6: 0 | BU6: 0 | BV6: 0 | BW6: 0 | BX6: 0 | BY6: 0 | BZ6: 10 | CA6: 0 | CB6: 0 | CC6: 0 | CD6: 5 | CE6: 0
A7: Wed | B7: 2021-02-03 | C7: Burnley | D7: 0 | E7: 2 | F7: Manchester City | G7: 18:00:00 | I7: 10 | J7: 5 | K7: 5 | L7: 10 | M7: 0 | N7: - | O7: 10 | P7: 10 | Q7: 10 | R7: 5 | S7: 5 | T7: - | U7: 10 | V7: 5 | W7: 5 | X7: 5 | Y7: 10 | Z7: 10 | AA7: 5 | AB7: 10 | AC7: 5 | AD7: 5 | AE7: 5 | AF7: 10 | AG7: 10 | AH7: 10 | AI7: 5 | AJ7: - | AK7: 10 | AL7: 5 | AM7: 0 | AN7: 10 | AO7: 5 | AP7: - | AQ7: 5 | AR7: 0 | AS7: 10 | AT7: 10 | AU7: 5 | AV7: 5 | AW7: 10 | AX7: 5 | AY7: 5 | AZ7: 5 | BA7: 10 | BB7: 5 | BC7: 5 | BD7: 5 | BE7: 5 | BF7: 5 | BG7: 5 | BH7: 5 | BI7: 5 | BJ7: 0 | BK7: 5 | BL7: 10 | BM7: - | BN7: 5 | BO7: 5 | BP7: 5 | BQ7: 5 | BR7: - | BS7: 5 | BT7: 10 | BU7: 10 | BV7: 10 | BW7: 5 | BX7: 5 | BY7: 10 | BZ7: 10 | CA7: 10 | CB7: 5 | CC7: 5 | CD7: 5 | CE7: 5
A8: Wed | B8: 2021-02-03 | C8: Fulham | D8: 0 | E8: 2 | F8: Leicester City | G8: 18:00:00 | I8: 5 | J8: 5 | K8: 5 | L8: 5 | M8: 10 | N8: - | O8: 0 | P8: 5 | Q8: 10 | R8: 5 | S8: 10 | T8: - | U8: 5 | V8: 0 | W8: 10 | X8: 10 | Y8: 5 | Z8: 5 | AA8: 10 | AB8: 10 | AC8: 5 | AD8: 5 | AE8: 10 | AF8: 5 | AG8: 10 | AH8: 10 | AI8: 5 | AJ8: - | AK8: 10 | AL8: 10 | AM8: 0 | AN8: 10 | AO8: 0 | AP8: - | AQ8: 5 | AR8: 0 | AS8: 0 | AT8: 5 | AU8: 5 | AV8: 5 | AW8: 10 | AX8: 5 | AY8: 0 | AZ8: 5 | BA8: 0 | BB8: 5 | BC8: 5 | BD8: 5 | BE8: 5 | BF8: 10 | BG8: 10 | BH8: 5 | BI8: 10 | BJ8: 10 | BK8: 5 | BL8: 5 | BM8: - | BN8: 5 | BO8: 0 | BP8: 0 | BQ8: 5 | BR8: - | BS8: 5 | BT8: 5 | BU8: 5 | BV8: 5 | BW8: 10 | BX8: 5 | BY8: 5 | BZ8: 10 | CA8: 0 | CB8: 5 | CC8: 5 | CD8: 5 | CE8: 0
A9: Wed | B9: 2021-02-03 | C9: Leeds Utd | D9: 1 | E9: 2 | F9: Everton | G9: 19:30:00 | I9: 5 | J9: 0 | K9: 0 | L9: 0 | M9: 0 | N9: - | O9: 0 | P9: 0 | Q9: 0 | R9: 0 | S9: 0 | T9: - | U9: 5 | V9: 0 | W9: 0 | X9: 0 | Y9: 0 | Z9: 0 | AA9: 0 | AB9: 0 | AC9: 10 | AD9: 5 | AE9: 0 | AF9: 0 | AG9: 0 | AH9: 0 | AI9: 0 | AJ9: - | AK9: 0 | AL9: 0 | AM9: 0 | AN9: 0 | AO9: 0 | AP9: - | AQ9: 0 | AR9: 0 | AS9: 10 | AT9: 0 | AU9: 10 | AV9: 0 | AW9: 10 | AX9: 10 | AY9: 0 | AZ9: 0 | BA9: 0 | BB9: 0 | BC9: 0 | BD9: 0 | BE9: 10 | BF9: 10 | BG9: 5 | BH9: 0 | BI9: 10 | BJ9: 0 | BK9: 10 | BL9: 0 | BM9: - | BN9: 0 | BO9: 0 | BP9: 0 | BQ9: 0 | BR9: - | BS9: 0 | BT9: 0 | BU9: 0 | BV9: 0 | BW9: 0 | BX9: 10 | BY9: 0 | BZ9: 0 | CA9: 0 | CB9: 0 | CC9: 0 | CD9: 0 | CE9: 0
A10: Wed | B10: 2021-02-03 | C10: Aston Villa | D10: 1 | E10: 3 | F10: West Ham | G10: 20:15:00 | I10: 10 | J10: 0 | K10: 5 | L10: 0 | M10: 0 | N10: - | O10: 0 | P10: 0 | Q10: 0 | R10: 0 | S10: 5 | T10: - | U10: 0 | V10: 0 | W10: 5 | X10: 0 | Y10: 0 | Z10: 0 | AA10: 0 | AB10: 0 | AC10: 0 | AD10: 0 | AE10: 0 | AF10: 0 | AG10: 0 | AH10: 5 | AI10: 0 | AJ10: - | AK10: 0 | AL10: 0 | AM10: 0 | AN10: 0 | AO10: 0 | AP10: - | AQ10: 0 | AR10: 0 | AS10: 0 | AT10: 0 | AU10: 0 | AV10: 0 | AW10: 0 | AX10: 0 | AY10: 5 | AZ10: 0 | BA10: 0 | BB10: 0 | BC10: 0 | BD10: 0 | BE10: 0 | BF10: 0 | BG10: 0 | BH10: 0 | BI10: 0 | BJ10: 0 | BK10: 0 | BL10: 5 | BM10: - | BN10: 5 | BO10: 5 | BP10: 0 | BQ10: 5 | BR10: - | BS10: 0 | BT10: 0 | BU10: 0 | BV10: 0 | BW10: 0 | BX10: 5 | BY10: 0 | BZ10: 0 | CA10: 0 | CB10: 0 | CC10: 5 | CD10: 0 | CE10: 0
A11: Wed | B11: 2021-02-03 | C11: Liverpool | D11: 0 | E11: 1 | F11: Brighton | G11: 20:15:00 | I11: 0 | J11: 0 | K11: 0 | L11: 0 | M11: 0 | N11: - | O11: 0 | P11: 0 | Q11: 0 | R11: 0 | S11: 0 | T11: - | U11: 0 | V11: 0 | W11: 0 | X11: 0 | Y11: 0 | Z11: 0 | AA11: 0 | AB11: 0 | AC11: 0 | AD11: 0 | AE11: 0 | AF11: 0 | AG11: 0 | AH11: 0 | AI11: 0 | AJ11: - | AK11: 0 | AL11: 0 | AM11: 0 | AN11: 0 | AO11: 0 | AP11: - | AQ11: 0 | AR11: 0 | AS11: 0 | AT11: 0 | AU11: 0 | AV11: 0 | AW11: 0 | AX11: 0 | AY11: 0 | AZ11: 0 | BA11: 0 | BB11: 0 | BC11: 0 | BD11: 0 | BE11: 0 | BF11: 0 | BG11: 0 | BH11: 0 | BI11: 0 | BJ11: 0 | BK11: 0 | BL11: 0 | BM11: - | BN11: 0 | BO11: 0 | BP11: 0 | BQ11: 0 | BR11: - | BS11: 0 | BT11: 0 | BU11: 0 | BV11: 0 | BW11: 0 | BX11: 0 | BY11: 0 | BZ11: 0 | CA11: 0 | CB11: 0 | CC11: 0 | CD11: 0 | CE11: 0
A12: Thu | B12: 2021-02-04 | C12: Tottenham | D12: 0 | E12: 1 | F12: Chelsea | G12: 20:00:00 | I12: 0 | J12: 0 | K12: 0 | L12: 0 | M12: 0 | N12: - | O12: 0 | P12: 0 | Q12: 0 | R12: 0 | S12: 0 | T12: - | U12: 0 | V12: 0 | W12: 0 | X12: 0 | Y12: 0 | Z12: 0 | AA12: 5 | AB12: 0 | AC12: 5 | AD12: 5 | AE12: 0 | AF12: 0 | AG12: 0 | AH12: 0 | AI12: 5 | AJ12: - | AK12: 10 | AL12: 0 | AM12: 0 | AN12: 0 | AO12: 10 | AP12: - | AQ12: 0 | AR12: 0 | AS12: 0 | AT12: 0 | AU12: 0 | AV12: 0 | AW12: 0 | AX12: 5 | AY12: 0 | AZ12: 0 | BA12: 0 | BB12: 0 | BC12: 5 | BD12: 0 | BE12: 0 | BF12: 5 | BG12: 0 | BH12: 5 | BI12: 5 | BJ12: 0 | BK12: 5 | BL12: 0 | BM12: - | BN12: 0 | BO12: 0 | BP12: 5 | BQ12: 10 | BR12: - | BS12: 5 | BT12: 0 | BU12: 0 | BV12: 5 | BW12: 5 | BX12: 0 | BY12: 0 | BZ12: 5 | CA12: 5 | CB12: 0 | CC12: 0 | CD12: 5 | CE12: 0
